Workbook

Sheet Introduction
C4: Joint Monitoring Programme for Water Supply, Sanitation and Hygiene
C6: Estimates on household water, sanitation and hygiene by wealth quintile and sub-national region in
C7: =+Water!B5 -> United Republic of Tanzania
C9: Updated May 2021
C11: Follow the links below to find the following information:
C13: JMP Estimates
C14: WASH status and trends by wealth quintile (customized quintiles made without water and sanitation assets)
C15: Water
C16: Sanitation
C17: Hygiene
C19: Data inputs
C20: customized wealth quintiles and subnational data:
C21: =IF(INDIRECT(CONCATENATE("Water","!B105"))=0,"",INDIRECT(CONCATENATE("Water","!B105"))) -> AIS04
C22: =IF(INDIRECT(CONCATENATE("Water","!B106"))=0,"",INDIRECT(CONCATENATE("Water","!B106"))) -> DHS05
C23: =IF(INDIRECT(CONCATENATE("Water","!B107"))=0,"",INDIRECT(CONCATENATE("Water","!B107"))) -> AIS08
C24: =IF(INDIRECT(CONCATENATE("Water","!B108"))=0,"",INDIRECT(CONCATENATE("Water","!B108"))) -> DHS10
C25: =IF(INDIRECT(CONCATENATE("Water","!B109"))=0,"",INDIRECT(CONCATENATE("Water","!B109"))) -> AIS12
C26: =IF(INDIRECT(CONCATENATE("Water","!B110"))=0,"",INDIRECT(CONCATENATE("Water","!B110"))) -> DHS16
C27: =IF(INDIRECT(CONCATENATE("Water","!B111"))=0,"",INDIRECT(CONCATENATE("Water","!B111"))) -> MIS17
C28: =IF(INDIRECT(CONCATENATE("Water","!B112"))=0,"",INDIRECT(CONCATENATE("Water","!B112"))) -> 
C29: =IF(INDIRECT(CONCATENATE("Water","!B113"))=0,"",INDIRECT(CONCATENATE("Water","!B113"))) -> 
C30: =IF(INDIRECT(CONCATENATE("Water","!B114"))=0,"",INDIRECT(CONCATENATE("Water","!B114"))) -> 
C31: =IF(INDIRECT(CONCATENATE("Water","!B115"))=0,"",INDIRECT(CONCATENATE("Water","!B115"))) -> 
C32: =IF(INDIRECT(CONCATENATE("Water","!B116"))=0,"",INDIRECT(CONCATENATE("Water","!B116"))) -> 
L55: =+IF(ISNUMBER(M48), "", "Insufficient data to estimate safely managed sanitation services at national level") -> Insufficient data to estimate safely managed sanitation services at national level

Sheet Water
A1: BGD
B4: Summary of trends in use of drinking water by wealth quintile (%)
B5: =IF(ISERROR(INDIRECT(CONCATENATE($B105,"!A2"))),"",INDIRECT(CONCATENATE($B105,"!A2"))) -> United Republic of Tanzania
B7: =B118 -> National use of drinking water sources, 2000–2020 | J7: =B218 -> Urban use of drinking water sources, 2000–2020 | R7: =B318 -> Rural use of drinking water sources, 2000–2020
B31: =IF(ISERROR(INDIRECT(CONCATENATE($B105,"!A2"))),"",INDIRECT(CONCATENATE($B105,"!A2"))) -> United Republic of Tanzania | F31: Poorest | J31: Poor | N31: Middle | R31: Rich | V31: Richest
F32: Basic | G32: Limited | H32: Unimproved | I32: Surface water | J32: Basic | K32: Limited | L32: Unimproved | M32: Surface water | N32: Basic | O32: Limited | P32: Unimproved | Q32: Surface water | R32: Basic | S32: Limited | T32: Unimproved | U32: Surface water | V32: Basic | W32: Limited | X32: Unimproved | Y32: Surface water
B33: NATIONAL | D33: Estimate | E33: =C99 -> 2000 | F33: =E99 -> 17.36398372 | G33: =F99 -> 9.513083731 | H33: 44.60567859 | I33: 28.51725396 | J33: =J99 -> 21.28384022 | K33: =K99 -> 8.939807544 | L33: 43.45828038 | M33: 26.31807186 | N33: =O99 -> 26.50751862 | O33: =P99 -> 8.679854694 | P33: 36.21147383 | Q33: 28.60115286 | R33: =T99 -> 41.56410429 | S33: =U99 -> 7.622798804 | T33: 32.01958703 | U33: 18.79350988 | V33: =Y99 -> 79.33330358 | W33: =Z99 -> 6.006188748 | X33: 10.94917944 | Y33: 3.711328236
E34: =C100 -> 2020 | F34: =E100 -> 25.51294446 | G34: 13.97759759 | H34: 41.76916816 | I34: 18.74028979 | J34: =J100 -> 33.80099944 | K34: 14.19736413 | L34: 36.397606 | M34: 15.60403043 | N34: =O100 -> 44.94043097 | O34: 14.7156894 | P34: 28.34513021 | Q34: 11.99874941 | R34: =T100 -> 66.64505302 | S34: 12.22260985 | T34: 15.16945736 | U34: 5.962879774 | V34: =Y100 -> 88.33853028 | W34: 6.687959061 | X34: 2.906439151 | Y34: 2.067071512
B36: URBAN | D36: Estimate | E36: =C199 -> 2000 | F36: =E199 -> 49.61243479 | G36: =F199 -> 9.675707347 | H36: 27.16003451 | I36: 13.55182335 | J36: =J199 -> 69.81558095 | K36: =K199 -> 8.673953783 | L36: 12.00378176 | M36: 9.506683506 | N36: =O199 -> 83.72142894 | O36: =P199 -> 7.183378404 | P36: 8.666962501 | Q36: 0.4282301558 | R36: =T199 -> 85.60330359 | S36: =U199 -> 5.455447952 | T36: 5.805374017 | U36: 3.135874443 | V36: =Y199 -> 92.10338034 | W36: =Z199 -> 3.159924887 | X36: 4.166318906 | Y36: 0.5703758651
E37: =C200 -> 2020 | F37: =E200 -> 68.06973393 | G37: 13.27535783 | H37: 15.4934379 | I37: 3.161470341 | J37: =J200 -> 80.95664283 | K37: 10.05812984 | L37: 8.104827336 | M37: 0.8803999955 | N37: =O200 -> 85.74311343 | O37: 7.356840861 | P37: 3.496549458 | Q37: 3.403496248 | R37: =T200 -> 91.64666605 | S37: 5.84058787 | T37: 1.80875668 | U37: 0.7039894014 | V37: =Y200 -> 95.63774904 | W37: 3.281183624 | X37: 0.9836261949 | Y37: 0.09744114074
B39: RURAL | D39: Estimate | E39: =C299 -> 2000 | F39: =E299 -> 16.06931819 | G39: =F299 -> 10.48464648 | H39: 44.39882719 | I39: 29.04720814 | J39: =J299 -> 19.19578578 | K39: =K299 -> 8.368059124 | L39: 43.83332855 | M39: 28.60282654 | N39: =O299 -> 23.0305719 | O39: =P299 -> 9.584766386 | P39: 39.70406138 | Q39: 27.68060033 | R39: =T299 -> 27.24772388 | S39: =U299 -> 8.262866748 | T39: 38.56386949 | U39: 25.92553988 | V39: =Y299 -> 46.59849548 | W39: =Z299 -> 8.278104612 | X39: 28.77661561 | Y39: 16.3467843
E40: =C300 -> 2020 | F40: =E300 -> 21.71574615 | G40: 14.16873564 | H40: 43.68299707 | I40: 20.43252115 | J40: =J300 -> 30.92217251 | K40: 13.47996747 | L40: 40.20075772 | M40: 15.3971023 | N40: =O300 -> 35.39681896 | O40: 14.73129899 | P40: 34.89511447 | Q40: 14.97676758 | R40: =T300 -> 44.5915532 | S40: 13.52237947 | T40: 28.12976316 | U40: 13.75630417 | V40: =Y300 -> 61.68854553 | W40: 10.95881376 | X40: 18.28875598 | Y40: 9.063884733
A97: NATIONAL | D97: Poorest | I97: Poor | N97: Middle | S97: Rich | X97: Richest
D98: Improved | E98: Basic | F98: Limited | G98: Unimproved | H98: Surface water | I98: Improved | J98: Basic | K98: Limited | L98: Unimproved | M98: Surface water | N98: Improved | O98: Basic | P98: Limited | Q98: Unimproved | R98: Surface water | S98: Improved | T98: Basic | U98: Limited | V98: Unimproved | W98: Surface water | X98: Improved | Y98: Basic | Z98: Limited | AA98: Unimproved | AB98: Surface water
A99: Forecast period: | C99: =MinBase(C105:C116) -> 2000 | D99: =IF((D101+H101)>100,D101*100/(D101+H101),D101) -> 26.87706745 | E99: =D99*AVERAGEIF(E105:E116,">0")/100 -> 17.36398372 | F99: =D99*(100-AVERAGEIF(E105:E116,">0"))/100 -> 9.513083731 | G99: =100-(E99+F99+H99) -> 44.60567859 | H99: =IF((D101+H101)>100,H101*100/(D101+H101),H101) -> 28.51725396 | I99: =IF((I101+M101)>100,I101*100/(I101+M101),I101) -> 30.22364776 | J99: =I99*AVERAGEIF(J105:J116,">0")/100 -> 21.28384022 | K99: =I99*(100-AVERAGEIF(J105:J116,">0"))/100 -> 8.939807544 | L99: =100-(J99+K99+M99) -> 43.45828038 | M99: =IF((I101+M101)>100,M101*100/(I101+M101),M101) -> 26.31807186 | N99: =IF((N101+R101)>100,N101*100/(N101+R101),N101) -> 35.18737331 | O99: =N99*AVERAGEIF(O105:O116,">0")/100 -> 26.50751862 | P99: =N99*(100-AVERAGEIF(O105:O116,">0"))/100 -> 8.679854694 | Q99: =100-(O99+P99+R99) -> 36.21147383 | R99: =IF((N101+R101)>100,R101*100/(N101+R101),R101) -> 28.60115286 | S99: =IF((S101+W101)>100,S101*100/(S101+W101),S101) -> 49.18690309 | T99: =S99*AVERAGEIF(T105:T116,">0")/100 -> 41.56410429 | U99: =S99*(100-AVERAGEIF(T105:T116,">0"))/100 -> 7.622798804 | V99: =100-(T99+U99+W99) -> 32.01958703 | W99: =IF((S101+W101)>100,W101*100/(S101+W101),W101) -> 18.79350988 | X99: =IF((X101+AB101)>100,X101*100/(X101+AB101),X101) -> 85.33949233 | Y99: =X99*AVERAGEIF(Y105:Y116,">0")/100 -> 79.33330358 | Z99: =X99*(100-AVERAGEIF(Y105:Y116,">0"))/100 -> 6.006188748 | AA99: =100-(Y99+Z99+AB99) -> 10.94917944 | AB99: =IF((X101+AB101)>100,AB101*100/(X101+AB101),AB101) -> 3.711328236
C100: =MaxTarget(C105:C116) -> 2020 | D100: =IF((D102+H102)>100,D102*100/(D102+H102),D102) -> 39.49054205 | E100: =D100*AVERAGEIF(E105:E116,">0")/100 -> 25.51294446 | F100: =D100*(100-AVERAGEIF(E105:E116,">0"))/100 -> 13.97759759 | G100: =100-(E100+F100+H100) -> 41.76916816 | H100: =IF((D102+H102)>100,H102*100/(D102+H102),H102) -> 18.74028979 | I100: =IF((I102+M102)>100,I102*100/(I102+M102),I102) -> 47.99836357 | J100: =I100*AVERAGEIF(J105:J116,">0")/100 -> 33.80099944 | K100: =I100*(100-AVERAGEIF(J105:J116,">0"))/100 -> 14.19736413 | L100: =100-(J100+K100+M100) -> 36.397606 | M100: =IF((I102+M102)>100,M102*100/(I102+M102),M102) -> 15.60403043 | N100: =IF((N102+R102)>100,N102*100/(N102+R102),N102) -> 59.65612037 | O100: =N100*AVERAGEIF(O105:O116,">0")/100 -> 44.94043097 | P100: =N100*(100-AVERAGEIF(O105:O116,">0"))/100 -> 14.7156894 | Q100: =100-(O100+P100+R100) -> 28.34513021 | R100: =IF((N102+R102)>100,R102*100/(N102+R102),R102) -> 11.99874941 | S100: =IF((S102+W102)>100,S102*100/(S102+W102),S102) -> 78.86766287 | T100: =S100*AVERAGEIF(T105:T116,">0")/100 -> 66.64505302 | U100: =S100*(100-AVERAGEIF(T105:T116,">0"))/100 -> 12.22260985 | V100: =100-(T100+U100+W100) -> 15.16945736 | W100: =IF((S102+W102)>100,W102*100/(S102+W102),W102) -> 5.962879774 | X100: =IF((X102+AB102)>100,X102*100/(X102+AB102),X102) -> 95.02648934 | Y100: =X100*AVERAGEIF(Y105:Y116,">0")/100 -> 88.33853028 | Z100: =X100*(100-AVERAGEIF(Y105:Y116,">0"))/100 -> 6.687959061 | AA100: =100-(Y100+Z100+AB100) -> 2.906439151 | AB100: =IF((X102+AB102)>100,AB102*100/(X102+AB102),AB102) -> 2.067071512
A101: Regression period: | C101: =MinRegYear(C99,C105:C116) -> 2003 | D101: =IF(MAX(C105:C116)-MIN(C105:C116)<5,AVERAGEIF(C105:C116,">0",D105:D116), IF(FORECAST($C101,D$105:D$116,$C$105:$C$116)<0,0, IF(FORECAST($C101,D$105:D$116,$C$105:$C$116)>100,100, FORECAST($C101,D$105:D$116,$C$105:$C$116)))) -> 26.87706745 | H101: =IF(MAX(C105:C116)-MIN(C105:C116)<5,AVERAGEIF(C105:C116,">0",H105:H116), IF(FORECAST($C101,H$105:H$116,$C$105:$C$116)<0,0, IF(FORECAST($C101,H$105:H$116,$C$105:$C$116)>100,100, FORECAST($C101,H$105:H$116,$C$105:$C$116)))) -> 28.51725396 | I101: =IF(MAX(C105:C116)-MIN(C105:C116)<5,AVERAGEIF(C105:C116,">0",I105:I116), IF(FORECAST($C101,I$105:I$116,$C$105:$C$116)<0,0, IF(FORECAST($C101,I$105:I$116,$C$105:$C$116)>100,100, FORECAST($C101,I$105:I$116,$C$105:$C$116)))) -> 30.22364776 | M101: =IF(MAX(C105:C116)-MIN(C105:C116)<5,AVERAGEIF(C105:C116,">0",M105:M116), IF(FORECAST($C101,M$105:M$116,$C$105:$C$116)<0,0, IF(FORECAST($C101,M$105:M$116,$C$105:$C$116)>100,100, FORECAST($C101,M$105:M$116,$C$105:$C$116)))) -> 26.31807186 | N101: =IF(MAX(C105:C116)-MIN(C105:C116)<5,AVERAGEIF(C105:C116,">0",N105:N116), IF(FORECAST($C101,N$105:N$116,$C$105:$C$116)<0,0, IF(FORECAST($C101,N$105:N$116,$C$105:$C$116)>100,100, FORECAST($C101,N$105:N$116,$C$105:$C$116)))) -> 35.18737331 | R101: =IF(MAX(C105:C116)-MIN(C105:C116)<5,AVERAGEIF(C105:C116,">0",R105:R116), IF(FORECAST($C101,R$105:R$116,$C$105:$C$116)<0,0, IF(FORECAST($C101,R$105:R$116,$C$105:$C$116)>100,100, FORECAST($C101,R$105:R$116,$C$105:$C$116)))) -> 28.60115286 | S101: =IF(MAX(C105:C116)-MIN(C105:C116)<5,AVERAGEIF(C105:C116,">0",S105:S116), IF(FORECAST($C101,S$105:S$116,$C$105:$C$116)<0,0, IF(FORECAST($C101,S$105:S$116,$C$105:$C$116)>100,100, FORECAST($C101,S$105:S$116,$C$105:$C$116)))) -> 49.18690309 | W101: =IF(MAX(C105:C116)-MIN(C105:C116)<5,AVERAGEIF(C105:C116,">0",W105:W116), IF(FORECAST($C101,W$105:W$116,$C$105:$C$116)<0,0, IF(FORECAST($C101,W$105:W$116,$C$105:$C$116)>100,100, FORECAST($C101,W$105:W$116,$C$105:$C$116)))) -> 18.79350988 | X101: =IF(MAX(C105:C116)-MIN(C105:C116)<5,AVERAGEIF(C105:C116,">0",X105:X116), IF(FORECAST($C101,X$105:X$116,$C$105:$C$116)<0,0, IF(FORECAST($C101,X$105:X$116,$C$105:$C$116)>100,100, FORECAST($C101,X$105:X$116,$C$105:$C$116)))) -> 85.33949233 | AB101: =IF(MAX(C105:C116)-MIN(C105:C116)<5,AVERAGEIF(C105:C116,">0",AB105:AB116), IF(FORECAST($C101,AB$105:AB$116,$C$105:$C$116)<0,0, IF(FORECAST($C101,AB$105:AB$116,$C$105:$C$116)>100,100, FORECAST($C101,AB$105:AB$116,$C$105:$C$116)))) -> 3.711328236
C102: =MaxRegYear(C100,C105:C116) -> 2019 | D102: =IF(MAX(C105:C116)-MIN(C105:C116)<5,AVERAGEIF(C105:C116,">0",D105:D116), IF(FORECAST($C102,D$105:D$116,$C$105:$C$116)<0,0, IF(FORECAST($C102,D$105:D$116,$C$105:$C$116)>100,100, FORECAST($C102,D$105:D$116,$C$105:$C$116)))) -> 39.49054205 | H102: =IF(MAX(C105:C116)-MIN(C105:C116)<5,AVERAGEIF(C105:C116,">0",H105:H116), IF(FORECAST($C102,H$105:H$116,$C$105:$C$116)<0,0, IF(FORECAST($C102,H$105:H$116,$C$105:$C$116)>100,100, FORECAST($C102,H$105:H$116,$C$105:$C$116)))) -> 18.74028979 | I102: =IF(MAX(C105:C116)-MIN(C105:C116)<5,AVERAGEIF(C105:C116,">0",I105:I116), IF(FORECAST($C102,I$105:I$116,$C$105:$C$116)<0,0, IF(FORECAST($C102,I$105:I$116,$C$105:$C$116)>100,100, FORECAST($C102,I$105:I$116,$C$105:$C$116)))) -> 47.99836357 | M102: =IF(MAX(C105:C116)-MIN(C105:C116)<5,AVERAGEIF(C105:C116,">0",M105:M116), IF(FORECAST($C102,M$105:M$116,$C$105:$C$116)<0,0, IF(FORECAST($C102,M$105:M$116,$C$105:$C$116)>100,100, FORECAST($C102,M$105:M$116,$C$105:$C$116)))) -> 15.60403043 | N102: =IF(MAX(C105:C116)-MIN(C105:C116)<5,AVERAGEIF(C105:C116,">0",N105:N116), IF(FORECAST($C102,N$105:N$116,$C$105:$C$116)<0,0, IF(FORECAST($C102,N$105:N$116,$C$105:$C$116)>100,100, FORECAST($C102,N$105:N$116,$C$105:$C$116)))) -> 59.65612037 | R102: =IF(MAX(C105:C116)-MIN(C105:C116)<5,AVERAGEIF(C105:C116,">0",R105:R116), IF(FORECAST($C102,R$105:R$116,$C$105:$C$116)<0,0, IF(FORECAST($C102,R$105:R$116,$C$105:$C$116)>100,100, FORECAST($C102,R$105:R$116,$C$105:$C$116)))) -> 11.99874941 | S102: =IF(MAX(C105:C116)-MIN(C105:C116)<5,AVERAGEIF(C105:C116,">0",S105:S116), IF(FORECAST($C102,S$105:S$116,$C$105:$C$116)<0,0, IF(FORECAST($C102,S$105:S$116,$C$105:$C$116)>100,100, FORECAST($C102,S$105:S$116,$C$105:$C$116)))) -> 78.86766287 | W102: =IF(MAX(C105:C116)-MIN(C105:C116)<5,AVERAGEIF(C105:C116,">0",W105:W116), IF(FORECAST($C102,W$105:W$116,$C$105:$C$116)<0,0, IF(FORECAST($C102,W$105:W$116,$C$105:$C$116)>100,100, FORECAST($C102,W$105:W$116,$C$105:$C$116)))) -> 5.962879774 | X102: =IF(MAX(C105:C116)-MIN(C105:C116)<5,AVERAGEIF(C105:C116,">0",X105:X116), IF(FORECAST($C102,X$105:X$116,$C$105:$C$116)<0,0, IF(FORECAST($C102,X$105:X$116,$C$105:$C$116)>100,100, FORECAST($C102,X$105:X$116,$C$105:$C$116)))) -> 95.02648934 | AB102: =IF(MAX(C105:C116)-MIN(C105:C116)<5,AVERAGEIF(C105:C116,">0",AB105:AB116), IF(FORECAST($C102,AB$105:AB$116,$C$105:$C$116)<0,0, IF(FORECAST($C102,AB$105:AB$116,$C$105:$C$116)>100,100, FORECAST($C102,AB$105:AB$116,$C$105:$C$116)))) -> 2.067071512
B104: Survey | C104: Year | D104: Improved | E104: % Improved < = 30min | H104: Surface water | I104: Improved | J104: % Improved < = 30min | M104: Surface water | N104: Improved | O104: % Improved < = 30min | R104: Surface water | S104: Improved | T104: % Improved < = 30min | W104: Surface water | X104: Improved | Y104: % Improved < = 30min | AB104: Surface water
B105: AIS04 | D105: =IF(ISERROR(INDIRECT(CONCATENATE($B105,"!C16"))),"",INDIRECT(CONCATENATE($B105,"!C16"))) -> 35.09386167 | E105: =IF(ISERROR(INDIRECT(CONCATENATE($B105,"!C23"))),"",INDIRECT(CONCATENATE($B105,"!C23"))) -> N/A | H105: =IF(ISERROR(INDIRECT(CONCATENATE($B105,"!C21"))),"",INDIRECT(CONCATENATE($B105,"!C21"))) -> 24.81000103 | I105: =IF(ISERROR(INDIRECT(CONCATENATE($B105,"!D16"))),"",INDIRECT(CONCATENATE($B105,"!D16"))) -> 37.38751551 | J105: =IF(ISERROR(INDIRECT(CONCATENATE($B105,"!D23"))),"",INDIRECT(CONCATENATE($B105,"!D23"))) -> N/A | M105: =IF(ISERROR(INDIRECT(CONCATENATE($B105,"!D21"))),"",INDIRECT(CONCATENATE($B105,"!D21"))) -> 23.72936128 | N105: =IF(ISERROR(INDIRECT(CONCATENATE($B105,"!E16"))),"",INDIRECT(CONCATENATE($B105,"!E16"))) -> 48.18688554 | O105: =IF(ISERROR(INDIRECT(CONCATENATE($B105,"!E23"))),"",INDIRECT(CONCATENATE($B105,"!E23"))) -> N/A | R105: =IF(ISERROR(INDIRECT(CONCATENATE($B105,"!E21"))),"",INDIRECT(CONCATENATE($B105,"!E21"))) -> 21.74431619 | S105: =IF(ISERROR(INDIRECT(CONCATENATE($B105,"!F16"))),"",INDIRECT(CONCATENATE($B105,"!F16"))) -> 65.78414065 | T105: =IF(ISERROR(INDIRECT(CONCATENATE($B105,"!F23"))),"",INDIRECT(CONCATENATE($B105,"!F23"))) -> N/A | W105: =IF(ISERROR(INDIRECT(CONCATENATE($B105,"!F21"))),"",INDIRECT(CONCATENATE($B105,"!F21"))) -> 13.26684659 | X105: =IF(ISERROR(INDIRECT(CONCATENATE($B105,"!G16"))),"",INDIRECT(CONCATENATE($B105,"!G16"))) -> 93.52450121 | Y105: =IF(ISERROR(INDIRECT(CONCATENATE($B105,"!G23"))),"",INDIRECT(CONCATENATE($B105,"!G23"))) -> N/A | AB105: =IF(ISERROR(INDIRECT(CONCATENATE($B105,"!G221"))),"",INDIRECT(CONCATENATE($B105,"!G21"))) -> 2.448884646
B106: DHS05 | C106: 2005 | D106: 31.5942104 | E106: N/A | H106: 22.32215445 | I106: 35.22593824 | J106: N/A | M106: 21.60653597 | N106: 38.89911943 | O106: N/A | R106: 26.89405901 | S106: 54.69418101 | T106: N/A | W106: 17.56023217 | X106: 88.81561215 | Y106: N/A | AB106: 3.584588195
B107: AIS08 | D107: 37.94163137 | E107: 58.43157244 | H107: 26.77318643 | I107: 40.07933224 | J107: 66.4805961 | M107: 21.85389264 | N107: 47.61155783 | O107: 71.41718539 | R107: 23.4395193 | S107: 63.30684015 | T107: 80.74033601 | W107: 14.56657854 | X107: 88.4579907 | Y107: 89.12111307 | AB107: 3.515505394
B108: DHS10 | C108: 2010 | D108: 28.09616817 | E108: 69.08117897 | H108: 28.87369689 | I108: 32.28875406 | J108: 69.90276163 | M108: 26.43359023 | N108: 43.69223687 | O108: 71.15833183 | R108: 20.9007249 | S108: 57.28289751 | T108: 83.13839761 | W108: 14.04004547 | X108: 85.94692424 | Y108: 93.04752582 | AB108: 2.793003126
B109: AIS12 | C109: 2012 | D109: 32.2052609 | E109: 67.4 | H109: 28.29459561 | I109: 41.04403541 | J109: 72.3 | M109: 21.69557504 | N109: 50.63828089 | O109: 75.9 | R109: 18.68230342 | S109: 68.19392684 | T109: 85.4 | W109: 9.483360226 | X109: 90.15610571 | Y109: 94.1 | AB109: 2.941674572
B110: DHS16 | C110: 2016 | D110: 38.36950294 | E110: 64.10597869 | H110: 21.42774529 | I110: 47.16896539 | J110: 68.74059505 | M110: 17.43914376 | N110: 54.19570369 | O110: 73.23580964 | R110: 16.65134379 | S110: 74.40370904 | T110: 84.33362045 | W110: 8.367057536 | X110: 94.60325213 | Y110: 91.96717223 | AB110: 2.046400886
B111: MIS17 | C111: 2017 | D111: =IF(ISERROR(INDIRECT(CONCATENATE($B111,"!C16"))),"",INDIRECT(CONCATENATE($B111,"!C16"))) -> 39.59559214 | E111: =IF(ISERROR(INDIRECT(CONCATENATE($B111,"!C23"))),"",INDIRECT(CONCATENATE($B111,"!C23"))) -> 64.0072799 | H111: =IF(ISERROR(INDIRECT(CONCATENATE($B111,"!C21"))),"",INDIRECT(CONCATENATE($B111,"!C21"))) -> 14.17036584 | I111: =IF(ISERROR(INDIRECT(CONCATENATE($B111,"!D16"))),"",INDIRECT(CONCATENATE($B111,"!D16"))) -> 45.38193392 | J111: =IF(ISERROR(INDIRECT(CONCATENATE($B111,"!D23"))),"",INDIRECT(CONCATENATE($B111,"!D23"))) -> 74.68179544 | M111: =IF(ISERROR(INDIRECT(CONCATENATE($B111,"!D21"))),"",INDIRECT(CONCATENATE($B111,"!D21"))) -> 14.28227277 | N111: =IF(ISERROR(INDIRECT(CONCATENATE($B111,"!E16"))),"",INDIRECT(CONCATENATE($B111,"!E16"))) -> 57.3298768 | O111: =IF(ISERROR(INDIRECT(CONCATENATE($B111,"!E23"))),"",INDIRECT(CONCATENATE($B111,"!E23"))) -> 84.95103982 | R111: =IF(ISERROR(INDIRECT(CONCATENATE($B111,"!E21"))),"",INDIRECT(CONCATENATE($B111,"!E21"))) -> 13.18307349 | S111: =IF(ISERROR(INDIRECT(CONCATENATE($B111,"!F16"))),"",INDIRECT(CONCATENATE($B111,"!F16"))) -> 74.83693793 | T111: =IF(ISERROR(INDIRECT(CONCATENATE($B111,"!F23"))),"",INDIRECT(CONCATENATE($B111,"!F23"))) -> 88.89955128 | W111: =IF(ISERROR(INDIRECT(CONCATENATE($B111,"!F21"))),"",INDIRECT(CONCATENATE($B111,"!F21"))) -> 8.430706824 | X111: =IF(ISERROR(INDIRECT(CONCATENATE($B111,"!G16"))),"",INDIRECT(CONCATENATE($B111,"!G16"))) -> 94.4202465 | Y111: =IF(ISERROR(INDIRECT(CONCATENATE($B111,"!G23"))),"",INDIRECT(CONCATENATE($B111,"!G23"))) -> 96.57421655 | AB111: =IF(ISERROR(INDIRECT(CONCATENATE($B111,"!G221"))),"",INDIRECT(CONCATENATE($B111,"!G21"))) -> 2.566502364
D112: =IF(ISERROR(INDIRECT(CONCATENATE($B112,"!C16"))),"",INDIRECT(CONCATENATE($B112,"!C16"))) ->  | E112: =IF(ISERROR(INDIRECT(CONCATENATE($B112,"!C23"))),"",INDIRECT(CONCATENATE($B112,"!C23"))) ->  | H112: =IF(ISERROR(INDIRECT(CONCATENATE($B112,"!C21"))),"",INDIRECT(CONCATENATE($B112,"!C21"))) ->  | I112: =IF(ISERROR(INDIRECT(CONCATENATE($B112,"!D16"))),"",INDIRECT(CONCATENATE($B112,"!D16"))) ->  | J112: =IF(ISERROR(INDIRECT(CONCATENATE($B112,"!D23"))),"",INDIRECT(CONCATENATE($B112,"!D23"))) ->  | M112: =IF(ISERROR(INDIRECT(CONCATENATE($B112,"!D21"))),"",INDIRECT(CONCATENATE($B112,"!D21"))) ->  | N112: =IF(ISERROR(INDIRECT(CONCATENATE($B112,"!E16"))),"",INDIRECT(CONCATENATE($B112,"!E16"))) ->  | O112: =IF(ISERROR(INDIRECT(CONCATENATE($B112,"!E23"))),"",INDIRECT(CONCATENATE($B112,"!E23"))) ->  | R112: =IF(ISERROR(INDIRECT(CONCATENATE($B112,"!E21"))),"",INDIRECT(CONCATENATE($B112,"!E21"))) ->  | S112: =IF(ISERROR(INDIRECT(CONCATENATE($B112,"!F16"))),"",INDIRECT(CONCATENATE($B112,"!F16"))) ->  | T112: =IF(ISERROR(INDIRECT(CONCATENATE($B112,"!F23"))),"",INDIRECT(CONCATENATE($B112,"!F23"))) ->  | W112: =IF(ISERROR(INDIRECT(CONCATENATE($B112,"!F21"))),"",INDIRECT(CONCATENATE($B112,"!F21"))) ->  | X112: =IF(ISERROR(INDIRECT(CONCATENATE($B112,"!G16"))),"",INDIRECT(CONCATENATE($B112,"!G16"))) ->  | Y112: =IF(ISERROR(INDIRECT(CONCATENATE($B112,"!G23"))),"",INDIRECT(CONCATENATE($B112,"!G23"))) ->  | AB112: =IF(ISERROR(INDIRECT(CONCATENATE($B112,"!G221"))),"",INDIRECT(CONCATENATE($B112,"!G21"))) -> 
B118: =CONCATENATE("National use of drinking water sources, ",C99,"–",C100) -> National use of drinking water sources, 2000–2020 | S118: Data points used for regression
E153: =IF(ISERROR(INDIRECT(CONCATENATE($B153,"!M18"))),"",INDIRECT(CONCATENATE($B153,"!M18"))) ->  | F153: =IF(ISERROR(INDIRECT(CONCATENATE($B153,"!M19"))),"",INDIRECT(CONCATENATE($B153,"!M19"))) ->  | G153: =IF(ISERROR(INDIRECT(CONCATENATE($B153,"!M20"))),"",INDIRECT(CONCATENATE($B153,"!M20"))) ->  | H153: =IF(ISERROR(INDIRECT(CONCATENATE($B153,"!M21"))),"",INDIRECT(CONCATENATE($B153,"!M21"))) ->  | J153: =IF(ISERROR(INDIRECT(CONCATENATE($B153,"!N18"))),"",INDIRECT(CONCATENATE($B153,"!N18"))) ->  | K153: =IF(ISERROR(INDIRECT(CONCATENATE($B153,"!N19"))),"",INDIRECT(CONCATENATE($B153,"!N19"))) ->  | L153: =IF(ISERROR(INDIRECT(CONCATENATE($B153,"!N20"))),"",INDIRECT(CONCATENATE($B153,"!N20"))) ->  | M153: =IF(ISERROR(INDIRECT(CONCATENATE($B153,"!N21"))),"",INDIRECT(CONCATENATE($B153,"!N21"))) ->  | O153: =IF(ISERROR(INDIRECT(CONCATENATE($B153,"!O18"))),"",INDIRECT(CONCATENATE($B153,"!O18"))) ->  | P153: =IF(ISERROR(INDIRECT(CONCATENATE($B153,"!O19"))),"",INDIRECT(CONCATENATE($B153,"!O19"))) ->  | Q153: =IF(ISERROR(INDIRECT(CONCATENATE($B153,"!O20"))),"",INDIRECT(CONCATENATE($B153,"!O20"))) ->  | R153: =IF(ISERROR(INDIRECT(CONCATENATE($B153,"!O21"))),"",INDIRECT(CONCATENATE($B153,"!O21"))) ->  | T153: =IF(ISERROR(INDIRECT(CONCATENATE($B153,"!P18"))),"",INDIRECT(CONCATENATE($B153,"!P18"))) ->  | U153: =IF(ISERROR(INDIRECT(CONCATENATE($B153,"!P19"))),"",INDIRECT(CONCATENATE($B153,"!P19"))) ->  | V153: =IF(ISERROR(INDIRECT(CONCATENATE($B153,"!P20"))),"",INDIRECT(CONCATENATE($B153,"!P20"))) ->  | W153: =IF(ISERROR(INDIRECT(CONCATENATE($B153,"!P21"))),"",INDIRECT(CONCATENATE($B153,"!P21"))) ->  | Y153: =IF(ISERROR(INDIRECT(CONCATENATE($B153,"!Q18"))),"",INDIRECT(CONCATENATE($B153,"!Q18"))) ->  | Z153: =IF(ISERROR(INDIRECT(CONCATENATE($B153,"!Q19"))),"",INDIRECT(CONCATENATE($B153,"!Q19"))) ->  | AA153: =IF(ISERROR(INDIRECT(CONCATENATE($B153,"!Q20"))),"",INDIRECT(CONCATENATE($B153,"!Q20"))) ->  | AB153: =IF(ISERROR(INDIRECT(CONCATENATE($B153,"!Q21"))),"",INDIRECT(CONCATENATE($B153,"!Q1"))) -> 
A197: URBAN | D197: Poorest | I197: Poor | N197: Middle | S197: Rich | X197: Richest
D198: Improved | E198: Basic | F198: Limited | G198: Unimproved | H198: Surface water | I198: Improved | J198: Basic | K198: Limited | L198: Unimproved | M198: Surface water | N198: Improved | O198: Basic | P198: Limited | Q198: Unimproved | R198: Surface water | S198: Improved | T198: Basic | U198: Limited | V198: Unimproved | W198: Surface water | X198: Improved | Y198: Basic | Z198: Limited | AA198: Unimproved | AB198: Surface water
A199: Forecast period: | C199: =MinBase(C205:C216) -> 2000 | D199: =IF((D201+H201)>100,D201*100/(D201+H201),D201) -> 59.28814214 | E199: =D199*AVERAGEIF(E205:E216,">0")/100 -> 49.61243479 | F199: =D199*(100-AVERAGEIF(E205:E216,">0"))/100 -> 9.675707347 | G199: =100-(E199+F199+H199) -> 27.16003451 | H199: =IF((D201+H201)>100,H201*100/(D201+H201),H201) -> 13.55182335 | I199: =IF((I201+M201)>100,I201*100/(I201+M201),I201) -> 78.48953473 | J199: =I199*AVERAGEIF(J205:J216,">0")/100 -> 69.81558095 | K199: =I199*(100-AVERAGEIF(J205:J216,">0"))/100 -> 8.673953783 | L199: =100-(J199+K199+M199) -> 12.00378176 | M199: =IF((I201+M201)>100,M201*100/(I201+M201),M201) -> 9.506683506 | N199: =IF((N201+R201)>100,N201*100/(N201+R201),N201) -> 90.90480734 | O199: =N199*AVERAGEIF(O205:O216,">0")/100 -> 83.72142894 | P199: =N199*(100-AVERAGEIF(O205:O216,">0"))/100 -> 7.183378404 | Q199: =100-(O199+P199+R199) -> 8.666962501 | R199: =IF((N201+R201)>100,R201*100/(N201+R201),R201) -> 0.4282301558 | S199: =IF((S201+W201)>100,S201*100/(S201+W201),S201) -> 91.05875154 | T199: =S199*AVERAGEIF(T205:T216,">0")/100 -> 85.60330359 | U199: =S199*(100-AVERAGEIF(T205:T216,">0"))/100 -> 5.455447952 | V199: =100-(T199+U199+W199) -> 5.805374017 | W199: =IF((S201+W201)>100,W201*100/(S201+W201),W201) -> 3.135874443 | X199: =IF((X201+AB201)>100,X201*100/(X201+AB201),X201) -> 95.26330523 | Y199: =X199*AVERAGEIF(Y205:Y216,">0")/100 -> 92.10338034 | Z199: =X199*(100-AVERAGEIF(Y205:Y216,">0"))/100 -> 3.159924887 | AA199: =100-(Y199+Z199+AB199) -> 4.166318906 | AB199: =IF((X201+AB201)>100,AB201*100/(X201+AB201),AB201) -> 0.5703758651
C200: =MaxTarget(C205:C216) -> 2020 | D200: =IF((D202+H202)>100,D202*100/(D202+H202),D202) -> 81.34509176 | E200: =D200*AVERAGEIF(E205:E216,">0")/100 -> 68.06973393 | F200: =D200*(100-AVERAGEIF(E205:E216,">0"))/100 -> 13.27535783 | G200: =100-(E200+F200+H200) -> 15.4934379 | H200: =IF((D202+H202)>100,H202*100/(D202+H202),H202) -> 3.161470341 | I200: =IF((I202+M202)>100,I202*100/(I202+M202),I202) -> 91.01477267 | J200: =I200*AVERAGEIF(J205:J216,">0")/100 -> 80.95664283 | K200: =I200*(100-AVERAGEIF(J205:J216,">0"))/100 -> 10.05812984 | L200: =100-(J200+K200+M200) -> 8.104827336 | M200: =IF((I202+M202)>100,M202*100/(I202+M202),M202) -> 0.8803999955 | N200: =IF((N202+R202)>100,N202*100/(N202+R202),N202) -> 93.09995429 | O200: =N200*AVERAGEIF(O205:O216,">0")/100 -> 85.74311343 | P200: =N200*(100-AVERAGEIF(O205:O216,">0"))/100 -> 7.356840861 | Q200: =100-(O200+P200+R200) -> 3.496549458 | R200: =IF((N202+R202)>100,R202*100/(N202+R202),R202) -> 3.403496248 | S200: =IF((S202+W202)>100,S202*100/(S202+W202),S202) -> 97.48725392 | T200: =S200*AVERAGEIF(T205:T216,">0")/100 -> 91.64666605 | U200: =S200*(100-AVERAGEIF(T205:T216,">0"))/100 -> 5.84058787 | V200: =100-(T200+U200+W200) -> 1.80875668 | W200: =IF((S202+W202)>100,W202*100/(S202+W202),W202) -> 0.7039894014 | X200: =IF((X202+AB202)>100,X202*100/(X202+AB202),X202) -> 98.91893266 | Y200: =X200*AVERAGEIF(Y205:Y216,">0")/100 -> 95.63774904 | Z200: =X200*(100-AVERAGEIF(Y205:Y216,">0"))/100 -> 3.281183624 | AA200: =100-(Y200+Z200+AB200) -> 0.9836261949 | AB200: =IF((X202+AB202)>100,AB202*100/(X202+AB202),AB202) -> 0.09744114074
A201: Regression period: | C201: =MinRegYear(C199,C205:C216) -> 2003 | D201: =IF(MAX(C205:C216)-MIN(C205:C216)<5,AVERAGEIF(C205:C216,">0",D205:D216), IF(FORECAST($C201,D$205:D$216,$C$205:$C$216)<0,0, IF(FORECAST($C201,D$205:D$216,$C$205:$C$216)>100,100, FORECAST($C201,D$205:D$216,$C$205:$C$216)))) -> 59.28814214 | H201: =IF(MAX(C205:C216)-MIN(C205:C216)<5,AVERAGEIF(C205:C216,">0",H205:H216), IF(FORECAST($C201,H$205:H$216,$C$205:$C$216)<0,0, IF(FORECAST($C201,H$205:H$216,$C$205:$C$216)>100,100, FORECAST($C201,H$205:H$216,$C$205:$C$216)))) -> 13.55182335 | I201: =IF(MAX(C205:C216)-MIN(C205:C216)<5,AVERAGEIF(C205:C216,">0",I205:I216), IF(FORECAST($C201,I$205:I$216,$C$205:$C$216)<0,0, IF(FORECAST($C201,I$205:I$216,$C$205:$C$216)>100,100, FORECAST($C201,I$205:I$216,$C$205:$C$216)))) -> 78.48953473 | M201: =IF(MAX(C205:C216)-MIN(C205:C216)<5,AVERAGEIF(C205:C216,">0",M205:M216), IF(FORECAST($C201,M$205:M$216,$C$205:$C$216)<0,0, IF(FORECAST($C201,M$205:M$216,$C$205:$C$216)>100,100, FORECAST($C201,M$205:M$216,$C$205:$C$216)))) -> 9.506683506 | N201: =IF(MAX(C205:C216)-MIN(C205:C216)<5,AVERAGEIF(C205:C216,">0",N205:N216), IF(FORECAST($C201,N$205:N$216,$C$205:$C$216)<0,0, IF(FORECAST($C201,N$205:N$216,$C$205:$C$216)>100,100, FORECAST($C201,N$205:N$216,$C$205:$C$216)))) -> 90.90480734 | R201: =IF(MAX(C205:C216)-MIN(C205:C216)<5,AVERAGEIF(C205:C216,">0",R205:R216), IF(FORECAST($C201,R$205:R$216,$C$205:$C$216)<0,0, IF(FORECAST($C201,R$205:R$216,$C$205:$C$216)>100,100, FORECAST($C201,R$205:R$216,$C$205:$C$216)))) -> 0.4282301558 | S201: =IF(MAX(C205:C216)-MIN(C205:C216)<5,AVERAGEIF(C205:C216,">0",S205:S216), IF(FORECAST($C201,S$205:S$216,$C$205:$C$216)<0,0, IF(FORECAST($C201,S$205:S$216,$C$205:$C$216)>100,100, FORECAST($C201,S$205:S$216,$C$205:$C$216)))) -> 91.05875154 | W201: =IF(MAX(C205:C216)-MIN(C205:C216)<5,AVERAGEIF(C205:C216,">0",W205:W216), IF(FORECAST($C201,W$205:W$216,$C$205:$C$216)<0,0, IF(FORECAST($C201,W$205:W$216,$C$205:$C$216)>100,100, FORECAST($C201,W$205:W$216,$C$205:$C$216)))) -> 3.135874443 | X201: =IF(MAX(C205:C216)-MIN(C205:C216)<5,AVERAGEIF(C205:C216,">0",X205:X216), IF(FORECAST($C201,X$205:X$216,$C$205:$C$216)<0,0, IF(FORECAST($C201,X$205:X$216,$C$205:$C$216)>100,100, FORECAST($C201,X$205:X$216,$C$205:$C$216)))) -> 95.26330523 | AB201: =IF(MAX(C205:C216)-MIN(C205:C216)<5,AVERAGEIF(C205:C216,">0",AB205:AB216), IF(FORECAST($C201,AB$205:AB$216,$C$205:$C$216)<0,0, IF(FORECAST($C201,AB$205:AB$216,$C$205:$C$216)>100,100, FORECAST($C201,AB$205:AB$216,$C$205:$C$216)))) -> 0.5703758651
C202: =MaxRegYear(C200,C205:C216) -> 2019 | D202: =IF(MAX(C205:C216)-MIN(C205:C216)<5,AVERAGEIF(C205:C216,">0",D205:D216), IF(FORECAST($C202,D$205:D$216,$C$205:$C$216)<0,0, IF(FORECAST($C202,D$205:D$216,$C$205:$C$216)>100,100, FORECAST($C202,D$205:D$216,$C$205:$C$216)))) -> 81.34509176 | H202: =IF(MAX(C205:C216)-MIN(C205:C216)<5,AVERAGEIF(C205:C216,">0",H205:H216), IF(FORECAST($C202,H$205:H$216,$C$205:$C$216)<0,0, IF(FORECAST($C202,H$205:H$216,$C$205:$C$216)>100,100, FORECAST($C202,H$205:H$216,$C$205:$C$216)))) -> 3.161470341 | I202: =IF(MAX(C205:C216)-MIN(C205:C216)<5,AVERAGEIF(C205:C216,">0",I205:I216), IF(FORECAST($C202,I$205:I$216,$C$205:$C$216)<0,0, IF(FORECAST($C202,I$205:I$216,$C$205:$C$216)>100,100, FORECAST($C202,I$205:I$216,$C$205:$C$216)))) -> 91.01477267 | M202: =IF(MAX(C205:C216)-MIN(C205:C216)<5,AVERAGEIF(C205:C216,">0",M205:M216), IF(FORECAST($C202,M$205:M$216,$C$205:$C$216)<0,0, IF(FORECAST($C202,M$205:M$216,$C$205:$C$216)>100,100, FORECAST($C202,M$205:M$216,$C$205:$C$216)))) -> 0.8803999955 | N202: =IF(MAX(C205:C216)-MIN(C205:C216)<5,AVERAGEIF(C205:C216,">0",N205:N216), IF(FORECAST($C202,N$205:N$216,$C$205:$C$216)<0,0, IF(FORECAST($C202,N$205:N$216,$C$205:$C$216)>100,100, FORECAST($C202,N$205:N$216,$C$205:$C$216)))) -> 93.09995429 | R202: =IF(MAX(C205:C216)-MIN(C205:C216)<5,AVERAGEIF(C205:C216,">0",R205:R216), IF(FORECAST($C202,R$205:R$216,$C$205:$C$216)<0,0, IF(FORECAST($C202,R$205:R$216,$C$205:$C$216)>100,100, FORECAST($C202,R$205:R$216,$C$205:$C$216)))) -> 3.403496248 | S202: =IF(MAX(C205:C216)-MIN(C205:C216)<5,AVERAGEIF(C205:C216,">0",S205:S216), IF(FORECAST($C202,S$205:S$216,$C$205:$C$216)<0,0, IF(FORECAST($C202,S$205:S$216,$C$205:$C$216)>100,100, FORECAST($C202,S$205:S$216,$C$205:$C$216)))) -> 97.48725392 | W202: =IF(MAX(C205:C216)-MIN(C205:C216)<5,AVERAGEIF(C205:C216,">0",W205:W216), IF(FORECAST($C202,W$205:W$216,$C$205:$C$216)<0,0, IF(FORECAST($C202,W$205:W$216,$C$205:$C$216)>100,100, FORECAST($C202,W$205:W$216,$C$205:$C$216)))) -> 0.7039894014 | X202: =IF(MAX(C205:C216)-MIN(C205:C216)<5,AVERAGEIF(C205:C216,">0",X205:X216), IF(FORECAST($C202,X$205:X$216,$C$205:$C$216)<0,0, IF(FORECAST($C202,X$205:X$216,$C$205:$C$216)>100,100, FORECAST($C202,X$205:X$216,$C$205:$C$216)))) -> 98.91893266 | AB202: =IF(MAX(C205:C216)-MIN(C205:C216)<5,AVERAGEIF(C205:C216,">0",AB205:AB216), IF(FORECAST($C202,AB$205:AB$216,$C$205:$C$216)<0,0, IF(FORECAST($C202,AB$205:AB$216,$C$205:$C$216)>100,100, FORECAST($C202,AB$205:AB$216,$C$205:$C$216)))) -> 0.09744114074
B204: Survey | C204: Year | D204: Improved | E204: % Improved < = 30min | H204: Surface water | I204: Improved | J204: % Improved < = 30min | M204: Surface water | N204: Improved | O204: % Improved < = 30min | R204: Surface water | S204: Improved | T204: % Improved < = 30min | W204: Surface water | X204: Improved | Y204: % Improved < = 30min | AB204: Surface water
B205: AIS04 | D205: =IF(ISERROR(INDIRECT(CONCATENATE($B205,"!H16"))),"",INDIRECT(CONCATENATE($B205,"!H16"))) -> 72.85794866 | E205: =IF(ISERROR(INDIRECT(CONCATENATE($B205,"!H23"))),"",INDIRECT(CONCATENATE($B205,"!H23"))) -> N/A | H205: =IF(ISERROR(INDIRECT(CONCATENATE($B205,"!H21"))),"",INDIRECT(CONCATENATE($B205,"!H21"))) -> 1.915270228 | I205: =IF(ISERROR(INDIRECT(CONCATENATE($B205,"!I16"))),"",INDIRECT(CONCATENATE($B205,"!I16"))) -> 90.70759702 | J205: =IF(ISERROR(INDIRECT(CONCATENATE($B205,"!I23"))),"",INDIRECT(CONCATENATE($B205,"!I23"))) -> N/A | M205: =IF(ISERROR(INDIRECT(CONCATENATE($B205,"!I21"))),"",INDIRECT(CONCATENATE($B205,"!I21"))) -> 2.902022834 | N205: =IF(ISERROR(INDIRECT(CONCATENATE($B205,"!J16"))),"",INDIRECT(CONCATENATE($B205,"!J16"))) -> 94.45119893 | O205: =IF(ISERROR(INDIRECT(CONCATENATE($B205,"!J23"))),"",INDIRECT(CONCATENATE($B205,"!J23"))) -> N/A | R205: =IF(ISERROR(INDIRECT(CONCATENATE($B205,"!J21"))),"",INDIRECT(CONCATENATE($B205,"!J21"))) -> 0 | S205: =IF(ISERROR(INDIRECT(CONCATENATE($B205,"!K16"))),"",INDIRECT(CONCATENATE($B205,"!K16"))) -> 97.71722788 | T205: =IF(ISERROR(INDIRECT(CONCATENATE($B205,"!K23"))),"",INDIRECT(CONCATENATE($B205,"!K23"))) -> N/A | W205: =IF(ISERROR(INDIRECT(CONCATENATE($B205,"!K21"))),"",INDIRECT(CONCATENATE($B205,"!K21"))) -> 0.7450017758 | X205: =IF(ISERROR(INDIRECT(CONCATENATE($B205,"!L16"))),"",INDIRECT(CONCATENATE($B205,"!L16"))) -> 98.2779356 | Y205: =IF(ISERROR(INDIRECT(CONCATENATE($B205,"!L23"))),"",INDIRECT(CONCATENATE($B205,"!L23"))) -> N/A | AB205: =IF(ISERROR(INDIRECT(CONCATENATE($B205,"!L221"))),"",INDIRECT(CONCATENATE($B205,"!L21"))) -> 0.2147383592
B206: DHS05 | C206: 2005 | D206: 65.95043564 | E206: N/A | H206: 12.86809823 | I206: 81.22262419 | J206: N/A | M206: 9.988745777 | N206: 92.48762848 | O206: N/A | R206: 1.397081469 | S206: 92.97163691 | T206: N/A | W206: 3.528830321 | X206: 95.75398426 | Y206: N/A | AB206: 0.8303679005
B207: AIS08 | D207: 65.62907936 | E207: 79.68282549 | H207: 7.37093797 | I207: 90.54175294 | J207: 83.66559986 | M207: 4.039053094 | N207: 92.93802977 | O207: 88.92529466 | R207: 2.040213303 | S207: 88.6487718 | T207: 91.99578959 | W207: 4.105788903 | X207: 95.58052292 | Y207: 95.71244353 | AB207: 0.5333627172
B208: DHS10 | C208: 2010 | D208: 56.22331661 | E208: 79.76245587 | H208: 9.525143498 | I208: 78.65397704 | J208: 88.65604539 | M208: 4.357456913 | N208: 87.3971269 | O208: 90.30968681 | R208: 0.9253312108 | S208: 92.36318808 | T208: 94.04414201 | W208: 0.3775974833 | X208: 96.59583744 | Y208: 95.902974 | AB208: 0
B209: AIS12 | C209: 2012 | D209: 79.81283741 | E209: 89.3 | H209: 5.736623509 | I209: 89.72701741 | J209: 92.6 | M209: 2.985708704 | N209: 94.7499441 | O209: 95.5 | R209: 2.207853211 | S209: 93.72025767 | T209: 95.4 | W209: 2.646102291 | X209: 97.55052722 | Y209: 98.9 | AB209: 0
B210: DHS16 | C210: 2016 | D210: 78.76219746 | E210: 83.26089155 | H210: 3.948267745 | I210: 90.90433735 | J210: 86.86967553 | M210: 1.743700169 | N210: 95.21179874 | O210: 90.02422432 | R210: 0.7841828698 | S210: 98.29890386 | T210: 91.18834851 | W210: 0.2661446178 | X210: 98.54177104 | Y210: 93.83516451 | AB210: 0.4228287665
B211: MIS17 | C211: 2017 | D211: 77.72709437 | E211: 86.39481759 | H211: 6.458115934 | I211: 87.16694937 | J211: 92.95319953 | M211: 4.196383593 | N211: 90.8513893 | O211: 95.73035129 | R211: 5.194637904 | S211: 96.01993412 | T211: 97.41607115 | W211: 2.021020824 | X211: 98.15585834 | Y211: 99.06420249 | AB211: 0.2685537463
B218: =CONCATENATE("Urban use of drinking water sources, ",C199,"–",C200) -> Urban use of drinking water sources, 2000–2020 | S218: Data points used for regression
E253: =IF(ISERROR(INDIRECT(CONCATENATE($B253,"!M18"))),"",INDIRECT(CONCATENATE($B253,"!M18"))) ->  | F253: =IF(ISERROR(INDIRECT(CONCATENATE($B253,"!M19"))),"",INDIRECT(CONCATENATE($B253,"!M19"))) ->  | G253: =IF(ISERROR(INDIRECT(CONCATENATE($B253,"!M20"))),"",INDIRECT(CONCATENATE($B253,"!M20"))) ->  | H253: =IF(ISERROR(INDIRECT(CONCATENATE($B253,"!M21"))),"",INDIRECT(CONCATENATE($B253,"!M21"))) ->  | J253: =IF(ISERROR(INDIRECT(CONCATENATE($B253,"!N18"))),"",INDIRECT(CONCATENATE($B253,"!N18"))) ->  | K253: =IF(ISERROR(INDIRECT(CONCATENATE($B253,"!N19"))),"",INDIRECT(CONCATENATE($B253,"!N19"))) ->  | L253: =IF(ISERROR(INDIRECT(CONCATENATE($B253,"!N20"))),"",INDIRECT(CONCATENATE($B253,"!N20"))) ->  | M253: =IF(ISERROR(INDIRECT(CONCATENATE($B253,"!N21"))),"",INDIRECT(CONCATENATE($B253,"!N21"))) ->  | O253: =IF(ISERROR(INDIRECT(CONCATENATE($B253,"!O18"))),"",INDIRECT(CONCATENATE($B253,"!O18"))) ->  | P253: =IF(ISERROR(INDIRECT(CONCATENATE($B253,"!O19"))),"",INDIRECT(CONCATENATE($B253,"!O19"))) ->  | Q253: =IF(ISERROR(INDIRECT(CONCATENATE($B253,"!O20"))),"",INDIRECT(CONCATENATE($B253,"!O20"))) ->  | R253: =IF(ISERROR(INDIRECT(CONCATENATE($B253,"!O21"))),"",INDIRECT(CONCATENATE($B253,"!O21"))) ->  | T253: =IF(ISERROR(INDIRECT(CONCATENATE($B253,"!P18"))),"",INDIRECT(CONCATENATE($B253,"!P18"))) ->  | U253: =IF(ISERROR(INDIRECT(CONCATENATE($B253,"!P19"))),"",INDIRECT(CONCATENATE($B253,"!P19"))) ->  | V253: =IF(ISERROR(INDIRECT(CONCATENATE($B253,"!P20"))),"",INDIRECT(CONCATENATE($B253,"!P20"))) ->  | W253: =IF(ISERROR(INDIRECT(CONCATENATE($B253,"!P21"))),"",INDIRECT(CONCATENATE($B253,"!P21"))) ->  | Y253: =IF(ISERROR(INDIRECT(CONCATENATE($B253,"!Q18"))),"",INDIRECT(CONCATENATE($B253,"!Q18"))) ->  | Z253: =IF(ISERROR(INDIRECT(CONCATENATE($B253,"!Q19"))),"",INDIRECT(CONCATENATE($B253,"!Q19"))) ->  | AA253: =IF(ISERROR(INDIRECT(CONCATENATE($B253,"!Q20"))),"",INDIRECT(CONCATENATE($B253,"!Q20"))) ->  | AB253: =IF(ISERROR(INDIRECT(CONCATENATE($B253,"!Q21"))),"",INDIRECT(CONCATENATE($B253,"!Q1"))) -> 
E254: =IF(ISERROR(INDIRECT(CONCATENATE($B254,"!M18"))),"",INDIRECT(CONCATENATE($B254,"!M18"))) ->  | F254: =IF(ISERROR(INDIRECT(CONCATENATE($B254,"!M19"))),"",INDIRECT(CONCATENATE($B254,"!M19"))) ->  | G254: =IF(ISERROR(INDIRECT(CONCATENATE($B254,"!M20"))),"",INDIRECT(CONCATENATE($B254,"!M20"))) ->  | H254: =IF(ISERROR(INDIRECT(CONCATENATE($B254,"!M21"))),"",INDIRECT(CONCATENATE($B254,"!M21"))) ->  | J254: =IF(ISERROR(INDIRECT(CONCATENATE($B254,"!N18"))),"",INDIRECT(CONCATENATE($B254,"!N18"))) ->  | K254: =IF(ISERROR(INDIRECT(CONCATENATE($B254,"!N19"))),"",INDIRECT(CONCATENATE($B254,"!N19"))) ->  | L254: =IF(ISERROR(INDIRECT(CONCATENATE($B254,"!N20"))),"",INDIRECT(CONCATENATE($B254,"!N20"))) ->  | M254: =IF(ISERROR(INDIRECT(CONCATENATE($B254,"!N21"))),"",INDIRECT(CONCATENATE($B254,"!N21"))) ->  | O254: =IF(ISERROR(INDIRECT(CONCATENATE($B254,"!O18"))),"",INDIRECT(CONCATENATE($B254,"!O18"))) ->  | P254: =IF(ISERROR(INDIRECT(CONCATENATE($B254,"!O19"))),"",INDIRECT(CONCATENATE($B254,"!O19"))) ->  | Q254: =IF(ISERROR(INDIRECT(CONCATENATE($B254,"!O20"))),"",INDIRECT(CONCATENATE($B254,"!O20"))) ->  | R254: =IF(ISERROR(INDIRECT(CONCATENATE($B254,"!O21"))),"",INDIRECT(CONCATENATE($B254,"!O21"))) ->  | T254: =IF(ISERROR(INDIRECT(CONCATENATE($B254,"!P18"))),"",INDIRECT(CONCATENATE($B254,"!P18"))) ->  | U254: =IF(ISERROR(INDIRECT(CONCATENATE($B254,"!P19"))),"",INDIRECT(CONCATENATE($B254,"!P19"))) ->  | V254: =IF(ISERROR(INDIRECT(CONCATENATE($B254,"!P20"))),"",INDIRECT(CONCATENATE($B254,"!P20"))) ->  | W254: =IF(ISERROR(INDIRECT(CONCATENATE($B254,"!P21"))),"",INDIRECT(CONCATENATE($B254,"!P21"))) ->  | Y254: =IF(ISERROR(INDIRECT(CONCATENATE($B254,"!Q18"))),"",INDIRECT(CONCATENATE($B254,"!Q18"))) ->  | Z254: =IF(ISERROR(INDIRECT(CONCATENATE($B254,"!Q19"))),"",INDIRECT(CONCATENATE($B254,"!Q19"))) ->  | AA254: =IF(ISERROR(INDIRECT(CONCATENATE($B254,"!Q20"))),"",INDIRECT(CONCATENATE($B254,"!Q20"))) ->  | AB254: =IF(ISERROR(INDIRECT(CONCATENATE($B254,"!Q21"))),"",INDIRECT(CONCATENATE($B254,"!Q1"))) -> 
E255: =IF(ISERROR(INDIRECT(CONCATENATE($B255,"!M18"))),"",INDIRECT(CONCATENATE($B255,"!M18"))) ->  | F255: =IF(ISERROR(INDIRECT(CONCATENATE($B255,"!M19"))),"",INDIRECT(CONCATENATE($B255,"!M19"))) ->  | G255: =IF(ISERROR(INDIRECT(CONCATENATE($B255,"!M20"))),"",INDIRECT(CONCATENATE($B255,"!M20"))) ->  | H255: =IF(ISERROR(INDIRECT(CONCATENATE($B255,"!M21"))),"",INDIRECT(CONCATENATE($B255,"!M21"))) ->  | J255: =IF(ISERROR(INDIRECT(CONCATENATE($B255,"!N18"))),"",INDIRECT(CONCATENATE($B255,"!N18"))) ->  | K255: =IF(ISERROR(INDIRECT(CONCATENATE($B255,"!N19"))),"",INDIRECT(CONCATENATE($B255,"!N19"))) ->  | L255: =IF(ISERROR(INDIRECT(CONCATENATE($B255,"!N20"))),"",INDIRECT(CONCATENATE($B255,"!N20"))) ->  | M255: =IF(ISERROR(INDIRECT(CONCATENATE($B255,"!N21"))),"",INDIRECT(CONCATENATE($B255,"!N21"))) ->  | O255: =IF(ISERROR(INDIRECT(CONCATENATE($B255,"!O18"))),"",INDIRECT(CONCATENATE($B255,"!O18"))) ->  | P255: =IF(ISERROR(INDIRECT(CONCATENATE($B255,"!O19"))),"",INDIRECT(CONCATENATE($B255,"!O19"))) ->  | Q255: =IF(ISERROR(INDIRECT(CONCATENATE($B255,"!O20"))),"",INDIRECT(CONCATENATE($B255,"!O20"))) ->  | R255: =IF(ISERROR(INDIRECT(CONCATENATE($B255,"!O21"))),"",INDIRECT(CONCATENATE($B255,"!O21"))) ->  | T255: =IF(ISERROR(INDIRECT(CONCATENATE($B255,"!P18"))),"",INDIRECT(CONCATENATE($B255,"!P18"))) ->  | U255: =IF(ISERROR(INDIRECT(CONCATENATE($B255,"!P19"))),"",INDIRECT(CONCATENATE($B255,"!P19"))) ->  | V255: =IF(ISERROR(INDIRECT(CONCATENATE($B255,"!P20"))),"",INDIRECT(CONCATENATE($B255,"!P20"))) ->  | W255: =IF(ISERROR(INDIRECT(CONCATENATE($B255,"!P21"))),"",INDIRECT(CONCATENATE($B255,"!P21"))) ->  | Y255: =IF(ISERROR(INDIRECT(CONCATENATE($B255,"!Q18"))),"",INDIRECT(CONCATENATE($B255,"!Q18"))) ->  | Z255: =IF(ISERROR(INDIRECT(CONCATENATE($B255,"!Q19"))),"",INDIRECT(CONCATENATE($B255,"!Q19"))) ->  | AA255: =IF(ISERROR(INDIRECT(CONCATENATE($B255,"!Q20"))),"",INDIRECT(CONCATENATE($B255,"!Q20"))) ->  | AB255: =IF(ISERROR(INDIRECT(CONCATENATE($B255,"!Q21"))),"",INDIRECT(CONCATENATE($B255,"!Q1"))) -> 
E256: =IF(ISERROR(INDIRECT(CONCATENATE($B256,"!M18"))),"",INDIRECT(CONCATENATE($B256,"!M18"))) ->  | F256: =IF(ISERROR(INDIRECT(CONCATENATE($B256,"!M19"))),"",INDIRECT(CONCATENATE($B256,"!M19"))) ->  | G256: =IF(ISERROR(INDIRECT(CONCATENATE($B256,"!M20"))),"",INDIRECT(CONCATENATE($B256,"!M20"))) ->  | H256: =IF(ISERROR(INDIRECT(CONCATENATE($B256,"!M21"))),"",INDIRECT(CONCATENATE($B256,"!M21"))) ->  | J256: =IF(ISERROR(INDIRECT(CONCATENATE($B256,"!N18"))),"",INDIRECT(CONCATENATE($B256,"!N18"))) ->  | K256: =IF(ISERROR(INDIRECT(CONCATENATE($B256,"!N19"))),"",INDIRECT(CONCATENATE($B256,"!N19"))) ->  | L256: =IF(ISERROR(INDIRECT(CONCATENATE($B256,"!N20"))),"",INDIRECT(CONCATENATE($B256,"!N20"))) ->  | M256: =IF(ISERROR(INDIRECT(CONCATENATE($B256,"!N21"))),"",INDIRECT(CONCATENATE($B256,"!N21"))) ->  | O256: =IF(ISERROR(INDIRECT(CONCATENATE($B256,"!O18"))),"",INDIRECT(CONCATENATE($B256,"!O18"))) ->  | P256: =IF(ISERROR(INDIRECT(CONCATENATE($B256,"!O19"))),"",INDIRECT(CONCATENATE($B256,"!O19"))) ->  | Q256: =IF(ISERROR(INDIRECT(CONCATENATE($B256,"!O20"))),"",INDIRECT(CONCATENATE($B256,"!O20"))) ->  | R256: =IF(ISERROR(INDIRECT(CONCATENATE($B256,"!O21"))),"",INDIRECT(CONCATENATE($B256,"!O21"))) ->  | T256: =IF(ISERROR(INDIRECT(CONCATENATE($B256,"!P18"))),"",INDIRECT(CONCATENATE($B256,"!P18"))) ->  | U256: =IF(ISERROR(INDIRECT(CONCATENATE($B256,"!P19"))),"",INDIRECT(CONCATENATE($B256,"!P19"))) ->  | V256: =IF(ISERROR(INDIRECT(CONCATENATE($B256,"!P20"))),"",INDIRECT(CONCATENATE($B256,"!P20"))) ->  | W256: =IF(ISERROR(INDIRECT(CONCATENATE($B256,"!P21"))),"",INDIRECT(CONCATENATE($B256,"!P21"))) ->  | Y256: =IF(ISERROR(INDIRECT(CONCATENATE($B256,"!Q18"))),"",INDIRECT(CONCATENATE($B256,"!Q18"))) ->  | Z256: =IF(ISERROR(INDIRECT(CONCATENATE($B256,"!Q19"))),"",INDIRECT(CONCATENATE($B256,"!Q19"))) ->  | AA256: =IF(ISERROR(INDIRECT(CONCATENATE($B256,"!Q20"))),"",INDIRECT(CONCATENATE($B256,"!Q20"))) ->  | AB256: =IF(ISERROR(INDIRECT(CONCATENATE($B256,"!Q21"))),"",INDIRECT(CONCATENATE($B256,"!Q1"))) -> 
E257: =IF(ISERROR(INDIRECT(CONCATENATE($B257,"!M18"))),"",INDIRECT(CONCATENATE($B257,"!M18"))) ->  | F257: =IF(ISERROR(INDIRECT(CONCATENATE($B257,"!M19"))),"",INDIRECT(CONCATENATE($B257,"!M19"))) ->  | G257: =IF(ISERROR(INDIRECT(CONCATENATE($B257,"!M20"))),"",INDIRECT(CONCATENATE($B257,"!M20"))) ->  | H257: =IF(ISERROR(INDIRECT(CONCATENATE($B257,"!M21"))),"",INDIRECT(CONCATENATE($B257,"!M21"))) ->  | J257: =IF(ISERROR(INDIRECT(CONCATENATE($B257,"!N18"))),"",INDIRECT(CONCATENATE($B257,"!N18"))) ->  | K257: =IF(ISERROR(INDIRECT(CONCATENATE($B257,"!N19"))),"",INDIRECT(CONCATENATE($B257,"!N19"))) ->  | L257: =IF(ISERROR(INDIRECT(CONCATENATE($B257,"!N20"))),"",INDIRECT(CONCATENATE($B257,"!N20"))) ->  | M257: =IF(ISERROR(INDIRECT(CONCATENATE($B257,"!N21"))),"",INDIRECT(CONCATENATE($B257,"!N21"))) ->  | O257: =IF(ISERROR(INDIRECT(CONCATENATE($B257,"!O18"))),"",INDIRECT(CONCATENATE($B257,"!O18"))) ->  | P257: =IF(ISERROR(INDIRECT(CONCATENATE($B257,"!O19"))),"",INDIRECT(CONCATENATE($B257,"!O19"))) ->  | Q257: =IF(ISERROR(INDIRECT(CONCATENATE($B257,"!O20"))),"",INDIRECT(CONCATENATE($B257,"!O20"))) ->  | R257: =IF(ISERROR(INDIRECT(CONCATENATE($B257,"!O21"))),"",INDIRECT(CONCATENATE($B257,"!O21"))) ->  | T257: =IF(ISERROR(INDIRECT(CONCATENATE($B257,"!P18"))),"",INDIRECT(CONCATENATE($B257,"!P18"))) ->  | U257: =IF(ISERROR(INDIRECT(CONCATENATE($B257,"!P19"))),"",INDIRECT(CONCATENATE($B257,"!P19"))) ->  | V257: =IF(ISERROR(INDIRECT(CONCATENATE($B257,"!P20"))),"",INDIRECT(CONCATENATE($B257,"!P20"))) ->  | W257: =IF(ISERROR(INDIRECT(CONCATENATE($B257,"!P21"))),"",INDIRECT(CONCATENATE($B257,"!P21"))) ->  | Y257: =IF(ISERROR(INDIRECT(CONCATENATE($B257,"!Q18"))),"",INDIRECT(CONCATENATE($B257,"!Q18"))) ->  | Z257: =IF(ISERROR(INDIRECT(CONCATENATE($B257,"!Q19"))),"",INDIRECT(CONCATENATE($B257,"!Q19"))) ->  | AA257: =IF(ISERROR(INDIRECT(CONCATENATE($B257,"!Q20"))),"",INDIRECT(CONCATENATE($B257,"!Q20"))) ->  | AB257: =IF(ISERROR(INDIRECT(CONCATENATE($B257,"!Q21"))),"",INDIRECT(CONCATENATE($B257,"!Q1"))) -> 
A297: RURAL | D297: Poorest | I297: Poor | N297: Middle | S297: Rich | X297: Richest
D298: Improved | E298: Basic | F298: Limited | G298: Unimproved | H298: Surface water | I298: Improved | J298: Basic | K298: Limited | L298: Unimproved | M298: Surface water | N298: Improved | O298: Basic | P298: Limited | Q298: Unimproved | R298: Surface water | S298: Improved | T298: Basic | U298: Limited | V298: Unimproved | W298: Surface water | X298: Improved | Y298: Basic | Z298: Limited | AA298: Unimproved | AB298: Surface water
A299: Forecast period: | C299: 2000 | D299: =IF((D301+H301)>100,D301*100/(D301+H301),D301) -> 26.55396467 | E299: =D299*AVERAGEIF(E305:E316,">0")/100 -> 16.06931819 | F299: =D299*(100-AVERAGEIF(E305:E316,">0"))/100 -> 10.48464648 | G299: =100-(E299+F299+H299) -> 44.39882719 | H299: =IF((D301+H301)>100,H301*100/(D301+H301),H301) -> 29.04720814 | I299: =IF((I301+M301)>100,I301*100/(I301+M301),I301) -> 27.5638449 | J299: =I299*AVERAGEIF(J305:J316,">0")/100 -> 19.19578578 | K299: =I299*(100-AVERAGEIF(J305:J316,">0"))/100 -> 8.368059124 | L299: =100-(J299+K299+M299) -> 43.83332855 | M299: =IF((I301+M301)>100,M301*100/(I301+M301),M301) -> 28.60282654 | N299: =IF((N301+R301)>100,N301*100/(N301+R301),N301) -> 32.61533828 | O299: =N299*AVERAGEIF(O305:O316,">0")/100 -> 23.0305719 | P299: =N299*(100-AVERAGEIF(O305:O316,">0"))/100 -> 9.584766386 | Q299: =100-(O299+P299+R299) -> 39.70406138 | R299: =IF((N301+R301)>100,R301*100/(N301+R301),R301) -> 27.68060033 | S299: =IF((S301+W301)>100,S301*100/(S301+W301),S301) -> 35.51059063 | T299: =S299*AVERAGEIF(T305:T316,">0")/100 -> 27.24772388 | U299: =S299*(100-AVERAGEIF(T305:T316,">0"))/100 -> 8.262866748 | V299: =100-(T299+U299+W299) -> 38.56386949 | W299: =IF((S301+W301)>100,W301*100/(S301+W301),W301) -> 25.92553988 | X299: =IF((X301+AB301)>100,X301*100/(X301+AB301),X301) -> 54.8766001 | Y299: =X299*AVERAGEIF(Y305:Y316,">0")/100 -> 46.59849548 | Z299: =X299*(100-AVERAGEIF(Y305:Y316,">0"))/100 -> 8.278104612 | AA299: =100-(Y299+Z299+AB299) -> 28.77661561 | AB299: =IF((X301+AB301)>100,AB301*100/(X301+AB301),AB301) -> 16.3467843
C300: 2020 | D300: =IF((D302+H302)>100,D302*100/(D302+H302),D302) -> 35.88448178 | E300: =D300*AVERAGEIF(E305:E316,">0")/100 -> 21.71574615 | F300: =D300*(100-AVERAGEIF(E305:E316,">0"))/100 -> 14.16873564 | G300: =100-(E300+F300+H300) -> 43.68299707 | H300: =IF((D302+H302)>100,H302*100/(D302+H302),H302) -> 20.43252115 | I300: =IF((I302+M302)>100,I302*100/(I302+M302),I302) -> 44.40213998 | J300: =I300*AVERAGEIF(J305:J316,">0")/100 -> 30.92217251 | K300: =I300*(100-AVERAGEIF(J305:J316,">0"))/100 -> 13.47996747 | L300: =100-(J300+K300+M300) -> 40.20075772 | M300: =IF((I302+M302)>100,M302*100/(I302+M302),M302) -> 15.3971023 | N300: =IF((N302+R302)>100,N302*100/(N302+R302),N302) -> 50.12811795 | O300: =N300*AVERAGEIF(O305:O316,">0")/100 -> 35.39681896 | P300: =N300*(100-AVERAGEIF(O305:O316,">0"))/100 -> 14.73129899 | Q300: =100-(O300+P300+R300) -> 34.89511447 | R300: =IF((N302+R302)>100,R302*100/(N302+R302),R302) -> 14.97676758 | S300: =IF((S302+W302)>100,S302*100/(S302+W302),S302) -> 58.11393267 | T300: =S300*AVERAGEIF(T305:T316,">0")/100 -> 44.5915532 | U300: =S300*(100-AVERAGEIF(T305:T316,">0"))/100 -> 13.52237947 | V300: =100-(T300+U300+W300) -> 28.12976316 | W300: =IF((S302+W302)>100,W302*100/(S302+W302),W302) -> 13.75630417 | X300: =IF((X302+AB302)>100,X302*100/(X302+AB302),X302) -> 72.64735929 | Y300: =X300*AVERAGEIF(Y305:Y316,">0")/100 -> 61.68854553 | Z300: =X300*(100-AVERAGEIF(Y305:Y316,">0"))/100 -> 10.95881376 | AA300: =100-(Y300+Z300+AB300) -> 18.28875598 | AB300: =IF((X302+AB302)>100,AB302*100/(X302+AB302),AB302) -> 9.063884733
A301: Regression period: | C301: =MinRegYear(C299,C305:C316) -> 2003 | D301: =IF(MAX(C305:C316)-MIN(C305:C316)<5,AVERAGEIF(C305:C316,">0",D305:D316), IF(FORECAST($C301,D$305:D$316,$C$305:$C$316)<0,0, IF(FORECAST($C301,D$305:D$316,$C$305:$C$316)>100,100, FORECAST($C301,D$305:D$316,$C$305:$C$316)))) -> 26.55396467 | H301: =IF(MAX(C305:C316)-MIN(C305:C316)<5,AVERAGEIF(C305:C316,">0",H305:H316), IF(FORECAST($C301,H$305:H$316,$C$305:$C$316)<0,0, IF(FORECAST($C301,H$305:H$316,$C$305:$C$316)>100,100, FORECAST($C301,H$305:H$316,$C$305:$C$316)))) -> 29.04720814 | I301: =IF(MAX(C305:C316)-MIN(C305:C316)<5,AVERAGEIF(C305:C316,">0",I305:I316), IF(FORECAST($C301,I$305:I$316,$C$305:$C$316)<0,0, IF(FORECAST($C301,I$305:I$316,$C$305:$C$316)>100,100, FORECAST($C301,I$305:I$316,$C$305:$C$316)))) -> 27.5638449 | M301: =IF(MAX(C305:C316)-MIN(C305:C316)<5,AVERAGEIF(C305:C316,">0",M305:M316), IF(FORECAST($C301,M$305:M$316,$C$305:$C$316)<0,0, IF(FORECAST($C301,M$305:M$316,$C$305:$C$316)>100,100, FORECAST($C301,M$305:M$316,$C$305:$C$316)))) -> 28.60282654 | N301: =IF(MAX(C305:C316)-MIN(C305:C316)<5,AVERAGEIF(C305:C316,">0",N305:N316), IF(FORECAST($C301,N$305:N$316,$C$305:$C$316)<0,0, IF(FORECAST($C301,N$305:N$316,$C$305:$C$316)>100,100, FORECAST($C301,N$305:N$316,$C$305:$C$316)))) -> 32.61533828 | R301: =IF(MAX(C305:C316)-MIN(C305:C316)<5,AVERAGEIF(C305:C316,">0",R305:R316), IF(FORECAST($C301,R$305:R$316,$C$305:$C$316)<0,0, IF(FORECAST($C301,R$305:R$316,$C$305:$C$316)>100,100, FORECAST($C301,R$305:R$316,$C$305:$C$316)))) -> 27.68060033 | S301: =IF(MAX(C305:C316)-MIN(C305:C316)<5,AVERAGEIF(C305:C316,">0",S305:S316), IF(FORECAST($C301,S$305:S$316,$C$305:$C$316)<0,0, IF(FORECAST($C301,S$305:S$316,$C$305:$C$316)>100,100, FORECAST($C301,S$305:S$316,$C$305:$C$316)))) -> 35.51059063 | W301: =IF(MAX(C305:C316)-MIN(C305:C316)<5,AVERAGEIF(C305:C316,">0",W305:W316), IF(FORECAST($C301,W$305:W$316,$C$305:$C$316)<0,0, IF(FORECAST($C301,W$305:W$316,$C$305:$C$316)>100,100, FORECAST($C301,W$305:W$316,$C$305:$C$316)))) -> 25.92553988 | X301: =IF(MAX(C305:C316)-MIN(C305:C316)<5,AVERAGEIF(C305:C316,">0",X305:X316), IF(FORECAST($C301,X$305:X$316,$C$305:$C$316)<0,0, IF(FORECAST($C301,X$305:X$316,$C$305:$C$316)>100,100, FORECAST($C301,X$305:X$316,$C$305:$C$316)))) -> 54.8766001 | AB301: =IF(MAX(C305:C316)-MIN(C305:C316)<5,AVERAGEIF(C305:C316,">0",AB305:AB316), IF(FORECAST($C301,AB$305:AB$316,$C$305:$C$316)<0,0, IF(FORECAST($C301,AB$305:AB$316,$C$305:$C$316)>100,100, FORECAST($C301,AB$305:AB$316,$C$305:$C$316)))) -> 16.3467843
C302: =MaxRegYear(C300,C305:C316) -> 2019 | D302: =IF(MAX(C305:C316)-MIN(C305:C316)<5,AVERAGEIF(C305:C316,">0",D305:D316), IF(FORECAST($C302,D$305:D$316,$C$305:$C$316)<0,0, IF(FORECAST($C302,D$305:D$316,$C$305:$C$316)>100,100, FORECAST($C302,D$305:D$316,$C$305:$C$316)))) -> 35.88448178 | H302: =IF(MAX(C305:C316)-MIN(C305:C316)<5,AVERAGEIF(C305:C316,">0",H305:H316), IF(FORECAST($C302,H$305:H$316,$C$305:$C$316)<0,0, IF(FORECAST($C302,H$305:H$316,$C$305:$C$316)>100,100, FORECAST($C302,H$305:H$316,$C$305:$C$316)))) -> 20.43252115 | I302: =IF(MAX(C305:C316)-MIN(C305:C316)<5,AVERAGEIF(C305:C316,">0",I305:I316), IF(FORECAST($C302,I$305:I$316,$C$305:$C$316)<0,0, IF(FORECAST($C302,I$305:I$316,$C$305:$C$316)>100,100, FORECAST($C302,I$305:I$316,$C$305:$C$316)))) -> 44.40213998 | M302: =IF(MAX(C305:C316)-MIN(C305:C316)<5,AVERAGEIF(C305:C316,">0",M305:M316), IF(FORECAST($C302,M$305:M$316,$C$305:$C$316)<0,0, IF(FORECAST($C302,M$305:M$316,$C$305:$C$316)>100,100, FORECAST($C302,M$305:M$316,$C$305:$C$316)))) -> 15.3971023 | N302: =IF(MAX(C305:C316)-MIN(C305:C316)<5,AVERAGEIF(C305:C316,">0",N305:N316), IF(FORECAST($C302,N$305:N$316,$C$305:$C$316)<0,0, IF(FORECAST($C302,N$305:N$316,$C$305:$C$316)>100,100, FORECAST($C302,N$305:N$316,$C$305:$C$316)))) -> 50.12811795 | R302: =IF(MAX(C305:C316)-MIN(C305:C316)<5,AVERAGEIF(C305:C316,">0",R305:R316), IF(FORECAST($C302,R$305:R$316,$C$305:$C$316)<0,0, IF(FORECAST($C302,R$305:R$316,$C$305:$C$316)>100,100, FORECAST($C302,R$305:R$316,$C$305:$C$316)))) -> 14.97676758 | S302: =IF(MAX(C305:C316)-MIN(C305:C316)<5,AVERAGEIF(C305:C316,">0",S305:S316), IF(FORECAST($C302,S$305:S$316,$C$305:$C$316)<0,0, IF(FORECAST($C302,S$305:S$316,$C$305:$C$316)>100,100, FORECAST($C302,S$305:S$316,$C$305:$C$316)))) -> 58.11393267 | W302: =IF(MAX(C305:C316)-MIN(C305:C316)<5,AVERAGEIF(C305:C316,">0",W305:W316), IF(FORECAST($C302,W$305:W$316,$C$305:$C$316)<0,0, IF(FORECAST($C302,W$305:W$316,$C$305:$C$316)>100,100, FORECAST($C302,W$305:W$316,$C$305:$C$316)))) -> 13.75630417 | X302: =IF(MAX(C305:C316)-MIN(C305:C316)<5,AVERAGEIF(C305:C316,">0",X305:X316), IF(FORECAST($C302,X$305:X$316,$C$305:$C$316)<0,0, IF(FORECAST($C302,X$305:X$316,$C$305:$C$316)>100,100, FORECAST($C302,X$305:X$316,$C$305:$C$316)))) -> 72.64735929 | AB302: =IF(MAX(C305:C316)-MIN(C305:C316)<5,AVERAGEIF(C305:C316,">0",AB305:AB316), IF(FORECAST($C302,AB$305:AB$316,$C$305:$C$316)<0,0, IF(FORECAST($C302,AB$305:AB$316,$C$305:$C$316)>100,100, FORECAST($C302,AB$305:AB$316,$C$305:$C$316)))) -> 9.063884733
B304: Survey | C304: Year | D304: Improved | E304: % Improved < = 30min | H304: Surface water | I304: Improved | J304: % Improved < = 30min | M304: Surface water | N304: Improved | O304: % Improved < = 30min | R304: Surface water | S304: Improved | T304: % Improved < = 30min | W304: Surface water | X304: Improved | Y304: % Improved < = 30min | AB304: Surface water
B305: AIS04 | D305: =IF(ISERROR(INDIRECT(CONCATENATE($B305,"!M16"))),"",INDIRECT(CONCATENATE($B305,"!M16"))) -> 33.19766251 | E305: =IF(ISERROR(INDIRECT(CONCATENATE($B305,"!M23"))),"",INDIRECT(CONCATENATE($B305,"!M23"))) -> N/A | H305: =IF(ISERROR(INDIRECT(CONCATENATE($B305,"!M21"))),"",INDIRECT(CONCATENATE($B305,"!M21"))) -> 26.35419711 | I305: =IF(ISERROR(INDIRECT(CONCATENATE($B305,"!N16"))),"",INDIRECT(CONCATENATE($B305,"!N16"))) -> 33.80634124 | J305: =IF(ISERROR(INDIRECT(CONCATENATE($B305,"!N23"))),"",INDIRECT(CONCATENATE($B305,"!N23"))) -> N/A | M305: =IF(ISERROR(INDIRECT(CONCATENATE($B305,"!N21"))),"",INDIRECT(CONCATENATE($B305,"!N21"))) -> 25.44735527 | N305: =IF(ISERROR(INDIRECT(CONCATENATE($B305,"!O16"))),"",INDIRECT(CONCATENATE($B305,"!O16"))) -> 41.89345856 | O305: =IF(ISERROR(INDIRECT(CONCATENATE($B305,"!O23"))),"",INDIRECT(CONCATENATE($B305,"!O23"))) -> N/A | R305: =IF(ISERROR(INDIRECT(CONCATENATE($B305,"!O21"))),"",INDIRECT(CONCATENATE($B305,"!O21"))) -> 24.80072762 | S305: =IF(ISERROR(INDIRECT(CONCATENATE($B305,"!P16"))),"",INDIRECT(CONCATENATE($B305,"!P16"))) -> 48.56378633 | T305: =IF(ISERROR(INDIRECT(CONCATENATE($B305,"!P23"))),"",INDIRECT(CONCATENATE($B305,"!P23"))) -> N/A | W305: =IF(ISERROR(INDIRECT(CONCATENATE($B305,"!P21"))),"",INDIRECT(CONCATENATE($B305,"!P21"))) -> 21.55832889 | X305: =IF(ISERROR(INDIRECT(CONCATENATE($B305,"!Q16"))),"",INDIRECT(CONCATENATE($B305,"!Q16"))) -> 62.87501023 | Y305: =IF(ISERROR(INDIRECT(CONCATENATE($B305,"!Q23"))),"",INDIRECT(CONCATENATE($B305,"!Q23"))) -> N/A | AB305: =IF(ISERROR(INDIRECT(CONCATENATE($B305,"!Q221"))),"",INDIRECT(CONCATENATE($B305,"!Q21"))) -> 15.3294116
B306: DHS05 | C306: 2005 | D306: 31.35528954 | E306: N/A | H306: 22.25940679 | I306: 30.30868404 | J306: N/A | M306: 24.01028857 | N306: 36.26256515 | O306: N/A | R306: 24.35753517 | S306: 37.24248244 | T306: N/A | W306: 24.93822045 | X306: 57.8353881 | Y306: N/A | AB306: 16.33783486
B307: AIS08 | D307: 37.84697643 | E307: 56.72146909 | H307: 29.19701175 | I307: 37.48922232 | J307: 59.69296579 | M307: 21.0775365 | N307: 41.84598974 | O307: 72.35561389 | R307: 25.75627909 | S307: 50.27935329 | T307: 71.89522129 | W307: 22.30388905 | X307: 66.42221246 | Y307: 82.4680071 | AB307: 11.98962038
B308: DHS10 | C308: 2010 | D308: 26.12948067 | E308: 66.75069258 | H308: 30.96398558 | I308: 32.11015453 | J308: 73.51212724 | M308: 27.09833065 | N308: 35.91892293 | O308: 67.1518218 | R308: 23.60818147 | S308: 44.86939116 | T308: 74.42524502 | W308: 20.89518901 | X308: 59.01740749 | Y308: 85.27385499 | AB308: 13.86738081
B309: AIS12 | C309: 2012 | D309: 29.43324886 | E309: 63.7 | H309: 29.42682752 | I309: 38.92399272 | J309: 73.2 | M309: 22.36010165 | N309: 44.65811938 | O309: 71.6 | R309: 22.62824741 | S309: 52.297921 | T309: 77.9 | W309: 16.84226552 | X309: 68.54516574 | Y309: 84.3 | AB309: 8.678776285
B310: DHS16 | C310: 2016 | D310: 33.90664212 | E310: 56.45348095 | H310: 24.65253572 | I310: 43.86440975 | J310: 71.01329689 | M310: 17.33651064 | N310: 48.89550138 | O310: 65.89424701 | R310: 17.31344828 | S310: 50.34449623 | T310: 73.44278908 | W310: 18.76658359 | X310: 67.54075495 | Y310: 84.93951007 | AB310: 12.52130177
B311: MIS17 | C311: 2017 | D311: 38.18724154 | E311: 58.95286859 | H311: 13.70447794 | I311: 39.96968839 | J311: 70.78749075 | M311: 15.06780176 | N311: 46.59627539 | O311: 76.06183143 | R311: 14.76605972 | S311: 56.3705618 | T311: 85.99304825 | W311: 13.9594654 | X311: 71.42454443 | Y311: 87.59390585 | AB311: 9.84547273
B318: =CONCATENATE("Rural use of drinking water sources, ",C299,"–",C300) -> Rural use of drinking water sources, 2000–2020 | S318: Data points used for regression

Sheet Sanitation
B4: Summary of trends in use of sanitation facilities by wealth quintile (%)
B5: =IF(ISERROR(INDIRECT(CONCATENATE($B105,"!A2"))),"",INDIRECT(CONCATENATE($B105,"!A2"))) -> United Republic of Tanzania
B7: =B118 -> National use of sanitation facilities, 2000–2020 | J7: =B218 -> Urban use of sanitation facilities, 2000–2020 | R7: =B318 -> Rural use of sanitation facilities, 2000–2020
B31: =IF(ISERROR(INDIRECT(CONCATENATE($B105,"!A2"))),"",INDIRECT(CONCATENATE($B105,"!A2"))) -> United Republic of Tanzania | F31: Poorest | J31: Poor | N31: Middle | R31: Rich | V31: Richest
F32: Basic | G32: Limited | H32: Unimproved | I32: Open defecation | J32: Basic | K32: Limited | L32: Unimproved | M32: Open defecation | N32: Basic | O32: Limited | P32: Unimproved | Q32: Open defecation | R32: Basic | S32: Limited | T32: Unimproved | U32: Open defecation | V32: Basic | W32: Limited | X32: Unimproved | Y32: Open defecation
B33: NATIONAL | D33: Estimate | E33: =C99 -> 2000 | F33: =E99 -> 0 | G33: =F99 -> 0 | H33: 68.2780667 | I33: 31.7219333 | J33: =J99 -> 0 | K33: =K99 -> 0 | L33: 74.52496271 | M33: 25.47503729 | N33: =O99 -> 0.5665159403 | O33: =P99 -> 0.1341749474 | P33: 84.87829953 | Q33: 14.42100958 | R33: =T99 -> 0.05909704869 | S33: =U99 -> 0.02692775639 | T33: 93.11314332 | U33: 6.800831875 | V33: =Y99 -> 21.34647735 | W33: =Z99 -> 13.14269498 | X33: 64.76573491 | Y33: 0.7450927626
E34: =C100 -> 2020 | F34: =E100 -> 18.68596725 | G34: 4.347929389 | H34: 50.04533387 | I34: 26.92076949 | J34: =J100 -> 21.36980705 | K34: 4.944365298 | L34: 62.95466784 | M34: 10.73115981 | N34: =O100 -> 27.82486988 | O34: 6.590106629 | P34: 59.38954477 | Q34: 6.195478717 | R34: =T100 -> 48.66151404 | S34: 22.17277216 | T34: 26.69081438 | U34: 2.474899416 | V34: =Y100 -> 61.89327232 | W34: 38.10672768 | X34: 0 | Y34: 0
B36: URBAN | D36: Estimate | E36: =C199 -> 2000 | F36: =E199 -> 0 | G36: =F199 -> 0 | H36: 92.80245622 | I36: 7.19754378 | J36: =J199 -> 6.935181625 | K36: =K199 -> 6.321440149 | L36: 83.66613351 | M36: 3.077244715 | N36: =O199 -> 10.02903552 | O36: =P199 -> 10.87242057 | P36: 78.03047276 | Q36: 1.068071148 | R36: =T199 -> 17.45968704 | S36: =U199 -> 18.31092304 | T36: 64.1571892 | U36: 0.07220072233 | V36: =Y199 -> 49.28308028 | W36: =Z199 -> 17.79034327 | X36: 32.92657645 | Y36: 0
E37: =C200 -> 2020 | F37: =E200 -> 35.48191667 | G37: 20.61225136 | H37: 38.38911838 | I37: 5.516713588 | J37: =J200 -> 44.87421193 | K37: 40.90298716 | L37: 12.96696596 | M37: 1.255834953 | N37: =O200 -> 47.98247297 | O37: 52.01752703 | P37: 0 | Q37: 0 | R37: =T200 -> 48.77390655 | S37: 51.1518475 | T37: 0 | U37: 0.07424594872 | V37: =Y200 -> 73.38353845 | W37: 26.49019364 | X37: 0.126267911 | Y37: 0
B39: RURAL | D39: Estimate | E39: =C299 -> 2000 | F39: =E299 -> 0 | G39: =F299 -> 0 | H39: 68.10759193 | I39: 31.89240807 | J39: =J299 -> 0 | K39: =K299 -> 0 | L39: 71.32414926 | M39: 28.67585074 | N39: =O299 -> 0 | O39: =P299 -> 0 | P39: 80.0434594 | Q39: 19.9565406 | R39: =T299 -> 1.619266823 | S39: =U299 -> 0.3482556393 | T39: 84.68497918 | U39: 13.34749836 | V39: =Y299 -> 6.909874004 | W39: =Z299 -> 1.557733601 | X39: 86.56700237 | Y39: 4.965390023
E40: =C300 -> 2020 | F40: =E300 -> 16.99132828 | G40: 4.180829186 | H40: 47.68075344 | I40: 31.1470891 | J40: =J300 -> 20.12268716 | K40: 4.429758695 | L40: 60.7275119 | M40: 14.72004225 | N40: =O300 -> 22.19373847 | O40: 5.344562973 | P40: 63.71708888 | Q40: 8.744609672 | R40: =T300 -> 28.23567314 | S40: 6.072644892 | T40: 60.66531139 | U40: 5.026370578 | V40: =Y300 -> 58.0365137 | W40: 13.08351316 | X40: 27.03580507 | Y40: 1.844168074
A97: NATIONAL | D97: Poorest | I97: Poor | N97: Middle | S97: Rich | X97: Richest
D98: Improved | E98: Basic | F98: Limited | G98: Unimproved | H98: Open defecation | I98: Improved | J98: Basic | K98: Limited | L98: Unimproved | M98: Open defecation | N98: Improved | O98: Basic | P98: Limited | Q98: Unimproved | R98: Open defecation | S98: Improved | T98: Basic | U98: Limited | V98: Unimproved | W98: Open defecation | X98: Improved | Y98: Basic | Z98: Limited | AA98: Unimproved | AB98: Open defecation
A99: Forecast period: | C99: 2000 | D99: =IF((D101+H101)>100,D101*100/(D101+H101),D101) -> 0 | E99: =D99*AVERAGEIF(E105:E116,">0")/100 -> 0 | F99: =D99*(100-AVERAGEIF(E105:E116,">0"))/100 -> 0 | G99: =100-(E99+F99+H99) -> 68.2780667 | H99: =IF((D101+H101)>100,H101*100/(D101+H101),H101) -> 31.7219333 | I99: =IF((I101+M101)>100,I101*100/(I101+M101),I101) -> 0 | J99: =I99*AVERAGEIF(J105:J116,">0")/100 -> 0 | K99: =I99*(100-AVERAGEIF(J105:J116,">0"))/100 -> 0 | L99: =100-(J99+K99+M99) -> 74.52496271 | M99: =IF((I101+M101)>100,M101*100/(I101+M101),M101) -> 25.47503729 | N99: =IF((N101+R101)>100,N101*100/(N101+R101),N101) -> 0.7006908877 | O99: =N99*AVERAGEIF(O105:O116,">0")/100 -> 0.5665159403 | P99: =N99*(100-AVERAGEIF(O105:O116,">0"))/100 -> 0.1341749474 | Q99: =100-(O99+P99+R99) -> 84.87829953 | R99: =IF((N101+R101)>100,R101*100/(N101+R101),R101) -> 14.42100958 | S99: =IF((S101+W101)>100,S101*100/(S101+W101),S101) -> 0.08602480507 | T99: =S99*AVERAGEIF(T105:T116,">0")/100 -> 0.05909704869 | U99: =S99*(100-AVERAGEIF(T105:T116,">0"))/100 -> 0.02692775639 | V99: =100-(T99+U99+W99) -> 93.11314332 | W99: =IF((S101+W101)>100,W101*100/(S101+W101),W101) -> 6.800831875 | X99: =IF((X101+AB101)>100,X101*100/(X101+AB101),X101) -> 34.48917233 | Y99: =X99*AVERAGEIF(Y105:Y116,">0")/100 -> 21.34647735 | Z99: =X99*(100-AVERAGEIF(Y105:Y116,">0"))/100 -> 13.14269498 | AA99: =100-(Y99+Z99+AB99) -> 64.76573491 | AB99: =IF((X101+AB101)>100,AB101*100/(X101+AB101),AB101) -> 0.7450927626
C100: 2020 | D100: =IF((D102+H102)>100,D102*100/(D102+H102),D102) -> 23.03389664 | E100: =D100*AVERAGEIF(E105:E116,">0")/100 -> 18.68596725 | F100: =D100*(100-AVERAGEIF(E105:E116,">0"))/100 -> 4.347929389 | G100: =100-(E100+F100+H100) -> 50.04533387 | H100: =IF((D102+H102)>100,H102*100/(D102+H102),H102) -> 26.92076949 | I100: =IF((I102+M102)>100,I102*100/(I102+M102),I102) -> 26.31417235 | J100: =I100*AVERAGEIF(J105:J116,">0")/100 -> 21.36980705 | K100: =I100*(100-AVERAGEIF(J105:J116,">0"))/100 -> 4.944365298 | L100: =100-(J100+K100+M100) -> 62.95466784 | M100: =IF((I102+M102)>100,M102*100/(I102+M102),M102) -> 10.73115981 | N100: =IF((N102+R102)>100,N102*100/(N102+R102),N102) -> 34.41497651 | O100: =N100*AVERAGEIF(O105:O116,">0")/100 -> 27.82486988 | P100: =N100*(100-AVERAGEIF(O105:O116,">0"))/100 -> 6.590106629 | Q100: =100-(O100+P100+R100) -> 59.38954477 | R100: =IF((N102+R102)>100,R102*100/(N102+R102),R102) -> 6.195478717 | S100: =IF((S102+W102)>100,S102*100/(S102+W102),S102) -> 70.8342862 | T100: =S100*AVERAGEIF(T105:T116,">0")/100 -> 48.66151404 | U100: =S100*(100-AVERAGEIF(T105:T116,">0"))/100 -> 22.17277216 | V100: =100-(T100+U100+W100) -> 26.69081438 | W100: =IF((S102+W102)>100,W102*100/(S102+W102),W102) -> 2.474899416 | X100: =IF((X102+AB102)>100,X102*100/(X102+AB102),X102) -> 100 | Y100: =X100*AVERAGEIF(Y105:Y116,">0")/100 -> 61.89327232 | Z100: =X100*(100-AVERAGEIF(Y105:Y116,">0"))/100 -> 38.10672768 | AA100: =100-(Y100+Z100+AB100) -> 0 | AB100: =IF((X102+AB102)>100,AB102*100/(X102+AB102),AB102) -> 0
A101: Regression period: | C101: =MinRegYear(C99,C105:C116) -> 2002 | D101: =IF(MAX(C105:C116)-MIN(C105:C116)<5,AVERAGEIF(C105:C116,">0",D105:D116), IF(FORECAST($C101,D$105:D$116,$C$105:$C$116)<0,0, IF(FORECAST($C101,D$105:D$116,$C$105:$C$116)>100,100, FORECAST($C101,D$105:D$116,$C$105:$C$116)))) -> 0 | H101: =IF(MAX(C105:C116)-MIN(C105:C116)<5,AVERAGEIF(C105:C116,">0",H105:H116), IF(FORECAST($C101,H$105:H$116,$C$105:$C$116)<0,0, IF(FORECAST($C101,H$105:H$116,$C$105:$C$116)>100,100, FORECAST($C101,H$105:H$116,$C$105:$C$116)))) -> 31.7219333 | I101: =IF(MAX(C105:C116)-MIN(C105:C116)<5,AVERAGEIF(C105:C116,">0",I105:I116), IF(FORECAST($C101,I$105:I$116,$C$105:$C$116)<0,0, IF(FORECAST($C101,I$105:I$116,$C$105:$C$116)>100,100, FORECAST($C101,I$105:I$116,$C$105:$C$116)))) -> 0 | M101: =IF(MAX(C105:C116)-MIN(C105:C116)<5,AVERAGEIF(C105:C116,">0",M105:M116), IF(FORECAST($C101,M$105:M$116,$C$105:$C$116)<0,0, IF(FORECAST($C101,M$105:M$116,$C$105:$C$116)>100,100, FORECAST($C101,M$105:M$116,$C$105:$C$116)))) -> 25.47503729 | N101: =IF(MAX(C105:C116)-MIN(C105:C116)<5,AVERAGEIF(C105:C116,">0",N105:N116), IF(FORECAST($C101,N$105:N$116,$C$105:$C$116)<0,0, IF(FORECAST($C101,N$105:N$116,$C$105:$C$116)>100,100, FORECAST($C101,N$105:N$116,$C$105:$C$116)))) -> 0.7006908877 | R101: =IF(MAX(C105:C116)-MIN(C105:C116)<5,AVERAGEIF(C105:C116,">0",R105:R116), IF(FORECAST($C101,R$105:R$116,$C$105:$C$116)<0,0, IF(FORECAST($C101,R$105:R$116,$C$105:$C$116)>100,100, FORECAST($C101,R$105:R$116,$C$105:$C$116)))) -> 14.42100958 | S101: =IF(MAX(C105:C116)-MIN(C105:C116)<5,AVERAGEIF(C105:C116,">0",S105:S116), IF(FORECAST($C101,S$105:S$116,$C$105:$C$116)<0,0, IF(FORECAST($C101,S$105:S$116,$C$105:$C$116)>100,100, FORECAST($C101,S$105:S$116,$C$105:$C$116)))) -> 0.08602480507 | W101: =IF(MAX(C105:C116)-MIN(C105:C116)<5,AVERAGEIF(C105:C116,">0",W105:W116), IF(FORECAST($C101,W$105:W$116,$C$105:$C$116)<0,0, IF(FORECAST($C101,W$105:W$116,$C$105:$C$116)>100,100, FORECAST($C101,W$105:W$116,$C$105:$C$116)))) -> 6.800831875 | X101: =IF(MAX(C105:C116)-MIN(C105:C116)<5,AVERAGEIF(C105:C116,">0",X105:X116), IF(FORECAST($C101,X$105:X$116,$C$105:$C$116)<0,0, IF(FORECAST($C101,X$105:X$116,$C$105:$C$116)>100,100, FORECAST($C101,X$105:X$116,$C$105:$C$116)))) -> 34.48917233 | AB101: =IF(MAX(C105:C116)-MIN(C105:C116)<5,AVERAGEIF(C105:C116,">0",AB105:AB116), IF(FORECAST($C101,AB$105:AB$116,$C$105:$C$116)<0,0, IF(FORECAST($C101,AB$105:AB$116,$C$105:$C$116)>100,100, FORECAST($C101,AB$105:AB$116,$C$105:$C$116)))) -> 0.7450927626
C102: =MaxRegYear(C100,C105:C116) -> 2019 | D102: =IF(MAX(C105:C116)-MIN(C105:C116)<5,AVERAGEIF(C105:C116,">0",D105:D116), IF(FORECAST($C102,D$105:D$116,$C$105:$C$116)<0,0, IF(FORECAST($C102,D$105:D$116,$C$105:$C$116)>100,100, FORECAST($C102,D$105:D$116,$C$105:$C$116)))) -> 23.03389664 | H102: =IF(MAX(C105:C116)-MIN(C105:C116)<5,AVERAGEIF(C105:C116,">0",H105:H116), IF(FORECAST($C102,H$105:H$116,$C$105:$C$116)<0,0, IF(FORECAST($C102,H$105:H$116,$C$105:$C$116)>100,100, FORECAST($C102,H$105:H$116,$C$105:$C$116)))) -> 26.92076949 | I102: =IF(MAX(C105:C116)-MIN(C105:C116)<5,AVERAGEIF(C105:C116,">0",I105:I116), IF(FORECAST($C102,I$105:I$116,$C$105:$C$116)<0,0, IF(FORECAST($C102,I$105:I$116,$C$105:$C$116)>100,100, FORECAST($C102,I$105:I$116,$C$105:$C$116)))) -> 26.31417235 | M102: =IF(MAX(C105:C116)-MIN(C105:C116)<5,AVERAGEIF(C105:C116,">0",M105:M116), IF(FORECAST($C102,M$105:M$116,$C$105:$C$116)<0,0, IF(FORECAST($C102,M$105:M$116,$C$105:$C$116)>100,100, FORECAST($C102,M$105:M$116,$C$105:$C$116)))) -> 10.73115981 | N102: =IF(MAX(C105:C116)-MIN(C105:C116)<5,AVERAGEIF(C105:C116,">0",N105:N116), IF(FORECAST($C102,N$105:N$116,$C$105:$C$116)<0,0, IF(FORECAST($C102,N$105:N$116,$C$105:$C$116)>100,100, FORECAST($C102,N$105:N$116,$C$105:$C$116)))) -> 34.41497651 | R102: =IF(MAX(C105:C116)-MIN(C105:C116)<5,AVERAGEIF(C105:C116,">0",R105:R116), IF(FORECAST($C102,R$105:R$116,$C$105:$C$116)<0,0, IF(FORECAST($C102,R$105:R$116,$C$105:$C$116)>100,100, FORECAST($C102,R$105:R$116,$C$105:$C$116)))) -> 6.195478717 | S102: =IF(MAX(C105:C116)-MIN(C105:C116)<5,AVERAGEIF(C105:C116,">0",S105:S116), IF(FORECAST($C102,S$105:S$116,$C$105:$C$116)<0,0, IF(FORECAST($C102,S$105:S$116,$C$105:$C$116)>100,100, FORECAST($C102,S$105:S$116,$C$105:$C$116)))) -> 70.8342862 | W102: =IF(MAX(C105:C116)-MIN(C105:C116)<5,AVERAGEIF(C105:C116,">0",W105:W116), IF(FORECAST($C102,W$105:W$116,$C$105:$C$116)<0,0, IF(FORECAST($C102,W$105:W$116,$C$105:$C$116)>100,100, FORECAST($C102,W$105:W$116,$C$105:$C$116)))) -> 2.474899416 | X102: =IF(MAX(C105:C116)-MIN(C105:C116)<5,AVERAGEIF(C105:C116,">0",X105:X116), IF(FORECAST($C102,X$105:X$116,$C$105:$C$116)<0,0, IF(FORECAST($C102,X$105:X$116,$C$105:$C$116)>100,100, FORECAST($C102,X$105:X$116,$C$105:$C$116)))) -> 100 | AB102: =IF(MAX(C105:C116)-MIN(C105:C116)<5,AVERAGEIF(C105:C116,">0",AB105:AB116), IF(FORECAST($C102,AB$105:AB$116,$C$105:$C$116)<0,0, IF(FORECAST($C102,AB$105:AB$116,$C$105:$C$116)>100,100, FORECAST($C102,AB$105:AB$116,$C$105:$C$116)))) -> 0
B104: Survey | C104: Year | D104: Improved | E104: Not shared | H104: Open defecation | I104: Improved | J104: Not shared | M104: Open defecation | N104: Improved | O104: Not shared | R104: Open defecation | S104: Improved | T104: Not shared | W104: Open defecation | X104: Improved | Y104: Not shared | AB104: Open defecation
B105: AIS04 | C105: 2004 | D105: =IF(ISERROR(INDIRECT(CONCATENATE($B105,"!C122"))),"",INDIRECT(CONCATENATE($B105,"!C122"))) -> 4.94629069 | E105: =IF(ISERROR(INDIRECT(CONCATENATE($B105,"!C129"))),"",INDIRECT(CONCATENATE($B105,"!C129"))) -> N/A | H105: =IF(ISERROR(INDIRECT(CONCATENATE($B105,"!C127"))),"",INDIRECT(CONCATENATE($B105,"!C127"))) -> 25.93383823 | I105: =IF(ISERROR(INDIRECT(CONCATENATE($B105,"!D122"))),"",INDIRECT(CONCATENATE($B105,"!D122"))) -> 5.14349864 | J105: =IF(ISERROR(INDIRECT(CONCATENATE($B105,"!D129"))),"",INDIRECT(CONCATENATE($B105,"!D129"))) -> N/A | M105: =IF(ISERROR(INDIRECT(CONCATENATE($B105,"!D127"))),"",INDIRECT(CONCATENATE($B105,"!D127"))) -> 18.26666313 | N105: =IF(ISERROR(INDIRECT(CONCATENATE($B105,"!E122"))),"",INDIRECT(CONCATENATE($B105,"!E122"))) -> 10.01751095 | O105: =IF(ISERROR(INDIRECT(CONCATENATE($B105,"!E129"))),"",INDIRECT(CONCATENATE($B105,"!E129"))) -> N/A | R105: =IF(ISERROR(INDIRECT(CONCATENATE($B105,"!E127"))),"",INDIRECT(CONCATENATE($B105,"!E127"))) -> 8.511944806 | S105: =IF(ISERROR(INDIRECT(CONCATENATE($B105,"!F122"))),"",INDIRECT(CONCATENATE($B105,"!F122"))) -> 18.28689883 | T105: =IF(ISERROR(INDIRECT(CONCATENATE($B105,"!F129"))),"",INDIRECT(CONCATENATE($B105,"!F129"))) -> N/A | W105: =IF(ISERROR(INDIRECT(CONCATENATE($B105,"!F127"))),"",INDIRECT(CONCATENATE($B105,"!F127"))) -> 2.432110625 | X105: =IF(ISERROR(INDIRECT(CONCATENATE($B105,"!G122"))),"",INDIRECT(CONCATENATE($B105,"!G122"))) -> 53.47833567 | Y105: =IF(ISERROR(INDIRECT(CONCATENATE($B105,"!G129"))),"",INDIRECT(CONCATENATE($B105,"!G129"))) -> N/A | AB105: =IF(ISERROR(INDIRECT(CONCATENATE($B105,"!G2127"))),"",INDIRECT(CONCATENATE($B105,"!G127"))) -> 0.5036732168
B106: DHS05 | C106: 2005 | D106: 4.63951903 | E106: N/A | H106: 27.57201416 | I106: 4.807782536 | J106: N/A | M106: 23.04018619 | N106: 9.395725245 | O106: N/A | R106: 12.96266548 | S106: 15.04729537 | T106: N/A | W106: 7.048185192 | X106: 44.33630036 | Y106: N/A | AB106: 0.5747121594
B107: AIS08 | C107: 2008 | D107: 4.093054977 | E107: N/A | H107: 35.92129068 | I107: 4.83887835 | J107: N/A | M107: 23.22382846 | N107: 9.050685828 | O107: N/A | R107: 16.40407042 | S107: 16.76921742 | T107: N/A | W107: 7.280007677 | X107: 48.43095286 | Y107: N/A | AB107: 0.6601857259
B108: DHS10 | C108: 2010 | D108: 4.25823002 | E108: 86.94471475 | H108: 33.20488121 | I108: 4.771499411 | J108: 86.46350823 | M108: 24.18067508 | N108: 9.855127985 | O108: 80.73493565 | R108: 13.56221372 | S108: 20.39152411 | T108: 65.74415263 | W108: 7.199733981 | X108: 55.83813128 | Y108: 68.8886612 | AB108: 0.5619583348
B109: AIS12 | C109: 2012 | D109: 12.18845593 | E109: 76.31205092 | H109: 34.66250272 | I109: 15.95735997 | J109: 78.93995476 | M109: 17.39319287 | N109: 19.37095864 | O109: 85.70809536 | R109: 9.386411843 | S109: 44.63938865 | T109: 76.55253238 | W109: 4.860156704 | X109: 78.47852461 | Y109: 61.60682118 | AB109: 0.07999684575
B110: DHS16 | C110: 2016 | D110: 2.084521953 | E110: 81.56991892 | H110: 27.23704943 | I110: 3.752268369 | J110: 80.10974114 | M110: 13.45304058 | N110: 10.692877 | O110: 75.60912899 | R110: 7.886270544 | S110: 51.03770253 | T110: 65.1203034 | W110: 3.170326013 | X110: 92.92210521 | Y110: 61.33655097 | AB110: 0.02730713365
B111: MIS17 | C111: 2017 | D111: 38.77914185 | E111: 79.66842872 | H111: 21.14151543 | I111: 41.81107501 | J111: 79.32782477 | M111: 8.465033895 | N111: 51.54716033 | O111: 81.35204018 | R111: 4.169914375 | S111: 75.80656796 | T111: 67.37374727 | W111: 0.8562392474 | X111: 93.62942966 | Y111: 55.74105592 | AB111: 0.03748257208
B118: =CONCATENATE("National use of sanitation facilities, ",C99,"–",C100) -> National use of sanitation facilities, 2000–2020 | S118: Data points used for regression
A197: URBAN | D197: Poorest | I197: Poor | N197: Middle | S197: Rich | X197: Richest
D198: Improved | E198: Basic | F198: Limited | G198: Unimproved | H198: Open defecation | I198: Improved | J198: Basic | K198: Limited | L198: Unimproved | M198: Open defecation | N198: Improved | O198: Basic | P198: Limited | Q198: Unimproved | R198: Open defecation | S198: Improved | T198: Basic | U198: Limited | V198: Unimproved | W198: Open defecation | X198: Improved | Y198: Basic | Z198: Limited | AA198: Unimproved | AB198: Open defecation
A199: Forecast period: | C199: 2000 | D199: =IF((D201+H201)>100,D201*100/(D201+H201),D201) -> 0 | E199: =D199*AVERAGEIF(E205:E216,">0")/100 -> 0 | F199: =D199*(100-AVERAGEIF(E205:E216,">0"))/100 -> 0 | G199: =100-(E199+F199+H199) -> 92.80245622 | H199: =IF((D201+H201)>100,H201*100/(D201+H201),H201) -> 7.19754378 | I199: =IF((I201+M201)>100,I201*100/(I201+M201),I201) -> 13.25662177 | J199: =I199*AVERAGEIF(J205:J216,">0")/100 -> 6.935181625 | K199: =I199*(100-AVERAGEIF(J205:J216,">0"))/100 -> 6.321440149 | L199: =100-(J199+K199+M199) -> 83.66613351 | M199: =IF((I201+M201)>100,M201*100/(I201+M201),M201) -> 3.077244715 | N199: =IF((N201+R201)>100,N201*100/(N201+R201),N201) -> 20.90145609 | O199: =N199*AVERAGEIF(O205:O216,">0")/100 -> 10.02903552 | P199: =N199*(100-AVERAGEIF(O205:O216,">0"))/100 -> 10.87242057 | Q199: =100-(O199+P199+R199) -> 78.03047276 | R199: =IF((N201+R201)>100,R201*100/(N201+R201),R201) -> 1.068071148 | S199: =IF((S201+W201)>100,S201*100/(S201+W201),S201) -> 35.77061008 | T199: =S199*AVERAGEIF(T205:T216,">0")/100 -> 17.45968704 | U199: =S199*(100-AVERAGEIF(T205:T216,">0"))/100 -> 18.31092304 | V199: =100-(T199+U199+W199) -> 64.1571892 | W199: =IF((S201+W201)>100,W201*100/(S201+W201),W201) -> 0.07220072233 | X199: =IF((X201+AB201)>100,X201*100/(X201+AB201),X201) -> 67.07342355 | Y199: =X199*AVERAGEIF(Y205:Y216,">0")/100 -> 49.28308028 | Z199: =X199*(100-AVERAGEIF(Y205:Y216,">0"))/100 -> 17.79034327 | AA199: =100-(Y199+Z199+AB199) -> 32.92657645 | AB199: =IF((X201+AB201)>100,AB201*100/(X201+AB201),AB201) -> 0
C200: 2020 | D200: =IF((D202+H202)>100,D202*100/(D202+H202),D202) -> 56.09416803 | E200: =D200*AVERAGEIF(E205:E216,">0")/100 -> 35.48191667 | F200: =D200*(100-AVERAGEIF(E205:E216,">0"))/100 -> 20.61225136 | G200: =100-(E200+F200+H200) -> 38.38911838 | H200: =IF((D202+H202)>100,H202*100/(D202+H202),H202) -> 5.516713588 | I200: =IF((I202+M202)>100,I202*100/(I202+M202),I202) -> 85.77719909 | J200: =I200*AVERAGEIF(J205:J216,">0")/100 -> 44.87421193 | K200: =I200*(100-AVERAGEIF(J205:J216,">0"))/100 -> 40.90298716 | L200: =100-(J200+K200+M200) -> 12.96696596 | M200: =IF((I202+M202)>100,M202*100/(I202+M202),M202) -> 1.255834953 | N200: =IF((N202+R202)>100,N202*100/(N202+R202),N202) -> 100 | O200: =N200*AVERAGEIF(O205:O216,">0")/100 -> 47.98247297 | P200: =N200*(100-AVERAGEIF(O205:O216,">0"))/100 -> 52.01752703 | Q200: =100-(O200+P200+R200) -> 0 | R200: =IF((N202+R202)>100,R202*100/(N202+R202),R202) -> 0 | S200: =IF((S202+W202)>100,S202*100/(S202+W202),S202) -> 99.92575405 | T200: =S200*AVERAGEIF(T205:T216,">0")/100 -> 48.77390655 | U200: =S200*(100-AVERAGEIF(T205:T216,">0"))/100 -> 51.1518475 | V200: =100-(T200+U200+W200) -> 0 | W200: =IF((S202+W202)>100,W202*100/(S202+W202),W202) -> 0.07424594872 | X200: =IF((X202+AB202)>100,X202*100/(X202+AB202),X202) -> 99.87373209 | Y200: =X200*AVERAGEIF(Y205:Y216,">0")/100 -> 73.38353845 | Z200: =X200*(100-AVERAGEIF(Y205:Y216,">0"))/100 -> 26.49019364 | AA200: =100-(Y200+Z200+AB200) -> 0.126267911 | AB200: =IF((X202+AB202)>100,AB202*100/(X202+AB202),AB202) -> 0
A201: Regression period: | C201: =MinRegYear(C199,C205:C216) -> 2002 | D201: =IF(MAX(C205:C216)-MIN(C205:C216)<5,AVERAGEIF(C205:C216,">0",D205:D216), IF(FORECAST($C201,D$205:D$216,$C$205:$C$216)<0,0, IF(FORECAST($C201,D$205:D$216,$C$205:$C$216)>100,100, FORECAST($C201,D$205:D$216,$C$205:$C$216)))) -> 0 | H201: =IF(MAX(C205:C216)-MIN(C205:C216)<5,AVERAGEIF(C205:C216,">0",H205:H216), IF(FORECAST($C201,H$205:H$216,$C$205:$C$216)<0,0, IF(FORECAST($C201,H$205:H$216,$C$205:$C$216)>100,100, FORECAST($C201,H$205:H$216,$C$205:$C$216)))) -> 7.19754378 | I201: =IF(MAX(C205:C216)-MIN(C205:C216)<5,AVERAGEIF(C205:C216,">0",I205:I216), IF(FORECAST($C201,I$205:I$216,$C$205:$C$216)<0,0, IF(FORECAST($C201,I$205:I$216,$C$205:$C$216)>100,100, FORECAST($C201,I$205:I$216,$C$205:$C$216)))) -> 13.25662177 | M201: =IF(MAX(C205:C216)-MIN(C205:C216)<5,AVERAGEIF(C205:C216,">0",M205:M216), IF(FORECAST($C201,M$205:M$216,$C$205:$C$216)<0,0, IF(FORECAST($C201,M$205:M$216,$C$205:$C$216)>100,100, FORECAST($C201,M$205:M$216,$C$205:$C$216)))) -> 3.077244715 | N201: =IF(MAX(C205:C216)-MIN(C205:C216)<5,AVERAGEIF(C205:C216,">0",N205:N216), IF(FORECAST($C201,N$205:N$216,$C$205:$C$216)<0,0, IF(FORECAST($C201,N$205:N$216,$C$205:$C$216)>100,100, FORECAST($C201,N$205:N$216,$C$205:$C$216)))) -> 20.90145609 | R201: =IF(MAX(C205:C216)-MIN(C205:C216)<5,AVERAGEIF(C205:C216,">0",R205:R216), IF(FORECAST($C201,R$205:R$216,$C$205:$C$216)<0,0, IF(FORECAST($C201,R$205:R$216,$C$205:$C$216)>100,100, FORECAST($C201,R$205:R$216,$C$205:$C$216)))) -> 1.068071148 | S201: =IF(MAX(C205:C216)-MIN(C205:C216)<5,AVERAGEIF(C205:C216,">0",S205:S216), IF(FORECAST($C201,S$205:S$216,$C$205:$C$216)<0,0, IF(FORECAST($C201,S$205:S$216,$C$205:$C$216)>100,100, FORECAST($C201,S$205:S$216,$C$205:$C$216)))) -> 35.77061008 | W201: =IF(MAX(C205:C216)-MIN(C205:C216)<5,AVERAGEIF(C205:C216,">0",W205:W216), IF(FORECAST($C201,W$205:W$216,$C$205:$C$216)<0,0, IF(FORECAST($C201,W$205:W$216,$C$205:$C$216)>100,100, FORECAST($C201,W$205:W$216,$C$205:$C$216)))) -> 0.07220072233 | X201: =IF(MAX(C205:C216)-MIN(C205:C216)<5,AVERAGEIF(C205:C216,">0",X205:X216), IF(FORECAST($C201,X$205:X$216,$C$205:$C$216)<0,0, IF(FORECAST($C201,X$205:X$216,$C$205:$C$216)>100,100, FORECAST($C201,X$205:X$216,$C$205:$C$216)))) -> 67.07342355 | AB201: =IF(MAX(C205:C216)-MIN(C205:C216)<5,AVERAGEIF(C205:C216,">0",AB205:AB216), IF(FORECAST($C201,AB$205:AB$216,$C$205:$C$216)<0,0, IF(FORECAST($C201,AB$205:AB$216,$C$205:$C$216)>100,100, FORECAST($C201,AB$205:AB$216,$C$205:$C$216)))) -> 0
C202: =MaxRegYear(C200,C205:C216) -> 2019 | D202: =IF(MAX(C205:C216)-MIN(C205:C216)<5,AVERAGEIF(C205:C216,">0",D205:D216), IF(FORECAST($C202,D$205:D$216,$C$205:$C$216)<0,0, IF(FORECAST($C202,D$205:D$216,$C$205:$C$216)>100,100, FORECAST($C202,D$205:D$216,$C$205:$C$216)))) -> 56.09416803 | H202: =IF(MAX(C205:C216)-MIN(C205:C216)<5,AVERAGEIF(C205:C216,">0",H205:H216), IF(FORECAST($C202,H$205:H$216,$C$205:$C$216)<0,0, IF(FORECAST($C202,H$205:H$216,$C$205:$C$216)>100,100, FORECAST($C202,H$205:H$216,$C$205:$C$216)))) -> 5.516713588 | I202: =IF(MAX(C205:C216)-MIN(C205:C216)<5,AVERAGEIF(C205:C216,">0",I205:I216), IF(FORECAST($C202,I$205:I$216,$C$205:$C$216)<0,0, IF(FORECAST($C202,I$205:I$216,$C$205:$C$216)>100,100, FORECAST($C202,I$205:I$216,$C$205:$C$216)))) -> 85.77719909 | M202: =IF(MAX(C205:C216)-MIN(C205:C216)<5,AVERAGEIF(C205:C216,">0",M205:M216), IF(FORECAST($C202,M$205:M$216,$C$205:$C$216)<0,0, IF(FORECAST($C202,M$205:M$216,$C$205:$C$216)>100,100, FORECAST($C202,M$205:M$216,$C$205:$C$216)))) -> 1.255834953 | N202: =IF(MAX(C205:C216)-MIN(C205:C216)<5,AVERAGEIF(C205:C216,">0",N205:N216), IF(FORECAST($C202,N$205:N$216,$C$205:$C$216)<0,0, IF(FORECAST($C202,N$205:N$216,$C$205:$C$216)>100,100, FORECAST($C202,N$205:N$216,$C$205:$C$216)))) -> 100 | R202: =IF(MAX(C205:C216)-MIN(C205:C216)<5,AVERAGEIF(C205:C216,">0",R205:R216), IF(FORECAST($C202,R$205:R$216,$C$205:$C$216)<0,0, IF(FORECAST($C202,R$205:R$216,$C$205:$C$216)>100,100, FORECAST($C202,R$205:R$216,$C$205:$C$216)))) -> 0 | S202: =IF(MAX(C205:C216)-MIN(C205:C216)<5,AVERAGEIF(C205:C216,">0",S205:S216), IF(FORECAST($C202,S$205:S$216,$C$205:$C$216)<0,0, IF(FORECAST($C202,S$205:S$216,$C$205:$C$216)>100,100, FORECAST($C202,S$205:S$216,$C$205:$C$216)))) -> 100 | W202: =IF(MAX(C205:C216)-MIN(C205:C216)<5,AVERAGEIF(C205:C216,">0",W205:W216), IF(FORECAST($C202,W$205:W$216,$C$205:$C$216)<0,0, IF(FORECAST($C202,W$205:W$216,$C$205:$C$216)>100,100, FORECAST($C202,W$205:W$216,$C$205:$C$216)))) -> 0.07430111428 | X202: =IF(MAX(C205:C216)-MIN(C205:C216)<5,AVERAGEIF(C205:C216,">0",X205:X216), IF(FORECAST($C202,X$205:X$216,$C$205:$C$216)<0,0, IF(FORECAST($C202,X$205:X$216,$C$205:$C$216)>100,100, FORECAST($C202,X$205:X$216,$C$205:$C$216)))) -> 99.87373209 | AB202: =IF(MAX(C205:C216)-MIN(C205:C216)<5,AVERAGEIF(C205:C216,">0",AB205:AB216), IF(FORECAST($C202,AB$205:AB$216,$C$205:$C$216)<0,0, IF(FORECAST($C202,AB$205:AB$216,$C$205:$C$216)>100,100, FORECAST($C202,AB$205:AB$216,$C$205:$C$216)))) -> 0
B204: Survey | C204: Year | D204: Improved | E204: Not shared | H204: Open defecation | I204: Improved | J204: Not shared | M204: Open defecation | N204: Improved | O204: Not shared | R204: Open defecation | S204: Improved | T204: Not shared | W204: Open defecation | X204: Improved | Y204: Not shared | AB204: Open defecation
B205: AIS04 | C205: 2004 | D205: =IF(ISERROR(INDIRECT(CONCATENATE($B205,"!H122"))),"",INDIRECT(CONCATENATE($B205,"!H122"))) -> 12.45343739 | E205: =IF(ISERROR(INDIRECT(CONCATENATE($B205,"!H129"))),"",INDIRECT(CONCATENATE($B205,"!H129"))) -> N/A | H205: =IF(ISERROR(INDIRECT(CONCATENATE($B205,"!H127"))),"",INDIRECT(CONCATENATE($B205,"!H127"))) -> 3.722204968 | I205: =IF(ISERROR(INDIRECT(CONCATENATE($B205,"!I122"))),"",INDIRECT(CONCATENATE($B205,"!I122"))) -> 30.7044542 | J205: =IF(ISERROR(INDIRECT(CONCATENATE($B205,"!I129"))),"",INDIRECT(CONCATENATE($B205,"!I129"))) -> N/A | M205: =IF(ISERROR(INDIRECT(CONCATENATE($B205,"!I127"))),"",INDIRECT(CONCATENATE($B205,"!I127"))) -> 0.9558061269 | N205: =IF(ISERROR(INDIRECT(CONCATENATE($B205,"!J122"))),"",INDIRECT(CONCATENATE($B205,"!J122"))) -> 42.62578013 | O205: =IF(ISERROR(INDIRECT(CONCATENATE($B205,"!J129"))),"",INDIRECT(CONCATENATE($B205,"!J129"))) -> N/A | R205: =IF(ISERROR(INDIRECT(CONCATENATE($B205,"!J127"))),"",INDIRECT(CONCATENATE($B205,"!J127"))) -> 1.009082979 | S205: =IF(ISERROR(INDIRECT(CONCATENATE($B205,"!K122"))),"",INDIRECT(CONCATENATE($B205,"!K122"))) -> 53.5742143 | T205: =IF(ISERROR(INDIRECT(CONCATENATE($B205,"!K129"))),"",INDIRECT(CONCATENATE($B205,"!K129"))) -> N/A | W205: =IF(ISERROR(INDIRECT(CONCATENATE($B205,"!K127"))),"",INDIRECT(CONCATENATE($B205,"!K127"))) -> 0 | X205: =IF(ISERROR(INDIRECT(CONCATENATE($B205,"!L122"))),"",INDIRECT(CONCATENATE($B205,"!L122"))) -> 75.18210975 | Y205: =IF(ISERROR(INDIRECT(CONCATENATE($B205,"!L129"))),"",INDIRECT(CONCATENATE($B205,"!L129"))) -> N/A | AB205: =IF(ISERROR(INDIRECT(CONCATENATE($B205,"!L2127"))),"",INDIRECT(CONCATENATE($B205,"!L127"))) -> 0
B206: DHS05 | C206: 2005 | D206: 10.42094024 | E206: N/A | H206: 7.524360663 | I206: 26.73332946 | J206: N/A | M206: 3.831941828 | N206: 31.62026404 | O206: N/A | R206: 0.7930427853 | S206: 46.39517083 | T206: N/A | W206: 0.1420772563 | X206: 68.78579846 | Y206: N/A | AB206: 0
B207: AIS08 | C207: 2008 | D207: 11.27583396 | E207: N/A | H207: 11.25216506 | I207: 27.11443577 | J207: N/A | M207: 4.18125921 | N207: 39.76704198 | O207: N/A | R207: 0.5271762686 | S207: 49.31401194 | T207: N/A | W207: 0 | X207: 76.75703979 | Y207: N/A | AB207: 0
B208: DHS10 | C208: 2010 | D208: 15.75168558 | E208: 46.57278772 | H208: 7.307133062 | I208: 37.06325056 | J208: 42.23198965 | M208: 1.360906408 | N208: 44.51364886 | O208: 49.37175439 | R208: 0.8504873642 | S208: 61.23640077 | T208: 51.49747312 | W208: 0.2453807509 | X208: 84.5291443 | Y208: 83.80030206 | AB208: 0
B209: AIS12 | C209: 2012 | D209: 42.43837148 | E209: 71.130542 | H209: 2.788299755 | I209: 67.73302654 | J209: 56.21965659 | M209: 2.362602965 | N209: 80.12938902 | O209: 54.52695322 | R209: 0.3317272699 | S209: 82.576814 | T209: 40.86252503 | W209: 0 | X209: 85.19140875 | Y209: 69.16556032 | AB209: 0
B210: DHS16 | C210: 2016 | D210: 26.03317704 | E210: 57.08278465 | H210: 9.90877143 | I210: 67.72180664 | J210: 55.96611498 | M210: 1.96557426 | N210: 89.22355178 | O210: 43.72072544 | R210: 0.3014875784 | S210: 95.69735593 | T210: 50.23045681 | W210: 0 | X210: 96.52494624 | Y210: 80.78487743 | AB210: 0
B211: MIS17 | C211: 2017 | D211: 68.47730078 | E211: 78.23068158 | H211: 2.145274398 | I211: 83.1491954 | J211: 54.84163361 | M211: 0.6684006633 | N211: 91.36949502 | O211: 44.31045884 | R211: 0 | S211: 95.82457843 | T211: 52.65012945 | W211: 0.1251130922 | X211: 94.45045256 | Y211: 60.15452203 | AB211: 0
B218: =CONCATENATE("Urban use of sanitation facilities, ",C199,"–",C200) -> Urban use of sanitation facilities, 2000–2020 | S218: Data points used for regression
A297: RURAL | D297: Poorest | I297: Poor | N297: Middle | S297: Rich | X297: Richest
D298: Improved | E298: Basic | F298: Limited | G298: Unimproved | H298: Open defecation | I298: Improved | J298: Basic | K298: Limited | L298: Unimproved | M298: Open defecation | N298: Improved | O298: Basic | P298: Limited | Q298: Unimproved | R298: Open defecation | S298: Improved | T298: Basic | U298: Limited | V298: Unimproved | W298: Open defecation | X298: Improved | Y298: Basic | Z298: Limited | AA298: Unimproved | AB298: Open defecation
A299: Forecast period: | C299: 2000 | D299: =IF((D301+H301)>100,D301*100/(D301+H301),D301) -> 0 | E299: =D299*AVERAGEIF(E305:E316,">0")/100 -> 0 | F299: =D299*(100-AVERAGEIF(E305:E316,">0"))/100 -> 0 | G299: =100-(E299+F299+H299) -> 68.10759193 | H299: =IF((D301+H301)>100,H301*100/(D301+H301),H301) -> 31.89240807 | I299: =IF((I301+M301)>100,I301*100/(I301+M301),I301) -> 0 | J299: =I299*AVERAGEIF(J305:J316,">0")/100 -> 0 | K299: =I299*(100-AVERAGEIF(J305:J316,">0"))/100 -> 0 | L299: =100-(J299+K299+M299) -> 71.32414926 | M299: =IF((I301+M301)>100,M301*100/(I301+M301),M301) -> 28.67585074 | N299: =IF((N301+R301)>100,N301*100/(N301+R301),N301) -> 0 | O299: =N299*AVERAGEIF(O305:O316,">0")/100 -> 0 | P299: =N299*(100-AVERAGEIF(O305:O316,">0"))/100 -> 0 | Q299: =100-(O299+P299+R299) -> 80.0434594 | R299: =IF((N301+R301)>100,R301*100/(N301+R301),R301) -> 19.9565406 | S299: =IF((S301+W301)>100,S301*100/(S301+W301),S301) -> 1.967522462 | T299: =S299*AVERAGEIF(T305:T316,">0")/100 -> 1.619266823 | U299: =S299*(100-AVERAGEIF(T305:T316,">0"))/100 -> 0.3482556393 | V299: =100-(T299+U299+W299) -> 84.68497918 | W299: =IF((S301+W301)>100,W301*100/(S301+W301),W301) -> 13.34749836 | X299: =IF((X301+AB301)>100,X301*100/(X301+AB301),X301) -> 8.467607605 | Y299: =X299*AVERAGEIF(Y305:Y316,">0")/100 -> 6.909874004 | Z299: =X299*(100-AVERAGEIF(Y305:Y316,">0"))/100 -> 1.557733601 | AA299: =100-(Y299+Z299+AB299) -> 86.56700237 | AB299: =IF((X301+AB301)>100,AB301*100/(X301+AB301),AB301) -> 4.965390023
C300: 2020 | D300: =IF((D302+H302)>100,D302*100/(D302+H302),D302) -> 21.17215746 | E300: =D300*AVERAGEIF(E305:E316,">0")/100 -> 16.99132828 | F300: =D300*(100-AVERAGEIF(E305:E316,">0"))/100 -> 4.180829186 | G300: =100-(E300+F300+H300) -> 47.68075344 | H300: =IF((D302+H302)>100,H302*100/(D302+H302),H302) -> 31.1470891 | I300: =IF((I302+M302)>100,I302*100/(I302+M302),I302) -> 24.55244586 | J300: =I300*AVERAGEIF(J305:J316,">0")/100 -> 20.12268716 | K300: =I300*(100-AVERAGEIF(J305:J316,">0"))/100 -> 4.429758695 | L300: =100-(J300+K300+M300) -> 60.7275119 | M300: =IF((I302+M302)>100,M302*100/(I302+M302),M302) -> 14.72004225 | N300: =IF((N302+R302)>100,N302*100/(N302+R302),N302) -> 27.53830144 | O300: =N300*AVERAGEIF(O305:O316,">0")/100 -> 22.19373847 | P300: =N300*(100-AVERAGEIF(O305:O316,">0"))/100 -> 5.344562973 | Q300: =100-(O300+P300+R300) -> 63.71708888 | R300: =IF((N302+R302)>100,R302*100/(N302+R302),R302) -> 8.744609672 | S300: =IF((S302+W302)>100,S302*100/(S302+W302),S302) -> 34.30831803 | T300: =S300*AVERAGEIF(T305:T316,">0")/100 -> 28.23567314 | U300: =S300*(100-AVERAGEIF(T305:T316,">0"))/100 -> 6.072644892 | V300: =100-(T300+U300+W300) -> 60.66531139 | W300: =IF((S302+W302)>100,W302*100/(S302+W302),W302) -> 5.026370578 | X300: =IF((X302+AB302)>100,X302*100/(X302+AB302),X302) -> 71.12002686 | Y300: =X300*AVERAGEIF(Y305:Y316,">0")/100 -> 58.0365137 | Z300: =X300*(100-AVERAGEIF(Y305:Y316,">0"))/100 -> 13.08351316 | AA300: =100-(Y300+Z300+AB300) -> 27.03580507 | AB300: =IF((X302+AB302)>100,AB302*100/(X302+AB302),AB302) -> 1.844168074
A301: Regression period: | C301: =MinRegYear(C299,C305:C316) -> 2002 | D301: =IF(MAX(C305:C316)-MIN(C305:C316)<5,AVERAGEIF(C305:C316,">0",D305:D316), IF(FORECAST($C301,D$305:D$316,$C$305:$C$316)<0,0, IF(FORECAST($C301,D$305:D$316,$C$305:$C$316)>100,100, FORECAST($C301,D$305:D$316,$C$305:$C$316)))) -> 0 | H301: =IF(MAX(C305:C316)-MIN(C305:C316)<5,AVERAGEIF(C305:C316,">0",H305:H316), IF(FORECAST($C301,H$305:H$316,$C$305:$C$316)<0,0, IF(FORECAST($C301,H$305:H$316,$C$305:$C$316)>100,100, FORECAST($C301,H$305:H$316,$C$305:$C$316)))) -> 31.89240807 | I301: =IF(MAX(C305:C316)-MIN(C305:C316)<5,AVERAGEIF(C305:C316,">0",I305:I316), IF(FORECAST($C301,I$305:I$316,$C$305:$C$316)<0,0, IF(FORECAST($C301,I$305:I$316,$C$305:$C$316)>100,100, FORECAST($C301,I$305:I$316,$C$305:$C$316)))) -> 0 | M301: =IF(MAX(C305:C316)-MIN(C305:C316)<5,AVERAGEIF(C305:C316,">0",M305:M316), IF(FORECAST($C301,M$305:M$316,$C$305:$C$316)<0,0, IF(FORECAST($C301,M$305:M$316,$C$305:$C$316)>100,100, FORECAST($C301,M$305:M$316,$C$305:$C$316)))) -> 28.67585074 | N301: =IF(MAX(C305:C316)-MIN(C305:C316)<5,AVERAGEIF(C305:C316,">0",N305:N316), IF(FORECAST($C301,N$305:N$316,$C$305:$C$316)<0,0, IF(FORECAST($C301,N$305:N$316,$C$305:$C$316)>100,100, FORECAST($C301,N$305:N$316,$C$305:$C$316)))) -> 0 | R301: =IF(MAX(C305:C316)-MIN(C305:C316)<5,AVERAGEIF(C305:C316,">0",R305:R316), IF(FORECAST($C301,R$305:R$316,$C$305:$C$316)<0,0, IF(FORECAST($C301,R$305:R$316,$C$305:$C$316)>100,100, FORECAST($C301,R$305:R$316,$C$305:$C$316)))) -> 19.9565406 | S301: =IF(MAX(C305:C316)-MIN(C305:C316)<5,AVERAGEIF(C305:C316,">0",S305:S316), IF(FORECAST($C301,S$305:S$316,$C$305:$C$316)<0,0, IF(FORECAST($C301,S$305:S$316,$C$305:$C$316)>100,100, FORECAST($C301,S$305:S$316,$C$305:$C$316)))) -> 1.967522462 | W301: =IF(MAX(C305:C316)-MIN(C305:C316)<5,AVERAGEIF(C305:C316,">0",W305:W316), IF(FORECAST($C301,W$305:W$316,$C$305:$C$316)<0,0, IF(FORECAST($C301,W$305:W$316,$C$305:$C$316)>100,100, FORECAST($C301,W$305:W$316,$C$305:$C$316)))) -> 13.34749836 | X301: =IF(MAX(C305:C316)-MIN(C305:C316)<5,AVERAGEIF(C305:C316,">0",X305:X316), IF(FORECAST($C301,X$305:X$316,$C$305:$C$316)<0,0, IF(FORECAST($C301,X$305:X$316,$C$305:$C$316)>100,100, FORECAST($C301,X$305:X$316,$C$305:$C$316)))) -> 8.467607605 | AB301: =IF(MAX(C305:C316)-MIN(C305:C316)<5,AVERAGEIF(C305:C316,">0",AB305:AB316), IF(FORECAST($C301,AB$305:AB$316,$C$305:$C$316)<0,0, IF(FORECAST($C301,AB$305:AB$316,$C$305:$C$316)>100,100, FORECAST($C301,AB$305:AB$316,$C$305:$C$316)))) -> 4.965390023
C302: =MaxRegYear(C300,C305:C316) -> 2019 | D302: =IF(MAX(C305:C316)-MIN(C305:C316)<5,AVERAGEIF(C305:C316,">0",D305:D316), IF(FORECAST($C302,D$305:D$316,$C$305:$C$316)<0,0, IF(FORECAST($C302,D$305:D$316,$C$305:$C$316)>100,100, FORECAST($C302,D$305:D$316,$C$305:$C$316)))) -> 21.17215746 | H302: =IF(MAX(C305:C316)-MIN(C305:C316)<5,AVERAGEIF(C305:C316,">0",H305:H316), IF(FORECAST($C302,H$305:H$316,$C$305:$C$316)<0,0, IF(FORECAST($C302,H$305:H$316,$C$305:$C$316)>100,100, FORECAST($C302,H$305:H$316,$C$305:$C$316)))) -> 31.1470891 | I302: =IF(MAX(C305:C316)-MIN(C305:C316)<5,AVERAGEIF(C305:C316,">0",I305:I316), IF(FORECAST($C302,I$305:I$316,$C$305:$C$316)<0,0, IF(FORECAST($C302,I$305:I$316,$C$305:$C$316)>100,100, FORECAST($C302,I$305:I$316,$C$305:$C$316)))) -> 24.55244586 | M302: =IF(MAX(C305:C316)-MIN(C305:C316)<5,AVERAGEIF(C305:C316,">0",M305:M316), IF(FORECAST($C302,M$305:M$316,$C$305:$C$316)<0,0, IF(FORECAST($C302,M$305:M$316,$C$305:$C$316)>100,100, FORECAST($C302,M$305:M$316,$C$305:$C$316)))) -> 14.72004225 | N302: =IF(MAX(C305:C316)-MIN(C305:C316)<5,AVERAGEIF(C305:C316,">0",N305:N316), IF(FORECAST($C302,N$305:N$316,$C$305:$C$316)<0,0, IF(FORECAST($C302,N$305:N$316,$C$305:$C$316)>100,100, FORECAST($C302,N$305:N$316,$C$305:$C$316)))) -> 27.53830144 | R302: =IF(MAX(C305:C316)-MIN(C305:C316)<5,AVERAGEIF(C305:C316,">0",R305:R316), IF(FORECAST($C302,R$305:R$316,$C$305:$C$316)<0,0, IF(FORECAST($C302,R$305:R$316,$C$305:$C$316)>100,100, FORECAST($C302,R$305:R$316,$C$305:$C$316)))) -> 8.744609672 | S302: =IF(MAX(C305:C316)-MIN(C305:C316)<5,AVERAGEIF(C305:C316,">0",S305:S316), IF(FORECAST($C302,S$305:S$316,$C$305:$C$316)<0,0, IF(FORECAST($C302,S$305:S$316,$C$305:$C$316)>100,100, FORECAST($C302,S$305:S$316,$C$305:$C$316)))) -> 34.30831803 | W302: =IF(MAX(C305:C316)-MIN(C305:C316)<5,AVERAGEIF(C305:C316,">0",W305:W316), IF(FORECAST($C302,W$305:W$316,$C$305:$C$316)<0,0, IF(FORECAST($C302,W$305:W$316,$C$305:$C$316)>100,100, FORECAST($C302,W$305:W$316,$C$305:$C$316)))) -> 5.026370578 | X302: =IF(MAX(C305:C316)-MIN(C305:C316)<5,AVERAGEIF(C305:C316,">0",X305:X316), IF(FORECAST($C302,X$305:X$316,$C$305:$C$316)<0,0, IF(FORECAST($C302,X$305:X$316,$C$305:$C$316)>100,100, FORECAST($C302,X$305:X$316,$C$305:$C$316)))) -> 71.12002686 | AB302: =IF(MAX(C305:C316)-MIN(C305:C316)<5,AVERAGEIF(C305:C316,">0",AB305:AB316), IF(FORECAST($C302,AB$305:AB$316,$C$305:$C$316)<0,0, IF(FORECAST($C302,AB$305:AB$316,$C$305:$C$316)>100,100, FORECAST($C302,AB$305:AB$316,$C$305:$C$316)))) -> 1.844168074
B304: Survey | C304: Year | D304: Improved | E304: Not shared | H304: Open defecation | I304: Improved | J304: Not shared | M304: Open defecation | N304: Improved | O304: Not shared | R304: Open defecation | S304: Improved | T304: Not shared | W304: Open defecation | X304: Improved | Y304: Not shared | AB304: Open defecation
B305: AIS04 | C305: 2004 | D305: =IF(ISERROR(INDIRECT(CONCATENATE($B305,"!M122"))),"",INDIRECT(CONCATENATE($B305,"!M122"))) -> 4.574778952 | E305: =IF(ISERROR(INDIRECT(CONCATENATE($B305,"!M129"))),"",INDIRECT(CONCATENATE($B305,"!M129"))) -> N/A | H305: =IF(ISERROR(INDIRECT(CONCATENATE($B305,"!M127"))),"",INDIRECT(CONCATENATE($B305,"!M127"))) -> 26.1249548 | I305: =IF(ISERROR(INDIRECT(CONCATENATE($B305,"!N122"))),"",INDIRECT(CONCATENATE($B305,"!N122"))) -> 4.935384256 | J305: =IF(ISERROR(INDIRECT(CONCATENATE($B305,"!N129"))),"",INDIRECT(CONCATENATE($B305,"!N129"))) -> N/A | M305: =IF(ISERROR(INDIRECT(CONCATENATE($B305,"!N127"))),"",INDIRECT(CONCATENATE($B305,"!N127"))) -> 21.90934636 | N305: =IF(ISERROR(INDIRECT(CONCATENATE($B305,"!O122"))),"",INDIRECT(CONCATENATE($B305,"!O122"))) -> 7.45880697 | O305: =IF(ISERROR(INDIRECT(CONCATENATE($B305,"!O129"))),"",INDIRECT(CONCATENATE($B305,"!O129"))) -> N/A | R305: =IF(ISERROR(INDIRECT(CONCATENATE($B305,"!O127"))),"",INDIRECT(CONCATENATE($B305,"!O127"))) -> 14.78328834 | S305: =IF(ISERROR(INDIRECT(CONCATENATE($B305,"!P122"))),"",INDIRECT(CONCATENATE($B305,"!P122"))) -> 10.41559439 | T305: =IF(ISERROR(INDIRECT(CONCATENATE($B305,"!P129"))),"",INDIRECT(CONCATENATE($B305,"!P129"))) -> N/A | W305: =IF(ISERROR(INDIRECT(CONCATENATE($B305,"!P127"))),"",INDIRECT(CONCATENATE($B305,"!P127"))) -> 8.183820104 | X305: =IF(ISERROR(INDIRECT(CONCATENATE($B305,"!Q122"))),"",INDIRECT(CONCATENATE($B305,"!Q122"))) -> 24.48354715 | Y305: =IF(ISERROR(INDIRECT(CONCATENATE($B305,"!Q129"))),"",INDIRECT(CONCATENATE($B305,"!Q129"))) -> N/A | AB305: =IF(ISERROR(INDIRECT(CONCATENATE($B305,"!Q2127"))),"",INDIRECT(CONCATENATE($B305,"!Q127"))) -> 1.745258966
B306: DHS05 | C306: 2005 | D306: 4.346478003 | E306: N/A | H306: 27.07883904 | I306: 4.530836918 | J306: N/A | M306: 26.10507765 | N306: 6.825398193 | O306: N/A | R306: 17.81895207 | S306: 10.20602469 | T306: N/A | W306: 13.2764615 | X306: 20.01125272 | Y306: N/A | AB306: 5.544128714
B307: AIS08 | C307: 2008 | D307: 3.541175345 | E307: N/A | H307: 38.29172063 | I307: 4.662093723 | J307: N/A | M307: 27.68240372 | N307: 7.190561154 | O307: N/A | R307: 18.11203454 | S307: 10.26869575 | T307: N/A | W307: 13.13218024 | X307: 23.52499339 | Y307: N/A | AB307: 5.192356036
B308: DHS10 | C308: 2010 | D308: 3.684064707 | E308: 85.96586063 | H308: 37.46376374 | I308: 4.655173566 | J308: 90.93359752 | M308: 25.44085864 | N308: 6.809962553 | O308: 84.49935068 | R308: 19.60062245 | S308: 10.86078282 | T308: 84.39267701 | W308: 11.77959248 | X308: 24.63212255 | Y308: 86.72935455 | AB308: 5.17423214
B309: AIS12 | C309: 2012 | D309: 11.02137486 | E309: 72.86186464 | H309: 37.34013483 | I309: 14.47631489 | J309: 78.27588217 | M309: 22.40676202 | N309: 17.06548024 | O309: 84.17041214 | R309: 13.00426224 | S309: 20.86261782 | T309: 87.10073912 | W309: 7.599528374 | X309: 54.8915725 | Y309: 83.43134852 | AB309: 3.030515628
B310: DHS16 | C310: 2016 | D310: 1.777830119 | E310: 86.12239059 | H310: 30.45341138 | I310: 2.121126991 | J310: 78.35047425 | M310: 16.68163708 | N310: 4.986758469 | O310: 80.08718953 | R310: 11.06527343 | S310: 10.80804016 | T310: 75.74650346 | W310: 7.463979354 | X310: 50.71174772 | Y310: 77.89949951 | AB310: 2.72210782
B311: MIS17 | C311: 2017 | D311: 35.94859035 | E311: 76.06257842 | H311: 23.9511791 | I311: 40.44779531 | J311: 80.27194157 | M311: 12.89093484 | N311: 43.53833789 | O311: 73.61207271 | R311: 7.058880902 | S311: 50.69008647 | T311: 81.95923396 | W311: 3.607196379 | X311: 74.77332995 | Y311: 78.35426187 | AB311: 0.7002559731
B318: =CONCATENATE("Rural use of sanitation facilities, ",C299,"–",C300) -> Rural use of sanitation facilities, 2000–2020 | S318: Data points used for regression

Sheet Hygiene
B4: Access to hygiene facilities by wealth quintile (%)
B5: =IF(ISERROR(INDIRECT(CONCATENATE($E$32,"!A2"))),"",INDIRECT(CONCATENATE($E$32,"!A2"))) -> United Republic of Tanzania
B7: =CONCATENATE("National ",IF(ISERROR(INDIRECT(CONCATENATE($E$32,"!A2"))),"",INDIRECT(CONCATENATE($E$32,"!A210")))) -> National Access to hygiene facilities | K7: =CONCATENATE("Urban ",IF(ISERROR(INDIRECT(CONCATENATE($E$32,"!A2"))),"",INDIRECT(CONCATENATE($E$32,"!A210")))) -> Urban Access to hygiene facilities | S7: =CONCATENATE("Rural ",IF(ISERROR(INDIRECT(CONCATENATE($E$32,"!A2"))),"",INDIRECT(CONCATENATE($E$32,"!A210")))) -> Rural Access to hygiene facilities
E32: =INDEX(B88:B100,A88) -> DHS16 | G32: =IF(ISERROR(INDIRECT(CONCATENATE($E$32,"!A2"))),"",INDIRECT(CONCATENATE($E$32,"!A2"))) -> United Republic of Tanzania | K32: Poorest | N32: Poor | Q32: Middle | T32: Rich | W32: Richest
K33: Basic | L33: Limited | M33: No facility | N33: Basic | O33: Limited | P33: No facility | Q33: Basic | R33: Limited | S33: No facility | T33: Basic | U33: Limited | V33: No facility | W33: Basic | X33: Limited | Y33: No facility
B34: >>> Select Survey : | G34: NATIONAL | J34: =IF(ISERROR(INDIRECT(CONCATENATE(#REF!,"!A2"))),"",INDIRECT(CONCATENATE(#REF!,"!A210"))) ->  | K34: =IF(ISERROR(INDIRECT(CONCATENATE($E$32,"!C222"))),"",INDIRECT(CONCATENATE($E$32,"!C222"))) -> 22.61444104 | L34: =IF(ISERROR(INDIRECT(CONCATENATE($E$32,"!C223"))),"",INDIRECT(CONCATENATE($E$32,"!C223"))) -> 54.88560741 | M34: =IF(ISERROR(INDIRECT(CONCATENATE($E$32,"!C224"))),"",INDIRECT(CONCATENATE($E$32,"!C224"))) -> 22.49995154 | N34: =IF(ISERROR(INDIRECT(CONCATENATE($E$32,"!D222"))),"",INDIRECT(CONCATENATE($E$32,"!D222"))) -> 36.06582815 | O34: =IF(ISERROR(INDIRECT(CONCATENATE($E$32,"!D223"))),"",INDIRECT(CONCATENATE($E$32,"!D223"))) -> 41.48012758 | P34: =IF(ISERROR(INDIRECT(CONCATENATE($E$32,"!D224"))),"",INDIRECT(CONCATENATE($E$32,"!D224"))) -> 22.45404426 | Q34: =IF(ISERROR(INDIRECT(CONCATENATE($E$32,"!E222"))),"",INDIRECT(CONCATENATE($E$32,"!E222"))) -> 51.49243493 | R34: =IF(ISERROR(INDIRECT(CONCATENATE($E$32,"!E223"))),"",INDIRECT(CONCATENATE($E$32,"!E223"))) -> 31.22698335 | S34: =IF(ISERROR(INDIRECT(CONCATENATE($E$32,"!E224"))),"",INDIRECT(CONCATENATE($E$32,"!E224"))) -> 17.28058172 | T34: =IF(ISERROR(INDIRECT(CONCATENATE($E$32,"!F222"))),"",INDIRECT(CONCATENATE($E$32,"!F222"))) -> 50.43210554 | U34: =IF(ISERROR(INDIRECT(CONCATENATE($E$32,"!F223"))),"",INDIRECT(CONCATENATE($E$32,"!F223"))) -> 35.66884374 | V34: =IF(ISERROR(INDIRECT(CONCATENATE($E$32,"!F224"))),"",INDIRECT(CONCATENATE($E$32,"!F224"))) -> 13.89905072 | W34: =IF(ISERROR(INDIRECT(CONCATENATE($E$32,"!G222"))),"",INDIRECT(CONCATENATE($E$32,"!G222"))) -> 76.78611388 | X34: =IF(ISERROR(INDIRECT(CONCATENATE($E$32,"!G223"))),"",INDIRECT(CONCATENATE($E$32,"!G223"))) -> 14.23975293 | Y34: =IF(ISERROR(INDIRECT(CONCATENATE($E$32,"!G224"))),"",INDIRECT(CONCATENATE($E$32,"!G224"))) -> 8.974133188
G37: URBAN | J37: =IF(ISERROR(INDIRECT(CONCATENATE(#REF!,"!A2"))),"",INDIRECT(CONCATENATE(#REF!,"!A210"))) ->  | K37: =IF(ISERROR(INDIRECT(CONCATENATE($E$32,"!H222"))),"",INDIRECT(CONCATENATE($E$32,"!H222"))) -> 35.69434561 | L37: =IF(ISERROR(INDIRECT(CONCATENATE($E$32,"!H223"))),"",INDIRECT(CONCATENATE($E$32,"!H223"))) -> 44.8720425 | M37: =IF(ISERROR(INDIRECT(CONCATENATE($E$32,"!H224"))),"",INDIRECT(CONCATENATE($E$32,"!H224"))) -> 19.43361188 | N37: =IF(ISERROR(INDIRECT(CONCATENATE($E$32,"!I222"))),"",INDIRECT(CONCATENATE($E$32,"!I222"))) -> 55.98420723 | O37: =IF(ISERROR(INDIRECT(CONCATENATE($E$32,"!I223"))),"",INDIRECT(CONCATENATE($E$32,"!I223"))) -> 29.34015823 | P37: =IF(ISERROR(INDIRECT(CONCATENATE($E$32,"!I224"))),"",INDIRECT(CONCATENATE($E$32,"!I224"))) -> 14.67563453 | Q37: =IF(ISERROR(INDIRECT(CONCATENATE($E$32,"!J222"))),"",INDIRECT(CONCATENATE($E$32,"!J222"))) -> 57.94862368 | R37: =IF(ISERROR(INDIRECT(CONCATENATE($E$32,"!J223"))),"",INDIRECT(CONCATENATE($E$32,"!J223"))) -> 30.23509318 | S37: =IF(ISERROR(INDIRECT(CONCATENATE($E$32,"!J224"))),"",INDIRECT(CONCATENATE($E$32,"!J224"))) -> 11.81628314 | T37: =IF(ISERROR(INDIRECT(CONCATENATE($E$32,"!K222"))),"",INDIRECT(CONCATENATE($E$32,"!K222"))) -> 77.67643557 | U37: =IF(ISERROR(INDIRECT(CONCATENATE($E$32,"!K223"))),"",INDIRECT(CONCATENATE($E$32,"!K223"))) -> 14.71958651 | V37: =IF(ISERROR(INDIRECT(CONCATENATE($E$32,"!K224"))),"",INDIRECT(CONCATENATE($E$32,"!K224"))) -> 7.603977922 | W37: =IF(ISERROR(INDIRECT(CONCATENATE($E$32,"!L222"))),"",INDIRECT(CONCATENATE($E$32,"!L222"))) -> 82.79765363 | X37: =IF(ISERROR(INDIRECT(CONCATENATE($E$32,"!L223"))),"",INDIRECT(CONCATENATE($E$32,"!L223"))) -> 11.17016872 | Y37: =IF(ISERROR(INDIRECT(CONCATENATE($E$32,"!L224"))),"",INDIRECT(CONCATENATE($E$32,"!L224"))) -> 6.032177646
G40: RURAL | J40: =IF(ISERROR(INDIRECT(CONCATENATE(#REF!,"!A2"))),"",INDIRECT(CONCATENATE(#REF!,"!A210"))) ->  | K40: =IF(ISERROR(INDIRECT(CONCATENATE($E$32,"!M222"))),"",INDIRECT(CONCATENATE($E$32,"!M222"))) -> 20.7890985 | L40: =IF(ISERROR(INDIRECT(CONCATENATE($E$32,"!M223"))),"",INDIRECT(CONCATENATE($E$32,"!M223"))) -> 57.36733521 | M40: =IF(ISERROR(INDIRECT(CONCATENATE($E$32,"!M224"))),"",INDIRECT(CONCATENATE($E$32,"!M224"))) -> 21.84356629 | N40: =IF(ISERROR(INDIRECT(CONCATENATE($E$32,"!N222"))),"",INDIRECT(CONCATENATE($E$32,"!N222"))) -> 32.64267227 | O40: =IF(ISERROR(INDIRECT(CONCATENATE($E$32,"!N223"))),"",INDIRECT(CONCATENATE($E$32,"!N223"))) -> 44.39317897 | P40: =IF(ISERROR(INDIRECT(CONCATENATE($E$32,"!N224"))),"",INDIRECT(CONCATENATE($E$32,"!N224"))) -> 22.96414877 | Q40: =IF(ISERROR(INDIRECT(CONCATENATE($E$32,"!O222"))),"",INDIRECT(CONCATENATE($E$32,"!O222"))) -> 37.03347285 | R40: =IF(ISERROR(INDIRECT(CONCATENATE($E$32,"!O223"))),"",INDIRECT(CONCATENATE($E$32,"!O223"))) -> 41.64492946 | S40: =IF(ISERROR(INDIRECT(CONCATENATE($E$32,"!O224"))),"",INDIRECT(CONCATENATE($E$32,"!O224"))) -> 21.3215977 | T40: =IF(ISERROR(INDIRECT(CONCATENATE($E$32,"!P222"))),"",INDIRECT(CONCATENATE($E$32,"!P222"))) -> 59.14577933 | U40: =IF(ISERROR(INDIRECT(CONCATENATE($E$32,"!P223"))),"",INDIRECT(CONCATENATE($E$32,"!P223"))) -> 24.70513863 | V40: =IF(ISERROR(INDIRECT(CONCATENATE($E$32,"!P224"))),"",INDIRECT(CONCATENATE($E$32,"!P224"))) -> 16.14908204 | W40: =IF(ISERROR(INDIRECT(CONCATENATE($E$32,"!Q222"))),"",INDIRECT(CONCATENATE($E$32,"!Q222"))) -> 62.53319588 | X40: =IF(ISERROR(INDIRECT(CONCATENATE($E$32,"!Q223"))),"",INDIRECT(CONCATENATE($E$32,"!Q223"))) -> 23.92192126 | Y40: =IF(ISERROR(INDIRECT(CONCATENATE($E$32,"!Q224"))),"",INDIRECT(CONCATENATE($E$32,"!Q224"))) -> 13.54488286
A88: 6 | B88: AIS04
B89: DHS05
B90: AIS08
B91: DHS10
B92: AIS12
B93: DHS16
B94: MIS17
B95: Template

Sheet AIS04
A2: =A1026 -> United Republic of Tanzania
A3: =A1034 -> 2004
A4: Use of drinking water sources
A5: by wealth quintile and sub-national region
A6: Notes:
A7: WHO/UNICEF JMP customised wealth index excludes water,
A8: sanitation and hygiene assets.
A9: Survey used for analysis: | B9: =A1025 -> AIS04
A10: =B1028 -> 
A11: =B1027 -> Time to improved source based on: | B11: AIS08
A14: Use of drinking water sources | C14: NATIONAL wealth index quintile | H14: URBAN wealth index quintile | M14: RURAL wealth index quintile | R14: SUB-REGIONS: | BA14: Raw numbers of respondents: | BB14: Use of drinking water sources | BC14: NATIONAL wealth index quintile | BH14: URBAN wealth index quintile | BM14: RURAL wealth index quintile | BR14: SUB-REGIONS:
A15: Weighted percentage (used in graphs) | C15: Poorest | D15: Poor | E15: Middle | F15: Rich | G15: Richest | H15: Poorest | I15: Poor | J15: Middle | K15: Rich | L15: Richest | M15: Poorest | N15: Poor | O15: Middle | P15: Rich | Q15: Richest | R15: Arusha | S15: Dar es Salaam | T15: Dodoma | U15: Iringa | V15: Kagera | W15: Kigoma | X15: Kilimanjaro | Y15: Lindi | Z15: Manyara | AA15: Mara | AB15: Mbeya | AC15: Morogoro | AD15: Mtwara | AE15: Mwanza | AF15: Pwani | AG15: Rukwa | AH15: Ruvuma | AI15: Shinyanga | AJ15: Singida | AK15: Tabora | AL15: Tanga | BA15: Water data, raw numbers (weighted) | BC15: Poorest | BD15: Poor | BE15: Middle | BF15: Rich | BG15: Richest | BH15: Poorest | BI15: Poor | BJ15: Middle | BK15: Rich | BL15: Richest | BM15: Poorest | BN15: Poor | BO15: Middle | BP15: Rich | BQ15: Richest | BR15: Arusha | BS15: Dar es Salaam | BT15: Dodoma | BU15: Iringa | BV15: Kagera | BW15: Kigoma | BX15: Kilimanjaro | BY15: Lindi | BZ15: Manyara | CA15: Mara | CB15: Mbeya | CC15: Morogoro | CD15: Mtwara | CE15: Mwanza | CF15: Pwani | CG15: Rukwa | CH15: Ruvuma | CI15: Shinyanga | CJ15: Singida | CK15: Tabora | CL15: Tanga
A16: Water | B16: Improved | C16: 35.09386167 | D16: 37.38751551 | E16: 48.18688554 | F16: 65.78414065 | G16: 93.52450121 | H16: 72.85794866 | I16: 90.70759702 | J16: 94.45119893 | K16: 97.71722788 | L16: 98.2779356 | M16: 33.19766251 | N16: 33.80634124 | O16: 41.89345856 | P16: 48.56378633 | Q16: 62.87501023 | R16: 69.50474663 | S16: 97.21042501 | T16: 56.30121329 | U16: 43.94020637 | V16: 27.86779648 | W16: 66.79069488 | X16: 83.94187965 | Y16: 22.09660195 | Z16: 38.16051953 | AA16: 29.3893564 | AB16: 50.56811774 | AC16: 70.91906427 | AD16: 56.53654898 | AE16: 59.97716798 | AF16: 39.51078528 | AG16: 54.10978392 | AH16: 51.60966966 | AI16: 68.92219408 | AJ16: 39.69151026 | AK16: 26.49506415 | AL16: 41.86145689 | BA16: Water | BB16: Improved | BC16: N/A | BD16: N/A | BE16: N/A | BF16: N/A | BG16: N/A | BH16: N/A | BI16: N/A | BJ16: N/A | BK16: N/A | BL16: N/A | BM16: N/A | BN16: N/A | BO16: N/A | BP16: N/A | BQ16: N/A | BR16: N/A | BS16: N/A | BT16: N/A | BU16: N/A | BV16: N/A | BW16: N/A | BX16: N/A | BY16: N/A | BZ16: N/A | CA16: N/A | CB16: N/A | CC16: N/A | CD16: N/A | CE16: N/A | CF16: N/A | CG16: N/A | CH16: N/A | CI16: N/A | CJ16: N/A | CK16: N/A | CL16: N/A
B17: Not Improved | C17: 64.90613833 | D17: 62.61248449 | E17: 51.81311446 | F17: 34.21585935 | G17: 6.475498792 | H17: 27.14205134 | I17: 9.292402982 | J17: 5.548801069 | K17: 2.282772119 | L17: 1.722064396 | M17: 66.80233749 | N17: 66.19365876 | O17: 58.10654144 | P17: 51.43621367 | Q17: 37.12498977 | R17: 30.49525337 | S17: 2.789574988 | T17: 43.69878671 | U17: 56.05979363 | V17: 72.13220352 | W17: 33.20930512 | X17: 16.05812035 | Y17: 77.90339805 | Z17: 61.83948047 | AA17: 70.6106436 | AB17: 49.43188226 | AC17: 29.08093573 | AD17: 43.46345102 | AE17: 40.02283202 | AF17: 60.48921472 | AG17: 45.89021608 | AH17: 48.39033034 | AI17: 31.07780592 | AJ17: 60.30848974 | AK17: 73.50493585 | AL17: 58.13854311 | BB17: Not Improved | BC17: N/A | BD17: N/A | BE17: N/A | BF17: N/A | BG17: N/A | BH17: N/A | BI17: N/A | BJ17: N/A | BK17: N/A | BL17: N/A | BM17: N/A | BN17: N/A | BO17: N/A | BP17: N/A | BQ17: N/A | BR17: N/A | BS17: N/A | BT17: N/A | BU17: N/A | BV17: N/A | BW17: N/A | BX17: N/A | BY17: N/A | BZ17: N/A | CA17: N/A | CB17: N/A | CC17: N/A | CD17: N/A | CE17: N/A | CF17: N/A | CG17: N/A | CH17: N/A | CI17: N/A | CJ17: N/A | CK17: N/A | CL17: N/A
A18: Water ladder | B18: Basic | C18: =C16*'AIS08'!C23/100 -> 20.5058952 | D18: =D16*'AIS08'!D23/100 -> 24.85544318 | E18: =E16*'AIS08'!E23/100 -> 34.41371738 | F18: =F16*'AIS08'!F23/100 -> 53.1143362 | G18: =G16*'AIS08'!G23/100 -> 83.35007647 | H18: =H16*'AIS08'!H23/100 -> 58.05527209 | I18: =I16*'AIS08'!I23/100 -> 75.89105517 | J18: =J16*'AIS08'!J23/100 -> 83.99100695 | K18: =K16*'AIS08'!K23/100 -> 89.89573536 | L18: =L16*'AIS08'!L23/100 -> 94.06421362 | M18: =M16*'AIS08'!M23/100 -> 18.83020188 | N18: =N16*'AIS08'!N23/100 -> 20.18000771 | O18: =O16*'AIS08'!O23/100 -> 30.31226912 | P18: =P16*'AIS08'!P23/100 -> 34.91504165 | Q18: =Q16*'AIS08'!Q23/100 -> 51.8517679 | R18: N/A | S18: N/A | T18: N/A | U18: N/A | V18: N/A | W18: N/A | X18: N/A | Y18: N/A | Z18: N/A | AA18: N/A | AB18: N/A | AC18: N/A | AD18: N/A | AE18: N/A | AF18: N/A | AG18: N/A | AH18: N/A | AI18: N/A | AJ18: N/A | AK18: N/A | AL18: N/A | BA18: Water ladder | BB18: Basic | BC18: N/A | BD18: N/A | BE18: N/A | BF18: N/A | BG18: N/A | BH18: N/A | BI18: N/A | BJ18: N/A | BK18: N/A | BL18: N/A | BM18: N/A | BN18: N/A | BO18: N/A | BP18: N/A | BQ18: N/A | BR18: N/A | BS18: N/A | BT18: N/A | BU18: N/A | BV18: N/A | BW18: N/A | BX18: N/A | BY18: N/A | BZ18: N/A | CA18: N/A | CB18: N/A | CC18: N/A | CD18: N/A | CE18: N/A | CF18: N/A | CG18: N/A | CH18: N/A | CI18: N/A | CJ18: N/A | CK18: N/A | CL18: N/A
B19: Limited | C19: =C16*'AIS08'!C22/100 -> 14.58796646 | D19: =D16*'AIS08'!D22/100 -> 12.53207233 | E19: =E16*'AIS08'!E22/100 -> 13.77316816 | F19: =F16*'AIS08'!F22/100 -> 12.66980445 | G19: =G16*'AIS08'!G22/100 -> 10.17442474 | H19: =H16*'AIS08'!H22/100 -> 14.80267658 | I19: =I16*'AIS08'!I22/100 -> 14.81654185 | J19: =J16*'AIS08'!J22/100 -> 10.46019198 | K19: =K16*'AIS08'!K22/100 -> 7.821492523 | L19: =L16*'AIS08'!L22/100 -> 4.213721982 | M19: =M16*'AIS08'!M22/100 -> 14.36746063 | N19: =N16*'AIS08'!N22/100 -> 13.62633353 | O19: =O16*'AIS08'!O22/100 -> 11.58118944 | P19: =P16*'AIS08'!P22/100 -> 13.64874468 | Q19: =Q16*'AIS08'!Q22/100 -> 11.02324233 | R19: N/A | S19: N/A | T19: N/A | U19: N/A | V19: N/A | W19: N/A | X19: N/A | Y19: N/A | Z19: N/A | AA19: N/A | AB19: N/A | AC19: N/A | AD19: N/A | AE19: N/A | AF19: N/A | AG19: N/A | AH19: N/A | AI19: N/A | AJ19: N/A | AK19: N/A | AL19: N/A | BB19: Limited | BC19: N/A | BD19: N/A | BE19: N/A | BF19: N/A | BG19: N/A | BH19: N/A | BI19: N/A | BJ19: N/A | BK19: N/A | BL19: N/A | BM19: N/A | BN19: N/A | BO19: N/A | BP19: N/A | BQ19: N/A | BR19: N/A | BS19: N/A | BT19: N/A | BU19: N/A | BV19: N/A | BW19: N/A | BX19: N/A | BY19: N/A | BZ19: N/A | CA19: N/A | CB19: N/A | CC19: N/A | CD19: N/A | CE19: N/A | CF19: N/A | CG19: N/A | CH19: N/A | CI19: N/A | CJ19: N/A | CK19: N/A | CL19: N/A
B20: Unimproved | C20: =100-(C18+C19+C21) -> 40.0961373 | D20: =100-(D18+D19+D21) -> 38.88312321 | E20: 30.06879828 | F20: 20.94901276 | G20: 4.026614145 | H20: 25.22678111 | I20: 6.390380148 | J20: 5.548801069 | K20: 1.537770343 | L20: 1.507326037 | M20: 40.44814038 | N20: 40.74630349 | O20: 33.30581382 | P20: 29.87788478 | Q20: 21.79557817 | R20: N/A | S20: N/A | T20: N/A | U20: N/A | V20: N/A | W20: N/A | X20: N/A | Y20: N/A | Z20: N/A | AA20: N/A | AB20: N/A | AC20: N/A | AD20: N/A | AE20: N/A | AF20: N/A | AG20: N/A | AH20: N/A | AI20: N/A | AJ20: N/A | AK20: N/A | AL20: N/A | BB20: Unimproved | BC20: N/A | BD20: N/A | BE20: N/A | BF20: N/A | BG20: N/A | BH20: N/A | BI20: N/A | BJ20: N/A | BK20: N/A | BL20: N/A | BM20: N/A | BN20: N/A | BO20: N/A | BP20: N/A | BQ20: N/A | BR20: N/A | BS20: N/A | BT20: N/A | BU20: N/A | BV20: N/A | BW20: N/A | BX20: N/A | BY20: N/A | BZ20: N/A | CA20: N/A | CB20: N/A | CC20: N/A | CD20: N/A | CE20: N/A | CF20: N/A | CG20: N/A | CH20: N/A | CI20: N/A | CJ20: N/A | CK20: N/A | CL20: N/A
B21: Surface water | C21: =C66+C67+C68 -> 24.81000103 | D21: 23.72936128 | E21: 21.74431619 | F21: 13.26684659 | G21: 2.448884646 | H21: 1.915270228 | I21: 2.902022834 | J21: 0 | K21: 0.7450017758 | L21: 0.2147383592 | M21: 26.35419711 | N21: 25.44735527 | O21: 24.80072762 | P21: 21.55832889 | Q21: 15.3294116 | R21: N/A | S21: N/A | T21: N/A | U21: N/A | V21: N/A | W21: N/A | X21: N/A | Y21: N/A | Z21: N/A | AA21: N/A | AB21: N/A | AC21: N/A | AD21: N/A | AE21: N/A | AF21: N/A | AG21: N/A | AH21: N/A | AI21: N/A | AJ21: N/A | AK21: N/A | AL21: N/A | BB21: Surface water | BC21: N/A | BD21: N/A | BE21: N/A | BF21: N/A | BG21: N/A | BH21: N/A | BI21: N/A | BJ21: N/A | BK21: N/A | BL21: N/A | BM21: N/A | BN21: N/A | BO21: N/A | BP21: N/A | BQ21: N/A | BR21: N/A | BS21: N/A | BT21: N/A | BU21: N/A | BV21: N/A | BW21: N/A | BX21: N/A | BY21: N/A | BZ21: N/A | CA21: N/A | CB21: N/A | CC21: N/A | CD21: N/A | CE21: N/A | CF21: N/A | CG21: N/A | CH21: N/A | CI21: N/A | CJ21: N/A | CK21: N/A | CL21: N/A
A22: Improved water point at more than 30 minutes | B22: Yes | C22: N/A | D22: N/A | E22: N/A | F22: N/A | G22: N/A | H22: N/A | I22: N/A | J22: N/A | K22: N/A | L22: N/A | M22: N/A | N22: N/A | O22: N/A | P22: N/A | Q22: N/A | R22: N/A | S22: N/A | T22: N/A | U22: N/A | V22: N/A | W22: N/A | X22: N/A | Y22: N/A | Z22: N/A | AA22: N/A | AB22: N/A | AC22: N/A | AD22: N/A | AE22: N/A | AF22: N/A | AG22: N/A | AH22: N/A | AI22: N/A | AJ22: N/A | AK22: N/A | AL22: N/A | BA22: Improved water point at more than 30 minutes | BB22: Yes | BC22: N/A | BD22: N/A | BE22: N/A | BF22: N/A | BG22: N/A | BH22: N/A | BI22: N/A | BJ22: N/A | BK22: N/A | BL22: N/A | BM22: N/A | BN22: N/A | BO22: N/A | BP22: N/A | BQ22: N/A | BR22: N/A | BS22: N/A | BT22: N/A | BU22: N/A | BV22: N/A | BW22: N/A | BX22: N/A | BY22: N/A | BZ22: N/A | CA22: N/A | CB22: N/A | CC22: N/A | CD22: N/A | CE22: N/A | CF22: N/A | CG22: N/A | CH22: N/A | CI22: N/A | CJ22: N/A | CK22: N/A | CL22: N/A
B23: No | C23: N/A | D23: N/A | E23: N/A | F23: N/A | G23: N/A | H23: N/A | I23: N/A | J23: N/A | K23: N/A | L23: N/A | M23: N/A | N23: N/A | O23: N/A | P23: N/A | Q23: N/A | R23: N/A | S23: N/A | T23: N/A | U23: N/A | V23: N/A | W23: N/A | X23: N/A | Y23: N/A | Z23: N/A | AA23: N/A | AB23: N/A | AC23: N/A | AD23: N/A | AE23: N/A | AF23: N/A | AG23: N/A | AH23: N/A | AI23: N/A | AJ23: N/A | AK23: N/A | AL23: N/A | BB23: No | BC23: N/A | BD23: N/A | BE23: N/A | BF23: N/A | BG23: N/A | BH23: N/A | BI23: N/A | BJ23: N/A | BK23: N/A | BL23: N/A | BM23: N/A | BN23: N/A | BO23: N/A | BP23: N/A | BQ23: N/A | BR23: N/A | BS23: N/A | BT23: N/A | BU23: N/A | BV23: N/A | BW23: N/A | BX23: N/A | BY23: N/A | BZ23: N/A | CA23: N/A | CB23: N/A | CC23: N/A | CD23: N/A | CE23: N/A | CF23: N/A | CG23: N/A | CH23: N/A | CI23: N/A | CJ23: N/A | CK23: N/A | CL23: N/A
A24: Manually calculated ratios | B24: Improved wells
B25: Improved springs
B26: Other
C27: NATIONAL wealth index quintile | H27: URBAN wealth index quintile | M27: RURAL wealth index quintile | R27: SUB-REGIONS: | BA27: Raw numbers of respondents: | BB27: Use of drinking water sources | BC27: NATIONAL wealth index quintile | BH27: URBAN wealth index quintile | BM27: RURAL wealth index quintile | BR27: SUB-REGIONS:
A28: Percentage based on weighted population | C28: Poorest | D28: Poor | E28: Middle | F28: Rich | G28: Richest | H28: Poorest | I28: Poor | J28: Middle | K28: Rich | L28: Richest | M28: Poorest | N28: Poor | O28: Middle | P28: Rich | Q28: Richest | R28: Arusha | S28: Dar es Salaam | T28: Dodoma | U28: Iringa | V28: Kagera | W28: Kigoma | X28: Kilimanjaro | Y28: Lindi | Z28: Manyara | AA28: Mara | AB28: Mbeya | AC28: Morogoro | AD28: Mtwara | AE28: Mwanza | AF28: Pwani | AG28: Rukwa | AH28: Ruvuma | AI28: Shinyanga | AJ28: Singida | AK28: Tabora | AL28: Tanga | BA28: Water data, raw numbers (weighted) | BC28: Poorest | BD28: Poor | BE28: Middle | BF28: Rich | BG28: Richest | BH28: Poorest | BI28: Poor | BJ28: Middle | BK28: Rich | BL28: Richest | BM28: Poorest | BN28: Poor | BO28: Middle | BP28: Rich | BQ28: Richest | BR28: Arusha | BS28: Dar es Salaam | BT28: Dodoma | BU28: Iringa | BV28: Kagera | BW28: Kigoma | BX28: Kilimanjaro | BY28: Lindi | BZ28: Manyara | CA28: Mara | CB28: Mbeya | CC28: Morogoro | CD28: Mtwara | CE28: Mwanza | CF28: Pwani | CG28: Rukwa | CH28: Ruvuma | CI28: Shinyanga | CJ28: Singida | CK28: Tabora | CL28: Tanga
A29: Piped water | B29: Yes | C29: 17.67232581 | D29: 14.9767311 | E29: 24.01018906 | F29: 39.36568396 | G29: 63.68359502 | H29: 41.85542178 | I29: 60.4854814 | J29: 60.06744797 | K29: 65.58590076 | L29: 67.99079724 | M29: 17.38527352 | N29: 14.3639115 | O29: 18.6703774 | P29: 21.38147175 | Q29: 41.19819588 | R29: 56.07992935 | S29: 48.05487817 | T29: 49.72984809 | U29: 36.71029326 | V29: 14.83459348 | W29: 36.7816621 | X29: 76.8092077 | Y29: 9.600218081 | Z29: 27.50141649 | AA29: 12.49505728 | AB29: 38.7540729 | AC29: 55.91125617 | AD29: 45.32725377 | AE29: 25.92759478 | AF29: 23.61647656 | AG29: 15.92451584 | AH29: 15.25322571 | AI29: 1.368970798 | AJ29: 29.25921191 | AK29: 7.05165009 | AL29: 39.28358028 | BA29: Piped water | BB29: Yes | BC29: N/A | BD29: N/A | BE29: N/A | BF29: N/A | BG29: N/A | BH29: N/A | BI29: N/A | BJ29: N/A | BK29: N/A | BL29: N/A | BM29: N/A | BN29: N/A | BO29: N/A | BP29: N/A | BQ29: N/A | BR29: N/A | BS29: N/A | BT29: N/A | BU29: N/A | BV29: N/A | BW29: N/A | BX29: N/A | BY29: N/A | BZ29: N/A | CA29: N/A | CB29: N/A | CC29: N/A | CD29: N/A | CE29: N/A | CF29: N/A | CG29: N/A | CH29: N/A | CI29: N/A | CJ29: N/A | CK29: N/A | CL29: N/A
B30: No | C30: 82.32767419 | D30: 85.0232689 | E30: 75.98981094 | F30: 60.63431604 | G30: 36.31640498 | H30: 58.14457822 | I30: 39.5145186 | J30: 39.93255203 | K30: 34.41409924 | L30: 32.00920276 | M30: 82.61472648 | N30: 85.6360885 | O30: 81.3296226 | P30: 78.61852825 | Q30: 58.80180412 | R30: 43.92007065 | S30: 51.94512183 | T30: 50.27015191 | U30: 63.28970674 | V30: 85.16540652 | W30: 63.2183379 | X30: 23.1907923 | Y30: 90.39978192 | Z30: 72.49858351 | AA30: 87.50494272 | AB30: 61.2459271 | AC30: 44.08874383 | AD30: 54.67274623 | AE30: 74.07240522 | AF30: 76.38352344 | AG30: 84.07548416 | AH30: 84.74677429 | AI30: 98.6310292 | AJ30: 70.74078809 | AK30: 92.94834991 | AL30: 60.71641972 | BB30: No | BC30: N/A | BD30: N/A | BE30: N/A | BF30: N/A | BG30: N/A | BH30: N/A | BI30: N/A | BJ30: N/A | BK30: N/A | BL30: N/A | BM30: N/A | BN30: N/A | BO30: N/A | BP30: N/A | BQ30: N/A | BR30: N/A | BS30: N/A | BT30: N/A | BU30: N/A | BV30: N/A | BW30: N/A | BX30: N/A | BY30: N/A | BZ30: N/A | CA30: N/A | CB30: N/A | CC30: N/A | CD30: N/A | CE30: N/A | CF30: N/A | CG30: N/A | CH30: N/A | CI30: N/A | CJ30: N/A | CK30: N/A | CL30: N/A
A31: Piped water on premises | B31: Yes | C31: 1.238280082 | D31: 1.42665381 | E31: 4.176569762 | F31: 14.45500175 | G31: 45.84375594 | H31: 15.50429214 | I31: 36.64087318 | J31: 35.55976305 | K31: 50.03350235 | L31: 62.63152896 | M31: 0.3940133507 | N31: 0.6645108589 | O31: 1.534607582 | P31: 3.821095491 | Q31: 15.05666156 | R31: 8.673367117 | S31: 43.34776864 | T31: 12.53444071 | U31: 9.500133109 | V31: 3.366827659 | W31: 5.020920622 | X31: 51.45871062 | Y31: 2.456331462 | Z31: 1.645946886 | AA31: 7.806572748 | AB31: 22.86830953 | AC31: 9.398739841 | AD31: 2.240530626 | AE31: 13.3629225 | AF31: 15.18390309 | AG31: 1.450486334 | AH31: 4.510419485 | AI31: 0.1212441518 | AJ31: 3.330395152 | AK31: 3.148378338 | AL31: 19.72576289 | BA31: Piped water on premises | BB31: Yes | BC31: N/A | BD31: N/A | BE31: N/A | BF31: N/A | BG31: N/A | BH31: N/A | BI31: N/A | BJ31: N/A | BK31: N/A | BL31: N/A | BM31: N/A | BN31: N/A | BO31: N/A | BP31: N/A | BQ31: N/A | BR31: N/A | BS31: N/A | BT31: N/A | BU31: N/A | BV31: N/A | BW31: N/A | BX31: N/A | BY31: N/A | BZ31: N/A | CA31: N/A | CB31: N/A | CC31: N/A | CD31: N/A | CE31: N/A | CF31: N/A | CG31: N/A | CH31: N/A | CI31: N/A | CJ31: N/A | CK31: N/A | CL31: N/A
B32: No | C32: 98.76171992 | D32: 98.57334619 | E32: 95.82343024 | F32: 85.54499825 | G32: 54.15624406 | H32: 84.49570786 | I32: 63.35912682 | J32: 64.44023695 | K32: 49.96649765 | L32: 37.36847104 | M32: 99.60598665 | N32: 99.33548914 | O32: 98.46539242 | P32: 96.17890451 | Q32: 84.94333844 | R32: 91.32663288 | S32: 56.65223136 | T32: 87.46555929 | U32: 90.49986689 | V32: 96.63317234 | W32: 94.97907938 | X32: 48.54128938 | Y32: 97.54366854 | Z32: 98.35405311 | AA32: 92.19342725 | AB32: 77.13169047 | AC32: 90.60126016 | AD32: 97.75946937 | AE32: 86.6370775 | AF32: 84.81609691 | AG32: 98.54951367 | AH32: 95.48958052 | AI32: 99.87875585 | AJ32: 96.66960485 | AK32: 96.85162166 | AL32: 80.27423711 | BB32: No | BC32: N/A | BD32: N/A | BE32: N/A | BF32: N/A | BG32: N/A | BH32: N/A | BI32: N/A | BJ32: N/A | BK32: N/A | BL32: N/A | BM32: N/A | BN32: N/A | BO32: N/A | BP32: N/A | BQ32: N/A | BR32: N/A | BS32: N/A | BT32: N/A | BU32: N/A | BV32: N/A | BW32: N/A | BX32: N/A | BY32: N/A | BZ32: N/A | CA32: N/A | CB32: N/A | CC32: N/A | CD32: N/A | CE32: N/A | CF32: N/A | CG32: N/A | CH32: N/A | CI32: N/A | CJ32: N/A | CK32: N/A | CL32: N/A
A33: Piped water into dwelling | B33: Yes | C33: N/A | D33: N/A | E33: N/A | F33: N/A | G33: N/A | H33: N/A | I33: N/A | J33: N/A | K33: N/A | L33: N/A | M33: N/A | N33: N/A | O33: N/A | P33: N/A | Q33: N/A | R33: N/A | S33: N/A | T33: N/A | U33: N/A | V33: N/A | W33: N/A | X33: N/A | Y33: N/A | Z33: N/A | AA33: N/A | AB33: N/A | AC33: N/A | AD33: N/A | AE33: N/A | AF33: N/A | AG33: N/A | AH33: N/A | AI33: N/A | AJ33: N/A | AK33: N/A | AL33: N/A | BA33: Piped water into dwelling | BB33: Yes | BC33: N/A | BD33: N/A | BE33: N/A | BF33: N/A | BG33: N/A | BH33: N/A | BI33: N/A | BJ33: N/A | BK33: N/A | BL33: N/A | BM33: N/A | BN33: N/A | BO33: N/A | BP33: N/A | BQ33: N/A | BR33: N/A | BS33: N/A | BT33: N/A | BU33: N/A | BV33: N/A | BW33: N/A | BX33: N/A | BY33: N/A | BZ33: N/A | CA33: N/A | CB33: N/A | CC33: N/A | CD33: N/A | CE33: N/A | CF33: N/A | CG33: N/A | CH33: N/A | CI33: N/A | CJ33: N/A | CK33: N/A | CL33: N/A
B34: No | C34: N/A | D34: N/A | E34: N/A | F34: N/A | G34: N/A | H34: N/A | I34: N/A | J34: N/A | K34: N/A | L34: N/A | M34: N/A | N34: N/A | O34: N/A | P34: N/A | Q34: N/A | R34: N/A | S34: N/A | T34: N/A | U34: N/A | V34: N/A | W34: N/A | X34: N/A | Y34: N/A | Z34: N/A | AA34: N/A | AB34: N/A | AC34: N/A | AD34: N/A | AE34: N/A | AF34: N/A | AG34: N/A | AH34: N/A | AI34: N/A | AJ34: N/A | AK34: N/A | AL34: N/A | BB34: No | BC34: N/A | BD34: N/A | BE34: N/A | BF34: N/A | BG34: N/A | BH34: N/A | BI34: N/A | BJ34: N/A | BK34: N/A | BL34: N/A | BM34: N/A | BN34: N/A | BO34: N/A | BP34: N/A | BQ34: N/A | BR34: N/A | BS34: N/A | BT34: N/A | BU34: N/A | BV34: N/A | BW34: N/A | BX34: N/A | BY34: N/A | BZ34: N/A | CA34: N/A | CB34: N/A | CC34: N/A | CD34: N/A | CE34: N/A | CF34: N/A | CG34: N/A | CH34: N/A | CI34: N/A | CJ34: N/A | CK34: N/A | CL34: N/A
A35: Water source on premises | B35: Yes | C35: N/A | D35: N/A | E35: N/A | F35: N/A | G35: N/A | H35: N/A | I35: N/A | J35: N/A | K35: N/A | L35: N/A | M35: N/A | N35: N/A | O35: N/A | P35: N/A | Q35: N/A | R35: N/A | S35: N/A | T35: N/A | U35: N/A | V35: N/A | W35: N/A | X35: N/A | Y35: N/A | Z35: N/A | AA35: N/A | AB35: N/A | AC35: N/A | AD35: N/A | AE35: N/A | AF35: N/A | AG35: N/A | AH35: N/A | AI35: N/A | AJ35: N/A | AK35: N/A | AL35: N/A | BA35: Water source on premises | BB35: Yes | BC35: N/A | BD35: N/A | BE35: N/A | BF35: N/A | BG35: N/A | BH35: N/A | BI35: N/A | BJ35: N/A | BK35: N/A | BL35: N/A | BM35: N/A | BN35: N/A | BO35: N/A | BP35: N/A | BQ35: N/A | BR35: N/A | BS35: N/A | BT35: N/A | BU35: N/A | BV35: N/A | BW35: N/A | BX35: N/A | BY35: N/A | BZ35: N/A | CA35: N/A | CB35: N/A | CC35: N/A | CD35: N/A | CE35: N/A | CF35: N/A | CG35: N/A | CH35: N/A | CI35: N/A | CJ35: N/A | CK35: N/A | CL35: N/A
B36: No | C36: N/A | D36: N/A | E36: N/A | F36: N/A | G36: N/A | H36: N/A | I36: N/A | J36: N/A | K36: N/A | L36: N/A | M36: N/A | N36: N/A | O36: N/A | P36: N/A | Q36: N/A | R36: N/A | S36: N/A | T36: N/A | U36: N/A | V36: N/A | W36: N/A | X36: N/A | Y36: N/A | Z36: N/A | AA36: N/A | AB36: N/A | AC36: N/A | AD36: N/A | AE36: N/A | AF36: N/A | AG36: N/A | AH36: N/A | AI36: N/A | AJ36: N/A | AK36: N/A | AL36: N/A | BB36: No | BC36: N/A | BD36: N/A | BE36: N/A | BF36: N/A | BG36: N/A | BH36: N/A | BI36: N/A | BJ36: N/A | BK36: N/A | BL36: N/A | BM36: N/A | BN36: N/A | BO36: N/A | BP36: N/A | BQ36: N/A | BR36: N/A | BS36: N/A | BT36: N/A | BU36: N/A | BV36: N/A | BW36: N/A | BX36: N/A | BY36: N/A | BZ36: N/A | CA36: N/A | CB36: N/A | CC36: N/A | CD36: N/A | CE36: N/A | CF36: N/A | CG36: N/A | CH36: N/A | CI36: N/A | CJ36: N/A | CK36: N/A | CL36: N/A
A37: Improved Water source on premises | B37: Yes | C37: N/A | D37: N/A | E37: N/A | F37: N/A | G37: N/A | H37: N/A | I37: N/A | J37: N/A | K37: N/A | L37: N/A | M37: N/A | N37: N/A | O37: N/A | P37: N/A | Q37: N/A | R37: N/A | S37: N/A | T37: N/A | U37: N/A | V37: N/A | W37: N/A | X37: N/A | Y37: N/A | Z37: N/A | AA37: N/A | AB37: N/A | AC37: N/A | AD37: N/A | AE37: N/A | AF37: N/A | AG37: N/A | AH37: N/A | AI37: N/A | AJ37: N/A | AK37: N/A | AL37: N/A | BA37: Improved water source on premises | BB37: Yes | BC37: N/A | BD37: N/A | BE37: N/A | BF37: N/A | BG37: N/A | BH37: N/A | BI37: N/A | BJ37: N/A | BK37: N/A | BL37: N/A | BM37: N/A | BN37: N/A | BO37: N/A | BP37: N/A | BQ37: N/A | BR37: N/A | BS37: N/A | BT37: N/A | BU37: N/A | BV37: N/A | BW37: N/A | BX37: N/A | BY37: N/A | BZ37: N/A | CA37: N/A | CB37: N/A | CC37: N/A | CD37: N/A | CE37: N/A | CF37: N/A | CG37: N/A | CH37: N/A | CI37: N/A | CJ37: N/A | CK37: N/A | CL37: N/A
B38: No | C38: N/A | D38: N/A | E38: N/A | F38: N/A | G38: N/A | H38: N/A | I38: N/A | J38: N/A | K38: N/A | L38: N/A | M38: N/A | N38: N/A | O38: N/A | P38: N/A | Q38: N/A | R38: N/A | S38: N/A | T38: N/A | U38: N/A | V38: N/A | W38: N/A | X38: N/A | Y38: N/A | Z38: N/A | AA38: N/A | AB38: N/A | AC38: N/A | AD38: N/A | AE38: N/A | AF38: N/A | AG38: N/A | AH38: N/A | AI38: N/A | AJ38: N/A | AK38: N/A | AL38: N/A | BB38: No | BC38: N/A | BD38: N/A | BE38: N/A | BF38: N/A | BG38: N/A | BH38: N/A | BI38: N/A | BJ38: N/A | BK38: N/A | BL38: N/A | BM38: N/A | BN38: N/A | BO38: N/A | BP38: N/A | BQ38: N/A | BR38: N/A | BS38: N/A | BT38: N/A | BU38: N/A | BV38: N/A | BW38: N/A | BX38: N/A | BY38: N/A | BZ38: N/A | CA38: N/A | CB38: N/A | CC38: N/A | CD38: N/A | CE38: N/A | CF38: N/A | CG38: N/A | CH38: N/A | CI38: N/A | CJ38: N/A | CK38: N/A | CL38: N/A
A39: Piped water on premises available when needed | B39: Yes | C39: N/A | D39: N/A | E39: N/A | F39: N/A | G39: N/A | H39: N/A | I39: N/A | J39: N/A | K39: N/A | L39: N/A | M39: N/A | N39: N/A | O39: N/A | P39: N/A | Q39: N/A | R39: N/A | S39: N/A | T39: N/A | U39: N/A | V39: N/A | W39: N/A | X39: N/A | Y39: N/A | Z39: N/A | AA39: N/A | AB39: N/A | AC39: N/A | AD39: N/A | AE39: N/A | AF39: N/A | AG39: N/A | AH39: N/A | AI39: N/A | AJ39: N/A | AK39: N/A | AL39: N/A | BA39: Piped water on premises available when needed | BB39: Yes | BC39: N/A | BD39: N/A | BE39: N/A | BF39: N/A | BG39: N/A | BH39: N/A | BI39: N/A | BJ39: N/A | BK39: N/A | BL39: N/A | BM39: N/A | BN39: N/A | BO39: N/A | BP39: N/A | BQ39: N/A | BR39: N/A | BS39: N/A | BT39: N/A | BU39: N/A | BV39: N/A | BW39: N/A | BX39: N/A | BY39: N/A | BZ39: N/A | CA39: N/A | CB39: N/A | CC39: N/A | CD39: N/A | CE39: N/A | CF39: N/A | CG39: N/A | CH39: N/A | CI39: N/A | CJ39: N/A | CK39: N/A | CL39: N/A
B40: No | C40: N/A | D40: N/A | E40: N/A | F40: N/A | G40: N/A | H40: N/A | I40: N/A | J40: N/A | K40: N/A | L40: N/A | M40: N/A | N40: N/A | O40: N/A | P40: N/A | Q40: N/A | R40: N/A | S40: N/A | T40: N/A | U40: N/A | V40: N/A | W40: N/A | X40: N/A | Y40: N/A | Z40: N/A | AA40: N/A | AB40: N/A | AC40: N/A | AD40: N/A | AE40: N/A | AF40: N/A | AG40: N/A | AH40: N/A | AI40: N/A | AJ40: N/A | AK40: N/A | AL40: N/A | BB40: No | BC40: N/A | BD40: N/A | BE40: N/A | BF40: N/A | BG40: N/A | BH40: N/A | BI40: N/A | BJ40: N/A | BK40: N/A | BL40: N/A | BM40: N/A | BN40: N/A | BO40: N/A | BP40: N/A | BQ40: N/A | BR40: N/A | BS40: N/A | BT40: N/A | BU40: N/A | BV40: N/A | BW40: N/A | BX40: N/A | BY40: N/A | BZ40: N/A | CA40: N/A | CB40: N/A | CC40: N/A | CD40: N/A | CE40: N/A | CF40: N/A | CG40: N/A | CH40: N/A | CI40: N/A | CJ40: N/A | CK40: N/A | CL40: N/A
A41: Water point at more than 30 minutes | B41: Yes | C41: N/A | D41: N/A | E41: N/A | F41: N/A | G41: N/A | H41: N/A | I41: N/A | J41: N/A | K41: N/A | L41: N/A | M41: N/A | N41: N/A | O41: N/A | P41: N/A | Q41: N/A | R41: N/A | S41: N/A | T41: N/A | U41: N/A | V41: N/A | W41: N/A | X41: N/A | Y41: N/A | Z41: N/A | AA41: N/A | AB41: N/A | AC41: N/A | AD41: N/A | AE41: N/A | AF41: N/A | AG41: N/A | AH41: N/A | AI41: N/A | AJ41: N/A | AK41: N/A | AL41: N/A | BA41: Water point at more than 30 minutes | BB41: Yes | BC41: N/A | BD41: N/A | BE41: N/A | BF41: N/A | BG41: N/A | BH41: N/A | BI41: N/A | BJ41: N/A | BK41: N/A | BL41: N/A | BM41: N/A | BN41: N/A | BO41: N/A | BP41: N/A | BQ41: N/A | BR41: N/A | BS41: N/A | BT41: N/A | BU41: N/A | BV41: N/A | BW41: N/A | BX41: N/A | BY41: N/A | BZ41: N/A | CA41: N/A | CB41: N/A | CC41: N/A | CD41: N/A | CE41: N/A | CF41: N/A | CG41: N/A | CH41: N/A | CI41: N/A | CJ41: N/A | CK41: N/A | CL41: N/A
B42: No | C42: N/A | D42: N/A | E42: N/A | F42: N/A | G42: N/A | H42: N/A | I42: N/A | J42: N/A | K42: N/A | L42: N/A | M42: N/A | N42: N/A | O42: N/A | P42: N/A | Q42: N/A | R42: N/A | S42: N/A | T42: N/A | U42: N/A | V42: N/A | W42: N/A | X42: N/A | Y42: N/A | Z42: N/A | AA42: N/A | AB42: N/A | AC42: N/A | AD42: N/A | AE42: N/A | AF42: N/A | AG42: N/A | AH42: N/A | AI42: N/A | AJ42: N/A | AK42: N/A | AL42: N/A | BB42: No | BC42: N/A | BD42: N/A | BE42: N/A | BF42: N/A | BG42: N/A | BH42: N/A | BI42: N/A | BJ42: N/A | BK42: N/A | BL42: N/A | BM42: N/A | BN42: N/A | BO42: N/A | BP42: N/A | BQ42: N/A | BR42: N/A | BS42: N/A | BT42: N/A | BU42: N/A | BV42: N/A | BW42: N/A | BX42: N/A | BY42: N/A | BZ42: N/A | CA42: N/A | CB42: N/A | CC42: N/A | CD42: N/A | CE42: N/A | CF42: N/A | CG42: N/A | CH42: N/A | CI42: N/A | CJ42: N/A | CK42: N/A | CL42: N/A
A43: Water source available when needed | B43: Yes | C43: N/A | D43: N/A | E43: N/A | F43: N/A | G43: N/A | H43: N/A | I43: N/A | J43: N/A | K43: N/A | L43: N/A | M43: N/A | N43: N/A | O43: N/A | P43: N/A | Q43: N/A | R43: N/A | S43: N/A | T43: N/A | U43: N/A | V43: N/A | W43: N/A | X43: N/A | Y43: N/A | Z43: N/A | AA43: N/A | AB43: N/A | AC43: N/A | AD43: N/A | AE43: N/A | AF43: N/A | AG43: N/A | AH43: N/A | AI43: N/A | AJ43: N/A | AK43: N/A | AL43: N/A | BA43: Water source available when needed | BB43: Yes | BC43: N/A | BD43: N/A | BE43: N/A | BF43: N/A | BG43: N/A | BH43: N/A | BI43: N/A | BJ43: N/A | BK43: N/A | BL43: N/A | BM43: N/A | BN43: N/A | BO43: N/A | BP43: N/A | BQ43: N/A | BR43: N/A | BS43: N/A | BT43: N/A | BU43: N/A | BV43: N/A | BW43: N/A | BX43: N/A | BY43: N/A | BZ43: N/A | CA43: N/A | CB43: N/A | CC43: N/A | CD43: N/A | CE43: N/A | CF43: N/A | CG43: N/A | CH43: N/A | CI43: N/A | CJ43: N/A | CK43: N/A | CL43: N/A
B44: No | C44: N/A | D44: N/A | E44: N/A | F44: N/A | G44: N/A | H44: N/A | I44: N/A | J44: N/A | K44: N/A | L44: N/A | M44: N/A | N44: N/A | O44: N/A | P44: N/A | Q44: N/A | R44: N/A | S44: N/A | T44: N/A | U44: N/A | V44: N/A | W44: N/A | X44: N/A | Y44: N/A | Z44: N/A | AA44: N/A | AB44: N/A | AC44: N/A | AD44: N/A | AE44: N/A | AF44: N/A | AG44: N/A | AH44: N/A | AI44: N/A | AJ44: N/A | AK44: N/A | AL44: N/A | BB44: No | BC44: N/A | BD44: N/A | BE44: N/A | BF44: N/A | BG44: N/A | BH44: N/A | BI44: N/A | BJ44: N/A | BK44: N/A | BL44: N/A | BM44: N/A | BN44: N/A | BO44: N/A | BP44: N/A | BQ44: N/A | BR44: N/A | BS44: N/A | BT44: N/A | BU44: N/A | BV44: N/A | BW44: N/A | BX44: N/A | BY44: N/A | BZ44: N/A | CA44: N/A | CB44: N/A | CC44: N/A | CD44: N/A | CE44: N/A | CF44: N/A | CG44: N/A | CH44: N/A | CI44: N/A | CJ44: N/A | CK44: N/A | CL44: N/A
A45: Improved water source available when needed | B45: Yes | C45: N/A | D45: N/A | E45: N/A | F45: N/A | G45: N/A | H45: N/A | I45: N/A | J45: N/A | K45: N/A | L45: N/A | M45: N/A | N45: N/A | O45: N/A | P45: N/A | Q45: N/A | R45: N/A | S45: N/A | T45: N/A | U45: N/A | V45: N/A | W45: N/A | X45: N/A | Y45: N/A | Z45: N/A | AA45: N/A | AB45: N/A | AC45: N/A | AD45: N/A | AE45: N/A | AF45: N/A | AG45: N/A | AH45: N/A | AI45: N/A | AJ45: N/A | AK45: N/A | AL45: N/A | BA45: Improved water source available when needed | BB45: Yes | BC45: N/A | BD45: N/A | BE45: N/A | BF45: N/A | BG45: N/A | BH45: N/A | BI45: N/A | BJ45: N/A | BK45: N/A | BL45: N/A | BM45: N/A | BN45: N/A | BO45: N/A | BP45: N/A | BQ45: N/A | BR45: N/A | BS45: N/A | BT45: N/A | BU45: N/A | BV45: N/A | BW45: N/A | BX45: N/A | BY45: N/A | BZ45: N/A | CA45: N/A | CB45: N/A | CC45: N/A | CD45: N/A | CE45: N/A | CF45: N/A | CG45: N/A | CH45: N/A | CI45: N/A | CJ45: N/A | CK45: N/A | CL45: N/A
B46: No | C46: N/A | D46: N/A | E46: N/A | F46: N/A | G46: N/A | H46: N/A | I46: N/A | J46: N/A | K46: N/A | L46: N/A | M46: N/A | N46: N/A | O46: N/A | P46: N/A | Q46: N/A | R46: N/A | S46: N/A | T46: N/A | U46: N/A | V46: N/A | W46: N/A | X46: N/A | Y46: N/A | Z46: N/A | AA46: N/A | AB46: N/A | AC46: N/A | AD46: N/A | AE46: N/A | AF46: N/A | AG46: N/A | AH46: N/A | AI46: N/A | AJ46: N/A | AK46: N/A | AL46: N/A | BB46: No | BC46: N/A | BD46: N/A | BE46: N/A | BF46: N/A | BG46: N/A | BH46: N/A | BI46: N/A | BJ46: N/A | BK46: N/A | BL46: N/A | BM46: N/A | BN46: N/A | BO46: N/A | BP46: N/A | BQ46: N/A | BR46: N/A | BS46: N/A | BT46: N/A | BU46: N/A | BV46: N/A | BW46: N/A | BX46: N/A | BY46: N/A | BZ46: N/A | CA46: N/A | CB46: N/A | CC46: N/A | CD46: N/A | CE46: N/A | CF46: N/A | CG46: N/A | CH46: N/A | CI46: N/A | CJ46: N/A | CK46: N/A | CL46: N/A
A47: Microbiological quality at point of collection | B47: Not contaminated (No E. coli in 100 mL) | C47: N/A | D47: N/A | E47: N/A | F47: N/A | G47: N/A | H47: N/A | I47: N/A | J47: N/A | K47: N/A | L47: N/A | M47: N/A | N47: N/A | O47: N/A | P47: N/A | Q47: N/A | R47: N/A | S47: N/A | T47: N/A | U47: N/A | V47: N/A | W47: N/A | X47: N/A | Y47: N/A | Z47: N/A | AA47: N/A | AB47: N/A | AC47: N/A | AD47: N/A | AE47: N/A | AF47: N/A | AG47: N/A | AH47: N/A | AI47: N/A | AJ47: N/A | AK47: N/A | AL47: N/A | BA47: Microbiological quality at point of collection | BB47: Not contaminated (No E. coli in 100 mL) | BC47: N/A | BD47: N/A | BE47: N/A | BF47: N/A | BG47: N/A | BH47: N/A | BI47: N/A | BJ47: N/A | BK47: N/A | BL47: N/A | BM47: N/A | BN47: N/A | BO47: N/A | BP47: N/A | BQ47: N/A | BR47: N/A | BS47: N/A | BT47: N/A | BU47: N/A | BV47: N/A | BW47: N/A | BX47: N/A | BY47: N/A | BZ47: N/A | CA47: N/A | CB47: N/A | CC47: N/A | CD47: N/A | CE47: N/A | CF47: N/A | CG47: N/A | CH47: N/A | CI47: N/A | CJ47: N/A | CK47: N/A | CL47: N/A
B48: Contaminated (E. coli detected in 100 mL) | C48: N/A | D48: N/A | E48: N/A | F48: N/A | G48: N/A | H48: N/A | I48: N/A | J48: N/A | K48: N/A | L48: N/A | M48: N/A | N48: N/A | O48: N/A | P48: N/A | Q48: N/A | R48: N/A | S48: N/A | T48: N/A | U48: N/A | V48: N/A | W48: N/A | X48: N/A | Y48: N/A | Z48: N/A | AA48: N/A | AB48: N/A | AC48: N/A | AD48: N/A | AE48: N/A | AF48: N/A | AG48: N/A | AH48: N/A | AI48: N/A | AJ48: N/A | AK48: N/A | AL48: N/A | BB48: Contaminated (E. coli detected in 100 mL) | BC48: N/A | BD48: N/A | BE48: N/A | BF48: N/A | BG48: N/A | BH48: N/A | BI48: N/A | BJ48: N/A | BK48: N/A | BL48: N/A | BM48: N/A | BN48: N/A | BO48: N/A | BP48: N/A | BQ48: N/A | BR48: N/A | BS48: N/A | BT48: N/A | BU48: N/A | BV48: N/A | BW48: N/A | BX48: N/A | BY48: N/A | BZ48: N/A | CA48: N/A | CB48: N/A | CC48: N/A | CD48: N/A | CE48: N/A | CF48: N/A | CG48: N/A | CH48: N/A | CI48: N/A | CJ48: N/A | CK48: N/A | CL48: N/A
B49: Highly contaminated (>100 CFU/100 mL) | C49: N/A | D49: N/A | E49: N/A | F49: N/A | G49: N/A | H49: N/A | I49: N/A | J49: N/A | K49: N/A | L49: N/A | M49: N/A | N49: N/A | O49: N/A | P49: N/A | Q49: N/A | R49: N/A | S49: N/A | T49: N/A | U49: N/A | V49: N/A | W49: N/A | X49: N/A | Y49: N/A | Z49: N/A | AA49: N/A | AB49: N/A | AC49: N/A | AD49: N/A | AE49: N/A | AF49: N/A | AG49: N/A | AH49: N/A | AI49: N/A | AJ49: N/A | AK49: N/A | AL49: N/A | BB49: Highly contaminated (>100 CFU/100 mL) | BC49: N/A | BD49: N/A | BE49: N/A | BF49: N/A | BG49: N/A | BH49: N/A | BI49: N/A | BJ49: N/A | BK49: N/A | BL49: N/A | BM49: N/A | BN49: N/A | BO49: N/A | BP49: N/A | BQ49: N/A | BR49: N/A | BS49: N/A | BT49: N/A | BU49: N/A | BV49: N/A | BW49: N/A | BX49: N/A | BY49: N/A | BZ49: N/A | CA49: N/A | CB49: N/A | CC49: N/A | CD49: N/A | CE49: N/A | CF49: N/A | CG49: N/A | CH49: N/A | CI49: N/A | CJ49: N/A | CK49: N/A | CL49: N/A
A50: Microbiological quality of improved water sources at point of collection | B50: Not contaminated (No E. coli in 100 mL) | C50: N/A | D50: N/A | E50: N/A | F50: N/A | G50: N/A | H50: N/A | I50: N/A | J50: N/A | K50: N/A | L50: N/A | M50: N/A | N50: N/A | O50: N/A | P50: N/A | Q50: N/A | R50: N/A | S50: N/A | T50: N/A | U50: N/A | V50: N/A | W50: N/A | X50: N/A | Y50: N/A | Z50: N/A | AA50: N/A | AB50: N/A | AC50: N/A | AD50: N/A | AE50: N/A | AF50: N/A | AG50: N/A | AH50: N/A | AI50: N/A | AJ50: N/A | AK50: N/A | AL50: N/A | BA50: Microbiological quality of improved water sources at point of collection | BB50: Not contaminated (No E. coli in 100 mL) | BC50: N/A | BD50: N/A | BE50: N/A | BF50: N/A | BG50: N/A | BH50: N/A | BI50: N/A | BJ50: N/A | BK50: N/A | BL50: N/A | BM50: N/A | BN50: N/A | BO50: N/A | BP50: N/A | BQ50: N/A | BR50: N/A | BS50: N/A | BT50: N/A | BU50: N/A | BV50: N/A | BW50: N/A | BX50: N/A | BY50: N/A | BZ50: N/A | CA50: N/A | CB50: N/A | CC50: N/A | CD50: N/A | CE50: N/A | CF50: N/A | CG50: N/A | CH50: N/A | CI50: N/A | CJ50: N/A | CK50: N/A | CL50: N/A
B51: Contaminated (E. coli detected in 100 mL) | C51: N/A | D51: N/A | E51: N/A | F51: N/A | G51: N/A | H51: N/A | I51: N/A | J51: N/A | K51: N/A | L51: N/A | M51: N/A | N51: N/A | O51: N/A | P51: N/A | Q51: N/A | R51: N/A | S51: N/A | T51: N/A | U51: N/A | V51: N/A | W51: N/A | X51: N/A | Y51: N/A | Z51: N/A | AA51: N/A | AB51: N/A | AC51: N/A | AD51: N/A | AE51: N/A | AF51: N/A | AG51: N/A | AH51: N/A | AI51: N/A | AJ51: N/A | AK51: N/A | AL51: N/A | BB51: Contaminated (E. coli detected in 100 mL) | BC51: N/A | BD51: N/A | BE51: N/A | BF51: N/A | BG51: N/A | BH51: N/A | BI51: N/A | BJ51: N/A | BK51: N/A | BL51: N/A | BM51: N/A | BN51: N/A | BO51: N/A | BP51: N/A | BQ51: N/A | BR51: N/A | BS51: N/A | BT51: N/A | BU51: N/A | BV51: N/A | BW51: N/A | BX51: N/A | BY51: N/A | BZ51: N/A | CA51: N/A | CB51: N/A | CC51: N/A | CD51: N/A | CE51: N/A | CF51: N/A | CG51: N/A | CH51: N/A | CI51: N/A | CJ51: N/A | CK51: N/A | CL51: N/A
B52: Highly contaminated (>100 CFU/100 mL) | C52: N/A | D52: N/A | E52: N/A | F52: N/A | G52: N/A | H52: N/A | I52: N/A | J52: N/A | K52: N/A | L52: N/A | M52: N/A | N52: N/A | O52: N/A | P52: N/A | Q52: N/A | R52: N/A | S52: N/A | T52: N/A | U52: N/A | V52: N/A | W52: N/A | X52: N/A | Y52: N/A | Z52: N/A | AA52: N/A | AB52: N/A | AC52: N/A | AD52: N/A | AE52: N/A | AF52: N/A | AG52: N/A | AH52: N/A | AI52: N/A | AJ52: N/A | AK52: N/A | AL52: N/A | BB52: Highly contaminated (>100 CFU/100 mL) | BC52: N/A | BD52: N/A | BE52: N/A | BF52: N/A | BG52: N/A | BH52: N/A | BI52: N/A | BJ52: N/A | BK52: N/A | BL52: N/A | BM52: N/A | BN52: N/A | BO52: N/A | BP52: N/A | BQ52: N/A | BR52: N/A | BS52: N/A | BT52: N/A | BU52: N/A | BV52: N/A | BW52: N/A | BX52: N/A | BY52: N/A | BZ52: N/A | CA52: N/A | CB52: N/A | CC52: N/A | CD52: N/A | CE52: N/A | CF52: N/A | CG52: N/A | CH52: N/A | CI52: N/A | CJ52: N/A | CK52: N/A | CL52: N/A
A53: Microbiological quality of piped on premises at point of collection | B53: Not contaminated (No E. coli in 100 mL) | C53: N/A | D53: N/A | E53: N/A | F53: N/A | G53: N/A | H53: N/A | I53: N/A | J53: N/A | K53: N/A | L53: N/A | M53: N/A | N53: N/A | O53: N/A | P53: N/A | Q53: N/A | R53: N/A | S53: N/A | T53: N/A | U53: N/A | V53: N/A | W53: N/A | X53: N/A | Y53: N/A | Z53: N/A | AA53: N/A | AB53: N/A | AC53: N/A | AD53: N/A | AE53: N/A | AF53: N/A | AG53: N/A | AH53: N/A | AI53: N/A | AJ53: N/A | AK53: N/A | AL53: N/A | BA53: Microbiological quality of piped on premises at point of collection | BB53: Not contaminated (No E. coli in 100 mL) | BC53: N/A | BD53: N/A | BE53: N/A | BF53: N/A | BG53: N/A | BH53: N/A | BI53: N/A | BJ53: N/A | BK53: N/A | BL53: N/A | BM53: N/A | BN53: N/A | BO53: N/A | BP53: N/A | BQ53: N/A | BR53: N/A | BS53: N/A | BT53: N/A | BU53: N/A | BV53: N/A | BW53: N/A | BX53: N/A | BY53: N/A | BZ53: N/A | CA53: N/A | CB53: N/A | CC53: N/A | CD53: N/A | CE53: N/A | CF53: N/A | CG53: N/A | CH53: N/A | CI53: N/A | CJ53: N/A | CK53: N/A | CL53: N/A
B54: Contaminated (E. coli detected in 100 mL) | C54: N/A | D54: N/A | E54: N/A | F54: N/A | G54: N/A | H54: N/A | I54: N/A | J54: N/A | K54: N/A | L54: N/A | M54: N/A | N54: N/A | O54: N/A | P54: N/A | Q54: N/A | R54: N/A | S54: N/A | T54: N/A | U54: N/A | V54: N/A | W54: N/A | X54: N/A | Y54: N/A | Z54: N/A | AA54: N/A | AB54: N/A | AC54: N/A | AD54: N/A | AE54: N/A | AF54: N/A | AG54: N/A | AH54: N/A | AI54: N/A | AJ54: N/A | AK54: N/A | AL54: N/A | BB54: Contaminated (E. coli detected in 100 mL) | BC54: N/A | BD54: N/A | BE54: N/A | BF54: N/A | BG54: N/A | BH54: N/A | BI54: N/A | BJ54: N/A | BK54: N/A | BL54: N/A | BM54: N/A | BN54: N/A | BO54: N/A | BP54: N/A | BQ54: N/A | BR54: N/A | BS54: N/A | BT54: N/A | BU54: N/A | BV54: N/A | BW54: N/A | BX54: N/A | BY54: N/A | BZ54: N/A | CA54: N/A | CB54: N/A | CC54: N/A | CD54: N/A | CE54: N/A | CF54: N/A | CG54: N/A | CH54: N/A | CI54: N/A | CJ54: N/A | CK54: N/A | CL54: N/A
B55: Highly contaminated (>100 CFU/100 mL) | C55: N/A | D55: N/A | E55: N/A | F55: N/A | G55: N/A | H55: N/A | I55: N/A | J55: N/A | K55: N/A | L55: N/A | M55: N/A | N55: N/A | O55: N/A | P55: N/A | Q55: N/A | R55: N/A | S55: N/A | T55: N/A | U55: N/A | V55: N/A | W55: N/A | X55: N/A | Y55: N/A | Z55: N/A | AA55: N/A | AB55: N/A | AC55: N/A | AD55: N/A | AE55: N/A | AF55: N/A | AG55: N/A | AH55: N/A | AI55: N/A | AJ55: N/A | AK55: N/A | AL55: N/A | BB55: Highly contaminated (>100 CFU/100 mL) | BC55: N/A | BD55: N/A | BE55: N/A | BF55: N/A | BG55: N/A | BH55: N/A | BI55: N/A | BJ55: N/A | BK55: N/A | BL55: N/A | BM55: N/A | BN55: N/A | BO55: N/A | BP55: N/A | BQ55: N/A | BR55: N/A | BS55: N/A | BT55: N/A | BU55: N/A | BV55: N/A | BW55: N/A | BX55: N/A | BY55: N/A | BZ55: N/A | CA55: N/A | CB55: N/A | CC55: N/A | CD55: N/A | CE55: N/A | CF55: N/A | CG55: N/A | CH55: N/A | CI55: N/A | CJ55: N/A | CK55: N/A | CL55: N/A
C56: NATIONAL wealth index quintile | H56: URBAN wealth index quintile | M56: RURAL wealth index quintile | R56: SUB-REGIONS: | BA56: Raw numbers of respondents: | BB56: Use of drinking water sources | BC56: NATIONAL wealth index quintile | BH56: URBAN wealth index quintile | BM56: RURAL wealth index quintile | BR56: SUB-REGIONS:
A57: Percentage based on weighted population | C57: Poorest | D57: Poor | E57: Middle | F57: Rich | G57: Richest | H57: Poorest | I57: Poor | J57: Middle | K57: Rich | L57: Richest | M57: Poorest | N57: Poor | O57: Middle | P57: Rich | Q57: Richest | R57: Arusha | S57: Dar es Salaam | T57: Dodoma | U57: Iringa | V57: Kagera | W57: Kigoma | X57: Kilimanjaro | Y57: Lindi | Z57: Manyara | AA57: Mara | AB57: Mbeya | AC57: Morogoro | AD57: Mtwara | AE57: Mwanza | AF57: Pwani | AG57: Rukwa | AH57: Ruvuma | AI57: Shinyanga | AJ57: Singida | AK57: Tabora | AL57: Tanga | BA57: Water data, raw numbers (weighted) | BC57: Poorest | BD57: Poor | BE57: Middle | BF57: Rich | BG57: Richest | BH57: Poorest | BI57: Poor | BJ57: Middle | BK57: Rich | BL57: Richest | BM57: Poorest | BN57: Poor | BO57: Middle | BP57: Rich | BQ57: Richest | BR57: Arusha | BS57: Dar es Salaam | BT57: Dodoma | BU57: Iringa | BV57: Kagera | BW57: Kigoma | BX57: Kilimanjaro | BY57: Lindi | BZ57: Manyara | CA57: Mara | CB57: Mbeya | CC57: Morogoro | CD57: Mtwara | CE57: Mwanza | CF57: Pwani | CG57: Rukwa | CH57: Ruvuma | CI57: Shinyanga | CJ57: Singida | CK57: Tabora | CL57: Tanga
A58: Source of drinking water | B58: Piped into dwelling | C58: 0.02975289765 | D58: 0.07745967118 | E58: 0.3542737822 | F58: 1.357486123 | G58: 19.90725409 | H58: 0.4826353281 | I58: 7.492597943 | J58: 7.738465097 | K58: 18.09583528 | L58: 44.71694189 | M58: 0 | N58: 0.06823869381 | O58: 0.2934376577 | P58: 0.2174131677 | Q58: 1.749534978 | R58: 1.969174654 | S58: 15.80135109 | T58: 5.437658634 | U58: 3.466382847 | V58: 1.037121031 | W58: 2.5263115 | X58: 4.330677561 | Y58: 1.261595169 | Z58: 0.6330564945 | AA58: 1.309858004 | AB58: 12.698353 | AC58: 5.205905206 | AD58: 0 | AE58: 7.209615022 | AF58: 1.75214868 | AG58: 0.6829611519 | AH58: 1.958940738 | AI58: 0.1212441518 | AJ58: 2.302069085 | AK58: 1.208114382 | AL58: 0.8738329653
B59: Piped into yard/plot | C59: 1.208527185 | D59: 1.349194139 | E59: 3.82229598 | F59: 13.09751562 | G59: 26.05339116 | H59: 15.02165682 | I59: 29.14827524 | J59: 27.87150327 | K59: 31.93766707 | L59: 18.45504833 | M59: 0.3940133507 | N59: 0.5962721651 | O59: 1.241169924 | P59: 3.603682323 | Q59: 13.30712658 | R59: 6.704192463 | S59: 27.80198561 | T59: 7.096782073 | U59: 6.033750262 | V59: 2.329706628 | W59: 2.494609123 | X59: 47.12803306 | Y59: 1.194736293 | Z59: 1.012890391 | AA59: 6.496714744 | AB59: 10.16995653 | AC59: 4.192834635 | AD59: 2.240530626 | AE59: 6.153307473 | AF59: 13.43175441 | AG59: 0.7675251826 | AH59: 2.551478746 | AI59: 0 | AJ59: 1.028326068 | AK59: 1.940263957 | AL59: 18.85192992
B60: Public tap | C60: 16.43404573 | D60: 13.55007729 | E60: 19.8336193 | F60: 24.91068221 | G60: 17.8853259 | H60: 26.35112964 | I60: 23.84460822 | J60: 24.54228627 | K60: 15.55239842 | L60: 5.405514584 | M60: 16.99126017 | N60: 13.69940064 | O60: 17.13576982 | P60: 17.56037626 | Q60: 26.14153433 | R60: 47.40656223 | S60: 4.73486152 | T60: 37.19540738 | U60: 27.21016015 | V60: 11.46776582 | W60: 31.76074148 | X60: 25.35049708 | Y60: 7.143886619 | Z60: 25.8554696 | AA60: 4.688484536 | AB60: 15.88576336 | AC60: 46.51251633 | AD60: 43.08672314 | AE60: 12.56467228 | AF60: 8.432573469 | AG60: 14.47402951 | AH60: 10.74280622 | AI60: 1.247726646 | AJ60: 25.92881676 | AK60: 3.903271751 | AL60: 19.5578174
B61: Open well | C61: 29.65909638 | D61: 29.30997312 | E61: 20.71719275 | F61: 14.46428525 | G61: 2.737471087 | H61: 20.96102584 | I61: 4.831124431 | J61: 4.702929835 | K61: 0.7836742579 | L61: 0.6592640824 | M61: 30.45540068 | N61: 30.27125404 | O61: 24.41733969 | P61: 19.50872283 | Q61: 14.47944299 | R61: 2.079447096 | S61: 1.429687959 | T61: 11.04653103 | U61: 20.76646624 | V61: 24.73032892 | W61: 9.242459665 | X61: 1.579846215 | Y61: 67.67764717 | Z61: 21.33253983 | AA61: 22.84099708 | AB61: 14.54985677 | AC61: 20.06004333 | AD61: 37.79472633 | AE61: 21.07081882 | AF61: 44.83817809 | AG61: 5.245856069 | AH61: 18.38844863 | AI61: 13.16370112 | AJ61: 18.06713295 | AK61: 54.3601507 | AL61: 27.24115342
B62: Protected/covered well | C62: 4.934831029 | D62: 5.094283279 | E62: 6.09217649 | F62: 6.974145355 | G62: 4.831672857 | H62: 10.81914485 | I62: 4.522047728 | J62: 6.969811917 | K62: 4.813344027 | L62: 3.026043847 | M62: 4.022149459 | N62: 4.437406469 | O62: 4.386339903 | P62: 8.079369524 | Q62: 6.239504148 | R62: 0.8901716895 | S62: 6.11259972 | T62: 4.150733586 | U62: 3.19715216 | V62: 4.346085615 | W62: 2.212603592 | X62: 1.805757099 | Y62: 7.306807461 | Z62: 3.943943542 | AA62: 2.794717148 | AB62: 7.170092571 | AC62: 4.753972734 | AD62: 3.731321643 | AE62: 6.830569596 | AF62: 9.419129773 | AG62: 6.833391645 | AH62: 8.946618287 | AI62: 11.11560678 | AJ62: 4.597756928 | AK62: 11.1558079 | AL62: 0
B63: Borehole/ tubewell | C63: 11.27844079 | D63: 16.05577865 | E63: 16.10982443 | F63: 12.97843194 | G63: 11.92027485 | H63: 11.62606146 | I63: 9.652870172 | J63: 13.78053119 | K63: 11.37106725 | L63: 14.46837349 | M63: 11.10567847 | N63: 13.83306774 | O63: 16.49357582 | P63: 17.65493243 | Q63: 11.82524034 | R63: 1.668462804 | S63: 15.26727576 | T63: 1.829637705 | U63: 0.9504014517 | V63: 3.865648876 | W63: 25.73283227 | X63: 5.32691485 | Y63: 5.075642364 | Z63: 2.107854439 | AA63: 12.58839961 | AB63: 1.563715332 | AC63: 9.893039722 | AD63: 6.772508762 | AE63: 23.95431458 | AF63: 3.198162243 | AG63: 29.52642121 | AH63: 24.69172408 | AI63: 54.13775318 | AJ63: 3.92950862 | AK63: 5.741466559 | AL63: 0
B64: Protected spring | C64: 0.9094560594 | D64: 0.9645426701 | E64: 1.485827958 | F64: 2.4353072 | G64: 0.824416842 | H64: 3.545309586 | I64: 3.938995325 | J64: 0.1219620195 | K64: 1.102105324 | L64: 0.2890161353 | M64: 0.4723801946 | N64: 0.7902575647 | O64: 1.832921882 | P64: 1.000376213 | Q64: 1.709054627 | R64: 0.3553207954 | S64: 0.1623102777 | T64: 0 | U64: 2.740585387 | V64: 4.821468508 | W64: 2.06359691 | X64: 0 | Y64: 0 | Z64: 2.229952719 | AA64: 0.4172611129 | AB64: 2.401319757 | AC64: 0 | AD64: 0 | AE64: 2.004246906 | AF64: 0 | AG64: 1.082209419 | AH64: 1.03970889 | AI64: 1.996752944 | AJ64: 0.5762730569 | AK64: 0.807755035 | AL64: 2.577876608
B65: Unprotected spring | C65: 10.43704093 | D65: 9.514946185 | E65: 9.351605532 | F65: 6.484727509 | G65: 1.034442055 | H65: 4.26575527 | I65: 1.559255717 | J65: 0.7125196061 | K65: 0.7540960851 | L65: 0 | M65: 9.992739703 | N65: 10.39711722 | O65: 8.888474134 | P65: 10.36916195 | Q65: 7.294393564 | R65: 1.556507687 | S65: 0.7867576609 | T65: 14.89317192 | U65: 11.58354812 | V65: 16.04719343 | W65: 6.121976169 | X65: 2.502656631 | Y65: 2.376238567 | Z65: 11.1427 | AA65: 30.09776754 | AB65: 11.39461855 | AC65: 3.754613458 | AD65: 0.3383602864 | AE65: 4.045781885 | AF65: 0 | AG65: 0.7494261726 | AH65: 4.897996749 | AI65: 4.568815146 | AJ65: 26.33817092 | AK65: 0.5852633165 | AL65: 7.348894533
B66: River/stream | C66: 15.90971123 | D66: 15.78667469 | E66: 16.63260683 | F66: 10.16886021 | G66: 1.792252621 | H66: 1.506836761 | I66: 1.735083769 | J66: 0 | K66: 0.2128521483 | L66: 0 | M66: 16.55612732 | N66: 16.63582885 | O66: 18.42340458 | P66: 15.96553237 | Q66: 12.1906492 | R66: 19.27188411 | S66: 0 | T66: 12.98286615 | U66: 23.25685225 | V66: 20.82504736 | W66: 9.700774953 | X66: 11.90722026 | Y66: 6.318274536 | Z66: 14.68997794 | AA66: 10.52224094 | AB66: 17.38465868 | AC66: 5.028535988 | AD66: 3.277723927 | AE66: 6.584831676 | AF66: 9.430038138 | AG66: 33.52785031 | AH66: 25.10388495 | AI66: 9.407268669 | AJ66: 5.341909725 | AK66: 3.653489493 | AL66: 21.59870536
B67: Pond/lake | C67: 3.829765622 | D67: 4.798755751 | E67: 2.715708942 | F67: 2.600025607 | G67: 0.4231840801 | H67: 0.03859076853 | I67: 0.8480722073 | J67: 0 | K67: 0 | L67: 0 | M67: 4.215207493 | N67: 5.215959915 | O67: 2.920670607 | P67: 3.588830488 | Q67: 3.041644423 | R67: 1.805381895 | S67: 0 | T67: 0 | U67: 0 | V67: 2.992554248 | W67: 7.653672037 | X67: 0 | Y67: 1.531237777 | Z67: 10.60217432 | AA67: 6.318767857 | AB67: 5.95334422 | AC67: 0 | AD67: 0 | AE67: 6.534084739 | AF67: 0.3335232725 | AG67: 2.621740279 | AH67: 0 | AI67: 2.306630931 | AJ67: 8.86517772 | AK67: 5.15683701 | AL67: 0.6355097465
B68: Dam | C68: 5.070524176 | D68: 3.143930837 | E68: 2.396000411 | F68: 0.4979607759 | G68: 0.2334479454 | H68: 0.3698426989 | I68: 0.318866858 | J68: 0 | K68: 0.5321496275 | L68: 0.2147383592 | M68: 5.582862292 | N68: 3.595566498 | O68: 3.456652439 | P68: 2.00396603 | Q68: 0.09711797651 | R68: 5.782032583 | S68: 0 | T68: 4.77621762 | U68: 0.4529270207 | V68: 7.537079562 | W68: 0.4904222979 | X68: 0 | Y68: 0 | Z68: 4.07208837 | AA68: 0.830870191 | AB68: 0.1494040396 | AC68: 0 | AD68: 2.052640477 | AE68: 1.787314892 | AF68: 5.887475222 | AG68: 3.745343256 | AH68: 0 | AI68: 1.631390061 | AJ68: 1.696098424 | AK68: 9.749195328 | AL68: 1.314280047
B69: Rainwater | C69: 0.09555037684 | D69: 0.2166855933 | E69: 0 | F69: 0.09873549753 | G69: 0.2709364148 | H69: 0.09276412708 | I69: 0 | J69: 0 | K69: 0 | L69: 0 | M69: 0.128336186 | N69: 0.1949873394 | O69: 0.0956075622 | P69: 0 | Q69: 0.4635873796 | R69: 0 | S69: 0 | T69: 0 | U69: 0.1782410499 | V69: 0 | W69: 0 | X69: 0 | Y69: 0 | Z69: 0 | AA69: 0.3683879799 | AB69: 0 | AC69: 0 | AD69: 0.504197689 | AE69: 0.1806350117 | AF69: 0 | AG69: 0.4993791008 | AH69: 0 | AI69: 0 | AJ69: 0 | AK69: 1.487133975 | AL69: 0
B70: Tanker truck | C70: 0.2032576022 | D70: 0.07949421498 | E70: 0.488867604 | F70: 3.917587899 | G70: 11.63658384 | H70: 4.919246855 | I70: 11.88201759 | J70: 13.31184333 | K70: 13.68153272 | L70: 12.76505928 | M70: 0.08384468745 | N70: 0.1867106322 | O70: 0.4146359906 | P70: 0.4476364157 | Q70: 1.401493456 | R70: 10.51086199 | S70: 26.96290963 | T70: 0.590993902 | U70: 0 | V70: 0 | W70: 0 | X70: 0 | Y70: 0.1139340471 | Z70: 2.377352347 | AA70: 0.7255332643 | AB70: 0.6789171876 | AC70: 0.3607956386 | AD70: 0.2012671223 | AE70: 1.079807112 | AF70: 3.277016706 | AG70: 0.2438666997 | AH70: 1.678392693 | AI70: 0.3031103794 | AJ70: 1.328759737 | AK70: 0.25125059 | AL70: 0
B71: Bottled water | C71: 0 | D71: 0 | E71: 0 | F71: 0.01424879766 | G71: 0.4331077015 | H71: 0 | I71: 0.2261847995 | J71: 0.2481474587 | K71: 1.163277793 | L71: 0 | M71: 0 | N71: 0 | O71: 0 | P71: 0 | Q71: 0.03793439223 | R71: 0 | S71: 0.940260772 | T71: 0 | U71: 0.1635330655 | V71: 0 | W71: 0 | X71: 0 | Y71: 0 | Z71: 0 | AA71: 0 | AB71: 0 | AC71: 0 | AD71: 0 | AE71: 0 | AF71: 0 | AG71: 0 | AH71: 0 | AI71: 0 | AJ71: 0 | AK71: 0 | AL71: 0
B72: Other | C72: 0 | D72: 0.05820390662 | E72: 0 | F72: 0 | G72: 0.01623855481 | H72: 0 | I72: 0 | J72: 0 | K72: 0 | L72: 0 | M72: 0 | N72: 0.07793222796 | O72: 0 | P72: 0 | Q72: 0.02174161135 | R72: 0 | S72: 0 | T72: 0 | U72: 0 | V72: 0 | W72: 0 | X72: 0.0683972425 | Y72: 0 | Z72: 0 | AA72: 0 | AB72: 0 | AC72: 0.2377429587 | AD72: 0 | AE72: 0 | AF72: 0 | AG72: 0 | AH72: 0 | AI72: 0 | AJ72: 0 | AK72: 0 | AL72: 0
A108: =A1026 -> United Republic of Tanzania
A109: =A1034 -> 2004
A110: Use of sanitation facilities
A111: by wealth quintile and sub-national region
A112: Notes:
A113: WHO/UNICEF JMP customised wealth index excludes water,
A114: sanitation and hygiene assets.
A115: Survey used for analysis: | B115: =A1025 -> AIS04
A116: =B1030 -> Ratio of Improved latrines based on: | B116: DHS10
A117: =B1029 -> Ratio of Shared improved based on: | B117: DHS10
A120: Use of sanitation facilities | C120: NATIONAL wealth index quintile | H120: URBAN wealth index quintile | M120: RURAL wealth index quintile | R120: SUB-REGIONS: | BA120: Raw numbers of respondents: | BB120: Use of sanitation facilities | BC120: NATIONAL wealth index quintile | BH120: URBAN wealth index quintile | BM120: RURAL wealth index quintile | BR120: SUB-REGIONS:
A121: Weighted percentage (used in graphs) | C121: Poorest | D121: Poor | E121: Middle | F121: Rich | G121: Richest | H121: Poorest | I121: Poor | J121: Middle | K121: Rich | L121: Richest | M121: Poorest | N121: Poor | O121: Middle | P121: Rich | Q121: Richest | R121: Arusha | S121: Dar es Salaam | T121: Dodoma | U121: Iringa | V121: Kagera | W121: Kigoma | X121: Kilimanjaro | Y121: Lindi | Z121: Manyara | AA121: Mara | AB121: Mbeya | AC121: Morogoro | AD121: Mtwara | AE121: Mwanza | AF121: Pwani | AG121: Rukwa | AH121: Ruvuma | AI121: Shinyanga | AJ121: Singida | AK121: Tabora | AL121: Tanga | BA121: Sanitation data, raw numbers (weighted) | BC121: Poorest | BD121: Poor | BE121: Middle | BF121: Rich | BG121: Richest | BH121: Poorest | BI121: Poor | BJ121: Middle | BK121: Rich | BL121: Richest | BM121: Poorest | BN121: Poor | BO121: Middle | BP121: Rich | BQ121: Richest | BR121: Arusha | BS121: Dar es Salaam | BT121: Dodoma | BU121: Iringa | BV121: Kagera | BW121: Kigoma | BX121: Kilimanjaro | BY121: Lindi | BZ121: Manyara | CA121: Mara | CB121: Mbeya | CC121: Morogoro | CD121: Mtwara | CE121: Mwanza | CF121: Pwani | CG121: Rukwa | CH121: Ruvuma | CI121: Shinyanga | CJ121: Singida | CK121: Tabora | CL121: Tanga
A122: Sanitation | B122: Improved | C122: =C153+C155+C154*'DHS10'!C130/100 -> 4.94629069 | D122: =D153+D155+D154*'DHS10'!D130/100 -> 5.14349864 | E122: =E153+E155+E154*'DHS10'!E130/100 -> 10.01751095 | F122: =F153+F155+F154*'DHS10'!F130/100 -> 18.28689883 | G122: =G153+G155+G154*'DHS10'!G130/100 -> 53.47833567 | H122: =H153+H155+H154*'DHS10'!H130/100 -> 12.45343739 | I122: =I153+I155+I154*'DHS10'!I130/100 -> 30.7044542 | J122: =J153+J155+J154*'DHS10'!J130/100 -> 42.62578013 | K122: =K153+K155+K154*'DHS10'!K130/100 -> 53.5742143 | L122: =L153+L155+L154*'DHS10'!L130/100 -> 75.18210975 | M122: =M153+M155+M154*'DHS10'!M130/100 -> 4.574778952 | N122: =N153+N155+N154*'DHS10'!N130/100 -> 4.935384256 | O122: =O153+O155+O154*'DHS10'!O130/100 -> 7.45880697 | P122: =P153+P155+P154*'DHS10'!P130/100 -> 10.41559439 | Q122: =Q153+Q155+Q154*'DHS10'!Q130/100 -> 24.48354715 | R122: N/A | S122: N/A | T122: N/A | U122: N/A | V122: N/A | W122: N/A | X122: N/A | Y122: N/A | Z122: N/A | AA122: N/A | AB122: N/A | AC122: N/A | AD122: N/A | AE122: N/A | AF122: N/A | AG122: N/A | AH122: N/A | AI122: N/A | AJ122: N/A | AK122: N/A | AL122: N/A | BA122: Sanitation | BB122: Improved | BC122: N/A | BD122: N/A | BE122: N/A | BF122: N/A | BG122: N/A | BH122: N/A | BI122: N/A | BJ122: N/A | BK122: N/A | BL122: N/A | BM122: N/A | BN122: N/A | BO122: N/A | BP122: N/A | BQ122: N/A | BR122: N/A | BS122: N/A | BT122: N/A | BU122: N/A | BV122: N/A | BW122: N/A | BX122: N/A | BY122: N/A | BZ122: N/A | CA122: N/A | CB122: N/A | CC122: N/A | CD122: N/A | CE122: N/A | CF122: N/A | CG122: N/A | CH122: N/A | CI122: N/A | CJ122: N/A | CK122: N/A | CL122: N/A
B123: Not Improved | C123: =100-C122 -> 95.05370931 | D123: =100-D122 -> 94.85650136 | E123: 89.98248905 | F123: 81.71310117 | G123: 46.52166433 | H123: 87.54656261 | I123: 69.2955458 | J123: 57.37421987 | K123: 46.4257857 | L123: 24.81789025 | M123: 95.42522105 | N123: 95.06461574 | O123: 92.54119303 | P123: 89.58440561 | Q123: 75.51645285 | R123: N/A | S123: N/A | T123: N/A | U123: N/A | V123: N/A | W123: N/A | X123: N/A | Y123: N/A | Z123: N/A | AA123: N/A | AB123: N/A | AC123: N/A | AD123: N/A | AE123: N/A | AF123: N/A | AG123: N/A | AH123: N/A | AI123: N/A | AJ123: N/A | AK123: N/A | AL123: N/A | BB123: Not Improved | BC123: N/A | BD123: N/A | BE123: N/A | BF123: N/A | BG123: N/A | BH123: N/A | BI123: N/A | BJ123: N/A | BK123: N/A | BL123: N/A | BM123: N/A | BN123: N/A | BO123: N/A | BP123: N/A | BQ123: N/A | BR123: N/A | BS123: N/A | BT123: N/A | BU123: N/A | BV123: N/A | BW123: N/A | BX123: N/A | BY123: N/A | BZ123: N/A | CA123: N/A | CB123: N/A | CC123: N/A | CD123: N/A | CE123: N/A | CF123: N/A | CG123: N/A | CH123: N/A | CI123: N/A | CJ123: N/A | CK123: N/A | CL123: N/A
A124: Sanitation ladder | B124: Basic | C124: =C122*'DHS10'!C129/100 -> 4.300538331 | D124: =D122*'DHS10'!D129/100 -> 4.44724937 | E124: =E122*'DHS10'!E129/100 -> 8.087631022 | F124: =F122*'DHS10'!F129/100 -> 12.02256668 | G124: =G122*'DHS10'!G129/100 -> 36.84050947 | H124: =H122*'DHS10'!H129/100 -> 5.79991296 | I124: =I122*'DHS10'!I129/100 -> 12.96710192 | J124: =J122*'DHS10'!J129/100 -> 21.04509547 | K124: =K122*'DHS10'!K129/100 -> 27.58936661 | L124: =L122*'DHS10'!L129/100 -> 63.00283507 | M124: =M122*'DHS10'!M129/100 -> 3.932748098 | N124: =N122*'DHS10'!N129/100 -> 4.487922456 | O124: =O122*'DHS10'!O129/100 -> 6.302643458 | P124: =P122*'DHS10'!P129/100 -> 8.789998933 | Q124: =Q122*'DHS10'!Q129/100 -> 21.23442241 | R124: N/A | S124: N/A | T124: N/A | U124: N/A | V124: N/A | W124: N/A | X124: N/A | Y124: N/A | Z124: N/A | AA124: N/A | AB124: N/A | AC124: N/A | AD124: N/A | AE124: N/A | AF124: N/A | AG124: N/A | AH124: N/A | AI124: N/A | AJ124: N/A | AK124: N/A | AL124: N/A | BA124: Sanitation ladder | BB124: Basic | BC124: N/A | BD124: N/A | BE124: N/A | BF124: N/A | BG124: N/A | BH124: N/A | BI124: N/A | BJ124: N/A | BK124: N/A | BL124: N/A | BM124: N/A | BN124: N/A | BO124: N/A | BP124: N/A | BQ124: N/A | BR124: N/A | BS124: N/A | BT124: N/A | BU124: N/A | BV124: N/A | BW124: N/A | BX124: N/A | BY124: N/A | BZ124: N/A | CA124: N/A | CB124: N/A | CC124: N/A | CD124: N/A | CE124: N/A | CF124: N/A | CG124: N/A | CH124: N/A | CI124: N/A | CJ124: N/A | CK124: N/A | CL124: N/A
B125: Limited | C125: =C122*'DHS10'!C128/100 -> 0.6457523591 | D125: =D122*'DHS10'!D128/100 -> 0.6962492702 | E125: =E122*'DHS10'!E128/100 -> 1.929879931 | F125: =F122*'DHS10'!F128/100 -> 6.264332151 | G125: =G122*'DHS10'!G128/100 -> 16.6378262 | H125: =H122*'DHS10'!H128/100 -> 6.65352443 | I125: =I122*'DHS10'!I128/100 -> 17.73735228 | J125: =J122*'DHS10'!J128/100 -> 21.58068466 | K125: =K122*'DHS10'!K128/100 -> 25.98484769 | L125: =L122*'DHS10'!L128/100 -> 12.17927469 | M125: =M122*'DHS10'!M128/100 -> 0.6420308541 | N125: =N122*'DHS10'!N128/100 -> 0.4474618004 | O125: =O122*'DHS10'!O128/100 -> 1.156163512 | P125: =P122*'DHS10'!P128/100 -> 1.625595457 | Q125: =Q122*'DHS10'!Q128/100 -> 3.249124735 | R125: N/A | S125: N/A | T125: N/A | U125: N/A | V125: N/A | W125: N/A | X125: N/A | Y125: N/A | Z125: N/A | AA125: N/A | AB125: N/A | AC125: N/A | AD125: N/A | AE125: N/A | AF125: N/A | AG125: N/A | AH125: N/A | AI125: N/A | AJ125: N/A | AK125: N/A | AL125: N/A | BB125: Limited | BC125: N/A | BD125: N/A | BE125: N/A | BF125: N/A | BG125: N/A | BH125: N/A | BI125: N/A | BJ125: N/A | BK125: N/A | BL125: N/A | BM125: N/A | BN125: N/A | BO125: N/A | BP125: N/A | BQ125: N/A | BR125: N/A | BS125: N/A | BT125: N/A | BU125: N/A | BV125: N/A | BW125: N/A | BX125: N/A | BY125: N/A | BZ125: N/A | CA125: N/A | CB125: N/A | CC125: N/A | CD125: N/A | CE125: N/A | CF125: N/A | CG125: N/A | CH125: N/A | CI125: N/A | CJ125: N/A | CK125: N/A | CL125: N/A
B126: Unimproved | C126: =100-(C124+C125+C127) -> 69.11987108 | D126: =100-(D124+D125+D127) -> 76.58983823 | E126: 81.47054424 | F126: 79.28099055 | G126: 46.01799111 | H126: 83.82435764 | I126: 68.33973968 | J126: 56.36513689 | K126: 46.4257857 | L126: 24.81789025 | M126: 69.30026625 | N126: 73.15526938 | O126: 77.75790469 | P126: 81.40058551 | Q126: 73.77119389 | R126: N/A | S126: N/A | T126: N/A | U126: N/A | V126: N/A | W126: N/A | X126: N/A | Y126: N/A | Z126: N/A | AA126: N/A | AB126: N/A | AC126: N/A | AD126: N/A | AE126: N/A | AF126: N/A | AG126: N/A | AH126: N/A | AI126: N/A | AJ126: N/A | AK126: N/A | AL126: N/A | BB126: Unimproved | BC126: N/A | BD126: N/A | BE126: N/A | BF126: N/A | BG126: N/A | BH126: N/A | BI126: N/A | BJ126: N/A | BK126: N/A | BL126: N/A | BM126: N/A | BN126: N/A | BO126: N/A | BP126: N/A | BQ126: N/A | BR126: N/A | BS126: N/A | BT126: N/A | BU126: N/A | BV126: N/A | BW126: N/A | BX126: N/A | BY126: N/A | BZ126: N/A | CA126: N/A | CB126: N/A | CC126: N/A | CD126: N/A | CE126: N/A | CF126: N/A | CG126: N/A | CH126: N/A | CI126: N/A | CJ126: N/A | CK126: N/A | CL126: N/A
B127: Open defecation | C127: =C156 -> 25.93383823 | D127: =D156 -> 18.26666313 | E127: 8.511944806 | F127: 2.432110625 | G127: 0.5036732168 | H127: 3.722204968 | I127: 0.9558061269 | J127: 1.009082979 | K127: 0 | L127: 0 | M127: 26.1249548 | N127: 21.90934636 | O127: 14.78328834 | P127: 8.183820104 | Q127: 1.745258966 | R127: N/A | S127: N/A | T127: N/A | U127: N/A | V127: N/A | W127: N/A | X127: N/A | Y127: N/A | Z127: N/A | AA127: N/A | AB127: N/A | AC127: N/A | AD127: N/A | AE127: N/A | AF127: N/A | AG127: N/A | AH127: N/A | AI127: N/A | AJ127: N/A | AK127: N/A | AL127: N/A | BB127: Open defecation | BC127: N/A | BD127: N/A | BE127: N/A | BF127: N/A | BG127: N/A | BH127: N/A | BI127: N/A | BJ127: N/A | BK127: N/A | BL127: N/A | BM127: N/A | BN127: N/A | BO127: N/A | BP127: N/A | BQ127: N/A | BR127: N/A | BS127: N/A | BT127: N/A | BU127: N/A | BV127: N/A | BW127: N/A | BX127: N/A | BY127: N/A | BZ127: N/A | CA127: N/A | CB127: N/A | CC127: N/A | CD127: N/A | CE127: N/A | CF127: N/A | CG127: N/A | CH127: N/A | CI127: N/A | CJ127: N/A | CK127: N/A | CL127: N/A
A128: Shared among Improved Sanitation | B128: Yes | C128: N/A | D128: N/A | E128: N/A | F128: N/A | G128: N/A | H128: N/A | I128: N/A | J128: N/A | K128: N/A | L128: N/A | M128: N/A | N128: N/A | O128: N/A | P128: N/A | Q128: N/A | R128: N/A | S128: N/A | T128: N/A | U128: N/A | V128: N/A | W128: N/A | X128: N/A | Y128: N/A | Z128: N/A | AA128: N/A | AB128: N/A | AC128: N/A | AD128: N/A | AE128: N/A | AF128: N/A | AG128: N/A | AH128: N/A | AI128: N/A | AJ128: N/A | AK128: N/A | AL128: N/A | BA128: Shared among improved sanitation facilities | BB128: Yes | BC128: N/A | BD128: N/A | BE128: N/A | BF128: N/A | BG128: N/A | BH128: N/A | BI128: N/A | BJ128: N/A | BK128: N/A | BL128: N/A | BM128: N/A | BN128: N/A | BO128: N/A | BP128: N/A | BQ128: N/A | BR128: N/A | BS128: N/A | BT128: N/A | BU128: N/A | BV128: N/A | BW128: N/A | BX128: N/A | BY128: N/A | BZ128: N/A | CA128: N/A | CB128: N/A | CC128: N/A | CD128: N/A | CE128: N/A | CF128: N/A | CG128: N/A | CH128: N/A | CI128: N/A | CJ128: N/A | CK128: N/A | CL128: N/A
B129: No | C129: N/A | D129: N/A | E129: N/A | F129: N/A | G129: N/A | H129: N/A | I129: N/A | J129: N/A | K129: N/A | L129: N/A | M129: N/A | N129: N/A | O129: N/A | P129: N/A | Q129: N/A | R129: N/A | S129: N/A | T129: N/A | U129: N/A | V129: N/A | W129: N/A | X129: N/A | Y129: N/A | Z129: N/A | AA129: N/A | AB129: N/A | AC129: N/A | AD129: N/A | AE129: N/A | AF129: N/A | AG129: N/A | AH129: N/A | AI129: N/A | AJ129: N/A | AK129: N/A | AL129: N/A | BB129: No | BC129: N/A | BD129: N/A | BE129: N/A | BF129: N/A | BG129: N/A | BH129: N/A | BI129: N/A | BJ129: N/A | BK129: N/A | BL129: N/A | BM129: N/A | BN129: N/A | BO129: N/A | BP129: N/A | BQ129: N/A | BR129: N/A | BS129: N/A | BT129: N/A | BU129: N/A | BV129: N/A | BW129: N/A | BX129: N/A | BY129: N/A | BZ129: N/A | CA129: N/A | CB129: N/A | CC129: N/A | CD129: N/A | CE129: N/A | CF129: N/A | CG129: N/A | CH129: N/A | CI129: N/A | CJ129: N/A | CK129: N/A | CL129: N/A
A130: Manually calculated ratios | B130: Improved latrines
B131: Other
B132: Other
C133: NATIONAL wealth index quintile | H133: URBAN wealth index quintile | M133: RURAL wealth index quintile | R133: SUB-REGIONS: | BA133: Raw numbers of respondents: | BB133: Use of sanitation facilities | BC133: NATIONAL wealth index quintile | BH133: URBAN wealth index quintile | BM133: RURAL wealth index quintile | BR133: SUB-REGIONS:
A134: Percentage based on weighted population | C134: Poorest | D134: Poor | E134: Middle | F134: Rich | G134: Richest | H134: Poorest | I134: Poor | J134: Middle | K134: Rich | L134: Richest | M134: Poorest | N134: Poor | O134: Middle | P134: Rich | Q134: Richest | R134: Arusha | S134: Dar es Salaam | T134: Dodoma | U134: Iringa | V134: Kagera | W134: Kigoma | X134: Kilimanjaro | Y134: Lindi | Z134: Manyara | AA134: Mara | AB134: Mbeya | AC134: Morogoro | AD134: Mtwara | AE134: Mwanza | AF134: Pwani | AG134: Rukwa | AH134: Ruvuma | AI134: Shinyanga | AJ134: Singida | AK134: Tabora | AL134: Tanga | BA134: Sanitation data, raw numbers (weighted) | BC134: Poorest | BD134: Poor | BE134: Middle | BF134: Rich | BG134: Richest | BH134: Poorest | BI134: Poor | BJ134: Middle | BK134: Rich | BL134: Richest | BM134: Poorest | BN134: Poor | BO134: Middle | BP134: Rich | BQ134: Richest | BR134: Arusha | BS134: Dar es Salaam | BT134: Dodoma | BU134: Iringa | BV134: Kagera | BW134: Kigoma | BX134: Kilimanjaro | BY134: Lindi | BZ134: Manyara | CA134: Mara | CB134: Mbeya | CC134: Morogoro | CD134: Mtwara | CE134: Mwanza | CF134: Pwani | CG134: Rukwa | CH134: Ruvuma | CI134: Shinyanga | CJ134: Singida | CK134: Tabora | CL134: Tanga
A135: Sanitation type | B135: Sewer connection | C135: N/A | D135: N/A | E135: N/A | F135: N/A | G135: N/A | H135: N/A | I135: N/A | J135: N/A | K135: N/A | L135: N/A | M135: N/A | N135: N/A | O135: N/A | P135: N/A | Q135: N/A | R135: N/A | S135: N/A | T135: N/A | U135: N/A | V135: N/A | W135: N/A | X135: N/A | Y135: N/A | Z135: N/A | AA135: N/A | AB135: N/A | AC135: N/A | AD135: N/A | AE135: N/A | AF135: N/A | AG135: N/A | AH135: N/A | AI135: N/A | AJ135: N/A | AK135: N/A | AL135: N/A | BA135: Sanitation type | BB135: Sewer connection | BC135: N/A | BD135: N/A | BE135: N/A | BF135: N/A | BG135: N/A | BH135: N/A | BI135: N/A | BJ135: N/A | BK135: N/A | BL135: N/A | BM135: N/A | BN135: N/A | BO135: N/A | BP135: N/A | BQ135: N/A | BR135: N/A | BS135: N/A | BT135: N/A | BU135: N/A | BV135: N/A | BW135: N/A | BX135: N/A | BY135: N/A | BZ135: N/A | CA135: N/A | CB135: N/A | CC135: N/A | CD135: N/A | CE135: N/A | CF135: N/A | CG135: N/A | CH135: N/A | CI135: N/A | CJ135: N/A | CK135: N/A | CL135: N/A
B136: Septic tank connection | C136: N/A | D136: N/A | E136: N/A | F136: N/A | G136: N/A | H136: N/A | I136: N/A | J136: N/A | K136: N/A | L136: N/A | M136: N/A | N136: N/A | O136: N/A | P136: N/A | Q136: N/A | R136: N/A | S136: N/A | T136: N/A | U136: N/A | V136: N/A | W136: N/A | X136: N/A | Y136: N/A | Z136: N/A | AA136: N/A | AB136: N/A | AC136: N/A | AD136: N/A | AE136: N/A | AF136: N/A | AG136: N/A | AH136: N/A | AI136: N/A | AJ136: N/A | AK136: N/A | AL136: N/A | BB136: Septic tank connection | BC136: N/A | BD136: N/A | BE136: N/A | BF136: N/A | BG136: N/A | BH136: N/A | BI136: N/A | BJ136: N/A | BK136: N/A | BL136: N/A | BM136: N/A | BN136: N/A | BO136: N/A | BP136: N/A | BQ136: N/A | BR136: N/A | BS136: N/A | BT136: N/A | BU136: N/A | BV136: N/A | BW136: N/A | BX136: N/A | BY136: N/A | BZ136: N/A | CA136: N/A | CB136: N/A | CC136: N/A | CD136: N/A | CE136: N/A | CF136: N/A | CG136: N/A | CH136: N/A | CI136: N/A | CJ136: N/A | CK136: N/A | CL136: N/A
B137: Improved latrines | C137: N/A | D137: N/A | E137: N/A | F137: N/A | G137: N/A | H137: N/A | I137: N/A | J137: N/A | K137: N/A | L137: N/A | M137: N/A | N137: N/A | O137: N/A | P137: N/A | Q137: N/A | R137: N/A | S137: N/A | T137: N/A | U137: N/A | V137: N/A | W137: N/A | X137: N/A | Y137: N/A | Z137: N/A | AA137: N/A | AB137: N/A | AC137: N/A | AD137: N/A | AE137: N/A | AF137: N/A | AG137: N/A | AH137: N/A | AI137: N/A | AJ137: N/A | AK137: N/A | AL137: N/A | BB137: Improved latrines | BC137: N/A | BD137: N/A | BE137: N/A | BF137: N/A | BG137: N/A | BH137: N/A | BI137: N/A | BJ137: N/A | BK137: N/A | BL137: N/A | BM137: N/A | BN137: N/A | BO137: N/A | BP137: N/A | BQ137: N/A | BR137: N/A | BS137: N/A | BT137: N/A | BU137: N/A | BV137: N/A | BW137: N/A | BX137: N/A | BY137: N/A | BZ137: N/A | CA137: N/A | CB137: N/A | CC137: N/A | CD137: N/A | CE137: N/A | CF137: N/A | CG137: N/A | CH137: N/A | CI137: N/A | CJ137: N/A | CK137: N/A | CL137: N/A
B138: Unimproved facilities | C138: N/A | D138: N/A | E138: N/A | F138: N/A | G138: N/A | H138: N/A | I138: N/A | J138: N/A | K138: N/A | L138: N/A | M138: N/A | N138: N/A | O138: N/A | P138: N/A | Q138: N/A | R138: N/A | S138: N/A | T138: N/A | U138: N/A | V138: N/A | W138: N/A | X138: N/A | Y138: N/A | Z138: N/A | AA138: N/A | AB138: N/A | AC138: N/A | AD138: N/A | AE138: N/A | AF138: N/A | AG138: N/A | AH138: N/A | AI138: N/A | AJ138: N/A | AK138: N/A | AL138: N/A | BB138: Unimproved facilities | BC138: N/A | BD138: N/A | BE138: N/A | BF138: N/A | BG138: N/A | BH138: N/A | BI138: N/A | BJ138: N/A | BK138: N/A | BL138: N/A | BM138: N/A | BN138: N/A | BO138: N/A | BP138: N/A | BQ138: N/A | BR138: N/A | BS138: N/A | BT138: N/A | BU138: N/A | BV138: N/A | BW138: N/A | BX138: N/A | BY138: N/A | BZ138: N/A | CA138: N/A | CB138: N/A | CC138: N/A | CD138: N/A | CE138: N/A | CF138: N/A | CG138: N/A | CH138: N/A | CI138: N/A | CJ138: N/A | CK138: N/A | CL138: N/A
B139: Open defecation | C139: 25.93000795 | D139: 18.26666313 | E139: 8.511944806 | F139: 2.432110625 | G139: 0.5022982137 | H139: 3.722204968 | I139: 0.9558061269 | J139: 1.009082979 | K139: 0 | L139: 0 | M139: 26.11977234 | N139: 21.90934636 | O139: 14.78328834 | P139: 8.183820104 | Q139: 1.745258966 | R139: 21.45271817 | S139: 0.3887125803 | T139: 14.56250091 | U139: 0.5162034478 | V139: 8.069555002 | W139: 5.021862352 | X139: 4.126323176 | Y139: 5.165686785 | Z139: 26.33376381 | AA139: 30.64370861 | AB139: 0.4649310952 | AC139: 0.8312810286 | AD139: 9.200511676 | AE139: 13.6114347 | AF139: 7.724187593 | AG139: 3.307919124 | AH139: 2.806554738 | AI139: 28.29435333 | AJ139: 7.360311262 | AK139: 26.08655597 | AL139: 13.34412345 | BB139: Open defecation | BC139: N/A | BD139: N/A | BE139: N/A | BF139: N/A | BG139: N/A | BH139: N/A | BI139: N/A | BJ139: N/A | BK139: N/A | BL139: N/A | BM139: N/A | BN139: N/A | BO139: N/A | BP139: N/A | BQ139: N/A | BR139: N/A | BS139: N/A | BT139: N/A | BU139: N/A | BV139: N/A | BW139: N/A | BX139: N/A | BY139: N/A | BZ139: N/A | CA139: N/A | CB139: N/A | CC139: N/A | CD139: N/A | CE139: N/A | CF139: N/A | CG139: N/A | CH139: N/A | CI139: N/A | CJ139: N/A | CK139: N/A | CL139: N/A
A140: Septic tank emptying practices | B140: Not emptied/treated and disposed in situ | C140: N/A | D140: N/A | E140: N/A | F140: N/A | G140: N/A | H140: N/A | I140: N/A | J140: N/A | K140: N/A | L140: N/A | M140: N/A | N140: N/A | O140: N/A | P140: N/A | Q140: N/A | R140: N/A | S140: N/A | T140: N/A | U140: N/A | V140: N/A | W140: N/A | X140: N/A | Y140: N/A | Z140: N/A | AA140: N/A | AB140: N/A | AC140: N/A | AD140: N/A | AE140: N/A | AF140: N/A | AG140: N/A | AH140: N/A | AI140: N/A | AJ140: N/A | AK140: N/A | AL140: N/A | BA140: Septic tank emptying practices | BB140: Not emptied/treated and disposed in situ | BC140: N/A | BD140: N/A | BE140: N/A | BF140: N/A | BG140: N/A | BH140: N/A | BI140: N/A | BJ140: N/A | BK140: N/A | BL140: N/A | BM140: N/A | BN140: N/A | BO140: N/A | BP140: N/A | BQ140: N/A | BR140: N/A | BS140: N/A | BT140: N/A | BU140: N/A | BV140: N/A | BW140: N/A | BX140: N/A | BY140: N/A | BZ140: N/A | CA140: N/A | CB140: N/A | CC140: N/A | CD140: N/A | CE140: N/A | CF140: N/A | CG140: N/A | CH140: N/A | CI140: N/A | CJ140: N/A | CK140: N/A | CL140: N/A
B141: Emptied and buried on site | C141: N/A | D141: N/A | E141: N/A | F141: N/A | G141: N/A | H141: N/A | I141: N/A | J141: N/A | K141: N/A | L141: N/A | M141: N/A | N141: N/A | O141: N/A | P141: N/A | Q141: N/A | R141: N/A | S141: N/A | T141: N/A | U141: N/A | V141: N/A | W141: N/A | X141: N/A | Y141: N/A | Z141: N/A | AA141: N/A | AB141: N/A | AC141: N/A | AD141: N/A | AE141: N/A | AF141: N/A | AG141: N/A | AH141: N/A | AI141: N/A | AJ141: N/A | AK141: N/A | AL141: N/A | BB141: Emptied and buried on site | BC141: N/A | BD141: N/A | BE141: N/A | BF141: N/A | BG141: N/A | BH141: N/A | BI141: N/A | BJ141: N/A | BK141: N/A | BL141: N/A | BM141: N/A | BN141: N/A | BO141: N/A | BP141: N/A | BQ141: N/A | BR141: N/A | BS141: N/A | BT141: N/A | BU141: N/A | BV141: N/A | BW141: N/A | BX141: N/A | BY141: N/A | BZ141: N/A | CA141: N/A | CB141: N/A | CC141: N/A | CD141: N/A | CE141: N/A | CF141: N/A | CG141: N/A | CH141: N/A | CI141: N/A | CJ141: N/A | CK141: N/A | CL141: N/A
B142: Emptied and discharged locally | C142: N/A | D142: N/A | E142: N/A | F142: N/A | G142: N/A | H142: N/A | I142: N/A | J142: N/A | K142: N/A | L142: N/A | M142: N/A | N142: N/A | O142: N/A | P142: N/A | Q142: N/A | R142: N/A | S142: N/A | T142: N/A | U142: N/A | V142: N/A | W142: N/A | X142: N/A | Y142: N/A | Z142: N/A | AA142: N/A | AB142: N/A | AC142: N/A | AD142: N/A | AE142: N/A | AF142: N/A | AG142: N/A | AH142: N/A | AI142: N/A | AJ142: N/A | AK142: N/A | AL142: N/A | BB142: Emptied and discharged locally | BC142: N/A | BD142: N/A | BE142: N/A | BF142: N/A | BG142: N/A | BH142: N/A | BI142: N/A | BJ142: N/A | BK142: N/A | BL142: N/A | BM142: N/A | BN142: N/A | BO142: N/A | BP142: N/A | BQ142: N/A | BR142: N/A | BS142: N/A | BT142: N/A | BU142: N/A | BV142: N/A | BW142: N/A | BX142: N/A | BY142: N/A | BZ142: N/A | CA142: N/A | CB142: N/A | CC142: N/A | CD142: N/A | CE142: N/A | CF142: N/A | CG142: N/A | CH142: N/A | CI142: N/A | CJ142: N/A | CK142: N/A | CL142: N/A
B143: Emptied and removed offsite | C143: N/A | D143: N/A | E143: N/A | F143: N/A | G143: N/A | H143: N/A | I143: N/A | J143: N/A | K143: N/A | L143: N/A | M143: N/A | N143: N/A | O143: N/A | P143: N/A | Q143: N/A | R143: N/A | S143: N/A | T143: N/A | U143: N/A | V143: N/A | W143: N/A | X143: N/A | Y143: N/A | Z143: N/A | AA143: N/A | AB143: N/A | AC143: N/A | AD143: N/A | AE143: N/A | AF143: N/A | AG143: N/A | AH143: N/A | AI143: N/A | AJ143: N/A | AK143: N/A | AL143: N/A | BB143: Emptied and removed offsite | BC143: N/A | BD143: N/A | BE143: N/A | BF143: N/A | BG143: N/A | BH143: N/A | BI143: N/A | BJ143: N/A | BK143: N/A | BL143: N/A | BM143: N/A | BN143: N/A | BO143: N/A | BP143: N/A | BQ143: N/A | BR143: N/A | BS143: N/A | BT143: N/A | BU143: N/A | BV143: N/A | BW143: N/A | BX143: N/A | BY143: N/A | BZ143: N/A | CA143: N/A | CB143: N/A | CC143: N/A | CD143: N/A | CE143: N/A | CF143: N/A | CG143: N/A | CH143: N/A | CI143: N/A | CJ143: N/A | CK143: N/A | CL143: N/A
A144: Latrine emptying practices | B144: Not emptied/treated and disposed in situ | C144: N/A | D144: N/A | E144: N/A | F144: N/A | G144: N/A | H144: N/A | I144: N/A | J144: N/A | K144: N/A | L144: N/A | M144: N/A | N144: N/A | O144: N/A | P144: N/A | Q144: N/A | R144: N/A | S144: N/A | T144: N/A | U144: N/A | V144: N/A | W144: N/A | X144: N/A | Y144: N/A | Z144: N/A | AA144: N/A | AB144: N/A | AC144: N/A | AD144: N/A | AE144: N/A | AF144: N/A | AG144: N/A | AH144: N/A | AI144: N/A | AJ144: N/A | AK144: N/A | AL144: N/A | BA144: Latrine emptying practices | BB144: Not emptied/treated and disposed in situ | BC144: N/A | BD144: N/A | BE144: N/A | BF144: N/A | BG144: N/A | BH144: N/A | BI144: N/A | BJ144: N/A | BK144: N/A | BL144: N/A | BM144: N/A | BN144: N/A | BO144: N/A | BP144: N/A | BQ144: N/A | BR144: N/A | BS144: N/A | BT144: N/A | BU144: N/A | BV144: N/A | BW144: N/A | BX144: N/A | BY144: N/A | BZ144: N/A | CA144: N/A | CB144: N/A | CC144: N/A | CD144: N/A | CE144: N/A | CF144: N/A | CG144: N/A | CH144: N/A | CI144: N/A | CJ144: N/A | CK144: N/A | CL144: N/A
B145: Emptied and buried on site | C145: N/A | D145: N/A | E145: N/A | F145: N/A | G145: N/A | H145: N/A | I145: N/A | J145: N/A | K145: N/A | L145: N/A | M145: N/A | N145: N/A | O145: N/A | P145: N/A | Q145: N/A | R145: N/A | S145: N/A | T145: N/A | U145: N/A | V145: N/A | W145: N/A | X145: N/A | Y145: N/A | Z145: N/A | AA145: N/A | AB145: N/A | AC145: N/A | AD145: N/A | AE145: N/A | AF145: N/A | AG145: N/A | AH145: N/A | AI145: N/A | AJ145: N/A | AK145: N/A | AL145: N/A | BB145: Emptied and buried on site | BC145: N/A | BD145: N/A | BE145: N/A | BF145: N/A | BG145: N/A | BH145: N/A | BI145: N/A | BJ145: N/A | BK145: N/A | BL145: N/A | BM145: N/A | BN145: N/A | BO145: N/A | BP145: N/A | BQ145: N/A | BR145: N/A | BS145: N/A | BT145: N/A | BU145: N/A | BV145: N/A | BW145: N/A | BX145: N/A | BY145: N/A | BZ145: N/A | CA145: N/A | CB145: N/A | CC145: N/A | CD145: N/A | CE145: N/A | CF145: N/A | CG145: N/A | CH145: N/A | CI145: N/A | CJ145: N/A | CK145: N/A | CL145: N/A
B146: Emptied and discharged locally | C146: N/A | D146: N/A | E146: N/A | F146: N/A | G146: N/A | H146: N/A | I146: N/A | J146: N/A | K146: N/A | L146: N/A | M146: N/A | N146: N/A | O146: N/A | P146: N/A | Q146: N/A | R146: N/A | S146: N/A | T146: N/A | U146: N/A | V146: N/A | W146: N/A | X146: N/A | Y146: N/A | Z146: N/A | AA146: N/A | AB146: N/A | AC146: N/A | AD146: N/A | AE146: N/A | AF146: N/A | AG146: N/A | AH146: N/A | AI146: N/A | AJ146: N/A | AK146: N/A | AL146: N/A | BB146: Emptied and discharged locally | BC146: N/A | BD146: N/A | BE146: N/A | BF146: N/A | BG146: N/A | BH146: N/A | BI146: N/A | BJ146: N/A | BK146: N/A | BL146: N/A | BM146: N/A | BN146: N/A | BO146: N/A | BP146: N/A | BQ146: N/A | BR146: N/A | BS146: N/A | BT146: N/A | BU146: N/A | BV146: N/A | BW146: N/A | BX146: N/A | BY146: N/A | BZ146: N/A | CA146: N/A | CB146: N/A | CC146: N/A | CD146: N/A | CE146: N/A | CF146: N/A | CG146: N/A | CH146: N/A | CI146: N/A | CJ146: N/A | CK146: N/A | CL146: N/A
B147: Emptied and removed offsite | C147: N/A | D147: N/A | E147: N/A | F147: N/A | G147: N/A | H147: N/A | I147: N/A | J147: N/A | K147: N/A | L147: N/A | M147: N/A | N147: N/A | O147: N/A | P147: N/A | Q147: N/A | R147: N/A | S147: N/A | T147: N/A | U147: N/A | V147: N/A | W147: N/A | X147: N/A | Y147: N/A | Z147: N/A | AA147: N/A | AB147: N/A | AC147: N/A | AD147: N/A | AE147: N/A | AF147: N/A | AG147: N/A | AH147: N/A | AI147: N/A | AJ147: N/A | AK147: N/A | AL147: N/A | BB147: Emptied and removed offsite | BC147: N/A | BD147: N/A | BE147: N/A | BF147: N/A | BG147: N/A | BH147: N/A | BI147: N/A | BJ147: N/A | BK147: N/A | BL147: N/A | BM147: N/A | BN147: N/A | BO147: N/A | BP147: N/A | BQ147: N/A | BR147: N/A | BS147: N/A | BT147: N/A | BU147: N/A | BV147: N/A | BW147: N/A | BX147: N/A | BY147: N/A | BZ147: N/A | CA147: N/A | CB147: N/A | CC147: N/A | CD147: N/A | CE147: N/A | CF147: N/A | CG147: N/A | CH147: N/A | CI147: N/A | CJ147: N/A | CK147: N/A | CL147: N/A
A148: Shared among improved sanitation facilities | B148: Yes | C148: N/A | D148: N/A | E148: N/A | F148: N/A | G148: N/A | H148: N/A | I148: N/A | J148: N/A | K148: N/A | L148: N/A | M148: N/A | N148: N/A | O148: N/A | P148: N/A | Q148: N/A | R148: N/A | S148: N/A | T148: N/A | U148: N/A | V148: N/A | W148: N/A | X148: N/A | Y148: N/A | Z148: N/A | AA148: N/A | AB148: N/A | AC148: N/A | AD148: N/A | AE148: N/A | AF148: N/A | AG148: N/A | AH148: N/A | AI148: N/A | AJ148: N/A | AK148: N/A | AL148: N/A | BA148: Shared among improved sanitation facilities | BB148: Yes | BC148: N/A | BD148: N/A | BE148: N/A | BF148: N/A | BG148: N/A | BH148: N/A | BI148: N/A | BJ148: N/A | BK148: N/A | BL148: N/A | BM148: N/A | BN148: N/A | BO148: N/A | BP148: N/A | BQ148: N/A | BR148: N/A | BS148: N/A | BT148: N/A | BU148: N/A | BV148: N/A | BW148: N/A | BX148: N/A | BY148: N/A | BZ148: N/A | CA148: N/A | CB148: N/A | CC148: N/A | CD148: N/A | CE148: N/A | CF148: N/A | CG148: N/A | CH148: N/A | CI148: N/A | CJ148: N/A | CK148: N/A | CL148: N/A
B149: No | C149: N/A | D149: N/A | E149: N/A | F149: N/A | G149: N/A | H149: N/A | I149: N/A | J149: N/A | K149: N/A | L149: N/A | M149: N/A | N149: N/A | O149: N/A | P149: N/A | Q149: N/A | R149: N/A | S149: N/A | T149: N/A | U149: N/A | V149: N/A | W149: N/A | X149: N/A | Y149: N/A | Z149: N/A | AA149: N/A | AB149: N/A | AC149: N/A | AD149: N/A | AE149: N/A | AF149: N/A | AG149: N/A | AH149: N/A | AI149: N/A | AJ149: N/A | AK149: N/A | AL149: N/A | BB149: No | BC149: N/A | BD149: N/A | BE149: N/A | BF149: N/A | BG149: N/A | BH149: N/A | BI149: N/A | BJ149: N/A | BK149: N/A | BL149: N/A | BM149: N/A | BN149: N/A | BO149: N/A | BP149: N/A | BQ149: N/A | BR149: N/A | BS149: N/A | BT149: N/A | BU149: N/A | BV149: N/A | BW149: N/A | BX149: N/A | BY149: N/A | BZ149: N/A | CA149: N/A | CB149: N/A | CC149: N/A | CD149: N/A | CE149: N/A | CF149: N/A | CG149: N/A | CH149: N/A | CI149: N/A | CJ149: N/A | CK149: N/A | CL149: N/A
B150: DK/missing | C150: N/A | D150: N/A | E150: N/A | F150: N/A | G150: N/A | H150: N/A | I150: N/A | J150: N/A | K150: N/A | L150: N/A | M150: N/A | N150: N/A | O150: N/A | P150: N/A | Q150: N/A | R150: N/A | S150: N/A | T150: N/A | U150: N/A | V150: N/A | W150: N/A | X150: N/A | Y150: N/A | Z150: N/A | AA150: N/A | AB150: N/A | AC150: N/A | AD150: N/A | AE150: N/A | AF150: N/A | AG150: N/A | AH150: N/A | AI150: N/A | AJ150: N/A | AK150: N/A | AL150: N/A | BB150: DK/missing | BC150: N/A | BD150: N/A | BE150: N/A | BF150: N/A | BG150: N/A | BH150: N/A | BI150: N/A | BJ150: N/A | BK150: N/A | BL150: N/A | BM150: N/A | BN150: N/A | BO150: N/A | BP150: N/A | BQ150: N/A | BR150: N/A | BS150: N/A | BT150: N/A | BU150: N/A | BV150: N/A | BW150: N/A | BX150: N/A | BY150: N/A | BZ150: N/A | CA150: N/A | CB150: N/A | CC150: N/A | CD150: N/A | CE150: N/A | CF150: N/A | CG150: N/A | CH150: N/A | CI150: N/A | CJ150: N/A | CK150: N/A | CL150: N/A
A151: Shared among all sanitation facilities | B151: Yes | C151: N/A | D151: N/A | E151: N/A | F151: N/A | G151: N/A | H151: N/A | I151: N/A | J151: N/A | K151: N/A | L151: N/A | M151: N/A | N151: N/A | O151: N/A | P151: N/A | Q151: N/A | R151: N/A | S151: N/A | T151: N/A | U151: N/A | V151: N/A | W151: N/A | X151: N/A | Y151: N/A | Z151: N/A | AA151: N/A | AB151: N/A | AC151: N/A | AD151: N/A | AE151: N/A | AF151: N/A | AG151: N/A | AH151: N/A | AI151: N/A | AJ151: N/A | AK151: N/A | AL151: N/A | BA151: Shared among all sanitation facilities | BB151: Yes | BC151: N/A | BD151: N/A | BE151: N/A | BF151: N/A | BG151: N/A | BH151: N/A | BI151: N/A | BJ151: N/A | BK151: N/A | BL151: N/A | BM151: N/A | BN151: N/A | BO151: N/A | BP151: N/A | BQ151: N/A | BR151: N/A | BS151: N/A | BT151: N/A | BU151: N/A | BV151: N/A | BW151: N/A | BX151: N/A | BY151: N/A | BZ151: N/A | CA151: N/A | CB151: N/A | CC151: N/A | CD151: N/A | CE151: N/A | CF151: N/A | CG151: N/A | CH151: N/A | CI151: N/A | CJ151: N/A | CK151: N/A | CL151: N/A
B152: No | C152: N/A | D152: N/A | E152: N/A | F152: N/A | G152: N/A | H152: N/A | I152: N/A | J152: N/A | K152: N/A | L152: N/A | M152: N/A | N152: N/A | O152: N/A | P152: N/A | Q152: N/A | R152: N/A | S152: N/A | T152: N/A | U152: N/A | V152: N/A | W152: N/A | X152: N/A | Y152: N/A | Z152: N/A | AA152: N/A | AB152: N/A | AC152: N/A | AD152: N/A | AE152: N/A | AF152: N/A | AG152: N/A | AH152: N/A | AI152: N/A | AJ152: N/A | AK152: N/A | AL152: N/A | BB152: No | BC152: N/A | BD152: N/A | BE152: N/A | BF152: N/A | BG152: N/A | BH152: N/A | BI152: N/A | BJ152: N/A | BK152: N/A | BL152: N/A | BM152: N/A | BN152: N/A | BO152: N/A | BP152: N/A | BQ152: N/A | BR152: N/A | BS152: N/A | BT152: N/A | BU152: N/A | BV152: N/A | BW152: N/A | BX152: N/A | BY152: N/A | BZ152: N/A | CA152: N/A | CB152: N/A | CC152: N/A | CD152: N/A | CE152: N/A | CF152: N/A | CG152: N/A | CH152: N/A | CI152: N/A | CJ152: N/A | CK152: N/A | CL152: N/A
A153: Type of toilet facility | B153: Flush toilet | C153: 0.254275579 | D153: 0.175502216 | E153: 0.1913708094 | F153: 0.5929925013 | G153: 18.76992216 | H153: 0.2429337742 | I153: 2.497029382 | J153: 9.573516607 | K153: 14.23855195 | L153: 44.31847907 | M153: 0.1000252281 | N153: 0.3925629614 | O153: 0 | P153: 0.2572497206 | Q153: 1.879554882 | R153: 1.899259924 | S153: 17.30231919 | T153: 2.300947184 | U153: 2.224175883 | V153: 1.196678113 | W153: 4.504908631 | X153: 6.99156017 | Y153: 0.2763627038 | Z153: 0 | AA153: 0.4736569929 | AB153: 8.080939482 | AC153: 8.348853261 | AD153: 0 | AE153: 4.18123431 | AF153: 0.8370511823 | AG153: 0.4553074346 | AH153: 0.695465603 | AI153: 0.9093311382 | AJ153: 2.807342302 | AK153: 0.7902409502 | AL153: 1.182548193 | BA153: Type of toilet facility | BB153: Flush toilet | BC153: 16.945258 | BD153: 11.706768 | BE153: 12.759205 | BF153: 39.54674 | BG153: 1247.582626 | BH153: 4.132524 | BI153: 42.523051 | BJ153: 163.190359 | BK153: 241.951351 | BL153: 746.139432 | BM153: 4.962658 | BN153: 19.556844 | BO153: 0 | BP153: 12.759205 | BQ153: 93.325173 | BR153: 24.077732 | BS153: 497.232185 | BT153: 42.015842 | BU153: 36.861505 | BV153: 20.58117 | BW153: 62.881109 | BX153: 110.349667 | BY153: 2.435591 | BZ153: 0 | CA153: 6.437368 | CB153: 164.937143 | CC153: 136.340759 | CD153: 0 | CE153: 115.564346 | CF153: 8.163892 | CG153: 4.343946 | CH153: 9.045102 | CI153: 27.150645 | CJ153: 28.571692 | CK153: 12.089897 | CL153: 19.461006
B154: Traditional pit toilet | C154: 73.23736827 | D154: 81.24849276 | E154: 90.20993396 | F154: 91.28534345 | G154: 58.03938964 | H154: 94.04709837 | I154: 84.65976599 | J154: 68.63161062 | K154: 58.94727863 | L154: 36.01146993 | M154: 73.00333095 | N154: 77.51854666 | O154: 84.26605495 | P154: 90.41226881 | Q154: 86.50366073 | R154: 63.36522073 | S154: 73.22845195 | T154: 78.70717391 | U154: 91.97689947 | V154: 87.70835988 | W154: 88.97204069 | X154: 73.70118283 | Y154: 92.96335848 | Z154: 69.22104241 | AA154: 64.53105621 | AB154: 80.83503229 | AC154: 85.18867153 | AD154: 88.99737609 | AE154: 72.15075536 | AF154: 91.20441096 | AG154: 93.19425144 | AH154: 93.85713694 | AI154: 66.68114694 | AJ154: 88.37149723 | AK154: 71.79403602 | AL154: 75.39160675 | BB154: Traditional pit toilet | BC154: 4880.634253 | BD154: 5419.631027 | BE154: 6014.538184 | BF154: 6087.830344 | BG154: 3857.710944 | BH154: 1599.826506 | BI154: 1441.709726 | BJ154: 1169.895832 | BK154: 1001.673046 | BL154: 606.283841 | BM154: 3621.991885 | BN154: 3861.847075 | BO154: 4177.65282 | BP154: 4484.314578 | BQ154: 4295.149443 | BR154: 803.308059 | BS154: 2104.431364 | BT154: 1437.211687 | BU154: 1524.343001 | BV154: 1508.459665 | BW154: 1241.903232 | BX154: 1163.245511 | BY154: 819.288262 | BZ154: 643.447847 | CA154: 877.02739 | CB154: 1649.894707 | CC154: 1391.17167 | CD154: 873.655696 | CE154: 1994.161111 | CF154: 889.530983 | CG154: 889.13724 | CH154: 1220.689238 | CI154: 1990.95365 | CJ154: 899.399834 | CK154: 1098.377021 | CL154: 1240.707584
B155: Ventilated improved pit toilet | C155: 0.2124812033 | D155: 0.01815213402 | E155: 0.6228745138 | F155: 5.165969462 | G155: 22.63885489 | H155: 1.987762892 | I155: 11.8873985 | J155: 20.59800033 | K155: 26.81416943 | L155: 19.67005101 | M155: 0.2854034733 | N155: 0 | O155: 0.5224386993 | P155: 0.3234909735 | Q155: 9.584190118 | R155: 13.28280118 | S155: 9.078055219 | T155: 4.429377991 | U155: 5.282721202 | V155: 3.025407009 | W155: 1.50118833 | X155: 14.11264992 | Y155: 1.588822045 | Z155: 4.44519378 | AA155: 4.351578193 | AB155: 10.4696931 | AC155: 5.575103355 | AD155: 1.80211223 | AE155: 10.05657563 | AF155: 0 | AG155: 2.8670705 | AH155: 2.640842724 | AI155: 4.11516859 | AJ155: 1.46084921 | AK155: 1.329167058 | AL155: 4.745884788 | BB155: Ventilated improved pit toilet | BC155: 14.160026 | BD155: 1.210827 | BE155: 41.528714 | BF155: 344.519114 | BG155: 1504.739433 | BH155: 33.813651 | BI155: 202.435925 | BJ155: 351.113933 | BK155: 455.644966 | BL155: 331.162102 | BM155: 14.160026 | BN155: 0 | BO155: 25.90091 | BP155: 16.044673 | BQ155: 475.881928 | BR155: 168.391763 | BS155: 260.884173 | BT155: 80.881494 | BU155: 87.551104 | BV155: 52.032719 | BW155: 20.954118 | BX155: 222.743734 | BY155: 14.002326 | BZ155: 41.320533 | CA155: 59.141342 | CB155: 213.693132 | CC155: 91.044099 | CD155: 17.690697 | CE155: 277.951796 | CF155: 0 | CG155: 27.353824 | CH155: 34.346331 | CI155: 122.869961 | CJ155: 14.867775 | CK155: 20.334928 | CL155: 78.102265
B156: No facility, bush, field | C156: 25.93383823 | D156: 18.26666313 | E156: 8.511944806 | F156: 2.432110625 | G156: 0.5036732168 | H156: 3.722204968 | I156: 0.9558061269 | J156: 1.009082979 | K156: 0 | L156: 0 | M156: 26.1249548 | N156: 21.90934636 | O156: 14.78328834 | P156: 8.183820104 | Q156: 1.745258966 | R156: 21.45271817 | S156: 0.3911736425 | T156: 14.56250091 | U156: 0.5162034478 | V156: 8.069555002 | W156: 5.021862352 | X156: 4.126323176 | Y156: 5.171456771 | Z156: 26.33376381 | AA156: 30.64370861 | AB156: 0.4649310952 | AC156: 0.8312810286 | AD156: 9.200511676 | AE156: 13.6114347 | AF156: 7.724187593 | AG156: 3.307919124 | AH156: 2.806554738 | AI156: 28.29435333 | AJ156: 7.360311262 | AK156: 26.08655597 | AL156: 13.34412345 | BB156: No facility, bush, field | BC156: 1728.264985 | BD156: 1218.466594 | BE156: 567.514184 | BF156: 162.197745 | BG156: 33.477707 | BH156: 63.318085 | BI156: 16.276858 | BJ156: 17.200849 | BK156: 0 | BL156: 0 | BM156: 1296.165162 | BN156: 1091.487764 | BO156: 732.910141 | BP156: 405.905352 | BQ156: 86.657004 | BR156: 271.965302 | BS156: 11.241506 | BT156: 265.914725 | BU156: 8.555095 | BV156: 138.784926 | BW156: 70.096932 | BX156: 65.126864 | BY156: 45.57617 | BZ156: 244.786889 | CA156: 416.471903 | CB156: 9.489541 | CC156: 13.575216 | CD156: 90.318162 | CE156: 376.203875 | CF156: 75.335218 | CG156: 31.559823 | CH156: 36.501552 | CI156: 844.807695 | CJ156: 74.909478 | CK156: 399.098243 | CL156: 219.6021
B157: OTHER | C157: 0.3620367239 | D157: 0.2911897618 | E157: 0.4638759138 | F157: 0.5235839574 | G157: 0.04816009945 | H157: 0 | I157: 0 | J157: 0.1877894624 | K157: 0 | L157: 0 | M157: 0.4862855485 | N157: 0.1795440177 | O157: 0.4282180118 | P157: 0.8231703953 | Q157: 0.2873353046 | R157: 0 | S157: 0 | T157: 0 | U157: 0 | V157: 0 | W157: 0 | X157: 1.068283903 | Y157: 0 | Z157: 0 | AA157: 0 | AB157: 0.1494040396 | AC157: 0.05609082827 | AD157: 0 | AE157: 0 | AF157: 0.2343502609 | AG157: 0.175451505 | AH157: 0 | AI157: 0 | AJ157: 0 | AK157: 0 | AL157: 5.33583682 | BB157: OTHER | BC157: 24.126602 | BD157: 19.423635 | BE157: 30.927851 | BF157: 34.917876 | BG157: 3.201063 | BH157: 0 | BI157: 0 | BJ157: 3.201063 | BK157: 0 | BL157: 0 | BM157: 24.126602 | BN157: 8.944589 | BO157: 21.229737 | BP157: 40.828032 | BQ157: 14.267004 | BR157: 0 | BS157: 0 | BT157: 0 | BU157: 0 | BV157: 0 | BW157: 0 | BX157: 16.861011 | BY157: 0 | BZ157: 0 | CA157: 0 | CB157: 3.049432 | CC157: 0.91599 | CD157: 0 | CE157: 0 | CF157: 2.285655 | CG157: 1.673928 | CH157: 0 | CI157: 0 | CJ157: 0 | CK157: 0 | CL157: 87.811011
BB158: Total | BC158: 6664.131124 | BD158: 6670.438851 | BE158: 6667.268138 | BF158: 6669.011819 | BG158: 6646.711773 | BH158: 1701.090766 | BI158: 1702.94556 | BJ158: 1704.602036 | BK158: 1699.269363 | BL158: 1683.585375 | BM158: 4961.406333 | BN158: 4981.836272 | BO158: 4957.693608 | BP158: 4959.85184 | BQ158: 4965.280552 | BR158: 1267.742856 | BS158: 2873.789228 | BT158: 1826.023748 | BU158: 1657.310705 | BV158: 1719.85848 | BW158: 1395.835391 | BX158: 1578.326787 | BY158: 881.302349 | BZ158: 929.555269 | CA158: 1359.078003 | CB158: 2041.063955 | CC158: 1633.047734 | CD158: 981.664555 | CE158: 2763.881128 | CF158: 975.315748 | CG158: 954.068761 | CH158: 1300.582223 | CI158: 2985.781951 | CJ158: 1017.748779 | CK158: 1529.900089 | CL158: 1645.683966
A208: =A1026 -> United Republic of Tanzania
A209: =A1034 -> 2004
A210: Access to hygiene facilities
A211: by wealth quintile and sub-national region
A212: Notes:
A213: WHO/UNICEF JMP customised wealth index excludes water,
A214: sanitation and hygiene assets.
A215: Survey used for analysis: | B215: =A1025 -> AIS04
A220: Access to handwashing | C220: NATIONAL wealth index quintile | H220: URBAN wealth index quintile | M220: RURAL wealth index quintile | R220: SUB-REGIONS: | BA220: Raw numbers of respondents: | BB220: Access to handwashing | BC220: NATIONAL wealth index quintile | BH220: URBAN wealth index quintile | BM220: RURAL wealth index quintile | BR220: SUB-REGIONS:
A221: Weighted percentage (used in graphs) | C221: Poorest | D221: Poor | E221: Middle | F221: Rich | G221: Richest | H221: Poorest | I221: Poor | J221: Middle | K221: Rich | L221: Richest | M221: Poorest | N221: Poor | O221: Middle | P221: Rich | Q221: Richest | R221: Arusha | S221: Dar es Salaam | T221: Dodoma | U221: Iringa | V221: Kagera | W221: Kigoma | X221: Kilimanjaro | Y221: Lindi | Z221: Manyara | AA221: Mara | AB221: Mbeya | AC221: Morogoro | AD221: Mtwara | AE221: Mwanza | AF221: Pwani | AG221: Rukwa | AH221: Ruvuma | AI221: Shinyanga | AJ221: Singida | AK221: Tabora | AL221: Tanga | BA221: Hygiene data, raw numbers (weighted) | BC221: Poorest | BD221: Poor | BE221: Middle | BF221: Rich | BG221: Richest | BH221: Poorest | BI221: Poor | BJ221: Middle | BK221: Rich | BL221: Richest | BM221: Poorest | BN221: Poor | BO221: Middle | BP221: Rich | BQ221: Richest | BR221: Arusha | BS221: Dar es Salaam | BT221: Dodoma | BU221: Iringa | BV221: Kagera | BW221: Kigoma | BX221: Kilimanjaro | BY221: Lindi | BZ221: Manyara | CA221: Mara | CB221: Mbeya | CC221: Morogoro | CD221: Mtwara | CE221: Mwanza | CF221: Pwani | CG221: Rukwa | CH221: Ruvuma | CI221: Shinyanga | CJ221: Singida | CK221: Tabora | CL221: Tanga
A222: Hygiene ladder | B222: Basic | C222: N/A | D222: N/A | E222: N/A | F222: N/A | G222: N/A | H222: N/A | I222: N/A | J222: N/A | K222: N/A | L222: N/A | M222: N/A | N222: N/A | O222: N/A | P222: N/A | Q222: N/A | R222: N/A | S222: N/A | T222: N/A | U222: N/A | V222: N/A | W222: N/A | X222: N/A | Y222: N/A | Z222: N/A | AA222: N/A | AB222: N/A | AC222: N/A | AD222: N/A | AE222: N/A | AF222: N/A | AG222: N/A | AH222: N/A | AI222: N/A | AJ222: N/A | AK222: N/A | AL222: N/A | BA222: Hygiene ladder | BB222: Basic | BC222: N/A | BD222: N/A | BE222: N/A | BF222: N/A | BG222: N/A | BH222: N/A | BI222: N/A | BJ222: N/A | BK222: N/A | BL222: N/A | BM222: N/A | BN222: N/A | BO222: N/A | BP222: N/A | BQ222: N/A | BR222: N/A | BS222: N/A | BT222: N/A | BU222: N/A | BV222: N/A | BW222: N/A | BX222: N/A | BY222: N/A | BZ222: N/A | CA222: N/A | CB222: N/A | CC222: N/A | CD222: N/A | CE222: N/A | CF222: N/A | CG222: N/A | CH222: N/A | CI222: N/A | CJ222: N/A | CK222: N/A | CL222: N/A
B223: Limited | C223: N/A | D223: N/A | E223: N/A | F223: N/A | G223: N/A | H223: N/A | I223: N/A | J223: N/A | K223: N/A | L223: N/A | M223: N/A | N223: N/A | O223: N/A | P223: N/A | Q223: N/A | R223: N/A | S223: N/A | T223: N/A | U223: N/A | V223: N/A | W223: N/A | X223: N/A | Y223: N/A | Z223: N/A | AA223: N/A | AB223: N/A | AC223: N/A | AD223: N/A | AE223: N/A | AF223: N/A | AG223: N/A | AH223: N/A | AI223: N/A | AJ223: N/A | AK223: N/A | AL223: N/A | BB223: Limited | BC223: N/A | BD223: N/A | BE223: N/A | BF223: N/A | BG223: N/A | BH223: N/A | BI223: N/A | BJ223: N/A | BK223: N/A | BL223: N/A | BM223: N/A | BN223: N/A | BO223: N/A | BP223: N/A | BQ223: N/A | BR223: N/A | BS223: N/A | BT223: N/A | BU223: N/A | BV223: N/A | BW223: N/A | BX223: N/A | BY223: N/A | BZ223: N/A | CA223: N/A | CB223: N/A | CC223: N/A | CD223: N/A | CE223: N/A | CF223: N/A | CG223: N/A | CH223: N/A | CI223: N/A | CJ223: N/A | CK223: N/A | CL223: N/A
B224: No facility | C224: N/A | D224: N/A | E224: N/A | F224: N/A | G224: N/A | H224: N/A | I224: N/A | J224: N/A | K224: N/A | L224: N/A | M224: N/A | N224: N/A | O224: N/A | P224: N/A | Q224: N/A | R224: N/A | S224: N/A | T224: N/A | U224: N/A | V224: N/A | W224: N/A | X224: N/A | Y224: N/A | Z224: N/A | AA224: N/A | AB224: N/A | AC224: N/A | AD224: N/A | AE224: N/A | AF224: N/A | AG224: N/A | AH224: N/A | AI224: N/A | AJ224: N/A | AK224: N/A | AL224: N/A | BB224: No facility | BC224: N/A | BD224: N/A | BE224: N/A | BF224: N/A | BG224: N/A | BH224: N/A | BI224: N/A | BJ224: N/A | BK224: N/A | BL224: N/A | BM224: N/A | BN224: N/A | BO224: N/A | BP224: N/A | BQ224: N/A | BR224: N/A | BS224: N/A | BT224: N/A | BU224: N/A | BV224: N/A | BW224: N/A | BX224: N/A | BY224: N/A | BZ224: N/A | CA224: N/A | CB224: N/A | CC224: N/A | CD224: N/A | CE224: N/A | CF224: N/A | CG224: N/A | CH224: N/A | CI224: N/A | CJ224: N/A | CK224: N/A | CL224: N/A
BA225: Observed handwashing place | BB225: Fixed | BC225: N/A | BD225: N/A | BE225: N/A | BF225: N/A | BG225: N/A | BH225: N/A | BI225: N/A | BJ225: N/A | BK225: N/A | BL225: N/A | BM225: N/A | BN225: N/A | BO225: N/A | BP225: N/A | BQ225: N/A | BR225: N/A | BS225: N/A | BT225: N/A | BU225: N/A | BV225: N/A | BW225: N/A | BX225: N/A | BY225: N/A | BZ225: N/A | CA225: N/A | CB225: N/A | CC225: N/A | CD225: N/A | CE225: N/A | CF225: N/A | CG225: N/A | CH225: N/A | CI225: N/A | CJ225: N/A | CK225: N/A | CL225: N/A
BB226: Mobile | BC226: N/A | BD226: N/A | BE226: N/A | BF226: N/A | BG226: N/A | BH226: N/A | BI226: N/A | BJ226: N/A | BK226: N/A | BL226: N/A | BM226: N/A | BN226: N/A | BO226: N/A | BP226: N/A | BQ226: N/A | BR226: N/A | BS226: N/A | BT226: N/A | BU226: N/A | BV226: N/A | BW226: N/A | BX226: N/A | BY226: N/A | BZ226: N/A | CA226: N/A | CB226: N/A | CC226: N/A | CD226: N/A | CE226: N/A | CF226: N/A | CG226: N/A | CH226: N/A | CI226: N/A | CJ226: N/A | CK226: N/A | CL226: N/A
BA227: Water / Soap | BB227: Water and soap | BC227: N/A | BD227: N/A | BE227: N/A | BF227: N/A | BG227: N/A | BH227: N/A | BI227: N/A | BJ227: N/A | BK227: N/A | BL227: N/A | BM227: N/A | BN227: N/A | BO227: N/A | BP227: N/A | BQ227: N/A | BR227: N/A | BS227: N/A | BT227: N/A | BU227: N/A | BV227: N/A | BW227: N/A | BX227: N/A | BY227: N/A | BZ227: N/A | CA227: N/A | CB227: N/A | CC227: N/A | CD227: N/A | CE227: N/A | CF227: N/A | CG227: N/A | CH227: N/A | CI227: N/A | CJ227: N/A | CK227: N/A | CL227: N/A
BB228: Water only | BC228: N/A | BD228: N/A | BE228: N/A | BF228: N/A | BG228: N/A | BH228: N/A | BI228: N/A | BJ228: N/A | BK228: N/A | BL228: N/A | BM228: N/A | BN228: N/A | BO228: N/A | BP228: N/A | BQ228: N/A | BR228: N/A | BS228: N/A | BT228: N/A | BU228: N/A | BV228: N/A | BW228: N/A | BX228: N/A | BY228: N/A | BZ228: N/A | CA228: N/A | CB228: N/A | CC228: N/A | CD228: N/A | CE228: N/A | CF228: N/A | CG228: N/A | CH228: N/A | CI228: N/A | CJ228: N/A | CK228: N/A | CL228: N/A
BB229: Soap only | BC229: N/A | BD229: N/A | BE229: N/A | BF229: N/A | BG229: N/A | BH229: N/A | BI229: N/A | BJ229: N/A | BK229: N/A | BL229: N/A | BM229: N/A | BN229: N/A | BO229: N/A | BP229: N/A | BQ229: N/A | BR229: N/A | BS229: N/A | BT229: N/A | BU229: N/A | BV229: N/A | BW229: N/A | BX229: N/A | BY229: N/A | BZ229: N/A | CA229: N/A | CB229: N/A | CC229: N/A | CD229: N/A | CE229: N/A | CF229: N/A | CG229: N/A | CH229: N/A | CI229: N/A | CJ229: N/A | CK229: N/A | CL229: N/A
BB230: Neither | BC230: N/A | BD230: N/A | BE230: N/A | BF230: N/A | BG230: N/A | BH230: N/A | BI230: N/A | BJ230: N/A | BK230: N/A | BL230: N/A | BM230: N/A | BN230: N/A | BO230: N/A | BP230: N/A | BQ230: N/A | BR230: N/A | BS230: N/A | BT230: N/A | BU230: N/A | BV230: N/A | BW230: N/A | BX230: N/A | BY230: N/A | BZ230: N/A | CA230: N/A | CB230: N/A | CC230: N/A | CD230: N/A | CE230: N/A | CF230: N/A | CG230: N/A | CH230: N/A | CI230: N/A | CJ230: N/A | CK230: N/A | CL230: N/A
BA259: Raw numbers of respondents: | BB259: Menstrual health and hygiene | BC259: NATIONAL wealth index quintile | BH259: URBAN wealth index quintile | BM259: RURAL wealth index quintile | BR259: SUB-REGIONS:
BA260: MHH data, raw numbers (weighted) | BC260: Poorest | BD260: Poor | BE260: Middle | BF260: Rich | BG260: Richest | BH260: Poorest | BI260: Poor | BJ260: Middle | BK260: Rich | BL260: Richest | BM260: Poorest | BN260: Poor | BO260: Middle | BP260: Rich | BQ260: Richest | BR260: Arusha | BS260: Dar es Salaam | BT260: Dodoma | BU260: Iringa | BV260: Kagera | BW260: Kigoma | BX260: Kilimanjaro | BY260: Lindi | BZ260: Manyara | CA260: Mara | CB260: Mbeya | CC260: Morogoro | CD260: Mtwara | CE260: Mwanza | CF260: Pwani | CG260: Rukwa | CH260: Ruvuma | CI260: Shinyanga | CJ260: Singida | CK260: Tabora | CL260: Tanga
BA261: Private place to wash and change | BB261: Yes | BC261: N/A | BD261: N/A | BE261: N/A | BF261: N/A | BG261: N/A | BH261: N/A | BI261: N/A | BJ261: N/A | BK261: N/A | BL261: N/A | BM261: N/A | BN261: N/A | BO261: N/A | BP261: N/A | BQ261: N/A | BR261: N/A | BS261: N/A | BT261: N/A | BU261: N/A | BV261: N/A | BW261: N/A | BX261: N/A | BY261: N/A | BZ261: N/A | CA261: N/A | CB261: N/A | CC261: N/A | CD261: N/A | CE261: N/A | CF261: N/A | CG261: N/A | CH261: N/A | CI261: N/A | CJ261: N/A | CK261: N/A | CL261: N/A
BB262: No | BC262: N/A | BD262: N/A | BE262: N/A | BF262: N/A | BG262: N/A | BH262: N/A | BI262: N/A | BJ262: N/A | BK262: N/A | BL262: N/A | BM262: N/A | BN262: N/A | BO262: N/A | BP262: N/A | BQ262: N/A | BR262: N/A | BS262: N/A | BT262: N/A | BU262: N/A | BV262: N/A | BW262: N/A | BX262: N/A | BY262: N/A | BZ262: N/A | CA262: N/A | CB262: N/A | CC262: N/A | CD262: N/A | CE262: N/A | CF262: N/A | CG262: N/A | CH262: N/A | CI262: N/A | CJ262: N/A | CK262: N/A | CL262: N/A
BB263: DK/not sure/missing | BC263: N/A | BD263: N/A | BE263: N/A | BF263: N/A | BG263: N/A | BH263: N/A | BI263: N/A | BJ263: N/A | BK263: N/A | BL263: N/A | BM263: N/A | BN263: N/A | BO263: N/A | BP263: N/A | BQ263: N/A | BR263: N/A | BS263: N/A | BT263: N/A | BU263: N/A | BV263: N/A | BW263: N/A | BX263: N/A | BY263: N/A | BZ263: N/A | CA263: N/A | CB263: N/A | CC263: N/A | CD263: N/A | CE263: N/A | CF263: N/A | CG263: N/A | CH263: N/A | CI263: N/A | CJ263: N/A | CK263: N/A | CL263: N/A
BA264: Use of menstrual materials | BB264: Materials reusable | BC264: N/A | BD264: N/A | BE264: N/A | BF264: N/A | BG264: N/A | BH264: N/A | BI264: N/A | BJ264: N/A | BK264: N/A | BL264: N/A | BM264: N/A | BN264: N/A | BO264: N/A | BP264: N/A | BQ264: N/A | BR264: N/A | BS264: N/A | BT264: N/A | BU264: N/A | BV264: N/A | BW264: N/A | BX264: N/A | BY264: N/A | BZ264: N/A | CA264: N/A | CB264: N/A | CC264: N/A | CD264: N/A | CE264: N/A | CF264: N/A | CG264: N/A | CH264: N/A | CI264: N/A | CJ264: N/A | CK264: N/A | CL264: N/A
BB265: Materials not reusable | BC265: N/A | BD265: N/A | BE265: N/A | BF265: N/A | BG265: N/A | BH265: N/A | BI265: N/A | BJ265: N/A | BK265: N/A | BL265: N/A | BM265: N/A | BN265: N/A | BO265: N/A | BP265: N/A | BQ265: N/A | BR265: N/A | BS265: N/A | BT265: N/A | BU265: N/A | BV265: N/A | BW265: N/A | BX265: N/A | BY265: N/A | BZ265: N/A | CA265: N/A | CB265: N/A | CC265: N/A | CD265: N/A | CE265: N/A | CF265: N/A | CG265: N/A | CH265: N/A | CI265: N/A | CJ265: N/A | CK265: N/A | CL265: N/A
BB266: No materials used | BC266: N/A | BD266: N/A | BE266: N/A | BF266: N/A | BG266: N/A | BH266: N/A | BI266: N/A | BJ266: N/A | BK266: N/A | BL266: N/A | BM266: N/A | BN266: N/A | BO266: N/A | BP266: N/A | BQ266: N/A | BR266: N/A | BS266: N/A | BT266: N/A | BU266: N/A | BV266: N/A | BW266: N/A | BX266: N/A | BY266: N/A | BZ266: N/A | CA266: N/A | CB266: N/A | CC266: N/A | CD266: N/A | CE266: N/A | CF266: N/A | CG266: N/A | CH266: N/A | CI266: N/A | CJ266: N/A | CK266: N/A | CL266: N/A
BB267: DK/not sure/missing | BC267: N/A | BD267: N/A | BE267: N/A | BF267: N/A | BG267: N/A | BH267: N/A | BI267: N/A | BJ267: N/A | BK267: N/A | BL267: N/A | BM267: N/A | BN267: N/A | BO267: N/A | BP267: N/A | BQ267: N/A | BR267: N/A | BS267: N/A | BT267: N/A | BU267: N/A | BV267: N/A | BW267: N/A | BX267: N/A | BY267: N/A | BZ267: N/A | CA267: N/A | CB267: N/A | CC267: N/A | CD267: N/A | CE267: N/A | CF267: N/A | CG267: N/A | CH267: N/A | CI267: N/A | CJ267: N/A | CK267: N/A | CL267: N/A
BA268: Use of menstrual materials with private place to wash and change | BB268: Materials reusable | BC268: N/A | BD268: N/A | BE268: N/A | BF268: N/A | BG268: N/A | BH268: N/A | BI268: N/A | BJ268: N/A | BK268: N/A | BL268: N/A | BM268: N/A | BN268: N/A | BO268: N/A | BP268: N/A | BQ268: N/A | BR268: N/A | BS268: N/A | BT268: N/A | BU268: N/A | BV268: N/A | BW268: N/A | BX268: N/A | BY268: N/A | BZ268: N/A | CA268: N/A | CB268: N/A | CC268: N/A | CD268: N/A | CE268: N/A | CF268: N/A | CG268: N/A | CH268: N/A | CI268: N/A | CJ268: N/A | CK268: N/A | CL268: N/A
BB269: Materials not reusable | BC269: N/A | BD269: N/A | BE269: N/A | BF269: N/A | BG269: N/A | BH269: N/A | BI269: N/A | BJ269: N/A | BK269: N/A | BL269: N/A | BM269: N/A | BN269: N/A | BO269: N/A | BP269: N/A | BQ269: N/A | BR269: N/A | BS269: N/A | BT269: N/A | BU269: N/A | BV269: N/A | BW269: N/A | BX269: N/A | BY269: N/A | BZ269: N/A | CA269: N/A | CB269: N/A | CC269: N/A | CD269: N/A | CE269: N/A | CF269: N/A | CG269: N/A | CH269: N/A | CI269: N/A | CJ269: N/A | CK269: N/A | CL269: N/A
BB270: No materials used | BC270: N/A | BD270: N/A | BE270: N/A | BF270: N/A | BG270: N/A | BH270: N/A | BI270: N/A | BJ270: N/A | BK270: N/A | BL270: N/A | BM270: N/A | BN270: N/A | BO270: N/A | BP270: N/A | BQ270: N/A | BR270: N/A | BS270: N/A | BT270: N/A | BU270: N/A | BV270: N/A | BW270: N/A | BX270: N/A | BY270: N/A | BZ270: N/A | CA270: N/A | CB270: N/A | CC270: N/A | CD270: N/A | CE270: N/A | CF270: N/A | CG270: N/A | CH270: N/A | CI270: N/A | CJ270: N/A | CK270: N/A | CL270: N/A
BA271: Awareness of menstruation before menarche | BB271: Yes | BC271: N/A | BD271: N/A | BE271: N/A | BF271: N/A | BG271: N/A | BH271: N/A | BI271: N/A | BJ271: N/A | BK271: N/A | BL271: N/A | BM271: N/A | BN271: N/A | BO271: N/A | BP271: N/A | BQ271: N/A | BR271: N/A | BS271: N/A | BT271: N/A | BU271: N/A | BV271: N/A | BW271: N/A | BX271: N/A | BY271: N/A | BZ271: N/A | CA271: N/A | CB271: N/A | CC271: N/A | CD271: N/A | CE271: N/A | CF271: N/A | CG271: N/A | CH271: N/A | CI271: N/A | CJ271: N/A | CK271: N/A | CL271: N/A
BB272: No | BC272: N/A | BD272: N/A | BE272: N/A | BF272: N/A | BG272: N/A | BH272: N/A | BI272: N/A | BJ272: N/A | BK272: N/A | BL272: N/A | BM272: N/A | BN272: N/A | BO272: N/A | BP272: N/A | BQ272: N/A | BR272: N/A | BS272: N/A | BT272: N/A | BU272: N/A | BV272: N/A | BW272: N/A | BX272: N/A | BY272: N/A | BZ272: N/A | CA272: N/A | CB272: N/A | CC272: N/A | CD272: N/A | CE272: N/A | CF272: N/A | CG272: N/A | CH272: N/A | CI272: N/A | CJ272: N/A | CK272: N/A | CL272: N/A
BB273: DK/not sure/missing | BC273: N/A | BD273: N/A | BE273: N/A | BF273: N/A | BG273: N/A | BH273: N/A | BI273: N/A | BJ273: N/A | BK273: N/A | BL273: N/A | BM273: N/A | BN273: N/A | BO273: N/A | BP273: N/A | BQ273: N/A | BR273: N/A | BS273: N/A | BT273: N/A | BU273: N/A | BV273: N/A | BW273: N/A | BX273: N/A | BY273: N/A | BZ273: N/A | CA273: N/A | CB273: N/A | CC273: N/A | CD273: N/A | CE273: N/A | CF273: N/A | CG273: N/A | CH273: N/A | CI273: N/A | CJ273: N/A | CK273: N/A | CL273: N/A
BA274: Participation in (all) activities during menstruation | BB274: Yes | BC274: N/A | BD274: N/A | BE274: N/A | BF274: N/A | BG274: N/A | BH274: N/A | BI274: N/A | BJ274: N/A | BK274: N/A | BL274: N/A | BM274: N/A | BN274: N/A | BO274: N/A | BP274: N/A | BQ274: N/A | BR274: N/A | BS274: N/A | BT274: N/A | BU274: N/A | BV274: N/A | BW274: N/A | BX274: N/A | BY274: N/A | BZ274: N/A | CA274: N/A | CB274: N/A | CC274: N/A | CD274: N/A | CE274: N/A | CF274: N/A | CG274: N/A | CH274: N/A | CI274: N/A | CJ274: N/A | CK274: N/A | CL274: N/A
BB275: No | BC275: N/A | BD275: N/A | BE275: N/A | BF275: N/A | BG275: N/A | BH275: N/A | BI275: N/A | BJ275: N/A | BK275: N/A | BL275: N/A | BM275: N/A | BN275: N/A | BO275: N/A | BP275: N/A | BQ275: N/A | BR275: N/A | BS275: N/A | BT275: N/A | BU275: N/A | BV275: N/A | BW275: N/A | BX275: N/A | BY275: N/A | BZ275: N/A | CA275: N/A | CB275: N/A | CC275: N/A | CD275: N/A | CE275: N/A | CF275: N/A | CG275: N/A | CH275: N/A | CI275: N/A | CJ275: N/A | CK275: N/A | CL275: N/A
BB276: DK/not sure/missing/no such activity | BC276: N/A | BD276: N/A | BE276: N/A | BF276: N/A | BG276: N/A | BH276: N/A | BI276: N/A | BJ276: N/A | BK276: N/A | BL276: N/A | BM276: N/A | BN276: N/A | BO276: N/A | BP276: N/A | BQ276: N/A | BR276: N/A | BS276: N/A | BT276: N/A | BU276: N/A | BV276: N/A | BW276: N/A | BX276: N/A | BY276: N/A | BZ276: N/A | CA276: N/A | CB276: N/A | CC276: N/A | CD276: N/A | CE276: N/A | CF276: N/A | CG276: N/A | CH276: N/A | CI276: N/A | CJ276: N/A | CK276: N/A | CL276: N/A
BA277: Participation in specific activities during menstruation | BB277: Did not go to school (amongst those usually attending school) | BC277: N/A | BD277: N/A | BE277: N/A | BF277: N/A | BG277: N/A | BH277: N/A | BI277: N/A | BJ277: N/A | BK277: N/A | BL277: N/A | BM277: N/A | BN277: N/A | BO277: N/A | BP277: N/A | BQ277: N/A | BR277: N/A | BS277: N/A | BT277: N/A | BU277: N/A | BV277: N/A | BW277: N/A | BX277: N/A | BY277: N/A | BZ277: N/A | CA277: N/A | CB277: N/A | CC277: N/A | CD277: N/A | CE277: N/A | CF277: N/A | CG277: N/A | CH277: N/A | CI277: N/A | CJ277: N/A | CK277: N/A | CL277: N/A
BB278: Did not go to work (amongst those who usually work) | BC278: N/A | BD278: N/A | BE278: N/A | BF278: N/A | BG278: N/A | BH278: N/A | BI278: N/A | BJ278: N/A | BK278: N/A | BL278: N/A | BM278: N/A | BN278: N/A | BO278: N/A | BP278: N/A | BQ278: N/A | BR278: N/A | BS278: N/A | BT278: N/A | BU278: N/A | BV278: N/A | BW278: N/A | BX278: N/A | BY278: N/A | BZ278: N/A | CA278: N/A | CB278: N/A | CC278: N/A | CD278: N/A | CE278: N/A | CF278: N/A | CG278: N/A | CH278: N/A | CI278: N/A | CJ278: N/A | CK278: N/A | CL278: N/A
BB279: Did not participate in social activities | BC279: N/A | BD279: N/A | BE279: N/A | BF279: N/A | BG279: N/A | BH279: N/A | BI279: N/A | BJ279: N/A | BK279: N/A | BL279: N/A | BM279: N/A | BN279: N/A | BO279: N/A | BP279: N/A | BQ279: N/A | BR279: N/A | BS279: N/A | BT279: N/A | BU279: N/A | BV279: N/A | BW279: N/A | BX279: N/A | BY279: N/A | BZ279: N/A | CA279: N/A | CB279: N/A | CC279: N/A | CD279: N/A | CE279: N/A | CF279: N/A | CG279: N/A | CH279: N/A | CI279: N/A | CJ279: N/A | CK279: N/A | CL279: N/A
BB280: Did not cook food | BC280: N/A | BD280: N/A | BE280: N/A | BF280: N/A | BG280: N/A | BH280: N/A | BI280: N/A | BJ280: N/A | BK280: N/A | BL280: N/A | BM280: N/A | BN280: N/A | BO280: N/A | BP280: N/A | BQ280: N/A | BR280: N/A | BS280: N/A | BT280: N/A | BU280: N/A | BV280: N/A | BW280: N/A | BX280: N/A | BY280: N/A | BZ280: N/A | CA280: N/A | CB280: N/A | CC280: N/A | CD280: N/A | CE280: N/A | CF280: N/A | CG280: N/A | CH280: N/A | CI280: N/A | CJ280: N/A | CK280: N/A | CL280: N/A
BB281: Did not eat with others | BC281: N/A | BD281: N/A | BE281: N/A | BF281: N/A | BG281: N/A | BH281: N/A | BI281: N/A | BJ281: N/A | BK281: N/A | BL281: N/A | BM281: N/A | BN281: N/A | BO281: N/A | BP281: N/A | BQ281: N/A | BR281: N/A | BS281: N/A | BT281: N/A | BU281: N/A | BV281: N/A | BW281: N/A | BX281: N/A | BY281: N/A | BZ281: N/A | CA281: N/A | CB281: N/A | CC281: N/A | CD281: N/A | CE281: N/A | CF281: N/A | CG281: N/A | CH281: N/A | CI281: N/A | CJ281: N/A | CK281: N/A | CL281: N/A
BB282: Did not bathe in regular place | BC282: N/A | BD282: N/A | BE282: N/A | BF282: N/A | BG282: N/A | BH282: N/A | BI282: N/A | BJ282: N/A | BK282: N/A | BL282: N/A | BM282: N/A | BN282: N/A | BO282: N/A | BP282: N/A | BQ282: N/A | BR282: N/A | BS282: N/A | BT282: N/A | BU282: N/A | BV282: N/A | BW282: N/A | BX282: N/A | BY282: N/A | BZ282: N/A | CA282: N/A | CB282: N/A | CC282: N/A | CD282: N/A | CE282: N/A | CF282: N/A | CG282: N/A | CH282: N/A | CI282: N/A | CJ282: N/A | CK282: N/A | CL282: N/A
BB283: Did not participate in other activities | BC283: N/A | BD283: N/A | BE283: N/A | BF283: N/A | BG283: N/A | BH283: N/A | BI283: N/A | BJ283: N/A | BK283: N/A | BL283: N/A | BM283: N/A | BN283: N/A | BO283: N/A | BP283: N/A | BQ283: N/A | BR283: N/A | BS283: N/A | BT283: N/A | BU283: N/A | BV283: N/A | BW283: N/A | BX283: N/A | BY283: N/A | BZ283: N/A | CA283: N/A | CB283: N/A | CC283: N/A | CD283: N/A | CE283: N/A | CF283: N/A | CG283: N/A | CH283: N/A | CI283: N/A | CJ283: N/A | CK283: N/A | CL283: N/A
BB284: DK/not sure/missing/no such activity | BC284: N/A | BD284: N/A | BE284: N/A | BF284: N/A | BG284: N/A | BH284: N/A | BI284: N/A | BJ284: N/A | BK284: N/A | BL284: N/A | BM284: N/A | BN284: N/A | BO284: N/A | BP284: N/A | BQ284: N/A | BR284: N/A | BS284: N/A | BT284: N/A | BU284: N/A | BV284: N/A | BW284: N/A | BX284: N/A | BY284: N/A | BZ284: N/A | CA284: N/A | CB284: N/A | CC284: N/A | CD284: N/A | CE284: N/A | CF284: N/A | CG284: N/A | CH284: N/A | CI284: N/A | CJ284: N/A | CK284: N/A | CL284: N/A
BA339: Raw numbers of respondents: | BB339: Basic water, sanitation and hygiene | BC339: NATIONAL wealth index quintile | BH339: URBAN wealth index quintile | BM339: RURAL wealth index quintile | BR339: SUB-REGIONS:
BA340: WatSan data, raw numbers (weighted) | BC340: Poorest | BD340: Poor | BE340: Middle | BF340: Rich | BG340: Richest | BH340: Poorest | BI340: Poor | BJ340: Middle | BK340: Rich | BL340: Richest | BM340: Poorest | BN340: Poor | BO340: Middle | BP340: Rich | BQ340: Richest | BR340: Arusha | BS340: Dar es Salaam | BT340: Dodoma | BU340: Iringa | BV340: Kagera | BW340: Kigoma | BX340: Kilimanjaro | BY340: Lindi | BZ340: Manyara | CA340: Mara | CB340: Mbeya | CC340: Morogoro | CD340: Mtwara | CE340: Mwanza | CF340: Pwani | CG340: Rukwa | CH340: Ruvuma | CI340: Shinyanga | CJ340: Singida | CK340: Tabora | CL340: Tanga
BA341: Use of Basic Water Sanitation and Hygiene | BB341: Yes | BC341: N/A | BD341: N/A | BE341: N/A | BF341: N/A | BG341: N/A | BH341: N/A | BI341: N/A | BJ341: N/A | BK341: N/A | BL341: N/A | BM341: N/A | BN341: N/A | BO341: N/A | BP341: N/A | BQ341: N/A | BR341: N/A | BS341: N/A | BT341: N/A | BU341: N/A | BV341: N/A | BW341: N/A | BX341: N/A | BY341: N/A | BZ341: N/A | CA341: N/A | CB341: N/A | CC341: N/A | CD341: N/A | CE341: N/A | CF341: N/A | CG341: N/A | CH341: N/A | CI341: N/A | CJ341: N/A | CK341: N/A | CL341: N/A
BB342: No | BC342: N/A | BD342: N/A | BE342: N/A | BF342: N/A | BG342: N/A | BH342: N/A | BI342: N/A | BJ342: N/A | BK342: N/A | BL342: N/A | BM342: N/A | BN342: N/A | BO342: N/A | BP342: N/A | BQ342: N/A | BR342: N/A | BS342: N/A | BT342: N/A | BU342: N/A | BV342: N/A | BW342: N/A | BX342: N/A | BY342: N/A | BZ342: N/A | CA342: N/A | CB342: N/A | CC342: N/A | CD342: N/A | CE342: N/A | CF342: N/A | CG342: N/A | CH342: N/A | CI342: N/A | CJ342: N/A | CK342: N/A | CL342: N/A
BA343: Use of Basic Water and Sanitation | BB343: Yes | BC343: N/A | BD343: N/A | BE343: N/A | BF343: N/A | BG343: N/A | BH343: N/A | BI343: N/A | BJ343: N/A | BK343: N/A | BL343: N/A | BM343: N/A | BN343: N/A | BO343: N/A | BP343: N/A | BQ343: N/A | BR343: N/A | BS343: N/A | BT343: N/A | BU343: N/A | BV343: N/A | BW343: N/A | BX343: N/A | BY343: N/A | BZ343: N/A | CA343: N/A | CB343: N/A | CC343: N/A | CD343: N/A | CE343: N/A | CF343: N/A | CG343: N/A | CH343: N/A | CI343: N/A | CJ343: N/A | CK343: N/A | CL343: N/A
BB344: No | BC344: N/A | BD344: N/A | BE344: N/A | BF344: N/A | BG344: N/A | BH344: N/A | BI344: N/A | BJ344: N/A | BK344: N/A | BL344: N/A | BM344: N/A | BN344: N/A | BO344: N/A | BP344: N/A | BQ344: N/A | BR344: N/A | BS344: N/A | BT344: N/A | BU344: N/A | BV344: N/A | BW344: N/A | BX344: N/A | BY344: N/A | BZ344: N/A | CA344: N/A | CB344: N/A | CC344: N/A | CD344: N/A | CE344: N/A | CF344: N/A | CG344: N/A | CH344: N/A | CI344: N/A | CJ344: N/A | CK344: N/A | CL344: N/A
BA345: Use of Basic Water and Hygiene | BB345: Yes | BC345: N/A | BD345: N/A | BE345: N/A | BF345: N/A | BG345: N/A | BH345: N/A | BI345: N/A | BJ345: N/A | BK345: N/A | BL345: N/A | BM345: N/A | BN345: N/A | BO345: N/A | BP345: N/A | BQ345: N/A | BR345: N/A | BS345: N/A | BT345: N/A | BU345: N/A | BV345: N/A | BW345: N/A | BX345: N/A | BY345: N/A | BZ345: N/A | CA345: N/A | CB345: N/A | CC345: N/A | CD345: N/A | CE345: N/A | CF345: N/A | CG345: N/A | CH345: N/A | CI345: N/A | CJ345: N/A | CK345: N/A | CL345: N/A
BB346: No | BC346: N/A | BD346: N/A | BE346: N/A | BF346: N/A | BG346: N/A | BH346: N/A | BI346: N/A | BJ346: N/A | BK346: N/A | BL346: N/A | BM346: N/A | BN346: N/A | BO346: N/A | BP346: N/A | BQ346: N/A | BR346: N/A | BS346: N/A | BT346: N/A | BU346: N/A | BV346: N/A | BW346: N/A | BX346: N/A | BY346: N/A | BZ346: N/A | CA346: N/A | CB346: N/A | CC346: N/A | CD346: N/A | CE346: N/A | CF346: N/A | CG346: N/A | CH346: N/A | CI346: N/A | CJ346: N/A | CK346: N/A | CL346: N/A
BA347: Use of Basic Sanitation and Hygiene | BB347: Yes | BC347: N/A | BD347: N/A | BE347: N/A | BF347: N/A | BG347: N/A | BH347: N/A | BI347: N/A | BJ347: N/A | BK347: N/A | BL347: N/A | BM347: N/A | BN347: N/A | BO347: N/A | BP347: N/A | BQ347: N/A | BR347: N/A | BS347: N/A | BT347: N/A | BU347: N/A | BV347: N/A | BW347: N/A | BX347: N/A | BY347: N/A | BZ347: N/A | CA347: N/A | CB347: N/A | CC347: N/A | CD347: N/A | CE347: N/A | CF347: N/A | CG347: N/A | CH347: N/A | CI347: N/A | CJ347: N/A | CK347: N/A | CL347: N/A
BB348: No | BC348: N/A | BD348: N/A | BE348: N/A | BF348: N/A | BG348: N/A | BH348: N/A | BI348: N/A | BJ348: N/A | BK348: N/A | BL348: N/A | BM348: N/A | BN348: N/A | BO348: N/A | BP348: N/A | BQ348: N/A | BR348: N/A | BS348: N/A | BT348: N/A | BU348: N/A | BV348: N/A | BW348: N/A | BX348: N/A | BY348: N/A | BZ348: N/A | CA348: N/A | CB348: N/A | CC348: N/A | CD348: N/A | CE348: N/A | CF348: N/A | CG348: N/A | CH348: N/A | CI348: N/A | CJ348: N/A | CK348: N/A | CL348: N/A
BA349: Use of Basic Water | BB349: Yes | BC349: N/A | BD349: N/A | BE349: N/A | BF349: N/A | BG349: N/A | BH349: N/A | BI349: N/A | BJ349: N/A | BK349: N/A | BL349: N/A | BM349: N/A | BN349: N/A | BO349: N/A | BP349: N/A | BQ349: N/A | BR349: N/A | BS349: N/A | BT349: N/A | BU349: N/A | BV349: N/A | BW349: N/A | BX349: N/A | BY349: N/A | BZ349: N/A | CA349: N/A | CB349: N/A | CC349: N/A | CD349: N/A | CE349: N/A | CF349: N/A | CG349: N/A | CH349: N/A | CI349: N/A | CJ349: N/A | CK349: N/A | CL349: N/A
BB350: No | BC350: N/A | BD350: N/A | BE350: N/A | BF350: N/A | BG350: N/A | BH350: N/A | BI350: N/A | BJ350: N/A | BK350: N/A | BL350: N/A | BM350: N/A | BN350: N/A | BO350: N/A | BP350: N/A | BQ350: N/A | BR350: N/A | BS350: N/A | BT350: N/A | BU350: N/A | BV350: N/A | BW350: N/A | BX350: N/A | BY350: N/A | BZ350: N/A | CA350: N/A | CB350: N/A | CC350: N/A | CD350: N/A | CE350: N/A | CF350: N/A | CG350: N/A | CH350: N/A | CI350: N/A | CJ350: N/A | CK350: N/A | CL350: N/A
BA351: Use of Basic Sanitation | BB351: Yes | BC351: N/A | BD351: N/A | BE351: N/A | BF351: N/A | BG351: N/A | BH351: N/A | BI351: N/A | BJ351: N/A | BK351: N/A | BL351: N/A | BM351: N/A | BN351: N/A | BO351: N/A | BP351: N/A | BQ351: N/A | BR351: N/A | BS351: N/A | BT351: N/A | BU351: N/A | BV351: N/A | BW351: N/A | BX351: N/A | BY351: N/A | BZ351: N/A | CA351: N/A | CB351: N/A | CC351: N/A | CD351: N/A | CE351: N/A | CF351: N/A | CG351: N/A | CH351: N/A | CI351: N/A | CJ351: N/A | CK351: N/A | CL351: N/A
BB352: No | BC352: N/A | BD352: N/A | BE352: N/A | BF352: N/A | BG352: N/A | BH352: N/A | BI352: N/A | BJ352: N/A | BK352: N/A | BL352: N/A | BM352: N/A | BN352: N/A | BO352: N/A | BP352: N/A | BQ352: N/A | BR352: N/A | BS352: N/A | BT352: N/A | BU352: N/A | BV352: N/A | BW352: N/A | BX352: N/A | BY352: N/A | BZ352: N/A | CA352: N/A | CB352: N/A | CC352: N/A | CD352: N/A | CE352: N/A | CF352: N/A | CG352: N/A | CH352: N/A | CI352: N/A | CJ352: N/A | CK352: N/A | CL352: N/A
BA353: Access to Basic Hygiene | BB353: Yes | BC353: N/A | BD353: N/A | BE353: N/A | BF353: N/A | BG353: N/A | BH353: N/A | BI353: N/A | BJ353: N/A | BK353: N/A | BL353: N/A | BM353: N/A | BN353: N/A | BO353: N/A | BP353: N/A | BQ353: N/A | BR353: N/A | BS353: N/A | BT353: N/A | BU353: N/A | BV353: N/A | BW353: N/A | BX353: N/A | BY353: N/A | BZ353: N/A | CA353: N/A | CB353: N/A | CC353: N/A | CD353: N/A | CE353: N/A | CF353: N/A | CG353: N/A | CH353: N/A | CI353: N/A | CJ353: N/A | CK353: N/A | CL353: N/A
BB354: No | BC354: N/A | BD354: N/A | BE354: N/A | BF354: N/A | BG354: N/A | BH354: N/A | BI354: N/A | BJ354: N/A | BK354: N/A | BL354: N/A | BM354: N/A | BN354: N/A | BO354: N/A | BP354: N/A | BQ354: N/A | BR354: N/A | BS354: N/A | BT354: N/A | BU354: N/A | BV354: N/A | BW354: N/A | BX354: N/A | BY354: N/A | BZ354: N/A | CA354: N/A | CB354: N/A | CC354: N/A | CD354: N/A | CE354: N/A | CF354: N/A | CG354: N/A | CH354: N/A | CI354: N/A | CJ354: N/A | CK354: N/A | CL354: N/A
C399: INITIAL (national) Wealth Index | H399: URBAN Wealth Index | M399: RURAL Wealth Index
C400: Component Matrix | H400: Component Matrix | M400: Component Matrix
E401: Component | J401: Component | O401: Component
B402: Note: The INITIAL (national) Wealth Index is based on the first component of the Principal Component Analysis (PCA) which has been obtained at national level. The final national-level (NATIONAL) Wealth Index is based on the URBAN and RURAL specific wealth indexes. Regression procedures are used to establish the relationships between the two sets of scores (urban and rural) and the initial (national) wealth factors. This allows best use of the available information for each area and a better precision of the FINAL (NATIONAL) Wealth Index. For dependency reasons, all WASH variables (contained in the generic MICS and DHS scripts) have been excluded from the sets of asset variables used in the PCAs. The PCA can extracts as many components as there are asset variables in the input. Only the first of the components is used to represent the Wealth Index. The scores represent the weights of the asset variables on the Wealth Index (correlations between the variables and the component). The communalities are the proportion of each variable's variance that can be explained by the component. Proportion of explained variance is the part of the model's total variance that is explained by the component. For more information on the procedure used: The DHS Wealth Index, DHS Comparative Reports No. 6, Shea Oscar Rutstein, Kiersten Johnson, ORC Macro International Inc., 2004. The DHS Wealth Index: Approaches for Rural and Urban Areas, Shea O. Rutstein, ORC Macro International Inc., 2008. MICS Methodological Paper No. 4, Review of options for reporting water, sanitation and hygiene coverage by wealth quintile, UNICEF, 2016. | E402: 1 | J402: 1 | O402: 1
C403: Earth, sand, dung floor | E403: -0.8356907043 | H403: Earth, sand, dung floor | J403: -0.7666371197 | M403: Earth, sand, dung floor | O403: -0.7621579901
C404: Cement floor | E404: 0.778918147 | H404: Electricity for lighting | J404: 0.7478694883 | M404: Cement floor | O404: 0.7467758721
C405: Wood, straw for cooking | E405: -0.764387957 | H405: Has electricity | J405: 0.7456134782 | M405: Grass/thatch/mud roof | O405: -0.6410694055
C406: Electricity for lighting | E406: 0.7464387904 | H406: Wick lamp for lighting | J406: -0.6315612091 | M406: Iron sheet roof | O406: 0.6140771676
C407: Has electricity | E407: 0.7462542009 | H407: Has television | J407: 0.6288646288 | M407: Cement block walls | O407: 0.5581922179
C408: Cement block walls | E408: 0.7212228868 | H408: Cement floor | J408: 0.6259401004 | M408: Has electricity | O408: 0.5527094302
C409: Grass/thatch/mud roof | E409: -0.6863383513 | H409: Cement block walls | J409: 0.6109450286 | M409: Electricity for lighting | O409: 0.5408966224
C410: Charcoal for cooking | E410: 0.664178 | H410: Wood, straw for cooking | J410: -0.606688484 | M410: An Iron, either charcoal or electric | O410: 0.5273037601
C411: Iron sheet roof | E411: 0.6363926653 | H411: Has telephone | J411: 0.6007825131 | M411: Wick lamp for lighting | O411: -0.5067782991
C412: Wick lamp for lighting | E412: -0.6305954697 | H412: Grass/thatch/mud roof | J412: -0.5947955669 | M412: Has telephone | O412: 0.5066226267
C413: Has telephone | E413: 0.628970924 | H413: Has refrigerator | J413: 0.5766406556 | M413: Wood, straw for cooking | O413: -0.491877534
C414: Has television | E414: 0.6179120216 | H414: An Iron, either charcoal or electric | J414: 0.5478225031 | M414: Has television | O414: 0.4811305879
C415: An Iron, either charcoal or electric | E415: 0.5821862714 | H415: Iron sheet roof | J415: 0.4433864304 | M415: Pariffin-hurricane lamp | O415: 0.4667507828
C416: Has refrigerator | E416: 0.5612334299 | H416: Has radio | J416: 0.4403135037 | M416: Charcoal for cooking | O416: 0.4609892369
C417: Has radio | E417: 0.4128825832 | H417: Poles and mud walls | J417: -0.4238158495 | M417: Has refrigerator | O417: 0.407892074
C418: Has car/truck | E418: 0.3681239369 | H418: Charcoal for cooking | J418: 0.4127120974 | M418: Has radio | O418: 0.3917366022
C419: Poles and mud walls | E419: -0.3357031222 | H419: Has car/truck | J419: 0.38757365 | M419: Has car/truck | O419: 0.2928056533
... 209 more rows

Sheet DHS05
A2: =A1026 -> United Republic of Tanzania
A3: =A1034 -> 2005
A4: Use of drinking water sources
A5: by wealth quintile and sub-national region
A6: Notes:
A7: WHO/UNICEF JMP customised wealth index excludes water,
A8: sanitation and hygiene assets.
A9: Survey used for analysis: | B9: =A1025 -> DHS05
A10: Improved springs based on: | B10: AIS12
A11: Time to improved source based on: | B11: AIS08
A14: Use of drinking water sources | C14: NATIONAL wealth index quintile | H14: URBAN wealth index quintile | M14: RURAL wealth index quintile | R14: SUB-REGIONS: | BA14: Raw numbers of respondents: | BB14: Use of drinking water sources | BC14: NATIONAL wealth index quintile | BH14: URBAN wealth index quintile | BM14: RURAL wealth index quintile | BR14: SUB-REGIONS:
A15: Weighted percentage (used in graphs) | C15: Poorest | D15: Poor | E15: Middle | F15: Rich | G15: Richest | H15: Poorest | I15: Poor | J15: Middle | K15: Rich | L15: Richest | M15: Poorest | N15: Poor | O15: Middle | P15: Rich | Q15: Richest | R15: Arusha | S15: Dar Es Salam | T15: Dodoma | U15: Iringa | V15: Kagera | W15: Kigoma | X15: Kilimanjaro | Y15: Lindi | Z15: Manyara | AA15: Mara | AB15: Mbeya | AC15: Morogoro | AD15: Mtwara | AE15: Mwanza | AF15: Pemba North | AG15: Pemba South | AH15: Pwani | AI15: Rukwa | AJ15: Ruvuma | AK15: Shinyanga | AL15: Singida | AM15: Tabora | AN15: Tanga | AO15: Town West | AP15: Zanziba South | AQ15: Zanzibar North | BA15: Water data, raw numbers (weighted) | BC15: Poorest | BD15: Poor | BE15: Middle | BF15: Rich | BG15: Richest | BH15: Poorest | BI15: Poor | BJ15: Middle | BK15: Rich | BL15: Richest | BM15: Poorest | BN15: Poor | BO15: Middle | BP15: Rich | BQ15: Richest | BR15: Arusha | BS15: Dar Es Salam | BT15: Dodoma | BU15: Iringa | BV15: Kagera | BW15: Kigoma | BX15: Kilimanjaro | BY15: Lindi | BZ15: Manyara | CA15: Mara | CB15: Mbeya | CC15: Morogoro | CD15: Mtwara | CE15: Mwanza | CF15: Pemba North | CG15: Pemba South | CH15: Pwani | CI15: Rukwa | CJ15: Ruvuma | CK15: Shinyanga | CL15: Singida | CM15: Tabora | CN15: Tanga | CO15: Town West | CP15: Zanziba South | CQ15: Zanzibar North
A16: Water | B16: Improved | C16: =C58+C59+C60+C61+C66+C67+C68+C69+C74+C75+C76+C77+C70*'AIS12'!C25/100 -> 31.5942104 | D16: =D58+D59+D60+D61+D66+D67+D68+D69+D74+D75+D76+D77+D70*'AIS12'!D25/100 -> 35.22593824 | E16: =E58+E59+E60+E61+E66+E67+E68+E69+E74+E75+E76+E77+E70*'AIS12'!E25/100 -> 38.89911943 | F16: =F58+F59+F60+F61+F66+F67+F68+F69+F74+F75+F76+F77+F70*'AIS12'!F25/100 -> 54.69418101 | G16: =G58+G59+G60+G61+G66+G67+G68+G69+G74+G75+G76+G77+G70*'AIS12'!G25/100 -> 88.81561215 | H16: =H58+H59+H60+H61+H66+H67+H68+H69+H74+H75+H76+H77+H70*'AIS12'!H25/100 -> 65.95043564 | I16: =I58+I59+I60+I61+I66+I67+I68+I69+I74+I75+I76+I77+I70*'AIS12'!I25/100 -> 81.22262419 | J16: =J58+J59+J60+J61+J66+J67+J68+J69+J74+J75+J76+J77+J70*'AIS12'!J25/100 -> 92.48762848 | K16: =K58+K59+K60+K61+K66+K67+K68+K69+K74+K75+K76+K77+K70*'AIS12'!K25/100 -> 92.97163691 | L16: =L58+L59+L60+L61+L66+L67+L68+L69+L74+L75+L76+L77+L70*'AIS12'!L25/100 -> 95.75398426 | M16: =M58+M59+M60+M61+M66+M67+M68+M69+M74+M75+M76+M77+M70*'AIS12'!M25/100 -> 31.35528954 | N16: =N58+N59+N60+N61+N66+N67+N68+N69+N74+N75+N76+N77+N70*'AIS12'!N25/100 -> 30.30868404 | O16: =O58+O59+O60+O61+O66+O67+O68+O69+O74+O75+O76+O77+O70*'AIS12'!O25/100 -> 36.26256515 | P16: =P58+P59+P60+P61+P66+P67+P68+P69+P74+P75+P76+P77+P70*'AIS12'!P25/100 -> 37.24248244 | Q16: =Q58+Q59+Q60+Q61+Q66+Q67+Q68+Q69+Q74+Q75+Q76+Q77+Q70*'AIS12'!Q25/100 -> 57.8353881 | R16: =R58+R59+R60+R61+R66+R67+R68+R69+R74+R75+R76+R77+R70*R25/100 -> 67.50395759 | S16: 92.52754996 | T16: 75.22166688 | U16: 52.90672287 | V16: 41.29544235 | W16: 47.98025889 | X16: 76.33483823 | Y16: 40.44706687 | Z16: 49.99364653 | AA16: 24.08868885 | AB16: 36.08657495 | AC16: 59.13407907 | AD16: 35.08068715 | AE16: 38.88815564 | AF16: 64.02965627 | AG16: 83.43524018 | AH16: 48.6810179 | AI16: 45.97998595 | AJ16: 54.13217484 | AK16: 52.5267214 | AL16: 41.55756116 | AM16: 16.92141212 | AN16: 50.98445989 | AO16: 92.37579513 | AP16: 87.61954287 | AQ16: 79.84664234 | BA16: Water | BB16: Improved | BC16: N/A | BD16: N/A | BE16: N/A | BF16: N/A | BG16: N/A | BH16: N/A | BI16: N/A | BJ16: N/A | BK16: N/A | BL16: N/A | BM16: N/A | BN16: N/A | BO16: N/A | BP16: N/A | BQ16: N/A | BR16: N/A | BS16: N/A | BT16: N/A | BU16: N/A | BV16: N/A | BW16: N/A | BX16: N/A | BY16: N/A | BZ16: N/A | CA16: N/A | CB16: N/A | CC16: N/A | CD16: N/A | CE16: N/A | CF16: N/A | CG16: N/A | CH16: N/A | CI16: N/A | CJ16: N/A | CK16: N/A | CL16: N/A | CM16: N/A | CN16: N/A | CO16: N/A | CP16: N/A | CQ16: N/A
B17: Not Improved | C17: =100-C16 -> 68.4057896 | D17: =100-D16 -> 64.77406176 | E17: 61.10088057 | F17: 45.30581899 | G17: 11.18438785 | H17: 34.04956436 | I17: 18.77737581 | J17: 7.512371521 | K17: 7.028363085 | L17: 4.246015744 | M17: 68.64471046 | N17: 69.69131596 | O17: 63.73743485 | P17: 62.75751756 | Q17: 42.1646119 | R17: 32.49604241 | S17: 7.472450042 | T17: 24.77833312 | U17: 47.09327713 | V17: 58.70455765 | W17: 52.01974111 | X17: 23.66516177 | Y17: 59.55293313 | Z17: 50.00635347 | AA17: 75.91131115 | AB17: 63.91342505 | AC17: 40.86592093 | AD17: 64.91931285 | AE17: 61.11184436 | AF17: 35.97034373 | AG17: 16.56475982 | AH17: 51.3189821 | AI17: 54.02001405 | AJ17: 45.86782516 | AK17: 47.4732786 | AL17: 58.44243884 | AM17: 83.07858788 | AN17: 49.01554011 | AO17: 7.624204872 | AP17: 12.38045713 | AQ17: 20.15335766 | BB17: Not Improved | BC17: N/A | BD17: N/A | BE17: N/A | BF17: N/A | BG17: N/A | BH17: N/A | BI17: N/A | BJ17: N/A | BK17: N/A | BL17: N/A | BM17: N/A | BN17: N/A | BO17: N/A | BP17: N/A | BQ17: N/A | BR17: N/A | BS17: N/A | BT17: N/A | BU17: N/A | BV17: N/A | BW17: N/A | BX17: N/A | BY17: N/A | BZ17: N/A | CA17: N/A | CB17: N/A | CC17: N/A | CD17: N/A | CE17: N/A | CF17: N/A | CG17: N/A | CH17: N/A | CI17: N/A | CJ17: N/A | CK17: N/A | CL17: N/A | CM17: N/A | CN17: N/A | CO17: N/A | CP17: N/A | CQ17: N/A
A18: Water ladder | B18: Basic | C18: =C16*'AIS08'!C23/100 -> 18.46099394 | D18: =D16*'AIS08'!D23/100 -> 23.41841372 | E18: =E16*'AIS08'!E23/100 -> 27.78065624 | F18: =F16*'AIS08'!F23/100 -> 44.16026553 | G18: =G16*'AIS08'!G23/100 -> 79.15346213 | H18: =H16*'AIS08'!H23/100 -> 52.55117054 | I18: =I16*'AIS08'!I23/100 -> 67.95539575 | J18: =J16*'AIS08'!J23/100 -> 82.24489615 | K18: =K16*'AIS08'!K23/100 -> 85.52999148 | L18: =L16*'AIS08'!L23/100 -> 91.64847811 | M18: =M16*'AIS08'!M23/100 -> 17.78518087 | N18: =N16*'AIS08'!N23/100 -> 18.09215239 | O18: =O16*'AIS08'!O23/100 -> 26.23800163 | P18: =P16*'AIS08'!P23/100 -> 26.77556517 | Q18: =Q16*'AIS08'!Q23/100 -> 47.69569196 | R18: =R16*R42/100 -> 44.77582733 | S18: 89.88358932 | T18: 53.39602926 | U18: 38.37421981 | V18: 28.48369555 | W18: 35.15165892 | X18: 67.65575344 | Y18: 25.79107511 | Z18: 23.9187019 | AA18: 20.96127789 | AB18: 26.49605029 | AC18: 46.56648339 | AD18: 15.10813156 | AE18: 24.22247904 | AF18: 59.27527904 | AG18: 82.414401 | AH18: 34.20194524 | AI18: 32.15456949 | AJ18: 42.88544333 | AK18: 42.80197197 | AL18: 27.06715794 | AM18: 11.76049418 | AN18: 38.11479597 | AO18: 89.98164991 | AP18: 83.62511077 | AQ18: 75.37263783 | BA18: Water ladder | BB18: Basic | BC18: N/A | BD18: N/A | BE18: N/A | BF18: N/A | BG18: N/A | BH18: N/A | BI18: N/A | BJ18: N/A | BK18: N/A | BL18: N/A | BM18: N/A | BN18: N/A | BO18: N/A | BP18: N/A | BQ18: N/A | BR18: N/A | BS18: N/A | BT18: N/A | BU18: N/A | BV18: N/A | BW18: N/A | BX18: N/A | BY18: N/A | BZ18: N/A | CA18: N/A | CB18: N/A | CC18: N/A | CD18: N/A | CE18: N/A | CF18: N/A | CG18: N/A | CH18: N/A | CI18: N/A | CJ18: N/A | CK18: N/A | CL18: N/A | CM18: N/A | CN18: N/A | CO18: N/A | CP18: N/A | CQ18: N/A
B19: Limited | C19: =C16*'AIS08'!C22/100 -> 13.13321646 | D19: =D16*'AIS08'!D22/100 -> 11.80752451 | E19: =E16*'AIS08'!E22/100 -> 11.11846319 | F19: =F16*'AIS08'!F22/100 -> 10.53391548 | G19: =G16*'AIS08'!G22/100 -> 9.662150024 | H19: =H16*'AIS08'!H22/100 -> 13.3992651 | I19: =I16*'AIS08'!I22/100 -> 13.26722844 | J19: =J16*'AIS08'!J22/100 -> 10.24273233 | K19: =K16*'AIS08'!K22/100 -> 7.441645437 | L19: =L16*'AIS08'!L22/100 -> 4.105506143 | M19: =M16*'AIS08'!M22/100 -> 13.57010867 | N19: =N16*'AIS08'!N22/100 -> 12.21653164 | O19: =O16*'AIS08'!O22/100 -> 10.02456352 | P19: =P16*'AIS08'!P22/100 -> 10.46691728 | Q19: =Q16*'AIS08'!Q22/100 -> 10.13969614 | R19: =R16*R41/100 -> 22.72813026 | S19: 2.643960636 | T19: 21.82563762 | U19: 14.53250306 | V19: 12.8117468 | W19: 12.82859997 | X19: 8.67908479 | Y19: 14.65599176 | Z19: 26.07494464 | AA19: 3.12741096 | AB19: 9.590524661 | AC19: 12.56759568 | AD19: 19.97255559 | AE19: 14.66567661 | AF19: 4.754377228 | AG19: 1.020839183 | AH19: 14.47907266 | AI19: 13.82541645 | AJ19: 11.2467315 | AK19: 9.724749427 | AL19: 14.49040322 | AM19: 5.160917934 | AN19: 12.86966392 | AO19: 2.394145217 | AP19: 3.994432099 | AQ19: 4.474004507 | BB19: Limited | BC19: N/A | BD19: N/A | BE19: N/A | BF19: N/A | BG19: N/A | BH19: N/A | BI19: N/A | BJ19: N/A | BK19: N/A | BL19: N/A | BM19: N/A | BN19: N/A | BO19: N/A | BP19: N/A | BQ19: N/A | BR19: N/A | BS19: N/A | BT19: N/A | BU19: N/A | BV19: N/A | BW19: N/A | BX19: N/A | BY19: N/A | BZ19: N/A | CA19: N/A | CB19: N/A | CC19: N/A | CD19: N/A | CE19: N/A | CF19: N/A | CG19: N/A | CH19: N/A | CI19: N/A | CJ19: N/A | CK19: N/A | CL19: N/A | CM19: N/A | CN19: N/A | CO19: N/A | CP19: N/A | CQ19: N/A
B20: Unimproved | C20: =100-(C18+C19+C21) -> 46.08363515 | D20: =100-(D18+D19+D21) -> 43.16752579 | E20: 34.20682156 | F20: 27.74558682 | G20: 7.599799652 | H20: 21.18146613 | I20: 8.788630037 | J20: 6.115290052 | K20: 3.499532765 | L20: 3.415647844 | M20: 46.38530367 | N20: 45.68102739 | O20: 39.37989968 | P20: 37.81929711 | Q20: 25.82677704 | R20: 14.42419599 | S20: 7.307270749 | T20: 13.38490911 | U20: 29.63886336 | V20: 16.95866605 | W20: 21.22834711 | X20: 8.861383251 | Y20: 54.8089253 | Z20: 44.15755688 | AA20: 32.92985202 | AB20: 48.05307173 | AC20: 22.36958132 | AD20: 44.32473017 | AE20: 32.37929551 | AF20: 34.90433716 | AG20: 16.56475982 | AH20: 49.68295223 | AI20: 21.11286239 | AJ20: 31.49614071 | AK20: 33.80456511 | AL20: 32.48779613 | AM20: 74.98382375 | AN20: 26.59518689 | AO20: 7.624204872 | AP20: 12.38045713 | AQ20: 20.15335766 | BB20: Unimproved | BC20: N/A | BD20: N/A | BE20: N/A | BF20: N/A | BG20: N/A | BH20: N/A | BI20: N/A | BJ20: N/A | BK20: N/A | BL20: N/A | BM20: N/A | BN20: N/A | BO20: N/A | BP20: N/A | BQ20: N/A | BR20: N/A | BS20: N/A | BT20: N/A | BU20: N/A | BV20: N/A | BW20: N/A | BX20: N/A | BY20: N/A | BZ20: N/A | CA20: N/A | CB20: N/A | CC20: N/A | CD20: N/A | CE20: N/A | CF20: N/A | CG20: N/A | CH20: N/A | CI20: N/A | CJ20: N/A | CK20: N/A | CL20: N/A | CM20: N/A | CN20: N/A | CO20: N/A | CP20: N/A | CQ20: N/A
B21: Surface water | C21: =C71+C72+C73 -> 22.32215445 | D21: 21.60653597 | E21: 26.89405901 | F21: 17.56023217 | G21: 3.584588195 | H21: 12.86809823 | I21: 9.988745777 | J21: 1.397081469 | K21: 3.528830321 | L21: 0.8303679005 | M21: 22.25940679 | N21: 24.01028857 | O21: 24.35753517 | P21: 24.93822045 | Q21: 16.33783486 | R21: 18.07184642 | S21: 0.1651792927 | T21: 11.39342401 | U21: 17.45441377 | V21: 41.7458916 | W21: 30.791394 | X21: 14.80377852 | Y21: 4.744007834 | Z21: 5.848796585 | AA21: 42.98145914 | AB21: 15.86035332 | AC21: 18.49633961 | AD21: 20.59458268 | AE21: 28.73254884 | AF21: 1.066006573 | AG21: 0 | AH21: 1.636029875 | AI21: 32.90715166 | AJ21: 14.37168446 | AK21: 13.66871349 | AL21: 25.95464271 | AM21: 8.094764134 | AN21: 22.42035321 | AO21: 0 | AP21: 0 | AQ21: 0 | BB21: Surface water | BC21: N/A | BD21: N/A | BE21: N/A | BF21: N/A | BG21: N/A | BH21: N/A | BI21: N/A | BJ21: N/A | BK21: N/A | BL21: N/A | BM21: N/A | BN21: N/A | BO21: N/A | BP21: N/A | BQ21: N/A | BR21: N/A | BS21: N/A | BT21: N/A | BU21: N/A | BV21: N/A | BW21: N/A | BX21: N/A | BY21: N/A | BZ21: N/A | CA21: N/A | CB21: N/A | CC21: N/A | CD21: N/A | CE21: N/A | CF21: N/A | CG21: N/A | CH21: N/A | CI21: N/A | CJ21: N/A | CK21: N/A | CL21: N/A | CM21: N/A | CN21: N/A | CO21: N/A | CP21: N/A | CQ21: N/A
A22: Improved water point at more than 30 minutes | B22: Yes | C22: N/A | D22: N/A | E22: N/A | F22: N/A | G22: N/A | H22: N/A | I22: N/A | J22: N/A | K22: N/A | L22: N/A | M22: N/A | N22: N/A | O22: N/A | P22: N/A | Q22: N/A | R22: N/A | S22: N/A | T22: N/A | U22: N/A | V22: N/A | W22: N/A | X22: N/A | Y22: N/A | Z22: N/A | AA22: N/A | AB22: N/A | AC22: N/A | AD22: N/A | AE22: N/A | AF22: N/A | AG22: N/A | AH22: N/A | AI22: N/A | AJ22: N/A | AK22: N/A | AL22: N/A | AM22: N/A | AN22: N/A | AO22: N/A | AP22: N/A | AQ22: N/A | BA22: Improved water point at more than 30 minutes | BB22: Yes | BC22: N/A | BD22: N/A | BE22: N/A | BF22: N/A | BG22: N/A | BH22: N/A | BI22: N/A | BJ22: N/A | BK22: N/A | BL22: N/A | BM22: N/A | BN22: N/A | BO22: N/A | BP22: N/A | BQ22: N/A | BR22: N/A | BS22: N/A | BT22: N/A | BU22: N/A | BV22: N/A | BW22: N/A | BX22: N/A | BY22: N/A | BZ22: N/A | CA22: N/A | CB22: N/A | CC22: N/A | CD22: N/A | CE22: N/A | CF22: N/A | CG22: N/A | CH22: N/A | CI22: N/A | CJ22: N/A | CK22: N/A | CL22: N/A | CM22: N/A | CN22: N/A | CO22: N/A | CP22: N/A | CQ22: N/A
B23: No | C23: N/A | D23: N/A | E23: N/A | F23: N/A | G23: N/A | H23: N/A | I23: N/A | J23: N/A | K23: N/A | L23: N/A | M23: N/A | N23: N/A | O23: N/A | P23: N/A | Q23: N/A | R23: N/A | S23: N/A | T23: N/A | U23: N/A | V23: N/A | W23: N/A | X23: N/A | Y23: N/A | Z23: N/A | AA23: N/A | AB23: N/A | AC23: N/A | AD23: N/A | AE23: N/A | AF23: N/A | AG23: N/A | AH23: N/A | AI23: N/A | AJ23: N/A | AK23: N/A | AL23: N/A | AM23: N/A | AN23: N/A | AO23: N/A | AP23: N/A | AQ23: N/A | BB23: No | BC23: N/A | BD23: N/A | BE23: N/A | BF23: N/A | BG23: N/A | BH23: N/A | BI23: N/A | BJ23: N/A | BK23: N/A | BL23: N/A | BM23: N/A | BN23: N/A | BO23: N/A | BP23: N/A | BQ23: N/A | BR23: N/A | BS23: N/A | BT23: N/A | BU23: N/A | BV23: N/A | BW23: N/A | BX23: N/A | BY23: N/A | BZ23: N/A | CA23: N/A | CB23: N/A | CC23: N/A | CD23: N/A | CE23: N/A | CF23: N/A | CG23: N/A | CH23: N/A | CI23: N/A | CJ23: N/A | CK23: N/A | CL23: N/A | CM23: N/A | CN23: N/A | CO23: N/A | CP23: N/A | CQ23: N/A
A24: Manually calculated ratios | B24: Improved wells
B25: Improved springs | R25: 50 | S25: 50 | T25: 50 | U25: 50 | V25: 50 | W25: 50 | X25: 50 | Y25: 50 | Z25: 50 | AA25: 50 | AB25: 50 | AC25: 50 | AD25: 50 | AE25: 50 | AF25: 50 | AG25: 50 | AH25: 50 | AI25: 50 | AJ25: 50 | AK25: 50 | AL25: 50 | AM25: 50 | AN25: 50 | AO25: 50 | AP25: 50 | AQ25: 50
B26: Other
C27: NATIONAL wealth index quintile | H27: URBAN wealth index quintile | M27: RURAL wealth index quintile | R27: SUB-REGIONS: | BA27: Raw numbers of respondents: | BB27: Use of drinking water sources | BC27: NATIONAL wealth index quintile | BH27: URBAN wealth index quintile | BM27: RURAL wealth index quintile | BR27: SUB-REGIONS:
A28: Percentage based on weighted population | C28: Poorest | D28: Poor | E28: Middle | F28: Rich | G28: Richest | H28: Poorest | I28: Poor | J28: Middle | K28: Rich | L28: Richest | M28: Poorest | N28: Poor | O28: Middle | P28: Rich | Q28: Richest | R28: Arusha | S28: Dar Es Salam | T28: Dodoma | U28: Iringa | V28: Kagera | W28: Kigoma | X28: Kilimanjaro | Y28: Lindi | Z28: Manyara | AA28: Mara | AB28: Mbeya | AC28: Morogoro | AD28: Mtwara | AE28: Mwanza | AF28: Pemba North | AG28: Pemba South | AH28: Pwani | AI28: Rukwa | AJ28: Ruvuma | AK28: Shinyanga | AL28: Singida | AM28: Tabora | AN28: Tanga | AO28: Town West | AP28: Zanziba South | AQ28: Zanzibar North | BA28: Water data, raw numbers (weighted) | BC28: Poorest | BD28: Poor | BE28: Middle | BF28: Rich | BG28: Richest | BH28: Poorest | BI28: Poor | BJ28: Middle | BK28: Rich | BL28: Richest | BM28: Poorest | BN28: Poor | BO28: Middle | BP28: Rich | BQ28: Richest | BR28: Arusha | BS28: Dar Es Salam | BT28: Dodoma | BU28: Iringa | BV28: Kagera | BW28: Kigoma | BX28: Kilimanjaro | BY28: Lindi | BZ28: Manyara | CA28: Mara | CB28: Mbeya | CC28: Morogoro | CD28: Mtwara | CE28: Mwanza | CF28: Pemba North | CG28: Pemba South | CH28: Pwani | CI28: Rukwa | CJ28: Ruvuma | CK28: Shinyanga | CL28: Singida | CM28: Tabora | CN28: Tanga | CO28: Town West | CP28: Zanziba South | CQ28: Zanzibar North
A29: Piped water | B29: Yes | C29: 17.82266866 | D29: 17.15382716 | E29: 20.7461858 | F29: 37.89743215 | G29: 70.34312 | H29: 43.74168288 | I29: 66.74119076 | J29: 69.33005967 | K29: 77.96512775 | L29: 79.56138278 | M29: 17.80668136 | N29: 15.83587075 | O29: 15.9069503 | P29: 22.06192781 | Q29: 37.73409551 | R29: 62.71417826 | S29: 69.01730955 | T29: 64.35967713 | U29: 38.08422404 | V29: 11.35321979 | W29: 24.43336964 | X29: 71.28155016 | Y29: 25.9785859 | Z29: 26.25204141 | AA29: 18.20112165 | AB29: 28.52308219 | AC29: 30.53327782 | AD29: 29.52044216 | AE29: 23.3943359 | AF29: 61.48663856 | AG29: 81.96356414 | AH29: 38.07917244 | AI29: 8.095520638 | AJ29: 17.35631109 | AK29: 9.535202588 | AL29: 15.05667469 | AM29: 9.237701372 | AN29: 43.1261769 | AO29: 87.54779187 | AP29: 86.62512641 | AQ29: 79.03380615 | BA29: Piped water | BB29: Yes | BC29: N/A | BD29: N/A | BE29: N/A | BF29: N/A | BG29: N/A | BH29: N/A | BI29: N/A | BJ29: N/A | BK29: N/A | BL29: N/A | BM29: N/A | BN29: N/A | BO29: N/A | BP29: N/A | BQ29: N/A | BR29: N/A | BS29: N/A | BT29: N/A | BU29: N/A | BV29: N/A | BW29: N/A | BX29: N/A | BY29: N/A | BZ29: N/A | CA29: N/A | CB29: N/A | CC29: N/A | CD29: N/A | CE29: N/A | CF29: N/A | CG29: N/A | CH29: N/A | CI29: N/A | CJ29: N/A | CK29: N/A | CL29: N/A | CM29: N/A | CN29: N/A | CO29: N/A | CP29: N/A | CQ29: N/A
B30: No | C30: 82.17733134 | D30: 82.84617284 | E30: 79.2538142 | F30: 62.10256785 | G30: 29.65688 | H30: 56.25831712 | I30: 33.25880924 | J30: 30.66994033 | K30: 22.03487225 | L30: 20.43861722 | M30: 82.19331864 | N30: 84.16412925 | O30: 84.0930497 | P30: 77.93807219 | Q30: 62.26590449 | R30: 37.28582174 | S30: 30.98269045 | T30: 35.64032287 | U30: 61.91577596 | V30: 88.64678021 | W30: 75.56663036 | X30: 28.71844984 | Y30: 74.0214141 | Z30: 73.74795859 | AA30: 81.79887835 | AB30: 71.47691781 | AC30: 69.46672218 | AD30: 70.47955784 | AE30: 76.6056641 | AF30: 38.51336144 | AG30: 18.03643586 | AH30: 61.92082756 | AI30: 91.90447936 | AJ30: 82.64368891 | AK30: 90.46479741 | AL30: 84.94332531 | AM30: 90.76229863 | AN30: 56.8738231 | AO30: 12.45220813 | AP30: 13.37487359 | AQ30: 20.96619385 | BB30: No | BC30: N/A | BD30: N/A | BE30: N/A | BF30: N/A | BG30: N/A | BH30: N/A | BI30: N/A | BJ30: N/A | BK30: N/A | BL30: N/A | BM30: N/A | BN30: N/A | BO30: N/A | BP30: N/A | BQ30: N/A | BR30: N/A | BS30: N/A | BT30: N/A | BU30: N/A | BV30: N/A | BW30: N/A | BX30: N/A | BY30: N/A | BZ30: N/A | CA30: N/A | CB30: N/A | CC30: N/A | CD30: N/A | CE30: N/A | CF30: N/A | CG30: N/A | CH30: N/A | CI30: N/A | CJ30: N/A | CK30: N/A | CL30: N/A | CM30: N/A | CN30: N/A | CO30: N/A | CP30: N/A | CQ30: N/A
A31: Piped water on premises | B31: Yes | C31: 0.3375712445 | D31: 0.3136576777 | E31: 1.49636757 | F31: 5.21317655 | G31: 30.16100159 | H31: 3.046242354 | I31: 10.24886336 | J31: 17.23362479 | K31: 33.0513336 | L31: 46.77876852 | M31: 0.2133637404 | N31: 0.4402027859 | O31: 0.6185844822 | P31: 1.74593527 | Q31: 11.57817541 | R31: 10.04742927 | S31: 14.7406099 | T31: 3.437853814 | U31: 4.731959522 | V31: 0 | W31: 6.83727217 | X31: 25.84992523 | Y31: 5.166261979 | Z31: 2.999511085 | AA31: 6.185089162 | AB31: 5.129020199 | AC31: 13.07359623 | AD31: 3.194632438 | AE31: 7.456228503 | AF31: 23.11265775 | AG31: 31.65308802 | AH31: 2.31459 | AI31: 1.13855292 | AJ31: 0.4667007089 | AK31: 1.999595295 | AL31: 1.774801141 | AM31: 4.072363548 | AN31: 11.42885875 | AO31: 54.77216955 | AP31: 36.47800063 | AQ31: 22.64069923 | BA31: Piped water on premises | BB31: Yes | BC31: N/A | BD31: N/A | BE31: N/A | BF31: N/A | BG31: N/A | BH31: N/A | BI31: N/A | BJ31: N/A | BK31: N/A | BL31: N/A | BM31: N/A | BN31: N/A | BO31: N/A | BP31: N/A | BQ31: N/A | BR31: N/A | BS31: N/A | BT31: N/A | BU31: N/A | BV31: N/A | BW31: N/A | BX31: N/A | BY31: N/A | BZ31: N/A | CA31: N/A | CB31: N/A | CC31: N/A | CD31: N/A | CE31: N/A | CF31: N/A | CG31: N/A | CH31: N/A | CI31: N/A | CJ31: N/A | CK31: N/A | CL31: N/A | CM31: N/A | CN31: N/A | CO31: N/A | CP31: N/A | CQ31: N/A
B32: No | C32: 99.66242876 | D32: 99.68634232 | E32: 98.50363243 | F32: 94.78682345 | G32: 69.83899841 | H32: 96.95375765 | I32: 89.75113664 | J32: 82.76637521 | K32: 66.9486664 | L32: 53.22123148 | M32: 99.78663626 | N32: 99.55979721 | O32: 99.38141552 | P32: 98.25406473 | Q32: 88.42182459 | R32: 89.95257073 | S32: 85.2593901 | T32: 96.56214619 | U32: 95.26804048 | V32: 100 | W32: 93.16272783 | X32: 74.15007477 | Y32: 94.83373802 | Z32: 97.00048892 | AA32: 93.81491084 | AB32: 94.8709798 | AC32: 86.92640377 | AD32: 96.80536756 | AE32: 92.5437715 | AF32: 76.88734225 | AG32: 68.34691198 | AH32: 97.68541 | AI32: 98.86144708 | AJ32: 99.53329929 | AK32: 98.00040471 | AL32: 98.22519886 | AM32: 95.92763645 | AN32: 88.57114125 | AO32: 45.22783045 | AP32: 63.52199937 | AQ32: 77.35930077 | BB32: No | BC32: N/A | BD32: N/A | BE32: N/A | BF32: N/A | BG32: N/A | BH32: N/A | BI32: N/A | BJ32: N/A | BK32: N/A | BL32: N/A | BM32: N/A | BN32: N/A | BO32: N/A | BP32: N/A | BQ32: N/A | BR32: N/A | BS32: N/A | BT32: N/A | BU32: N/A | BV32: N/A | BW32: N/A | BX32: N/A | BY32: N/A | BZ32: N/A | CA32: N/A | CB32: N/A | CC32: N/A | CD32: N/A | CE32: N/A | CF32: N/A | CG32: N/A | CH32: N/A | CI32: N/A | CJ32: N/A | CK32: N/A | CL32: N/A | CM32: N/A | CN32: N/A | CO32: N/A | CP32: N/A | CQ32: N/A
A33: Piped water into dwelling | B33: Yes | C33: N/A | D33: N/A | E33: N/A | F33: N/A | G33: N/A | H33: N/A | I33: N/A | J33: N/A | K33: N/A | L33: N/A | M33: N/A | N33: N/A | O33: N/A | P33: N/A | Q33: N/A | R33: N/A | S33: N/A | T33: N/A | U33: N/A | V33: N/A | W33: N/A | X33: N/A | Y33: N/A | Z33: N/A | AA33: N/A | AB33: N/A | AC33: N/A | AD33: N/A | AE33: N/A | AF33: N/A | AG33: N/A | AH33: N/A | AI33: N/A | AJ33: N/A | AK33: N/A | AL33: N/A | AM33: N/A | AN33: N/A | AO33: N/A | AP33: N/A | AQ33: N/A | BA33: Piped water into dwelling | BB33: Yes | BC33: N/A | BD33: N/A | BE33: N/A | BF33: N/A | BG33: N/A | BH33: N/A | BI33: N/A | BJ33: N/A | BK33: N/A | BL33: N/A | BM33: N/A | BN33: N/A | BO33: N/A | BP33: N/A | BQ33: N/A | BR33: N/A | BS33: N/A | BT33: N/A | BU33: N/A | BV33: N/A | BW33: N/A | BX33: N/A | BY33: N/A | BZ33: N/A | CA33: N/A | CB33: N/A | CC33: N/A | CD33: N/A | CE33: N/A | CF33: N/A | CG33: N/A | CH33: N/A | CI33: N/A | CJ33: N/A | CK33: N/A | CL33: N/A | CM33: N/A | CN33: N/A | CO33: N/A | CP33: N/A | CQ33: N/A
B34: No | C34: N/A | D34: N/A | E34: N/A | F34: N/A | G34: N/A | H34: N/A | I34: N/A | J34: N/A | K34: N/A | L34: N/A | M34: N/A | N34: N/A | O34: N/A | P34: N/A | Q34: N/A | R34: N/A | S34: N/A | T34: N/A | U34: N/A | V34: N/A | W34: N/A | X34: N/A | Y34: N/A | Z34: N/A | AA34: N/A | AB34: N/A | AC34: N/A | AD34: N/A | AE34: N/A | AF34: N/A | AG34: N/A | AH34: N/A | AI34: N/A | AJ34: N/A | AK34: N/A | AL34: N/A | AM34: N/A | AN34: N/A | AO34: N/A | AP34: N/A | AQ34: N/A | BB34: No | BC34: N/A | BD34: N/A | BE34: N/A | BF34: N/A | BG34: N/A | BH34: N/A | BI34: N/A | BJ34: N/A | BK34: N/A | BL34: N/A | BM34: N/A | BN34: N/A | BO34: N/A | BP34: N/A | BQ34: N/A | BR34: N/A | BS34: N/A | BT34: N/A | BU34: N/A | BV34: N/A | BW34: N/A | BX34: N/A | BY34: N/A | BZ34: N/A | CA34: N/A | CB34: N/A | CC34: N/A | CD34: N/A | CE34: N/A | CF34: N/A | CG34: N/A | CH34: N/A | CI34: N/A | CJ34: N/A | CK34: N/A | CL34: N/A | CM34: N/A | CN34: N/A | CO34: N/A | CP34: N/A | CQ34: N/A
A35: Water source on premises | B35: Yes | C35: 0.475468684 | D35: 0.4466923075 | E35: 1.617581889 | F35: 5.986203447 | G35: 32.60321587 | H35: 3.596269737 | I35: 12.02223399 | J35: 19.56590954 | K35: 36.51607422 | L35: 50.18790889 | M35: 0.3297193174 | N35: 0.6818715795 | O35: 0.7448057175 | P35: 1.975751396 | Q35: 11.97703783 | R35: 10.04742927 | S35: 20.86269676 | T35: 4.268628651 | U35: 4.731959522 | V35: 0 | W35: 6.83727217 | X35: 25.84992523 | Y35: 5.484458339 | Z35: 2.999511085 | AA35: 6.185089162 | AB35: 5.129020199 | AC35: 14.17902287 | AD35: 3.562559267 | AE35: 7.741820716 | AF35: 23.11265775 | AG35: 32.27801289 | AH35: 2.368040025 | AI35: 1.678306545 | AJ35: 0.4667007089 | AK35: 2.485179782 | AL35: 2.969250613 | AM35: 4.130282433 | AN35: 11.79563511 | AO35: 54.77216955 | AP35: 37.30735835 | AQ35: 23.8478919 | BA35: Water source on premises | BB35: Yes | BC35: N/A | BD35: N/A | BE35: N/A | BF35: N/A | BG35: N/A | BH35: N/A | BI35: N/A | BJ35: N/A | BK35: N/A | BL35: N/A | BM35: N/A | BN35: N/A | BO35: N/A | BP35: N/A | BQ35: N/A | BR35: N/A | BS35: N/A | BT35: N/A | BU35: N/A | BV35: N/A | BW35: N/A | BX35: N/A | BY35: N/A | BZ35: N/A | CA35: N/A | CB35: N/A | CC35: N/A | CD35: N/A | CE35: N/A | CF35: N/A | CG35: N/A | CH35: N/A | CI35: N/A | CJ35: N/A | CK35: N/A | CL35: N/A | CM35: N/A | CN35: N/A | CO35: N/A | CP35: N/A | CQ35: N/A
B36: No | C36: 99.52453132 | D36: 99.55330769 | E36: 98.38241811 | F36: 94.01379655 | G36: 67.39678413 | H36: 96.40373026 | I36: 87.97776601 | J36: 80.43409046 | K36: 63.48392578 | L36: 49.81209111 | M36: 99.67028068 | N36: 99.31812842 | O36: 99.25519428 | P36: 98.0242486 | Q36: 88.02296217 | R36: 89.95257073 | S36: 79.13730324 | T36: 95.73137135 | U36: 95.26804048 | V36: 100 | W36: 93.16272783 | X36: 74.15007477 | Y36: 94.51554166 | Z36: 97.00048892 | AA36: 93.81491084 | AB36: 94.8709798 | AC36: 85.82097713 | AD36: 96.43744073 | AE36: 92.25817928 | AF36: 76.88734225 | AG36: 67.72198711 | AH36: 97.63195997 | AI36: 98.32169345 | AJ36: 99.53329929 | AK36: 97.51482022 | AL36: 97.03074939 | AM36: 95.86971757 | AN36: 88.20436489 | AO36: 45.22783045 | AP36: 62.69264165 | AQ36: 76.1521081 | BB36: No | BC36: N/A | BD36: N/A | BE36: N/A | BF36: N/A | BG36: N/A | BH36: N/A | BI36: N/A | BJ36: N/A | BK36: N/A | BL36: N/A | BM36: N/A | BN36: N/A | BO36: N/A | BP36: N/A | BQ36: N/A | BR36: N/A | BS36: N/A | BT36: N/A | BU36: N/A | BV36: N/A | BW36: N/A | BX36: N/A | BY36: N/A | BZ36: N/A | CA36: N/A | CB36: N/A | CC36: N/A | CD36: N/A | CE36: N/A | CF36: N/A | CG36: N/A | CH36: N/A | CI36: N/A | CJ36: N/A | CK36: N/A | CL36: N/A | CM36: N/A | CN36: N/A | CO36: N/A | CP36: N/A | CQ36: N/A
A37: Improved Water source on premises | B37: Yes | C37: N/A | D37: N/A | E37: N/A | F37: N/A | G37: N/A | H37: N/A | I37: N/A | J37: N/A | K37: N/A | L37: N/A | M37: N/A | N37: N/A | O37: N/A | P37: N/A | Q37: N/A | R37: N/A | S37: N/A | T37: N/A | U37: N/A | V37: N/A | W37: N/A | X37: N/A | Y37: N/A | Z37: N/A | AA37: N/A | AB37: N/A | AC37: N/A | AD37: N/A | AE37: N/A | AF37: N/A | AG37: N/A | AH37: N/A | AI37: N/A | AJ37: N/A | AK37: N/A | AL37: N/A | AM37: N/A | AN37: N/A | AO37: N/A | AP37: N/A | AQ37: N/A | BA37: Improved water source on premises | BB37: Yes | BC37: N/A | BD37: N/A | BE37: N/A | BF37: N/A | BG37: N/A | BH37: N/A | BI37: N/A | BJ37: N/A | BK37: N/A | BL37: N/A | BM37: N/A | BN37: N/A | BO37: N/A | BP37: N/A | BQ37: N/A | BR37: N/A | BS37: N/A | BT37: N/A | BU37: N/A | BV37: N/A | BW37: N/A | BX37: N/A | BY37: N/A | BZ37: N/A | CA37: N/A | CB37: N/A | CC37: N/A | CD37: N/A | CE37: N/A | CF37: N/A | CG37: N/A | CH37: N/A | CI37: N/A | CJ37: N/A | CK37: N/A | CL37: N/A | CM37: N/A | CN37: N/A | CO37: N/A | CP37: N/A | CQ37: N/A
B38: No | C38: N/A | D38: N/A | E38: N/A | F38: N/A | G38: N/A | H38: N/A | I38: N/A | J38: N/A | K38: N/A | L38: N/A | M38: N/A | N38: N/A | O38: N/A | P38: N/A | Q38: N/A | R38: N/A | S38: N/A | T38: N/A | U38: N/A | V38: N/A | W38: N/A | X38: N/A | Y38: N/A | Z38: N/A | AA38: N/A | AB38: N/A | AC38: N/A | AD38: N/A | AE38: N/A | AF38: N/A | AG38: N/A | AH38: N/A | AI38: N/A | AJ38: N/A | AK38: N/A | AL38: N/A | AM38: N/A | AN38: N/A | AO38: N/A | AP38: N/A | AQ38: N/A | BB38: No | BC38: N/A | BD38: N/A | BE38: N/A | BF38: N/A | BG38: N/A | BH38: N/A | BI38: N/A | BJ38: N/A | BK38: N/A | BL38: N/A | BM38: N/A | BN38: N/A | BO38: N/A | BP38: N/A | BQ38: N/A | BR38: N/A | BS38: N/A | BT38: N/A | BU38: N/A | BV38: N/A | BW38: N/A | BX38: N/A | BY38: N/A | BZ38: N/A | CA38: N/A | CB38: N/A | CC38: N/A | CD38: N/A | CE38: N/A | CF38: N/A | CG38: N/A | CH38: N/A | CI38: N/A | CJ38: N/A | CK38: N/A | CL38: N/A | CM38: N/A | CN38: N/A | CO38: N/A | CP38: N/A | CQ38: N/A
A39: Piped water on premises available when needed | B39: Yes | C39: N/A | D39: N/A | E39: N/A | F39: N/A | G39: N/A | H39: N/A | I39: N/A | J39: N/A | K39: N/A | L39: N/A | M39: N/A | N39: N/A | O39: N/A | P39: N/A | Q39: N/A | R39: N/A | S39: N/A | T39: N/A | U39: N/A | V39: N/A | W39: N/A | X39: N/A | Y39: N/A | Z39: N/A | AA39: N/A | AB39: N/A | AC39: N/A | AD39: N/A | AE39: N/A | AF39: N/A | AG39: N/A | AH39: N/A | AI39: N/A | AJ39: N/A | AK39: N/A | AL39: N/A | AM39: N/A | AN39: N/A | AO39: N/A | AP39: N/A | AQ39: N/A | BA39: Piped water on premises available when needed | BB39: Yes | BC39: N/A | BD39: N/A | BE39: N/A | BF39: N/A | BG39: N/A | BH39: N/A | BI39: N/A | BJ39: N/A | BK39: N/A | BL39: N/A | BM39: N/A | BN39: N/A | BO39: N/A | BP39: N/A | BQ39: N/A | BR39: N/A | BS39: N/A | BT39: N/A | BU39: N/A | BV39: N/A | BW39: N/A | BX39: N/A | BY39: N/A | BZ39: N/A | CA39: N/A | CB39: N/A | CC39: N/A | CD39: N/A | CE39: N/A | CF39: N/A | CG39: N/A | CH39: N/A | CI39: N/A | CJ39: N/A | CK39: N/A | CL39: N/A | CM39: N/A | CN39: N/A | CO39: N/A | CP39: N/A | CQ39: N/A
B40: No | C40: N/A | D40: N/A | E40: N/A | F40: N/A | G40: N/A | H40: N/A | I40: N/A | J40: N/A | K40: N/A | L40: N/A | M40: N/A | N40: N/A | O40: N/A | P40: N/A | Q40: N/A | R40: N/A | S40: N/A | T40: N/A | U40: N/A | V40: N/A | W40: N/A | X40: N/A | Y40: N/A | Z40: N/A | AA40: N/A | AB40: N/A | AC40: N/A | AD40: N/A | AE40: N/A | AF40: N/A | AG40: N/A | AH40: N/A | AI40: N/A | AJ40: N/A | AK40: N/A | AL40: N/A | AM40: N/A | AN40: N/A | AO40: N/A | AP40: N/A | AQ40: N/A | BB40: No | BC40: N/A | BD40: N/A | BE40: N/A | BF40: N/A | BG40: N/A | BH40: N/A | BI40: N/A | BJ40: N/A | BK40: N/A | BL40: N/A | BM40: N/A | BN40: N/A | BO40: N/A | BP40: N/A | BQ40: N/A | BR40: N/A | BS40: N/A | BT40: N/A | BU40: N/A | BV40: N/A | BW40: N/A | BX40: N/A | BY40: N/A | BZ40: N/A | CA40: N/A | CB40: N/A | CC40: N/A | CD40: N/A | CE40: N/A | CF40: N/A | CG40: N/A | CH40: N/A | CI40: N/A | CJ40: N/A | CK40: N/A | CL40: N/A | CM40: N/A | CN40: N/A | CO40: N/A | CP40: N/A | CQ40: N/A
A41: Water point at more than 30 minutes | B41: Yes | C41: 37.7314667 | D41: 36.88806541 | E41: 29.60108442 | F41: 20.62888668 | G41: 5.926911093 | H41: 20.21231692 | I41: 9.820770857 | J41: 4.458582998 | K41: 3.005772449 | L41: 2.934529926 | M41: 38.34783938 | N41: 38.1273072 | O41: 33.16005844 | P41: 29.60236533 | Q41: 20.00967009 | R41: 33.66933002 | S41: 2.857484757 | T41: 29.01509435 | U41: 27.46815957 | V41: 31.02460241 | W41: 26.73724626 | X41: 11.36975592 | Y41: 36.23499277 | Z41: 52.15651676 | AA41: 12.98290239 | AB41: 26.57643369 | AC41: 21.25271227 | AD41: 56.93319377 | AE41: 37.7124509 | AF41: 7.425273701 | AG41: 1.22351081 | AH41: 29.74274837 | AI41: 30.06833554 | AJ41: 20.77642647 | AK41: 18.51390905 | AL41: 34.86827143 | AM41: 30.49933362 | AN41: 25.24232667 | AO41: 2.591745179 | AP41: 4.558836953 | AQ41: 5.603246894 | BA41: Water point at more than 30 minutes | BB41: Yes | BC41: N/A | BD41: N/A | BE41: N/A | BF41: N/A | BG41: N/A | BH41: N/A | BI41: N/A | BJ41: N/A | BK41: N/A | BL41: N/A | BM41: N/A | BN41: N/A | BO41: N/A | BP41: N/A | BQ41: N/A | BR41: N/A | BS41: N/A | BT41: N/A | BU41: N/A | BV41: N/A | BW41: N/A | BX41: N/A | BY41: N/A | BZ41: N/A | CA41: N/A | CB41: N/A | CC41: N/A | CD41: N/A | CE41: N/A | CF41: N/A | CG41: N/A | CH41: N/A | CI41: N/A | CJ41: N/A | CK41: N/A | CL41: N/A | CM41: N/A | CN41: N/A | CO41: N/A | CP41: N/A | CQ41: N/A
B42: No | C42: 62.2685333 | D42: 63.11193459 | E42: 70.39891558 | F42: 79.37111332 | G42: 94.07308891 | H42: 79.78768308 | I42: 90.17922914 | J42: 95.541417 | K42: 96.99422755 | L42: 97.06547007 | M42: 61.65216062 | N42: 61.8726928 | O42: 66.83994156 | P42: 70.39763467 | Q42: 79.99032991 | R42: 66.33066998 | S42: 97.14251524 | T42: 70.98490565 | U42: 72.53184043 | V42: 68.97539759 | W42: 73.26275374 | X42: 88.63024408 | Y42: 63.76500723 | Z42: 47.84348324 | AA42: 87.01709761 | AB42: 73.42356631 | AC42: 78.74728773 | AD42: 43.06680623 | AE42: 62.2875491 | AF42: 92.5747263 | AG42: 98.77648919 | AH42: 70.25725163 | AI42: 69.93166446 | AJ42: 79.22357353 | AK42: 81.48609095 | AL42: 65.13172857 | AM42: 69.50066638 | AN42: 74.75767333 | AO42: 97.40825482 | AP42: 95.44116305 | AQ42: 94.39675311 | BB42: No | BC42: N/A | BD42: N/A | BE42: N/A | BF42: N/A | BG42: N/A | BH42: N/A | BI42: N/A | BJ42: N/A | BK42: N/A | BL42: N/A | BM42: N/A | BN42: N/A | BO42: N/A | BP42: N/A | BQ42: N/A | BR42: N/A | BS42: N/A | BT42: N/A | BU42: N/A | BV42: N/A | BW42: N/A | BX42: N/A | BY42: N/A | BZ42: N/A | CA42: N/A | CB42: N/A | CC42: N/A | CD42: N/A | CE42: N/A | CF42: N/A | CG42: N/A | CH42: N/A | CI42: N/A | CJ42: N/A | CK42: N/A | CL42: N/A | CM42: N/A | CN42: N/A | CO42: N/A | CP42: N/A | CQ42: N/A
A43: Water source available when needed | B43: Yes | C43: N/A | D43: N/A | E43: N/A | F43: N/A | G43: N/A | H43: N/A | I43: N/A | J43: N/A | K43: N/A | L43: N/A | M43: N/A | N43: N/A | O43: N/A | P43: N/A | Q43: N/A | R43: N/A | S43: N/A | T43: N/A | U43: N/A | V43: N/A | W43: N/A | X43: N/A | Y43: N/A | Z43: N/A | AA43: N/A | AB43: N/A | AC43: N/A | AD43: N/A | AE43: N/A | AF43: N/A | AG43: N/A | AH43: N/A | AI43: N/A | AJ43: N/A | AK43: N/A | AL43: N/A | AM43: N/A | AN43: N/A | AO43: N/A | AP43: N/A | AQ43: N/A | BA43: Water source available when needed | BB43: Yes | BC43: N/A | BD43: N/A | BE43: N/A | BF43: N/A | BG43: N/A | BH43: N/A | BI43: N/A | BJ43: N/A | BK43: N/A | BL43: N/A | BM43: N/A | BN43: N/A | BO43: N/A | BP43: N/A | BQ43: N/A | BR43: N/A | BS43: N/A | BT43: N/A | BU43: N/A | BV43: N/A | BW43: N/A | BX43: N/A | BY43: N/A | BZ43: N/A | CA43: N/A | CB43: N/A | CC43: N/A | CD43: N/A | CE43: N/A | CF43: N/A | CG43: N/A | CH43: N/A | CI43: N/A | CJ43: N/A | CK43: N/A | CL43: N/A | CM43: N/A | CN43: N/A | CO43: N/A | CP43: N/A | CQ43: N/A
B44: No | C44: N/A | D44: N/A | E44: N/A | F44: N/A | G44: N/A | H44: N/A | I44: N/A | J44: N/A | K44: N/A | L44: N/A | M44: N/A | N44: N/A | O44: N/A | P44: N/A | Q44: N/A | R44: N/A | S44: N/A | T44: N/A | U44: N/A | V44: N/A | W44: N/A | X44: N/A | Y44: N/A | Z44: N/A | AA44: N/A | AB44: N/A | AC44: N/A | AD44: N/A | AE44: N/A | AF44: N/A | AG44: N/A | AH44: N/A | AI44: N/A | AJ44: N/A | AK44: N/A | AL44: N/A | AM44: N/A | AN44: N/A | AO44: N/A | AP44: N/A | AQ44: N/A | BB44: No | BC44: N/A | BD44: N/A | BE44: N/A | BF44: N/A | BG44: N/A | BH44: N/A | BI44: N/A | BJ44: N/A | BK44: N/A | BL44: N/A | BM44: N/A | BN44: N/A | BO44: N/A | BP44: N/A | BQ44: N/A | BR44: N/A | BS44: N/A | BT44: N/A | BU44: N/A | BV44: N/A | BW44: N/A | BX44: N/A | BY44: N/A | BZ44: N/A | CA44: N/A | CB44: N/A | CC44: N/A | CD44: N/A | CE44: N/A | CF44: N/A | CG44: N/A | CH44: N/A | CI44: N/A | CJ44: N/A | CK44: N/A | CL44: N/A | CM44: N/A | CN44: N/A | CO44: N/A | CP44: N/A | CQ44: N/A
A45: Improved water source available when needed | B45: Yes | C45: N/A | D45: N/A | E45: N/A | F45: N/A | G45: N/A | H45: N/A | I45: N/A | J45: N/A | K45: N/A | L45: N/A | M45: N/A | N45: N/A | O45: N/A | P45: N/A | Q45: N/A | R45: N/A | S45: N/A | T45: N/A | U45: N/A | V45: N/A | W45: N/A | X45: N/A | Y45: N/A | Z45: N/A | AA45: N/A | AB45: N/A | AC45: N/A | AD45: N/A | AE45: N/A | AF45: N/A | AG45: N/A | AH45: N/A | AI45: N/A | AJ45: N/A | AK45: N/A | AL45: N/A | AM45: N/A | AN45: N/A | AO45: N/A | AP45: N/A | AQ45: N/A | BA45: Improved water source available when needed | BB45: Yes | BC45: N/A | BD45: N/A | BE45: N/A | BF45: N/A | BG45: N/A | BH45: N/A | BI45: N/A | BJ45: N/A | BK45: N/A | BL45: N/A | BM45: N/A | BN45: N/A | BO45: N/A | BP45: N/A | BQ45: N/A | BR45: N/A | BS45: N/A | BT45: N/A | BU45: N/A | BV45: N/A | BW45: N/A | BX45: N/A | BY45: N/A | BZ45: N/A | CA45: N/A | CB45: N/A | CC45: N/A | CD45: N/A | CE45: N/A | CF45: N/A | CG45: N/A | CH45: N/A | CI45: N/A | CJ45: N/A | CK45: N/A | CL45: N/A | CM45: N/A | CN45: N/A | CO45: N/A | CP45: N/A | CQ45: N/A
B46: No | C46: N/A | D46: N/A | E46: N/A | F46: N/A | G46: N/A | H46: N/A | I46: N/A | J46: N/A | K46: N/A | L46: N/A | M46: N/A | N46: N/A | O46: N/A | P46: N/A | Q46: N/A | R46: N/A | S46: N/A | T46: N/A | U46: N/A | V46: N/A | W46: N/A | X46: N/A | Y46: N/A | Z46: N/A | AA46: N/A | AB46: N/A | AC46: N/A | AD46: N/A | AE46: N/A | AF46: N/A | AG46: N/A | AH46: N/A | AI46: N/A | AJ46: N/A | AK46: N/A | AL46: N/A | AM46: N/A | AN46: N/A | AO46: N/A | AP46: N/A | AQ46: N/A | BB46: No | BC46: N/A | BD46: N/A | BE46: N/A | BF46: N/A | BG46: N/A | BH46: N/A | BI46: N/A | BJ46: N/A | BK46: N/A | BL46: N/A | BM46: N/A | BN46: N/A | BO46: N/A | BP46: N/A | BQ46: N/A | BR46: N/A | BS46: N/A | BT46: N/A | BU46: N/A | BV46: N/A | BW46: N/A | BX46: N/A | BY46: N/A | BZ46: N/A | CA46: N/A | CB46: N/A | CC46: N/A | CD46: N/A | CE46: N/A | CF46: N/A | CG46: N/A | CH46: N/A | CI46: N/A | CJ46: N/A | CK46: N/A | CL46: N/A | CM46: N/A | CN46: N/A | CO46: N/A | CP46: N/A | CQ46: N/A
A47: Microbiological quality at point of collection | B47: Not contaminated (No E. coli in 100 mL) | C47: N/A | D47: N/A | E47: N/A | F47: N/A | G47: N/A | H47: N/A | I47: N/A | J47: N/A | K47: N/A | L47: N/A | M47: N/A | N47: N/A | O47: N/A | P47: N/A | Q47: N/A | R47: N/A | S47: N/A | T47: N/A | U47: N/A | V47: N/A | W47: N/A | X47: N/A | Y47: N/A | Z47: N/A | AA47: N/A | AB47: N/A | AC47: N/A | AD47: N/A | AE47: N/A | AF47: N/A | AG47: N/A | AH47: N/A | AI47: N/A | AJ47: N/A | AK47: N/A | AL47: N/A | AM47: N/A | AN47: N/A | AO47: N/A | AP47: N/A | AQ47: N/A | BA47: Microbiological quality at point of collection | BB47: Not contaminated (No E. coli in 100 mL) | BC47: N/A | BD47: N/A | BE47: N/A | BF47: N/A | BG47: N/A | BH47: N/A | BI47: N/A | BJ47: N/A | BK47: N/A | BL47: N/A | BM47: N/A | BN47: N/A | BO47: N/A | BP47: N/A | BQ47: N/A | BR47: N/A | BS47: N/A | BT47: N/A | BU47: N/A | BV47: N/A | BW47: N/A | BX47: N/A | BY47: N/A | BZ47: N/A | CA47: N/A | CB47: N/A | CC47: N/A | CD47: N/A | CE47: N/A | CF47: N/A | CG47: N/A | CH47: N/A | CI47: N/A | CJ47: N/A | CK47: N/A | CL47: N/A | CM47: N/A | CN47: N/A | CO47: N/A | CP47: N/A | CQ47: N/A
B48: Contaminated (E. coli detected in 100 mL) | C48: N/A | D48: N/A | E48: N/A | F48: N/A | G48: N/A | H48: N/A | I48: N/A | J48: N/A | K48: N/A | L48: N/A | M48: N/A | N48: N/A | O48: N/A | P48: N/A | Q48: N/A | R48: N/A | S48: N/A | T48: N/A | U48: N/A | V48: N/A | W48: N/A | X48: N/A | Y48: N/A | Z48: N/A | AA48: N/A | AB48: N/A | AC48: N/A | AD48: N/A | AE48: N/A | AF48: N/A | AG48: N/A | AH48: N/A | AI48: N/A | AJ48: N/A | AK48: N/A | AL48: N/A | AM48: N/A | AN48: N/A | AO48: N/A | AP48: N/A | AQ48: N/A | BB48: Contaminated (E. coli detected in 100 mL) | BC48: N/A | BD48: N/A | BE48: N/A | BF48: N/A | BG48: N/A | BH48: N/A | BI48: N/A | BJ48: N/A | BK48: N/A | BL48: N/A | BM48: N/A | BN48: N/A | BO48: N/A | BP48: N/A | BQ48: N/A | BR48: N/A | BS48: N/A | BT48: N/A | BU48: N/A | BV48: N/A | BW48: N/A | BX48: N/A | BY48: N/A | BZ48: N/A | CA48: N/A | CB48: N/A | CC48: N/A | CD48: N/A | CE48: N/A | CF48: N/A | CG48: N/A | CH48: N/A | CI48: N/A | CJ48: N/A | CK48: N/A | CL48: N/A | CM48: N/A | CN48: N/A | CO48: N/A | CP48: N/A | CQ48: N/A
B49: Highly contaminated (>100 CFU/100 mL) | C49: N/A | D49: N/A | E49: N/A | F49: N/A | G49: N/A | H49: N/A | I49: N/A | J49: N/A | K49: N/A | L49: N/A | M49: N/A | N49: N/A | O49: N/A | P49: N/A | Q49: N/A | R49: N/A | S49: N/A | T49: N/A | U49: N/A | V49: N/A | W49: N/A | X49: N/A | Y49: N/A | Z49: N/A | AA49: N/A | AB49: N/A | AC49: N/A | AD49: N/A | AE49: N/A | AF49: N/A | AG49: N/A | AH49: N/A | AI49: N/A | AJ49: N/A | AK49: N/A | AL49: N/A | AM49: N/A | AN49: N/A | AO49: N/A | AP49: N/A | AQ49: N/A | BB49: Highly contaminated (>100 CFU/100 mL) | BC49: N/A | BD49: N/A | BE49: N/A | BF49: N/A | BG49: N/A | BH49: N/A | BI49: N/A | BJ49: N/A | BK49: N/A | BL49: N/A | BM49: N/A | BN49: N/A | BO49: N/A | BP49: N/A | BQ49: N/A | BR49: N/A | BS49: N/A | BT49: N/A | BU49: N/A | BV49: N/A | BW49: N/A | BX49: N/A | BY49: N/A | BZ49: N/A | CA49: N/A | CB49: N/A | CC49: N/A | CD49: N/A | CE49: N/A | CF49: N/A | CG49: N/A | CH49: N/A | CI49: N/A | CJ49: N/A | CK49: N/A | CL49: N/A | CM49: N/A | CN49: N/A | CO49: N/A | CP49: N/A | CQ49: N/A
A50: Microbiological quality of improved water sources at point of collection | B50: Not contaminated (No E. coli in 100 mL) | C50: N/A | D50: N/A | E50: N/A | F50: N/A | G50: N/A | H50: N/A | I50: N/A | J50: N/A | K50: N/A | L50: N/A | M50: N/A | N50: N/A | O50: N/A | P50: N/A | Q50: N/A | R50: N/A | S50: N/A | T50: N/A | U50: N/A | V50: N/A | W50: N/A | X50: N/A | Y50: N/A | Z50: N/A | AA50: N/A | AB50: N/A | AC50: N/A | AD50: N/A | AE50: N/A | AF50: N/A | AG50: N/A | AH50: N/A | AI50: N/A | AJ50: N/A | AK50: N/A | AL50: N/A | AM50: N/A | AN50: N/A | AO50: N/A | AP50: N/A | AQ50: N/A | BA50: Microbiological quality of improved water sources at point of collection | BB50: Not contaminated (No E. coli in 100 mL) | BC50: N/A | BD50: N/A | BE50: N/A | BF50: N/A | BG50: N/A | BH50: N/A | BI50: N/A | BJ50: N/A | BK50: N/A | BL50: N/A | BM50: N/A | BN50: N/A | BO50: N/A | BP50: N/A | BQ50: N/A | BR50: N/A | BS50: N/A | BT50: N/A | BU50: N/A | BV50: N/A | BW50: N/A | BX50: N/A | BY50: N/A | BZ50: N/A | CA50: N/A | CB50: N/A | CC50: N/A | CD50: N/A | CE50: N/A | CF50: N/A | CG50: N/A | CH50: N/A | CI50: N/A | CJ50: N/A | CK50: N/A | CL50: N/A | CM50: N/A | CN50: N/A | CO50: N/A | CP50: N/A | CQ50: N/A
B51: Contaminated (E. coli detected in 100 mL) | C51: N/A | D51: N/A | E51: N/A | F51: N/A | G51: N/A | H51: N/A | I51: N/A | J51: N/A | K51: N/A | L51: N/A | M51: N/A | N51: N/A | O51: N/A | P51: N/A | Q51: N/A | R51: N/A | S51: N/A | T51: N/A | U51: N/A | V51: N/A | W51: N/A | X51: N/A | Y51: N/A | Z51: N/A | AA51: N/A | AB51: N/A | AC51: N/A | AD51: N/A | AE51: N/A | AF51: N/A | AG51: N/A | AH51: N/A | AI51: N/A | AJ51: N/A | AK51: N/A | AL51: N/A | AM51: N/A | AN51: N/A | AO51: N/A | AP51: N/A | AQ51: N/A | BB51: Contaminated (E. coli detected in 100 mL) | BC51: N/A | BD51: N/A | BE51: N/A | BF51: N/A | BG51: N/A | BH51: N/A | BI51: N/A | BJ51: N/A | BK51: N/A | BL51: N/A | BM51: N/A | BN51: N/A | BO51: N/A | BP51: N/A | BQ51: N/A | BR51: N/A | BS51: N/A | BT51: N/A | BU51: N/A | BV51: N/A | BW51: N/A | BX51: N/A | BY51: N/A | BZ51: N/A | CA51: N/A | CB51: N/A | CC51: N/A | CD51: N/A | CE51: N/A | CF51: N/A | CG51: N/A | CH51: N/A | CI51: N/A | CJ51: N/A | CK51: N/A | CL51: N/A | CM51: N/A | CN51: N/A | CO51: N/A | CP51: N/A | CQ51: N/A
B52: Highly contaminated (>100 CFU/100 mL) | C52: N/A | D52: N/A | E52: N/A | F52: N/A | G52: N/A | H52: N/A | I52: N/A | J52: N/A | K52: N/A | L52: N/A | M52: N/A | N52: N/A | O52: N/A | P52: N/A | Q52: N/A | R52: N/A | S52: N/A | T52: N/A | U52: N/A | V52: N/A | W52: N/A | X52: N/A | Y52: N/A | Z52: N/A | AA52: N/A | AB52: N/A | AC52: N/A | AD52: N/A | AE52: N/A | AF52: N/A | AG52: N/A | AH52: N/A | AI52: N/A | AJ52: N/A | AK52: N/A | AL52: N/A | AM52: N/A | AN52: N/A | AO52: N/A | AP52: N/A | AQ52: N/A | BB52: Highly contaminated (>100 CFU/100 mL) | BC52: N/A | BD52: N/A | BE52: N/A | BF52: N/A | BG52: N/A | BH52: N/A | BI52: N/A | BJ52: N/A | BK52: N/A | BL52: N/A | BM52: N/A | BN52: N/A | BO52: N/A | BP52: N/A | BQ52: N/A | BR52: N/A | BS52: N/A | BT52: N/A | BU52: N/A | BV52: N/A | BW52: N/A | BX52: N/A | BY52: N/A | BZ52: N/A | CA52: N/A | CB52: N/A | CC52: N/A | CD52: N/A | CE52: N/A | CF52: N/A | CG52: N/A | CH52: N/A | CI52: N/A | CJ52: N/A | CK52: N/A | CL52: N/A | CM52: N/A | CN52: N/A | CO52: N/A | CP52: N/A | CQ52: N/A
A53: Microbiological quality of piped on premises at point of collection | B53: Not contaminated (No E. coli in 100 mL) | C53: N/A | D53: N/A | E53: N/A | F53: N/A | G53: N/A | H53: N/A | I53: N/A | J53: N/A | K53: N/A | L53: N/A | M53: N/A | N53: N/A | O53: N/A | P53: N/A | Q53: N/A | R53: N/A | S53: N/A | T53: N/A | U53: N/A | V53: N/A | W53: N/A | X53: N/A | Y53: N/A | Z53: N/A | AA53: N/A | AB53: N/A | AC53: N/A | AD53: N/A | AE53: N/A | AF53: N/A | AG53: N/A | AH53: N/A | AI53: N/A | AJ53: N/A | AK53: N/A | AL53: N/A | AM53: N/A | AN53: N/A | AO53: N/A | AP53: N/A | AQ53: N/A | BA53: Microbiological quality of piped on premises at point of collection | BB53: Not contaminated (No E. coli in 100 mL) | BC53: N/A | BD53: N/A | BE53: N/A | BF53: N/A | BG53: N/A | BH53: N/A | BI53: N/A | BJ53: N/A | BK53: N/A | BL53: N/A | BM53: N/A | BN53: N/A | BO53: N/A | BP53: N/A | BQ53: N/A | BR53: N/A | BS53: N/A | BT53: N/A | BU53: N/A | BV53: N/A | BW53: N/A | BX53: N/A | BY53: N/A | BZ53: N/A | CA53: N/A | CB53: N/A | CC53: N/A | CD53: N/A | CE53: N/A | CF53: N/A | CG53: N/A | CH53: N/A | CI53: N/A | CJ53: N/A | CK53: N/A | CL53: N/A | CM53: N/A | CN53: N/A | CO53: N/A | CP53: N/A | CQ53: N/A
B54: Contaminated (E. coli detected in 100 mL) | C54: N/A | D54: N/A | E54: N/A | F54: N/A | G54: N/A | H54: N/A | I54: N/A | J54: N/A | K54: N/A | L54: N/A | M54: N/A | N54: N/A | O54: N/A | P54: N/A | Q54: N/A | R54: N/A | S54: N/A | T54: N/A | U54: N/A | V54: N/A | W54: N/A | X54: N/A | Y54: N/A | Z54: N/A | AA54: N/A | AB54: N/A | AC54: N/A | AD54: N/A | AE54: N/A | AF54: N/A | AG54: N/A | AH54: N/A | AI54: N/A | AJ54: N/A | AK54: N/A | AL54: N/A | AM54: N/A | AN54: N/A | AO54: N/A | AP54: N/A | AQ54: N/A | BB54: Contaminated (E. coli detected in 100 mL) | BC54: N/A | BD54: N/A | BE54: N/A | BF54: N/A | BG54: N/A | BH54: N/A | BI54: N/A | BJ54: N/A | BK54: N/A | BL54: N/A | BM54: N/A | BN54: N/A | BO54: N/A | BP54: N/A | BQ54: N/A | BR54: N/A | BS54: N/A | BT54: N/A | BU54: N/A | BV54: N/A | BW54: N/A | BX54: N/A | BY54: N/A | BZ54: N/A | CA54: N/A | CB54: N/A | CC54: N/A | CD54: N/A | CE54: N/A | CF54: N/A | CG54: N/A | CH54: N/A | CI54: N/A | CJ54: N/A | CK54: N/A | CL54: N/A | CM54: N/A | CN54: N/A | CO54: N/A | CP54: N/A | CQ54: N/A
B55: Highly contaminated (>100 CFU/100 mL) | C55: N/A | D55: N/A | E55: N/A | F55: N/A | G55: N/A | H55: N/A | I55: N/A | J55: N/A | K55: N/A | L55: N/A | M55: N/A | N55: N/A | O55: N/A | P55: N/A | Q55: N/A | R55: N/A | S55: N/A | T55: N/A | U55: N/A | V55: N/A | W55: N/A | X55: N/A | Y55: N/A | Z55: N/A | AA55: N/A | AB55: N/A | AC55: N/A | AD55: N/A | AE55: N/A | AF55: N/A | AG55: N/A | AH55: N/A | AI55: N/A | AJ55: N/A | AK55: N/A | AL55: N/A | AM55: N/A | AN55: N/A | AO55: N/A | AP55: N/A | AQ55: N/A | BB55: Highly contaminated (>100 CFU/100 mL) | BC55: N/A | BD55: N/A | BE55: N/A | BF55: N/A | BG55: N/A | BH55: N/A | BI55: N/A | BJ55: N/A | BK55: N/A | BL55: N/A | BM55: N/A | BN55: N/A | BO55: N/A | BP55: N/A | BQ55: N/A | BR55: N/A | BS55: N/A | BT55: N/A | BU55: N/A | BV55: N/A | BW55: N/A | BX55: N/A | BY55: N/A | BZ55: N/A | CA55: N/A | CB55: N/A | CC55: N/A | CD55: N/A | CE55: N/A | CF55: N/A | CG55: N/A | CH55: N/A | CI55: N/A | CJ55: N/A | CK55: N/A | CL55: N/A | CM55: N/A | CN55: N/A | CO55: N/A | CP55: N/A | CQ55: N/A
C56: NATIONAL wealth index quintile | H56: URBAN wealth index quintile | M56: RURAL wealth index quintile | R56: SUB-REGIONS: | BA56: Raw numbers of respondents: | BB56: Use of drinking water sources | BC56: NATIONAL wealth index quintile | BH56: URBAN wealth index quintile | BM56: RURAL wealth index quintile | BR56: SUB-REGIONS:
A57: Percentage based on weighted population | C57: Poorest | D57: Poor | E57: Middle | F57: Rich | G57: Richest | H57: Poorest | I57: Poor | J57: Middle | K57: Rich | L57: Richest | M57: Poorest | N57: Poor | O57: Middle | P57: Rich | Q57: Richest | R57: Arusha | S57: Dar Es Salam | T57: Dodoma | U57: Iringa | V57: Kagera | W57: Kigoma | X57: Kilimanjaro | Y57: Lindi | Z57: Manyara | AA57: Mara | AB57: Mbeya | AC57: Morogoro | AD57: Mtwara | AE57: Mwanza | AF57: Pemba North | AG57: Pemba South | AH57: Pwani | AI57: Rukwa | AJ57: Ruvuma | AK57: Shinyanga | AL57: Singida | AM57: Tabora | AN57: Tanga | AO57: Town West | AP57: Zanziba South | AQ57: Zanzibar North | BA57: Water data, raw numbers (weighted) | BC57: Poorest | BD57: Poor | BE57: Middle | BF57: Rich | BG57: Richest | BH57: Poorest | BI57: Poor | BJ57: Middle | BK57: Rich | BL57: Richest | BM57: Poorest | BN57: Poor | BO57: Middle | BP57: Rich | BQ57: Richest | BR57: Arusha | BS57: Dar Es Salam | BT57: Dodoma | BU57: Iringa | BV57: Kagera | BW57: Kigoma | BX57: Kilimanjaro | BY57: Lindi | BZ57: Manyara | CA57: Mara | CB57: Mbeya | CC57: Morogoro | CD57: Mtwara | CE57: Mwanza | CF57: Pemba North | CG57: Pemba South | CH57: Pwani | CI57: Rukwa | CJ57: Ruvuma | CK57: Shinyanga | CL57: Singida | CM57: Tabora | CN57: Tanga | CO57: Town West | CP57: Zanziba South | CQ57: Zanzibar North
A58: Source of drinking water | B58: Piped into dwelling | C58: 0.02585045361 | D58: 0.04246576327 | E58: 0.2861857847 | F58: 1.673523127 | G58: 18.11797022 | H58: 0.21303058 | I58: 5.578122079 | J58: 8.787700253 | K58: 18.99385677 | L58: 34.52451828 | M58: 0.01432751575 | N58: 0.01519940341 | O58: 0.1557585304 | P58: 0.3868197615 | Q58: 4.48752806 | R58: 1.028698158 | S58: 12.86980205 | T58: 2.251425383 | U58: 3.021651507 | V58: 0 | W58: 2.871948585 | X58: 8.73362363 | Y58: 3.37583594 | Z58: 0.3896225655 | AA58: 1.721579318 | AB58: 3.345876199 | AC58: 5.008605438 | AD58: 0.7453229448 | AE58: 2.739936335 | AF58: 16.76072835 | AG58: 20.11382208 | AH58: 1.057830976 | AI58: 1.13855292 | AJ58: 0.2333503544 | AK58: 0 | AL58: 1.447364485 | AM58: 2.373420625 | AN58: 6.542666876 | AO58: 50.40295161 | AP58: 22.99458919 | AQ58: 14.09283854
B59: Piped into yard/plot | C59: 0.311739352 | D59: 0.2711919144 | E59: 1.210181785 | F59: 3.540051401 | G59: 12.04303137 | H59: 2.833211774 | I59: 4.670741281 | J59: 8.445924542 | K59: 14.05747683 | L59: 12.25425024 | M59: 0.1990362246 | N59: 0.4250354098 | O59: 0.4628259518 | P59: 1.359115508 | Q59: 7.091808867 | R59: 9.018731113 | S59: 1.870807856 | T59: 1.186428432 | U59: 1.710308014 | V59: 0 | W59: 3.965323585 | X59: 17.1163016 | Y59: 1.790426039 | Z59: 2.609888519 | AA59: 4.463509843 | AB59: 1.783144 | AC59: 8.064990797 | AD59: 2.449309493 | AE59: 4.716292168 | AF59: 6.466680129 | AG59: 11.53926594 | AH59: 1.256759024 | AI59: 0 | AJ59: 0.2333503544 | AK59: 1.999595295 | AL59: 0.3274366566 | AM59: 1.698942923 | AN59: 4.886191872 | AO59: 4.369217939 | AP59: 13.48341144 | AQ59: 8.54786069
B60: Public tap | C60: 14.74890606 | D60: 13.65272791 | E60: 15.42710667 | F60: 21.413143 | G60: 11.64311156 | H60: 23.8186816 | I60: 22.95351136 | J60: 12.19697137 | K60: 7.646963795 | L60: 6.409299577 | M60: 15.30915092 | N60: 13.53809671 | O60: 12.52263996 | P60: 16.64298773 | Q60: 20.08305037 | R60: 34.630842 | S60: 5.935158475 | T60: 51.95147789 | U60: 26.62438245 | V60: 11.13318867 | W60: 9.292438668 | X60: 19.58603411 | Y60: 16.4081162 | Z60: 19.89575879 | AA60: 0.6630019515 | AB60: 19.17821756 | AC60: 12.5159473 | AD60: 20.18680821 | AE60: 9.880100811 | AF60: 29.61493038 | AG60: 42.41403269 | AH60: 18.25795532 | AI60: 6.439097663 | AJ60: 14.00598881 | AK60: 5.411050363 | AL60: 10.51809806 | AM60: 0.5483021746 | AN60: 23.71594305 | AO60: 21.114977 | AP60: 42.16473701 | AQ60: 49.95252755
B61: Naighbor's tap | C61: 2.737152762 | D61: 3.187441577 | E61: 3.822711557 | F61: 11.27360774 | G61: 28.53900685 | H61: 16.87675893 | I61: 33.53881604 | J61: 39.89946351 | K61: 37.26683035 | L61: 26.37331469 | M61: 2.284166695 | N61: 1.858691381 | O61: 2.765725858 | P61: 3.673004813 | Q61: 6.075493681 | R61: 18.03590698 | S61: 48.34154117 | T61: 8.970345421 | U61: 6.727882065 | V61: 0.2200311232 | W61: 8.303658798 | X61: 25.84559083 | Y61: 4.404207726 | Z61: 3.356771538 | AA61: 11.35303054 | AB61: 4.215844429 | AC61: 4.943734287 | AD61: 6.139001511 | AE61: 6.05800659 | AF61: 8.949571265 | AG61: 7.89644343 | AH61: 17.50662712 | AI61: 0.5178700538 | AJ61: 2.883621571 | AK61: 2.12455693 | AL61: 2.763775489 | AM61: 4.61703565 | AN61: 7.981375106 | AO61: 11.66064532 | AP61: 7.982388774 | AQ61: 6.440579367
B62: Open well in dwelling | C62: 0 | D62: 0.07233756186 | E62: 0 | F62: 0.1268813502 | G62: 0.4607474061 | H62: 0.1008228339 | I62: 0.4279640034 | J62: 0.5020075373 | K62: 0.1194314274 | L62: 1.270069423 | M62: 0 | N62: 0.09588254606 | O62: 0 | P62: 0 | Q62: 0.01103942502 | R62: 0.06046961047 | S62: 0.5450755954 | T62: 0 | U62: 0 | V62: 0 | W62: 0 | X62: 0 | Y62: 0 | Z62: 0 | AA62: 0.151979403 | AB62: 0.2774025904 | AC62: 0 | AD62: 0.4358183476 | AE62: 0 | AF62: 0.3391424832 | AG62: 0.1400104077 | AH62: 0 | AI62: 0.1528398671 | AJ62: 0 | AK62: 0.2172117644 | AL62: 0 | AM62: 0.4633510806 | AN62: 0 | AO62: 0 | AP62: 0 | AQ62: 0.2117474756
B63: Open well in yard/plot | C63: 1.107916901 | D63: 0.8102936774 | E63: 0.4326221137 | F63: 1.200471079 | G63: 0.4398809299 | H63: 0.02682435992 | I63: 0.239764409 | J63: 0.4986207377 | K63: 0.6979887216 | L63: 0.3748281294 | M63: 1.333022213 | N63: 0.4646620908 | O63: 0.8533656441 | P63: 1.120866086 | Q63: 0.8948762869 | R63: 0.3628176628 | S63: 0.06506742142 | T63: 0 | U63: 0 | V63: 0 | W63: 0.6529696138 | X63: 0 | Y63: 1.128397292 | Z63: 0.1412958279 | AA63: 0.1875695779 | AB63: 1.163118331 | AC63: 0.940934615 | AD63: 1.811610734 | AE63: 0.4761095689 | AF63: 0.7429812471 | AG63: 1.392951386 | AH63: 0.8130679581 | AI63: 0.1593790679 | AJ63: 0.4116916984 | AK63: 2.554161417 | AL63: 0 | AM63: 3.76764127 | AN63: 0.4276108671 | AO63: 0.06281043726 | AP63: 1.121799075 | AQ63: 0.6209120722
B64: Open public well | C64: 36.84996068 | D64: 34.76295758 | E64: 26.60092933 | F64: 20.63121665 | G64: 4.543000625 | H64: 15.81762411 | I64: 5.054910144 | J64: 2.841971487 | K64: 1.396369096 | L64: 0.3596973075 | M64: 37.26554705 | N64: 36.1606611 | O64: 31.16788333 | P64: 30.35425124 | Q64: 19.32958257 | R64: 10.67982924 | S64: 4.253473002 | T64: 6.762054134 | U64: 23.99698459 | V64: 10.13398347 | W64: 10.34563537 | X64: 3.687435893 | Y64: 48.69298623 | Z64: 40.64053539 | AA64: 32.33700403 | AB64: 43.54080339 | AC64: 18.1373943 | AD64: 40.09551861 | AE64: 28.22132785 | AF64: 33.46547288 | AG64: 14.50261182 | AH64: 48.06403681 | AI64: 19.71357868 | AJ64: 24.03664526 | AK64: 27.70467226 | AL64: 22.80051751 | AM64: 64.18866771 | AN64: 20.33588664 | AO64: 6.930987245 | AP64: 9.431169496 | AQ64: 19.32069811
B65: Neighbor's open well | C65: 1.709289206 | D65: 2.30241662 | E65: 0.9462063038 | F65: 0.8643612 | G65: 1.162595388 | H65: 2.924497688 | I65: 2.439108888 | J65: 1.749938222 | K65: 0.7410364874 | L65: 1.411052984 | M65: 1.396825956 | N65: 2.760873505 | O65: 1.197076291 | P65: 0.5365845742 | Q65: 0.3890467205 | R65: 0.4708828902 | S65: 1.992831344 | T65: 0.06881041065 | U65: 0.6505081568 | V65: 0.2419166444 | W65: 4.897272104 | X65: 0.5520022268 | Y65: 0.912799423 | Z65: 2.513398001 | AA65: 0.2532990049 | AB65: 0.45513326 | AC65: 0.4060978482 | AD65: 1.780597266 | AE65: 0.4414276941 | AF65: 0.2500834526 | AG65: 0.309793092 | AH65: 0.7240689827 | AI65: 0 | AJ65: 0.05864614878 | AK65: 3.328519662 | AL65: 0.761550923 | AM65: 5.928914202 | AN65: 0.4686746038 | AO65: 0.6304071899 | AP65: 1.745788627 | AQ65: 0
B66: Protected well in dwelling | C66: 0 | D66: 0 | E66: 0 | F66: 0.01369119401 | G66: 0.641637594 | H66: 0 | I66: 0.46872543 | J66: 0 | K66: 1.60641751 | L66: 0.3566120118 | M66: 0 | N66: 0 | O66: 0 | P66: 0 | Q66: 0.09533964508 | R66: 0 | S66: 0.18302458 | T66: 0 | U66: 0 | V66: 0 | W66: 0 | X66: 0 | Y66: 0 | Z66: 0 | AA66: 0 | AB66: 0.3328831084 | AC66: 0 | AD66: 0.1307940562 | AE66: 0 | AF66: 0 | AG66: 0 | AH66: 0 | AI66: 0 | AJ66: 0.2836066903 | AK66: 0.7602411753 | AL66: 0 | AM66: 0 | AN66: 0 | AO66: 1.241628875 | AP66: 0 | AQ66: 0
B67: Protected well in yard/plot | C67: 0 | D67: 0.1833125356 | E67: 0 | F67: 0.3214964071 | G67: 0.2326915861 | H67: 0.6066164691 | I67: 0 | J67: 0.5215663851 | K67: 0 | L67: 0.07319797909 | M67: 0 | N67: 0.05131502793 | O67: 0 | P67: 0 | Q67: 0.5410784939 | R67: 0 | S67: 0.2003659495 | T67: 0.1487227458 | U67: 0 | V67: 0.3924130251 | W67: 0 | X67: 0 | Y67: 0 | Z67: 0.1928253721 | AA67: 0 | AB67: 0 | AC67: 1.383124395 | AD67: 0 | AE67: 0 | AF67: 0 | AG67: 0.2117213683 | AH67: 0 | AI67: 0 | AJ67: 0.1829740882 | AK67: 0.2172117644 | AL67: 0 | AM67: 0 | AN67: 0 | AO67: 0.6325920161 | AP67: 0 | AQ67: 0
B68: Protected public well | C68: 11.94225006 | D68: 15.8424359 | E68: 15.92573945 | F68: 13.1340893 | G68: 5.831099303 | H68: 16.12505836 | I68: 5.92137001 | J68: 7.340419198 | K68: 2.086919774 | L68: 2.240073381 | M68: 12.27194432 | N68: 12.44820473 | O68: 18.01158512 | P68: 13.37334338 | Q68: 15.66317447 | R68: 0.8846819751 | S68: 3.998580256 | T68: 0.8435838758 | U68: 9.444322186 | V68: 22.3175511 | W68: 17.05541052 | X68: 0.4313429373 | Y68: 8.865225993 | Z68: 17.398767 | AA68: 4.114474158 | AB68: 4.247360394 | AC68: 23.26402829 | AD68: 4.860338895 | AE68: 10.39442613 | AF68: 2.131089052 | AG68: 1.040561563 | AH68: 5.363811373 | AI68: 35.65797053 | AJ68: 27.3419863 | AK68: 37.00403142 | AL68: 16.83860944 | AM68: 5.269148478 | AN68: 2.49526821 | AO68: 0.4785289608 | AP68: 0.994416458 | AQ68: 0.7704866941
B69: Neighbor's borehole | C69: 0.3118142315 | D69: 0.5780296074 | E69: 0.2843132945 | F69: 0.3643922244 | G69: 3.544849084 | H69: 2.732012218 | I69: 1.637085373 | J69: 6.568415634 | K69: 4.612488918 | L69: 1.760215998 | M69: 0.1203739294 | N69: 0.3061959183 | O69: 0.1959009981 | P69: 0.4621231654 | Q69: 0.1486788144 | R69: 1.054900769 | S69: 5.287286309 | T69: 0 | U69: 0.3868060417 | V69: 0.6494924981 | W69: 0.3917817683 | X69: 0 | Y69: 1.210316264 | Z69: 0.09641268607 | AA69: 1.621113632 | AB69: 0 | AC69: 0.1017068398 | AD69: 0 | AE69: 0.7625283349 | AF69: 0 | AG69: 0 | AH69: 0 | AI69: 1.139430001 | AJ69: 1.978139069 | AK69: 2.407155126 | AL69: 0 | AM69: 0.6371077358 | AN69: 0 | AO69: 1.218073718 | AP69: 0 | AQ69: 0
B70: Spring | C70: 7.437922058 | D70: 6.088619615 | E70: 7.684893394 | F70: 6.355847483 | G70: 1.811874136 | H70: 3.152651392 | I70: 2.036846881 | J70: 1.618616853 | K70: 0.6861708703 | L70: 0 | M70: 7.140330149 | N70: 7.408428814 | O70: 7.668596087 | P70: 6.680038172 | Q70: 7.366875271 | R70: 5.700393174 | S70: 0 | T70: 12.50258905 | U70: 9.982741219 | V70: 13.16553187 | W70: 10.66494005 | X70: 9.243890263 | Y70: 8.149484702 | Z70: 1.72465533 | AA70: 0 | AB70: 5.233228324 | AC70: 5.770309115 | AD70: 0.4023704206 | AE70: 6.480860802 | AF70: 0.2133141783 | AG70: 0.4387862202 | AH70: 0.1635569413 | AI70: 2.174129559 | AJ70: 13.9783152 | AK70: 0 | AL70: 17.8514554 | AM70: 1.270498977 | AN70: 10.72602956 | AO70: 0 | AP70: 0 | AQ70: 0
B71: River, stream | C71: 17.2678364 | D71: 15.31634224 | E71: 18.89177739 | F71: 11.76623353 | G71: 1.411238115 | H71: 4.341910592 | I71: 3.047618272 | J71: 0.3022356162 | K71: 0.8103425075 | L71: 0 | M71: 17.59411228 | N71: 17.29577251 | O71: 17.62009077 | P71: 17.84700379 | Q71: 11.96711898 | R71: 16.65635755 | S71: 0 | T71: 9.572784522 | U71: 15.18012677 | V71: 33.28269373 | W71: 25.54020363 | X71: 14.33456889 | Y71: 4.537003367 | Z71: 5.536431356 | AA71: 20.45219281 | AB71: 15.60739272 | AC71: 18.49633961 | AD71: 15.13284776 | AE71: 7.085635099 | AF71: 0 | AG71: 0 | AH71: 0.3906449622 | AI71: 31.38747004 | AJ71: 14.07967998 | AK71: 10.5936591 | AL71: 9.585892432 | AM71: 5.630140861 | AN71: 13.2678529 | AO71: 0 | AP71: 0 | AQ71: 0
B72: Pond, lake | C72: 3.799224509 | D72: 4.555103908 | E72: 5.646099157 | F72: 4.766907079 | G72: 2.048916228 | H72: 8.526187634 | I72: 6.811475647 | J72: 0.9650964554 | K72: 2.459018873 | L72: 0.8303679005 | M72: 3.111025169 | N72: 5.58630294 | O72: 4.377601181 | P72: 4.792372579 | Q72: 3.340281091 | R72: 1.415488867 | S72: 0 | T72: 1.820639489 | U72: 0.3462899411 | V72: 6.116768747 | W72: 5.251190368 | X72: 0.4692096288 | Y72: 0 | Z72: 0.3123652292 | AA72: 22.32241611 | AB72: 0.2529606002 | AC72: 0 | AD72: 2.646924486 | AE72: 16.73920249 | AF72: 1.066006573 | AG72: 0 | AH72: 0.490670824 | AI72: 1.349384062 | AJ72: 0.2920044713 | AK72: 1.105329253 | AL72: 13.04750089 | AM72: 2.070663285 | AN72: 4.389625228 | AO72: 0 | AP72: 0 | AQ72: 0
B73: Dam | C73: 1.255093532 | D73: 1.735089826 | E73: 2.35618246 | F73: 1.027091564 | G73: 0.1244338519 | H73: 0 | I73: 0.129651858 | J73: 0.1297493974 | K73: 0.2594689401 | L73: 0 | M73: 1.554269338 | N73: 1.128213123 | O73: 2.359843219 | P73: 2.298844079 | Q73: 1.030434792 | R73: 0 | S73: 0.1651792927 | T73: 0 | U73: 1.927997054 | V73: 2.346429117 | W73: 0 | X73: 0 | Y73: 0.2070044666 | Z73: 0 | AA73: 0.2068502098 | AB73: 0 | AC73: 0 | AD73: 2.814810439 | AE73: 4.907711259 | AF73: 0 | AG73: 0 | AH73: 0.754714089 | AI73: 0.1702975635 | AJ73: 0 | AK73: 1.969725142 | AL73: 3.321249383 | AM73: 0.3939599876 | AN73: 4.762875089 | AO73: 0 | AP73: 0 | AQ73: 0
B74: Rainwater | C74: 0 | D74: 0 | E74: 0.1052071631 | F74: 0.2089000464 | G74: 0.1112168888 | H74: 0 | I74: 0 | J74: 0 | K74: 0 | L74: 0.4656334365 | M74: 0 | N74: 0 | O74: 0 | P74: 0.1898777118 | Q74: 0.222767061 | R74: 0 | S74: 0 | T74: 0 | U74: 0 | V74: 0 | W74: 0.4199858044 | X74: 0 | Y74: 0 | Z74: 0 | AA74: 0.151979403 | AB74: 0.2444233973 | AC74: 0 | AD74: 0 | AE74: 0.3660776156 | AF74: 0 | AG74: 0 | AH74: 0 | AI74: 0 | AJ74: 0 | AK74: 0 | AL74: 0 | AM74: 0.157583995 | AN74: 0 | AO74: 0 | AP74: 0 | AQ74: 0
B75: Tanker truck | C75: 0.3551968779 | D75: 0.5172933033 | E75: 0.03919877066 | F75: 0.6748247649 | G75: 3.231808773 | H75: 1.086753403 | I75: 2.240619643 | J75: 3.264282326 | K75: 2.318954271 | L75: 5.324610686 | M75: 0.2220398444 | N75: 0.3478537282 | O75: 0.3874936811 | P75: 0.030875469 | Q75: 0.8672410071 | R75: 0 | S75: 5.39838877 | T75: 1.797626021 | U75: 0 | V75: 0 | W75: 0 | X75: 0 | Y75: 0 | Z75: 5.191272402 | AA75: 0 | AB75: 0 | AC75: 0.0527970109 | AD75: 0 | AE75: 0.3876466056 | AF75: 0 | AG75: 0 | AH75: 4.504291255 | AI75: 0 | AJ75: 0 | AK75: 1.420609264 | AL75: 0.2299242219 | AM75: 0.3475133104 | AN75: 0 | AO75: 1.078345105 | AP75: 0 | AQ75: 0.04234949511
B76: Water vendor | C76: 0.1398469175 | D76: 0.08082629576 | E76: 0.2664251675 | F76: 0.4473243416 | G76: 3.466078507 | H76: 0.8173580552 | I76: 2.682791402 | J76: 3.901827417 | K76: 4.082552498 | L76: 4.107241166 | M76: 0.1838283919 | N76: 0.1071342581 | O76: 0.2536133772 | P76: 0.1544576071 | Q76: 0.1752429017 | R76: 0 | S76: 6.79972115 | T76: 1.820762582 | U76: 0 | V76: 0 | W76: 0.3472411377 | X76: 0 | Y76: 0.3181963596 | Z76: 0 | AA76: 0 | AB76: 0.1222116987 | AC76: 0.8447521744 | AD76: 0.3679268293 | AE76: 0.3427106559 | AF76: 0 | AG76: 0 | AH76: 0.6519643618 | AI76: 0 | AJ76: 0 | AK76: 1.182270062 | AL76: 0.5066251091 | AM76: 0.6371077358 | AN76: 0 | AO76: 0.1788345822 | AP76: 0 | AQ76: 0
B77: Bottled water | C77: 0 | D77: 0 | E77: 0 | F77: 0.02903295233 | G77: 0.5948115807 | H77: 0 | I77: 0.1208772824 | J77: 0.465193061 | K77: 0.1577123609 | L77: 1.865016817 | M77: 0 | N77: 0 | O77: 0 | P77: 0 | Q77: 0 | R77: 0 | S77: 1.642873394 | T77: 0 | U77: 0 | V77: 0 | W77: 0 | X77: 0 | Y77: 0 | Z77: 0 | AA77: 0 | AB77: 0 | AC77: 0.0692379782 | AD77: 0 | AE77: 0 | AF77: 0 | AG77: 0 | AH77: 0 | AI77: 0 | AJ77: 0 | AK77: 0 | AL77: 0 | AM77: 0 | AN77: 0 | AO77: 0 | AP77: 0 | AQ77: 0
B78: Other | C78: 0 | D78: 0.001114166976 | E78: 0.07422020757 | F78: 0.1669135734 | G78: 0 | H78: 0 | I78: 0 | J78: 0 | K78: 0 | L78: 0 | M78: 0 | N78: 0.001476814585 | O78: 0 | P78: 0.09743433614 | Q78: 0.2193414981 | R78: 0 | S78: 0.4508233863 | T78: 0.3027500382 | U78: 0 | V78: 0 | W78: 0 | X78: 0 | Y78: 0 | Z78: 0 | AA78: 0 | AB78: 0 | AC78: 0 | AD78: 0 | AE78: 0 | AF78: 0 | AG78: 0 | AH78: 0 | AI78: 0 | AJ78: 0 | AK78: 0 | AL78: 0 | AM78: 0 | AN78: 0 | AO78: 0 | AP78: 0.08169993238 | AQ78: 0
A108: =A1026 -> United Republic of Tanzania
A109: =A1034 -> 2005
A110: Use of sanitation facilities
A111: by wealth quintile and sub-national region
A112: Notes:
A113: WHO/UNICEF JMP customised wealth index excludes water,
A114: sanitation and hygiene assets.
A115: Survey used for analysis: | B115: =A1025 -> DHS05
A116: =B1030 -> Ratio of Improved latrines based on: | B116: DHS10
A117: =B1029 -> Ratio of Shared improved based on: | B117: DHS10
A120: Use of sanitation facilities | C120: NATIONAL wealth index quintile | H120: URBAN wealth index quintile | M120: RURAL wealth index quintile | R120: SUB-REGIONS: | BA120: Raw numbers of respondents: | BB120: Use of sanitation facilities | BC120: NATIONAL wealth index quintile | BH120: URBAN wealth index quintile | BM120: RURAL wealth index quintile | BR120: SUB-REGIONS:
A121: Weighted percentage (used in graphs) | C121: Poorest | D121: Poor | E121: Middle | F121: Rich | G121: Richest | H121: Poorest | I121: Poor | J121: Middle | K121: Rich | L121: Richest | M121: Poorest | N121: Poor | O121: Middle | P121: Rich | Q121: Richest | R121: Arusha | S121: Dar Es Salam | T121: Dodoma | U121: Iringa | V121: Kagera | W121: Kigoma | X121: Kilimanjaro | Y121: Lindi | Z121: Manyara | AA121: Mara | AB121: Mbeya | AC121: Morogoro | AD121: Mtwara | AE121: Mwanza | AF121: Pemba North | AG121: Pemba South | AH121: Pwani | AI121: Rukwa | AJ121: Ruvuma | AK121: Shinyanga | AL121: Singida | AM121: Tabora | AN121: Tanga | AO121: Town West | AP121: Zanziba South | AQ121: Zanzibar North | BA121: Sanitation data, raw numbers (weighted) | BC121: Poorest | BD121: Poor | BE121: Middle | BF121: Rich | BG121: Richest | BH121: Poorest | BI121: Poor | BJ121: Middle | BK121: Rich | BL121: Richest | BM121: Poorest | BN121: Poor | BO121: Middle | BP121: Rich | BQ121: Richest | BR121: Arusha | BS121: Dar Es Salam | BT121: Dodoma | BU121: Iringa | BV121: Kagera | BW121: Kigoma | BX121: Kilimanjaro | BY121: Lindi | BZ121: Manyara | CA121: Mara | CB121: Mbeya | CC121: Morogoro | CD121: Mtwara | CE121: Mwanza | CF121: Pemba North | CG121: Pemba South | CH121: Pwani | CI121: Rukwa | CJ121: Ruvuma | CK121: Shinyanga | CL121: Singida | CM121: Tabora | CN121: Tanga | CO121: Town West | CP121: Zanziba South | CQ121: Zanzibar North
A122: Sanitation | B122: Improved | C122: =C153+C155+C154*'DHS10'!C130/100 -> 4.63951903 | D122: =D153+D155+D154*'DHS10'!D130/100 -> 4.807782536 | E122: =E153+E155+E154*'DHS10'!E130/100 -> 9.395725245 | F122: =F153+F155+F154*'DHS10'!F130/100 -> 15.04729537 | G122: =G153+G155+G154*'DHS10'!G130/100 -> 44.33630036 | H122: =H153+H155+H154*'DHS10'!H130/100 -> 10.42094024 | I122: =I153+I155+I154*'DHS10'!I130/100 -> 26.73332946 | J122: =J153+J155+J154*'DHS10'!J130/100 -> 31.62026404 | K122: =K153+K155+K154*'DHS10'!K130/100 -> 46.39517083 | L122: =L153+L155+L154*'DHS10'!L130/100 -> 68.78579846 | M122: =M153+M155+M154*'DHS10'!M130/100 -> 4.346478003 | N122: =N153+N155+N154*'DHS10'!N130/100 -> 4.530836918 | O122: =O153+O155+O154*'DHS10'!O130/100 -> 6.825398193 | P122: =P153+P155+P154*'DHS10'!P130/100 -> 10.20602469 | Q122: =Q153+Q155+Q154*'DHS10'!Q130/100 -> 20.01125272 | R122: =R153+R155+R154*'DHS10'!R130/100 -> 18.25049053 | S122: =S153+S155+S154*'DHS10'!S130/100 -> 31.07330004 | T122: =T153+T155+T154*'DHS10'!T130/100 -> 7.357386331 | U122: =U153+U155+U154*'DHS10'!U130/100 -> 28.90522334 | V122: =V153+V155+V154*'DHS10'!V130/100 -> 4.769955794 | W122: =W153+W155+W154*'DHS10'!W130/100 -> 12.46977158 | X122: =X153+X155+X154*'DHS10'!X130/100 -> 21.04295047 | Y122: =Y153+Y155+Y154*'DHS10'!Y130/100 -> 37.25332214 | Z122: =Z153+Z155+Z154*'DHS10'!Z130/100 -> 4.597764221 | AA122: =AA153+AA155+AA154*'DHS10'!AA130/100 -> 4.106017729 | AB122: =AB153+AB155+AB154*'DHS10'!AB130/100 -> 13.41567243 | AC122: =AC153+AC155+AC154*'DHS10'!AC130/100 -> 15.50006179 | AD122: =AD153+AD155+AD154*'DHS10'!AD130/100 -> 28.89013977 | AE122: =AE153+AE155+AE154*'DHS10'!AE130/100 -> 13.25417735 | AF122: =AF153+AF155+AF154*'DHS10'!AF130/100 -> 16.78587272 | AG122: =AG153+AG155+AG154*'DHS10'!AG130/100 -> 31.06445111 | AH122: =AH153+AH155+AH154*'DHS10'!AH130/100 -> 2.173669699 | AI122: =AI153+AI155+AI154*'DHS10'!AI130/100 -> 8.03875573 | AJ122: =AJ153+AJ155+AJ154*'DHS10'!AJ130/100 -> 19.73398582 | AK122: =AK153+AK155+AK154*'DHS10'!AK130/100 -> 5.285925832 | AL122: =AL153+AL155+AL154*'DHS10'!AL130/100 -> 7.65570872 | AM122: =AM153+AM155+AM154*'DHS10'!AM130/100 -> 6.749170986 | AN122: =AN153+AN155+AN154*'DHS10'!AN130/100 -> 14.85763424 | AO122: =AO153+AO155+AO154*'DHS10'!AO130/100 -> 81.49142946 | AP122: =AP153+AP155+AP154*'DHS10'!AP130/100 -> 64.75321805 | AQ122: =AQ153+AQ155+AQ154*'DHS10'!AQ130/100 -> 47.61391156 | BA122: Sanitation | BB122: Improved | BC122: N/A | BD122: N/A | BE122: N/A | BF122: N/A | BG122: N/A | BH122: N/A | BI122: N/A | BJ122: N/A | BK122: N/A | BL122: N/A | BM122: N/A | BN122: N/A | BO122: N/A | BP122: N/A | BQ122: N/A | BR122: N/A | BS122: N/A | BT122: N/A | BU122: N/A | BV122: N/A | BW122: N/A | BX122: N/A | BY122: N/A | BZ122: N/A | CA122: N/A | CB122: N/A | CC122: N/A | CD122: N/A | CE122: N/A | CF122: N/A | CG122: N/A | CH122: N/A | CI122: N/A | CJ122: N/A | CK122: N/A | CL122: N/A | CM122: N/A | CN122: N/A | CO122: N/A | CP122: N/A | CQ122: N/A
B123: Not Improved | C123: =100-C122 -> 95.36048097 | D123: =100-D122 -> 95.19221746 | E123: 90.60427476 | F123: 84.95270463 | G123: 55.66369964 | H123: 89.57905976 | I123: 73.26667054 | J123: 68.37973596 | K123: 53.60482917 | L123: 31.21420154 | M123: 95.653522 | N123: 95.46916308 | O123: 93.17460181 | P123: 89.79397531 | Q123: 79.98874728 | R123: 81.74950947 | S123: 68.92669996 | T123: 92.64261367 | U123: 71.09477666 | V123: 95.23004421 | W123: 87.53022842 | X123: 78.95704953 | Y123: 62.74667786 | Z123: 95.40223578 | AA123: 95.89398227 | AB123: 86.58432757 | AC123: 84.49993821 | AD123: 71.10986023 | AE123: 86.74582265 | AF123: 83.21412728 | AG123: 68.93554889 | AH123: 97.8263303 | AI123: 91.96124427 | AJ123: 80.26601418 | AK123: 94.71407417 | AL123: 92.34429128 | AM123: 93.25082901 | AN123: 85.14236576 | AO123: 18.50857054 | AP123: 35.24678195 | AQ123: 52.38608844 | BB123: Not Improved | BC123: N/A | BD123: N/A | BE123: N/A | BF123: N/A | BG123: N/A | BH123: N/A | BI123: N/A | BJ123: N/A | BK123: N/A | BL123: N/A | BM123: N/A | BN123: N/A | BO123: N/A | BP123: N/A | BQ123: N/A | BR123: N/A | BS123: N/A | BT123: N/A | BU123: N/A | BV123: N/A | BW123: N/A | BX123: N/A | BY123: N/A | BZ123: N/A | CA123: N/A | CB123: N/A | CC123: N/A | CD123: N/A | CE123: N/A | CF123: N/A | CG123: N/A | CH123: N/A | CI123: N/A | CJ123: N/A | CK123: N/A | CL123: N/A | CM123: N/A | CN123: N/A | CO123: N/A | CP123: N/A | CQ123: N/A
